Workbook

Sheet FERC_IS1
A1: %,LACTUALS,SBAL | B1: %,ATF,FACCOUNT | C1: %,ATT,FDESCR,UDESCR | F1: %,LACTUALS,SPER | G1: %,LACTUALS,SPER-1YR | H1: %,C | I1: %,C | K1: %,LACTUALS,SYTD | L1: %,LACTUALS,SYTD-1YR | M1: %,C | N1: %,C | Q1: %,LACTUALS,SQTR | R1: %,LACTUALS,SQTR-1YR | S1: %,C | T1: %,C | V1: %,LACTUALS,SROLLING12 | W1: %,LACTUALS,SROLNG12-1Y | X1: %,C | Y1: %,C | AA1: %,LACTUALS,SPER12-2Y | AC1: %,LACTUALS,SPER1-1YR | AD1: %,LACTUALS,SPER2-1YR | AE1: %,LACTUALS,SPER3-1YR | AF1: %,LACTUALS,SPER4-1YR | AG1: %,LACTUALS,SPER5-1YR | AH1: %,LACTUALS,SPER6-1YR | AI1: %,LACTUALS,SPER7-1YR | AJ1: %,LACTUALS,SPER8-1YR | AK1: %,LACTUALS,SPER9-1YR | AL1: %,LACTUALS,SPER10-1YR | AM1: %,LACTUALS,SPER11-1YR | AN1: %,LACTUALS,SPER12-YR | AP1: %,LACTUALS,SPER1 | AQ1: %,LACTUALS,SPER2 | AR1: %,LACTUALS,SPER3
C2: =IF($C$702="Error",$C$707,IF($C$708="Error",$C$704&" - "&$C$703,IF($C$708 = $C$707, "BU"& $C$708&" -" & $C$702,$C$708&" - "&$C$707))) -> Kentucky Power Corp Consol | G2: =+C2 -> Kentucky Power Corp Consol | L2: =+G2 -> Kentucky Power Corp Consol | R2: =+L2 -> Kentucky Power Corp Consol | W2: =+R2 -> Kentucky Power Corp Consol | AA2: =+C2 -> Kentucky Power Corp Consol | AP2: =+C2 -> Kentucky Power Corp Consol
C3: =TEXT(+$C$692,"MMMM YYYY") -> March 2026 | G3: =+"As of: "& TEXT(+$C$692,"MMM YYYY") -> As of: Mar 2026 | L3: =+G3 -> As of: Mar 2026 | R3: =+L3 -> As of: Mar 2026 | W3: =+R3 -> As of: Mar 2026 | AA3: =+G3 -> As of: Mar 2026
B4: ="Run Date: "& TEXT(NvsEndTime,"MM/DD/YYYY hh:mm AM/PM;@") -> Run Date: 04/09/2026 01:15 PM | AP4: =+AA4 -> 0
B5: =IF(C705<>"Error",C705,"") -> GLR6283P | C5: ="Rpt ID: "& C700& " Layout: "&C701 -> Rpt ID: FERC_IS1 Layout: FERC_IS1 | F5: ONE MONTH ENDED | H5: Variance | K5: YEAR TO DATE | M5: Variance | Q5: THREE MONTHS ENDED | S5: Variance | V5: TWELVE MONTHS ENDED | X5: Variance
B6: =IF(C702="Error",""&C708,IF(C708= "Error","" & C704,"" &C708)) -> KYP_CORP_CONSOL | C6: =IF($C$702="Error",NvsTreeASD & " Acct: GL_FERC_ACCT BU: "&+$C$709,IF(C708="Error",NvsTreeASD & " Acct: GL_FERC_ACCT BU: "&+$C$704,NvsTreeASD & " Acct: GL_FERC_ACCT BU: "&+$C$708)) -> V2099-01-01 Acct: GL_FERC_ACCT BU: GL_PRPT_CONS | F6: =TEXT($C$692,"YYYY") -> 2026 | G6: =+F6-1 -> 2025 | H6: $ | I6: % | K6: =TEXT($C$692,"YYYY") -> 2026 | L6: =+K6-1 -> 2025 | M6: $ | N6: % | O6: Explanation | Q6: =TEXT($C$692,"YYYY") -> 2026 | R6: =+Q6-1 -> 2025 | S6: $ | T6: % | V6: =TEXT($C$692,"YYYY") -> 2026 | W6: =+V6-1 -> 2025 | X6: $ | Y6: % | AA6: ="Dec "&TEXT($C$692,"YYYY") - 2 -> Dec 2024 | AC6: ="Jan "&TEXT($C$692,"YYYY")-1 -> Jan 2025 | AD6: ="Feb "&TEXT($C$692,"YYYY") - 1 -> Feb 2025 | AE6: ="Mar "&TEXT($C$692,"YYYY") - 1 -> Mar 2025 | AF6: ="Apr "&TEXT($C$692,"YYYY") - 1 -> Apr 2025 | AG6: ="May "&TEXT($C$692,"YYYY") - 1 -> May 2025 | AH6: ="Jun "&TEXT($C$692,"YYYY") - 1 -> Jun 2025 | AI6: ="Jul "&TEXT($C$692,"YYYY") - 1 -> Jul 2025 | AJ6: ="Aug "&TEXT($C$692,"YYYY") - 1 -> Aug 2025 | AK6: ="Sep "&TEXT($C$692,"YYYY") - 1 -> Sep 2025 | AL6: ="Oct "&TEXT($C$692,"YYYY") - 1 -> Oct 2025 | AM6: ="Nov "&TEXT($C$692,"YYYY") - 1 -> Nov 2025 | AN6: ="Dec "&TEXT($C$692,"YYYY") - 1 -> Dec 2025 | AP6: ="Jan "&TEXT($C$692,"YYYY") -> Jan 2026 | AQ6: ="Feb "&TEXT($C$692,"YYYY") -> Feb 2026 | AR6: ="Mar "&TEXT($C$692,"YYYY") -> Mar 2026
B7: FERC Form | C7: INCOME STATEMENT
B9: Line 1 | C9: Utility Operating Income
A11: %,V4400001 | B11: 4400001 | C11: Residential Sales-W/Space Htg | F11: 13331740.11 | G11: 14995212.24 | H11: =+F11-G11 -> -1663472.132 | I11: =IF(G11<0,IF(H11=0,0,IF(OR(G11=0,F11=0),"N.M.",IF(ABS(H11/G11)>=10,"N.M.",H11/(-G11)))),IF(H11=0,0,IF(OR(G11=0,F11=0),"N.M.",IF(ABS(H11/G11)>=10,"N.M.",H11/G11)))) -> -0.1109335503 | K11: 51875115.96 | L11: 53578694.54 | Q11: 51875115.96 | R11: 53578694.54 | V11: 155146280.8 | W11: 155019888.1 | X11: =+V11-W11 -> 126392.65 | Y11: =IF(W11<0,IF(X11=0,0,IF(OR(W11=0,V11=0),"N.M.",IF(ABS(X11/W11)>=10,"N.M.",X11/(-W11)))),IF(X11=0,0,IF(OR(W11=0,V11=0),"N.M.",IF(ABS(X11/W11)>=10,"N.M.",X11/W11)))) -> 0.0008153318359 | AA11: 18551170.45 | AC11: 21899121.56 | AD11: 16684360.74 | AE11: 14995212.24 | AF11: 10394968.61 | AG11: 7731231.34 | AH11: 10518841.64 | AI11: 12905113.72 | AJ11: 11599370.53 | AK11: 8472583.75 | AL11: 9871189.17 | AM11: 12490967.45 | AN11: 19286898.62 | AP11: 19918023.67 | AQ11: 18625352.19 | AR11: 13331740.11
A12: %,V4400002 | B12: 4400002 | C12: Residential Sales-W/O Space Ht | F12: 5759012.45 | G12: 5866308.67 | H12: =+F12-G12 -> -107296.22 | I12: =IF(G12<0,IF(H12=0,0,IF(OR(G12=0,F12=0),"N.M.",IF(ABS(H12/G12)>=10,"N.M.",H12/(-G12)))),IF(H12=0,0,IF(OR(G12=0,F12=0),"N.M.",IF(ABS(H12/G12)>=10,"N.M.",H12/G12)))) -> -0.01829024452 | K12: 19660588.03 | L12: 19526490.87 | Q12: 19660588.03 | R12: 19526490.87 | V12: 71790501.17 | W12: 68206749.91 | X12: =+V12-W12 -> 3583751.264 | Y12: =IF(W12<0,IF(X12=0,0,IF(OR(W12=0,V12=0),"N.M.",IF(ABS(X12/W12)>=10,"N.M.",X12/(-W12)))),IF(X12=0,0,IF(OR(W12=0,V12=0),"N.M.",IF(ABS(X12/W12)>=10,"N.M.",X12/W12)))) -> 0.05254247224 | AA12: 6080220.07 | AC12: 7798813.73 | AD12: 5861368.47 | AE12: 5866308.67 | AF12: 4806574.39 | AG12: 3968953.45 | AH12: 5838656.28 | AI12: 7940424.53 | AJ12: 6607786.695 | AK12: 4750570.07 | AL12: 5193758.17 | AM12: 5035844.717 | AN12: 7987344.84 | AP12: 6963240.391 | AQ12: 6938335.191 | AR12: 5759012.45
A13: %,V4400005 | B13: 4400005 | C13: Residential Fuel Rev | F13: 6770953.61 | G13: 7122520.27 | H13: =+F13-G13 -> -351566.66 | I13: =IF(G13<0,IF(H13=0,0,IF(OR(G13=0,F13=0),"N.M.",IF(ABS(H13/G13)>=10,"N.M.",H13/(-G13)))),IF(H13=0,0,IF(OR(G13=0,F13=0),"N.M.",IF(ABS(H13/G13)>=10,"N.M.",H13/G13)))) -> -0.04935986795 | K13: 26063987.41 | L13: 24647834.77 | Q13: 26063987.41 | R13: 24647834.77 | V13: 80978458.95 | W13: 72021463.23 | X13: =+V13-W13 -> 8956995.72 | Y13: =IF(W13<0,IF(X13=0,0,IF(OR(W13=0,V13=0),"N.M.",IF(ABS(X13/W13)>=10,"N.M.",X13/(-W13)))),IF(X13=0,0,IF(OR(W13=0,V13=0),"N.M.",IF(ABS(X13/W13)>=10,"N.M.",X13/W13)))) -> 0.1243656449 | AA13: 7956303.42 | AC13: 11449951.72 | AD13: 6075362.78 | AE13: 7122520.27 | AF13: 3185157.45 | AG13: 3153512.74 | AH13: 12113659.34 | AI13: 8097863.13 | AJ13: 7131606.14 | AK13: 4108160.79 | AL13: 4270224.06 | AM13: 5723763.91 | AN13: 7130523.98 | AP13: 9779560.66 | AQ13: 9513473.14 | AR13: 6770953.61
A14: %,R,FACCOUNT,TGL_FERC_ACCT,XDYYNNY01,N4400 | C14: Residential Sales | F14: 25861706.17 | G14: 27984041.18 | H14: =+F14-G14 -> -2122335.012 | I14: =IF(G14<0,IF(H14=0,0,IF(OR(G14=0,F14=0),"N.M.",IF(ABS(H14/G14)>=10,"N.M.",H14/(-G14)))),IF(H14=0,0,IF(OR(G14=0,F14=0),"N.M.",IF(ABS(H14/G14)>=10,"N.M.",H14/G14)))) -> -0.07584090512 | K14: 97599691.41 | L14: 97753020.18 | Q14: 97599691.41 | R14: 97753020.18 | V14: 307915240.9 | W14: 295248101.3 | X14: =+V14-W14 -> 12667139.63 | Y14: =IF(W14<0,IF(X14=0,0,IF(OR(W14=0,V14=0),"N.M.",IF(ABS(X14/W14)>=10,"N.M.",X14/(-W14)))),IF(X14=0,0,IF(OR(W14=0,V14=0),"N.M.",IF(ABS(X14/W14)>=10,"N.M.",X14/W14)))) -> 0.04290337374 | AA14: 32587693.94 | AC14: 41147887.01 | AD14: 28621091.99 | AE14: 27984041.18 | AF14: 18386700.45 | AG14: 14853697.53 | AH14: 28471157.26 | AI14: 28943401.38 | AJ14: 25338763.37 | AK14: 17331314.61 | AL14: 19335171.4 | AM14: 23250576.07 | AN14: 34404767.44 | AP14: 36660824.72 | AQ14: 35077160.52 | AR14: 25861706.17
A16: %,V4420001 | B16: 4420001 | C16: Commercial Sales | F16: 7639085.446 | G16: 8698149.74 | H16: =+F16-G16 -> -1059064.294 | I16: =IF(G16<0,IF(H16=0,0,IF(OR(G16=0,F16=0),"N.M.",IF(ABS(H16/G16)>=10,"N.M.",H16/(-G16)))),IF(H16=0,0,IF(OR(G16=0,F16=0),"N.M.",IF(ABS(H16/G16)>=10,"N.M.",H16/G16)))) -> -0.1217574226 | K16: 23484328.75 | L16: 26754880.1 | Q16: 23484328.75 | R16: 26754880.1 | V16: 97508696.75 | W16: 102764990 | X16: =+V16-W16 -> -5256293.255 | Y16: =IF(W16<0,IF(X16=0,0,IF(OR(W16=0,V16=0),"N.M.",IF(ABS(X16/W16)>=10,"N.M.",X16/(-W16)))),IF(X16=0,0,IF(OR(W16=0,V16=0),"N.M.",IF(ABS(X16/W16)>=10,"N.M.",X16/W16)))) -> -0.05114867675 | AA16: 9983320.76 | AC16: 9756331.98 | AD16: 8300398.38 | AE16: 8698149.74 | AF16: 7636183.85 | AG16: 6724174.25 | AH16: 8621358.89 | AI16: 8896994.41 | AJ16: 8200358.925 | AK16: 7178826.69 | AL16: 8866081.53 | AM16: 7681838.358 | AN16: 10218551.1 | AP16: 8562474.459 | AQ16: 7282768.849 | AR16: 7639085.446
A17: %,V4420002 | B17: 4420002 | C17: Industrial Sales (Excl Mines) | F17: 7294706.712 | G17: 7316102.71 | H17: -21395.998 | I17: -0.002924507603 | K17: 21299367.81 | L17: 19328330.23 | Q17: 21299367.81 | R17: 19328330.23 | V17: 67920903.35 | W17: 78112801.6 | X17: -10191898.25 | Y17: -0.1304766701 | AA17: 7319084.09 | AC17: 5985417.87 | AD17: 6026809.65 | AE17: 7316102.71 | AF17: 6439848.92 | AG17: 6842201.07 | AH17: 2312197.92 | AI17: 6195767.86 | AJ17: 5372986.274 | AK17: 4824240.96 | AL17: 6684660.79 | AM17: 4458868.872 | AN17: 3490762.88 | AP17: 9533923.41 | AQ17: 4470737.686 | AR17: 7294706.712
A18: %,V4420004 | B18: 4420004 | C18: Ind Sales-NonAffil(Incl Mines) | F18: 1147943.66 | G18: 1465250.36 | H18: -317306.7 | I18: -0.2165545962 | K18: 3313599.12 | L18: 4414816.62 | Q18: 3313599.12 | R18: 4414816.62 | V18: 13821863.95 | W18: 17391956.6 | X18: -3570092.646 | Y18: -0.2052726285 | AA18: 1331746.31 | AC18: 1548190.26 | AD18: 1401376 | AE18: 1465250.36 | AF18: 1412047.01 | AG18: 1131525.36 | AH18: 1112011.19 | AI18: 1039373.23 | AJ18: 1160625.513 | AK18: 1120136.81 | AL18: 1290874.68 | AM18: 1027786.731 | AN18: 1213884.31 | AP18: 1335955.737 | AQ18: 829699.723 | AR18: 1147943.66
A19: %,V4420006 | B19: 4420006 | C19: Sales to Pub Auth - Schools | F19: 1307994.084 | G19: 1507545.47 | H19: -199551.386 | I19: -0.1323684028 | K19: 4017791.028 | L19: 4524434.98 | Q19: 4017791.028 | R19: 4524434.98 | V19: 15847490.31 | W19: 16378299.98 | X19: -530809.674 | Y19: -0.03240932665 | AA19: 1424105.15 | AC19: 1608928.86 | AD19: 1407960.65 | AE19: 1507545.47 | AF19: 1297881.81 | AG19: 1136607.26 | AH19: 1463355.15 | AI19: 1052794.29 | AJ19: 1264744.116 | AK19: 1284043.61 | AL19: 1461433.71 | AM19: 1287909.375 | AN19: 1580929.957 | AP19: 1483779.899 | AQ19: 1226017.045 | AR19: 1307994.084
A20: %,V4420007 | B20: 4420007 | C20: Sales to Pub Auth - Ex Schools | F20: 1621330.149 | G20: 1738135.35 | H20: -116805.201 | I20: -0.06720144148 | K20: 4791132.814 | L20: 5240260.98 | Q20: 4791132.814 | R20: 5240260.98 | V20: 19382277.32 | W20: 20498443.83 | X20: -1116166.51 | Y20: -0.05445128027 | AA20: 2087668.21 | AC20: 1955065.23 | AD20: 1547060.4 | AE20: 1738135.35 | AF20: 1578642.63 | AG20: 1332337.03 | AH20: 1945278.57 | AI20: 1543791.29 | AJ20: 1545420.074 | AK20: 1344232.94 | AL20: 1744257.49 | AM20: 1608562.127 | AN20: 1948622.355 | AP20: 1818088.408 | AQ20: 1351714.257 | AR20: 1621330.149
A21: %,V4420013 | B21: 4420013 | C21: Commercial Fuel Rev | F21: 5129806.2 | G21: 4842141.86 | H21: 287664.34 | I21: 0.05940849077 | K21: 15202573.16 | L21: 14003117.69 | Q21: 15202573.16 | R21: 14003117.69 | V21: 59884587.17 | W21: 54230534.51 | X21: 5654052.66 | Y21: 0.1042595783 | AA21: 4554313.04 | AC21: 5862942.98 | AD21: 3298032.85 | AE21: 4842141.86 | AF21: 3232459.78 | AG21: 3670709.4 | AH21: 9559013.53 | AI21: 5979493.24 | AJ21: 5382681.54 | AK21: 4019913.93 | AL21: 4136817.01 | AM21: 4800937.7 | AN21: 3899987.88 | AP21: 5694959.73 | AQ21: 4377807.23 | AR21: 5129806.2
A22: %,V4420016 | B22: 4420016 | C22: Industrial Fuel Rev | F22: 7110720.74 | G22: 5793588.24 | H22: 1317132.5 | I22: 0.2273431327 | K22: 15108220.56 | L22: 17657391.84 | Q22: 15108220.56 | R22: 17657391.84 | V22: 78507272.51 | W22: 74250744.99 | X22: 4256527.52 | Y22: 0.05732639478 | AA22: 6156036.22 | AC22: 6561407.22 | AD22: 5302396.38 | AE22: 5793588.24 | AF22: 5314347.11 | AG22: 6534812.22 | AH22: 12406794.84 | AI22: 6821319.9 | AJ22: 6975137.68 | AK22: 6526079.14 | AL22: 4454003.08 | AM22: 7013721.08 | AN22: 7352836.9 | AP22: 3016302.06 | AQ22: 4981197.76 | AR22: 7110720.74
A23: %,R,FACCOUNT,TGL_FERC_ACCT,XDYYNNY01,N4420 | C23: Commercial Sales | F23: 31251586.99 | G23: 31360913.73 | H23: -109326.739 | I23: -0.003486082706 | K23: 87217013.24 | L23: 91923232.44 | Q23: 87217013.24 | R23: 91923232.44 | V23: 352873091.4 | W23: 363627771.5 | X23: -10754680.15 | Y23: -0.02957606925 | AA23: 32856273.78 | AC23: 33278284.4 | AD23: 27284034.31 | AE23: 31360913.73 | AF23: 26911411.11 | AG23: 27372366.59 | AH23: 37420010.09 | AI23: 31529534.22 | AJ23: 29901954.12 | AK23: 26297474.08 | AL23: 28638128.29 | AM23: 27879624.24 | AN23: 29705575.38 | AP23: 31445483.7 | AQ23: 24519942.55 | AR23: 31251586.99
A25: %,V4440000 | B25: 4440000 | C25: Public Street/Highway Lighting | F25: 158808.031 | G25: 151538.38 | H25: =+F25-G25 -> 7269.651 | I25: =IF(G25<0,IF(H25=0,0,IF(OR(G25=0,F25=0),"N.M.",IF(ABS(H25/G25)>=10,"N.M.",H25/(-G25)))),IF(H25=0,0,IF(OR(G25=0,F25=0),"N.M.",IF(ABS(H25/G25)>=10,"N.M.",H25/G25)))) -> 0.04797234206 | K25: 595691.468 | L25: 471238.29 | Q25: 595691.468 | R25: 471238.29 | V25: 1836172.694 | W25: 1829538.48 | X25: =+V25-W25 -> 6634.214 | Y25: =IF(W25<0,IF(X25=0,0,IF(OR(W25=0,V25=0),"N.M.",IF(ABS(X25/W25)>=10,"N.M.",X25/(-W25)))),IF(X25=0,0,IF(OR(W25=0,V25=0),"N.M.",IF(ABS(X25/W25)>=10,"N.M.",X25/W25)))) -> 0.00362616806 | AA25: 153504.45 | AC25: 158477.95 | AD25: 161221.96 | AE25: 151538.38 | AF25: 156242.37 | AG25: 151371.38 | AH25: 144242.97 | AI25: 151057.82 | AJ25: 151856.169 | AK25: 150194.75 | AL25: 154153.05 | AM25: 158430.905 | AN25: 22931.812 | AP25: 287750.999 | AQ25: 149132.438 | AR25: 158808.031
A26: %,V4440002 | B26: 4440002 | C26: Public St & Hwy Light Fuel Rev | F26: 35578.01 | G26: 31209.55 | H26: =+F26-G26 -> 4368.46 | I26: =IF(G26<0,IF(H26=0,0,IF(OR(G26=0,F26=0),"N.M.",IF(ABS(H26/G26)>=10,"N.M.",H26/(-G26)))),IF(H26=0,0,IF(OR(G26=0,F26=0),"N.M.",IF(ABS(H26/G26)>=10,"N.M.",H26/G26)))) -> 0.1399718996 | K26: 116636.57 | L26: 89161.21 | Q26: 116636.57 | R26: 89161.21 | V26: 344475.69 | W26: 326019.41 | X26: =+V26-W26 -> 18456.28 | Y26: =IF(W26<0,IF(X26=0,0,IF(OR(W26=0,V26=0),"N.M.",IF(ABS(X26/W26)>=10,"N.M.",X26/(-W26)))),IF(X26=0,0,IF(OR(W26=0,V26=0),"N.M.",IF(ABS(X26/W26)>=10,"N.M.",X26/W26)))) -> 0.05661098522 | AA26: 34491.81 | AC26: 36592.55 | AD26: 21359.11 | AE26: 31209.55 | AF26: 17960.67 | AG26: 22593.3 | AH26: 43292.14 | AI26: 23661.31 | AJ26: 28446.05 | AK26: 28992.25 | AL26: 23033.25 | AM26: 37177.3 | AN26: 2682.85 | AP26: 54869.27 | AQ26: 26189.29 | AR26: 35578.01
A27: %,R,FACCOUNT,TGL_FERC_ACCT,XDYYNNY01,N4440,N4450,N4460,N4480 | C27: Public Streets and Highway Lighting | F27: 194386.041 | G27: 182747.93 | H27: =+F27-G27 -> 11638.111 | I27: =IF(G27<0,IF(H27=0,0,IF(OR(G27=0,F27=0),"N.M.",IF(ABS(H27/G27)>=10,"N.M.",H27/(-G27)))),IF(H27=0,0,IF(OR(G27=0,F27=0),"N.M.",IF(ABS(H27/G27)>=10,"N.M.",H27/G27)))) -> 0.06368395527 | K27: 712328.038 | L27: 560399.5 | Q27: 712328.038 | R27: 560399.5 | V27: 2180648.384 | W27: 2155557.89 | X27: =+V27-W27 -> 25090.494 | Y27: =IF(W27<0,IF(X27=0,0,IF(OR(W27=0,V27=0),"N.M.",IF(ABS(X27/W27)>=10,"N.M.",X27/(-W27)))),IF(X27=0,0,IF(OR(W27=0,V27=0),"N.M.",IF(ABS(X27/W27)>=10,"N.M.",X27/W27)))) -> 0.01163990729 | AA27: 187996.26 | AC27: 195070.5 | AD27: 182581.07 | AE27: 182747.93 | AF27: 174203.04 | AG27: 173964.68 | AH27: 187535.11 | AI27: 174719.13 | AJ27: 180302.219 | AK27: 179187 | AL27: 177186.3 | AM27: 195608.205 | AN27: 25614.662 | AP27: 342620.269 | AQ27: 175321.728 | AR27: 194386.041
A29: %,V4470006 | B29: 4470006 | C29: Sales for Resale-Bookout Sales | F29: 0 | G29: 0 | H29: =+F29-G29 -> 0 | I29: =IF(G29<0,IF(H29=0,0,IF(OR(G29=0,F29=0),"N.M.",IF(ABS(H29/G29)>=10,"N.M.",H29/(-G29)))),IF(H29=0,0,IF(OR(G29=0,F29=0),"N.M.",IF(ABS(H29/G29)>=10,"N.M.",H29/G29)))) -> 0 | K29: 0 | L29: 0 | Q29: 0 | R29: 0 | V29: 0.2 | W29: 0 | X29: =+V29-W29 -> 0.2 | Y29: =IF(W29<0,IF(X29=0,0,IF(OR(W29=0,V29=0),"N.M.",IF(ABS(X29/W29)>=10,"N.M.",X29/(-W29)))),IF(X29=0,0,IF(OR(W29=0,V29=0),"N.M.",IF(ABS(X29/W29)>=10,"N.M.",X29/W29)))) -> N.M. | AA29: 0 | AC29: 0 | AD29: 0 | AE29: 0 | AF29: 0 | AG29: 0 | AH29: 0 | AI29: 0 | AJ29: 0 | AK29: 0 | AL29: 0 | AM29: 0 | AN29: 0.2 | AP29: 0 | AQ29: 0 | AR29: 0
A30: %,V4470010 | B30: 4470010 | C30: Sales for Resale-Bookout Purch | F30: 0 | G30: 0 | H30: 0 | I30: 0 | K30: -12.02 | L30: 0 | Q30: -12.02 | R30: 0 | V30: 34.63 | W30: 7.36 | X30: 27.27 | Y30: 3.705163043 | AA30: 0 | AC30: 0 | AD30: 0 | AE30: 0 | AF30: 0 | AG30: 0 | AH30: 0 | AI30: 0 | AJ30: 0 | AK30: 0 | AL30: 0 | AM30: 0 | AN30: 46.65 | AP30: -24.2 | AQ30: 12.18 | AR30: 0
A31: %,V4470027 | B31: 4470027 | C31: Whsal/Muni/Pb Ath Fuel Rev | F31: 0 | G31: 281774.76 | H31: -281774.76 | I31: N.M. | K31: 0 | L31: 922431.94 | Q31: 0 | R31: 922431.94 | V31: 639136.72 | W31: 2799554.45 | X31: -2160417.73 | Y31: -0.7717005576 | AA31: 302675.32 | AC31: 377771.11 | AD31: 262886.07 | AE31: 281774.76 | AF31: 301957.53 | AG31: 290721.96 | AH31: 3490.5 | AI31: 42966.73 | AJ31: 0 | AK31: 0 | AL31: 0 | AM31: 0 | AN31: 0 | AP31: 0 | AQ31: 0 | AR31: 0
A32: %,V4470033 | B32: 4470033 | C32: Whsal/Muni/Pub Auth Base Rev | F32: 0 | G32: 176363.15 | H32: -176363.15 | I32: N.M. | K32: 0 | L32: 655186.45 | Q32: 0 | R32: 655186.45 | V32: 669868.24 | W32: 1820903.09 | X32: -1151034.85 | Y32: -0.6321230692 | AA32: 208511.64 | AC32: 270507.72 | AD32: 208315.58 | AE32: 176363.15 | AF32: 153614.26 | AG32: 516121.55 | AH32: 132.43 | AI32: 0 | AJ32: 0 | AK32: 0 | AL32: 0 | AM32: 0 | AN32: 0 | AP32: 0 | AQ32: 0 | AR32: 0
A33: %,V4470074 | B33: 4470074 | C33: Sale for Resale-Aff-Trnf Price | F33: 0 | G33: 0 | H33: 0 | I33: 0 | K33: 0 | L33: 0 | Q33: 0 | R33: 0 | V33: 0 | W33: 0 | X33: 0 | Y33: 0 | AA33: 0 | AC33: 0 | AD33: 0 | AE33: 0 | AF33: 0 | AG33: 0 | AH33: 0 | AI33: 0 | AJ33: 0 | AK33: 0 | AL33: 0 | AM33: 0 | AN33: 0 | AP33: 0 | AQ33: 0 | AR33: 0
A34: %,V4470082 | B34: 4470082 | C34: Financial Electric Realized | F34: 0 | G34: -211.94 | H34: 211.94 | I34: N.M. | K34: -377.18 | L34: -1368.95 | Q34: -377.18 | R34: -1368.95 | V34: -2713.58 | W34: -7453.79 | X34: 4740.21 | Y34: 0.635946277 | AA34: -338.99 | AC34: -200.53 | AD34: -956.48 | AE34: -211.94 | AF34: -498.85 | AG34: -158.6 | AH34: -220.65 | AI34: -297.09 | AJ34: -207.38 | AK34: -294.09 | AL34: -290.98 | AM34: -228.38 | AN34: -140.38 | AP34: -245.62 | AQ34: -131.56 | AR34: 0
A35: %,V4470089 | B35: 4470089 | C35: PJM Energy Sales Margin | F35: -544999.55 | G35: -104566.51 | H35: -440433.04 | I35: -4.211989479 | K35: 1337625.07 | L35: 287801.23 | Q35: 1337625.07 | R35: 287801.23 | V35: 3489860.46 | W35: 274564.9 | X35: 3215295.56 | Y35: N.M. | AA35: -163952.38 | AC35: 215057.19 | AD35: 177310.55 | AE35: -104566.51 | AF35: -25948.59 | AG35: 81981.73 | AH35: 1140661.57 | AI35: -593030.27 | AJ35: 260906.18 | AK35: 72820.4 | AL35: 150746.48 | AM35: 916866.79 | AN35: 147231.1 | AP35: 1754682.79 | AQ35: 127941.83 | AR35: -544999.55
A36: %,V4470098 | B36: 4470098 | C36: PJM Oper.Reserve Rev-OSS | F36: -22611.53 | G36: -3947.07 | H36: -18664.46 | I36: -4.728687355 | K36: -441223.65 | L36: -19812.32 | Q36: -441223.65 | R36: -19812.32 | V36: -520520.01 | W36: -65524.21 | X36: -454995.8 | Y36: -6.943934158 | AA36: -5128.19 | AC36: -6943.64 | AD36: -8921.61 | AE36: -3947.07 | AF36: -6103.18 | AG36: -8662.52 | AH36: 1589.11 | AI36: -14240.69 | AJ36: -14683.02 | AK36: -7762.45 | AL36: -4685.51 | AM36: -4575.42 | AN36: -20172.68 | AP36: -52401.2 | AQ36: -366210.92 | AR36: -22611.53
A37: %,V4470099 | B37: 4470099 | C37: Capacity Cr. Net Sales | F37: 0 | G37: -10445.76 | H37: 10445.76 | I37: N.M. | K37: 0 | L37: -30326.43 | Q37: 0 | R37: -30326.43 | V37: -20554.56 | W37: -102367.55 | X37: 81812.99 | Y37: 0.7992082452 | AA37: -10782.72 | AC37: -10445.79 | AD37: -9434.88 | AE37: -10445.76 | AF37: -10108.8 | AG37: -10445.76 | AH37: 0 | AI37: 0 | AJ37: 0 | AK37: 0 | AL37: 0 | AM37: 0 | AN37: 0 | AP37: 0 | AQ37: 0 | AR37: 0
A38: %,V4470100 | B38: 4470100 | C38: PJM FTR Revenue-OSS | F38: 3523.93 | G38: 202.03 | H38: 3321.9 | I38: N.M. | K38: 274671.78 | L38: 37013.98 | Q38: 274671.78 | R38: 37013.98 | V38: 458606.17 | W38: 256970.3 | X38: 201635.87 | Y38: 0.784666049 | AA38: 34721.73 | AC38: 24879.79 | AD38: 11932.16 | AE38: 202.03 | AF38: 10033.5 | AG38: 30678.54 | AH38: -26837.99 | AI38: 5023.71 | AJ38: -18991.87 | AK38: 13000.11 | AL38: 13167.68 | AM38: 140115.16 | AN38: 17745.55 | AP38: 164249.99 | AQ38: 106897.86 | AR38: 3523.93
A39: %,V4470103 | B39: 4470103 | C39: PJM Energy Sales Cost | F39: 1388080.63 | G39: 928576.47 | H39: 459504.16 | I39: 0.4948479472 | K39: 9688068.39 | L39: 2980937.39 | Q39: 9688068.39 | R39: 2980937.39 | V39: 34399016.44 | W39: 15743203.34 | X39: 18655813.1 | Y39: 1.185007441 | AA39: 1350615.96 | AC39: 1294412.92 | AD39: 757948 | AE39: 928576.47 | AF39: 1081945.58 | AG39: 879855.67 | AH39: 4740913.12 | AI39: 2877833.29 | AJ39: 2304763.97 | AK39: 1187201.28 | AL39: 2962191.55 | AM39: 6336301.06 | AN39: 2339942.53 | AP39: 5242579.21 | AQ39: 3057408.55 | AR39: 1388080.63
A40: %,V4470115 | B40: 4470115 | C40: PJM Meter Corrections-OSS | F40: 31.6 | G40: -9292.75 | H40: 9324.35 | I40: 1.0034005 | K40: -2341.89 | L40: -9862.18 | Q40: -2341.89 | R40: -9862.18 | V40: -276682.07 | W40: 33906.28 | X40: -310588.35 | Y40: -9.160201296 | AA40: -533.96 | AC40: -925.65 | AD40: 356.22 | AE40: -9292.75 | AF40: -107.51 | AG40: 12.76 | AH40: 6201.32 | AI40: -248051.39 | AJ40: 3102.43 | AK40: -20912.7 | AL40: -5647.24 | AM40: -3391.35 | AN40: -5546.5 | AP40: -1208.24 | AQ40: -1165.25 | AR40: 31.6
A41: %,V4470116 | B41: 4470116 | C41: PJM Meter Corrections-LSE | F41: -17595.5 | G41: -153176 | H41: 135580.5 | I41: 0.8851288714 | K41: -22421.22 | L41: -148383.19 | Q41: -22421.22 | R41: -148383.19 | V41: -1472434.98 | W41: 198183.44 | X41: -1670618.42 | Y41: -8.429656988 | AA41: -12638.19 | AC41: -17119.72 | AD41: 21912.53 | AE41: -153176 | AF41: -17930.13 | AG41: 249.32 | AH41: -672953.05 | AI41: -1339418.95 | AJ41: 834884.08 | AK41: -168695.96 | AL41: -65059.98 | AM41: 2239.27 | AN41: -23328.36 | AP41: -28572.16 | AQ41: 23746.44 | AR41: -17595.5
A42: %,V4470126 | B42: 4470126 | C42: PJM Incremental Imp Cong-OSS | F42: 25018.68 | G42: -7024.68 | H42: 32043.36 | I42: 4.56154017 | K42: -389952.96 | L42: -42276.36 | Q42: -389952.96 | R42: -42276.36 | V42: -995689.44 | W42: -358248.9 | X42: -637440.54 | Y42: -1.779323091 | AA42: -15805.07 | AC42: -13135.32 | AD42: -22116.36 | AE42: -7024.68 | AF42: -228.34 | AG42: -3811.11 | AH42: -272561.5 | AI42: -52487.18 | AJ42: -18041.02 | AK42: -28080.53 | AL42: -42945.85 | AM42: 12576.61 | AN42: -200157.56 | AP42: -285591.19 | AQ42: -129380.45 | AR42: 25018.68
A43: %,V4470150 | B43: 4470150 | C43: Transm. Rev.-Dedic. Whlsl/Muni | F43: -3814 | G43: 110.89 | H43: -3924.89 | I43: N.M. | K43: -11443 | L43: -5807.24 | Q43: -11443 | R43: -5807.24 | V43: -62516.75 | W43: 162517.73 | X43: -225034.48 | Y43: -1.38467649 | AA43: 50521.33 | AC43: -2477.4 | AD43: -3440.73 | AE43: 110.89 | AF43: -1157.1 | AG43: -3175.94 | AH43: 390.14 | AI43: -8329 | AJ43: -5429.75 | AK43: -8262 | AL43: -8313 | AM43: -8311 | AN43: -8486.1 | AP43: -3814 | AQ43: -3815 | AR43: -3814
A44: %,V4470175 | B44: 4470175 | C44: OSS Sharing Reclass - Retail | F44: 313392.31 | G44: 395082.68 | H44: -81690.37 | I44: -0.2067677834 | K44: 1444072.42 | L44: 1611572.69 | Q44: 1444072.42 | R44: 1611572.69 | V44: 5280406.74 | W44: 5141953.75 | X44: 138452.99 | Y44: 0.02692614456 | AA44: 205508.11 | AC44: -599338.58 | AD44: 1815828.59 | AE44: 395082.68 | AF44: 559141.1 | AG44: 502089.86 | AH44: 928453.77 | AI44: -503833.15 | AJ44: 485975.18 | AK44: 197510.04 | AL44: 205864.92 | AM44: 1618461.4 | AN44: -157328.8 | AP44: 1618883.31 | AQ44: -488203.2 | AR44: 313392.31
A45: %,V4470176 | B45: 4470176 | C45: OSS Sharing Reclass-Reduction | F45: -313392.31 | G45: -395082.68 | H45: 81690.37 | I45: 0.2067677834 | K45: -1444072.42 | L45: -1611572.69 | Q45: -1444072.42 | R45: -1611572.69 | V45: -5280406.74 | W45: -5141953.75 | X45: -138452.99 | Y45: -0.02692614456 | AA45: -205508.11 | AC45: 599338.58 | AD45: -1815828.59 | AE45: -395082.68 | AF45: -559141.1 | AG45: -502089.86 | AH45: -928453.77 | AI45: 503833.15 | AJ45: -485975.18 | AK45: -197510.04 | AL45: -205864.92 | AM45: -1618461.4 | AN45: 157328.8 | AP45: -1618883.31 | AQ45: 488203.2 | AR45: -313392.31
A46: %,V4470206 | B46: 4470206 | C46: PJM Trans loss credits-OSS | F46: 16786.45 | G46: 10767.14 | H46: 6019.31 | I46: 0.5590444631 | K46: 118686.54 | L46: 43134.96 | Q46: 118686.54 | R46: 43134.96 | V46: 286542.64 | W46: 118842.18 | X46: 167700.46 | Y46: 1.411119015 | AA46: 16454.41 | AC46: 10543.07 | AD46: 21824.75 | AE46: 10767.14 | AF46: 3139.08 | AG46: 2024.79 | AH46: 39713.92 | AI46: 16496.54 | AJ46: 1483.34 | AK46: 13170.7 | AL46: 21409.43 | AM46: 50808.03 | AN46: 19610.27 | AP46: 47967.06 | AQ46: 53933.03 | AR46: 16786.45
A47: %,V4470209 | B47: 4470209 | C47: PJM transm loss charges-OSS | F47: -37097.85 | G47: -16648.45 | H47: -20449.4 | I47: -1.228306539 | K47: -236659.82 | L47: -66751.98 | Q47: -236659.82 | R47: -66751.98 | V47: -604171.19 | W47: -248298.12 | X47: -355873.07 | Y47: -1.433249152 | AA47: -29652.64 | AC47: -18613.39 | AD47: -31490.14 | AE47: -16648.45 | AF47: -5500.54 | AG47: -2680.15 | AH47: -88606.82 | AI47: -59176.36 | AJ47: -3677.22 | AK47: -47243.9 | AL47: -18092.59 | AM47: -107406.04 | AN47: -35127.75 | AP47: -111221.21 | AQ47: -88340.76 | AR47: -37097.85
A48: %,V4470220 | B48: 4470220 | C48: PJM Regulation - OSS | F48: 836034.15 | G48: 541674.88 | H48: 294359.27 | I48: 0.5434242585 | K48: 699214.83 | L48: 1401448.12 | Q48: 699214.83 | R48: 1401448.12 | V48: 3214766.23 | W48: 5204084.63 | X48: -1989318.4 | Y48: -0.3822609626 | AA48: 372449.64 | AC48: 627126.58 | AD48: 232646.66 | AE48: 541674.88 | AF48: 586031.62 | AG48: 410211.49 | AH48: 114346.43 | AI48: 389802.64 | AJ48: 273252.59 | AK48: 193400.45 | AL48: 63996.65 | AM48: 569814.29 | AN48: -85304.76 | AP48: 71085.45 | AQ48: -207904.77 | AR48: 836034.15
A49: %,V4470221 | B49: 4470221 | C49: PJM Spinning Reserve - OSS | F49: 36062.84 | G49: -1858.28 | H49: 37921.12 | I49: N.M. | K49: 87932.17 | L49: 28691.64 | Q49: 87932.17 | R49: 28691.64 | V49: 262460.83 | W49: 93434.87 | X49: 169025.96 | Y49: 1.809024404 | AA49: 9679.91 | AC49: 8819.03 | AD49: 21730.89 | AE49: -1858.28 | AF49: 13366.32 | AG49: 7290.19 | AH49: 15059.88 | AI49: 52051.47 | AJ49: 3497.27 | AK49: 9133.65 | AL49: 27213.73 | AM49: 43826.34 | AN49: 3089.81 | AP49: 34288.27 | AQ49: 17581.06 | AR49: 36062.84
A50: %,R,FACCOUNT,TGL_FERC_ACCT,XDYYNNY01,N4470 | C50: Sales for Resale | F50: 1679419.85 | G50: 1632297.88 | H50: 47121.97 | I50: 0.02886848692 | K50: 11101767.04 | L50: 6032057.06 | Q50: 11101767.04 | R50: 6032057.06 | V50: 39465009.98 | W50: 25924280 | X50: 13540729.98 | Y50: 0.522318459 | AA50: 2106797.8 | AC50: 2759255.97 | AD50: 1640503.21 | AE50: 1632297.88 | AF50: 2082504.85 | AG50: 2190213.92 | AH50: 5001318.41 | AI50: 1069143.45 | AJ50: 3620859.6 | AK50: 1207474.96 | AL50: 3093690.37 | AM50: 7948635.36 | AN50: 2149402.02 | AP50: 6831774.95 | AQ50: 2590572.24 | AR50: 1679419.85
C51: Sales of Electricity | F51: =+F50+F27+#REF!+F23 ->  | G51: =+G50+G27+#REF!+G23 ->  | K51: =+K50+K27+#REF!+K23 ->  | L51: =+L50+L27+#REF!+L23 ->  | M51: =+K51-L51 ->  | N51: =IF(L51<0,IF(M51=0,0,IF(OR(L51=0,K51=0),"N.M.",IF(ABS(M51/L51)>=10,"N.M.",M51/(-L51)))),IF(M51=0,0,IF(OR(L51=0,K51=0),"N.M.",IF(ABS(M51/L51)>=10,"N.M.",M51/L51)))) ->  | Q51: =+Q50+Q27+#REF!+Q23 ->  | R51: =+R50+R27+#REF!+R23 ->  | S51: =+Q51-R51 ->  | T51: =IF(R51<0,IF(S51=0,0,IF(OR(R51=0,Q51=0),"N.M.",IF(ABS(S51/R51)>=10,"N.M.",S51/(-R51)))),IF(S51=0,0,IF(OR(R51=0,Q51=0),"N.M.",IF(ABS(S51/R51)>=10,"N.M.",S51/R51)))) ->  | V51: =+V50+V27+#REF!+V23 ->  | W51: =+W50+W27+#REF!+W23 ->  | AA51: =+AA50+AA27+#REF!+AA23 ->  | AC51: =+AC50+AC27+#REF!+AC23 ->  | AD51: =+AD50+AD27+#REF!+AD23 ->  | AE51: =+AE50+AE27+#REF!+AE23 ->  | AF51: =+AF50+AF27+#REF!+AF23 ->  | AG51: =+AG50+AG27+#REF!+AG23 ->  | AH51: =+AH50+AH27+#REF!+AH23 ->  | AI51: =+AI50+AI27+#REF!+AI23 ->  | AJ51: =+AJ50+AJ27+#REF!+AJ23 ->  | AK51: =+AK50+AK27+#REF!+AK23 ->  | AL51: =+AL50+AL27+#REF!+AL23 ->  | AM51: =+AM50+AM27+#REF!+AM23 ->  | AN51: =+AN50+AN27+#REF!+AN23 ->  | AP51: =+AP50+AP27+#REF!+AP23 ->  | AQ51: =+AQ50+AQ27+#REF!+AQ23 ->  | AR51: =+AR50+AR27+#REF!+AR23 -> 
A52: %,V4491002 | B52: 4491002 | C52: Non-Tran Prov Rate Ref Whlsale | F52: 0 | G52: 39976 | H52: -39976 | I52: N.M. | K52: 0 | L52: 0 | M52: 0 | N52: 0 | Q52: 0 | R52: 0 | S52: 0 | T52: 0 | V52: 0 | W52: -783467 | X52: 783467 | Y52: N.M. | AA52: -700994 | AC52: -15607 | AD52: -24369 | AE52: 39976 | AF52: 0 | AG52: 0 | AH52: 0 | AI52: 0 | AJ52: 0 | AK52: 0 | AL52: 0 | AM52: 0 | AN52: 0 | AP52: 0 | AQ52: 0 | AR52: 0
A53: %,V4491003 | B53: 4491003 | C53: Non-Tran Prov Rate Ref Retail | F53: 0 | G53: 9038 | H53: -9038 | I53: N.M. | K53: 0 | L53: 0 | M53: 0 | N53: 0 | Q53: 0 | R53: 0 | S53: 0 | T53: 0 | V53: 0 | W53: -172937 | X53: 172937 | Y53: N.M. | AA53: -154733 | AC53: -3541 | AD53: -5497 | AE53: 9038 | AF53: 0 | AG53: 0 | AH53: 0 | AI53: 0 | AJ53: 0 | AK53: 0 | AL53: 0 | AM53: 0 | AN53: 0 | AP53: 0 | AQ53: 0 | AR53: 0
A54: %,V4491004 | B54: 4491004 | C54: Prov Rate Refund - Affiliated | F54: 0 | G54: 267377 | H54: -267377 | I54: N.M. | K54: 0 | L54: 0 | M54: 0 | N54: 0 | Q54: 0 | R54: 0 | S54: 0 | T54: 0 | V54: 0 | W54: -5193694 | X54: 5193694 | Y54: N.M. | AA54: -4662950 | AC54: -104520 | AD54: -162857 | AE54: 267377 | AF54: 0 | AG54: 0 | AH54: 0 | AI54: 0 | AJ54: 0 | AK54: 0 | AL54: 0 | AM54: 0 | AN54: 0 | AP54: 0 | AQ54: 0 | AR54: 0
A55: %,V4491005 | B55: 4491005 | C55: Tran Prov Trans Ref NonAffil | F55: -114 | G55: -60327 | H55: 60213 | I55: 0.9981102989 | K55: -344 | L55: -60327 | M55: 59983 | N55: 0.994297744 | Q55: -344 | R55: -60327 | S55: 59983 | T55: 0.994297744 | V55: -157737 | W55: -60327 | X55: -97410 | Y55: -1.614699886 | AA55: 0 | AC55: 0 | AD55: 0 | AE55: -60327 | AF55: -20067 | AG55: -20302 | AH55: 625314 | AI55: -101 | AJ55: -101 | AK55: -866 | AL55: -107 | AM55: -107 | AN55: -741056 | AP55: -116 | AQ55: -114 | AR55: -114
A56: %,V4491006 | B56: 4491006 | C56: Tran Prov Trans Ref Frml Rate | F56: -30 | G56: -13643 | H56: 13613 | I56: 0.9978010701 | K56: -87 | L56: -13643 | M56: 13556 | N56: 0.9936231034 | Q56: -87 | R56: -13643 | S56: 13556 | T56: 0.9936231034 | V56: -62938 | W56: -13643 | X56: -49295 | Y56: -3.613208239 | AA56: 0 | AC56: 0 | AD56: 0 | AE56: -13643 | AF56: -4535 | AG56: -4589 | AH56: 124062 | AI56: -25 | AJ56: -25 | AK56: -219 | AL56: -27 | AM56: -27 | AN56: -177466 | AP56: -28 | AQ56: -29 | AR56: -30
A57: %,V4491007 | B57: 4491007 | C57: Trans Prov Trans Refunds Affil | F57: -856 | G57: -403513 | H57: 402657 | I57: 0.9978786309 | K57: -2560 | L57: -403513 | M57: 400953 | N57: 0.9936557187 | Q57: -2560 | R57: -403513 | S57: 400953 | T57: 0.9936557187 | V57: -2117929 | W57: -403513 | X57: -1714416 | Y57: -4.248725568 | AA57: 0 | AC57: 0 | AD57: 0 | AE57: -403513 | AF57: -134198 | AG57: -135775 | AH57: 3623431 | AI57: -750 | AJ57: -750 | AK57: -6444 | AL57: -797 | AM57: -793 | AN57: -5459293 | AP57: -853 | AQ57: -851 | AR57: -856
A58: %,R,FACCOUNT,TGL_FERC_ACCT,XDYYNNY01,N449 | C58: Less Rate Refund Provision | F58: -1000 | G58: -161092 | H58: 160092 | I58: 0.9937923671 | K58: -2991 | L58: -477483 | M58: 474492 | N58: 0.9937359026 | Q58: -2991 | R58: -477483 | S58: 474492 | T58: 0.9937359026 | V58: -2338604 | W58: -6627581 | X58: 4288977 | Y58: 0.6471406385 | AA58: -5518677 | AC58: -123668 | AD58: -192723 | AE58: -161092 | AF58: -158800 | AG58: -160666 | AH58: 4372807 | AI58: -876 | AJ58: -876 | AK58: -7529 | AL58: -931 | AM58: -927 | AN58: -6377815 | AP58: -997 | AQ58: -994 | AR58: -1000
A60: %,V4500000 | B60: 4500000 | C60: Forfeited Discounts | F60: 105364.87 | G60: 110399.91 | H60: =+F60-G60 -> -5035.04 | I60: =IF(G60<0,IF(H60=0,0,IF(OR(G60=0,F60=0),"N.M.",IF(ABS(H60/G60)>=10,"N.M.",H60/(-G60)))),IF(H60=0,0,IF(OR(G60=0,F60=0),"N.M.",IF(ABS(H60/G60)>=10,"N.M.",H60/G60)))) -> -0.04560728356 | K60: 369553.43 | L60: 334138.58 | M60: =+K60-L60 -> 35414.85 | N60: =IF(L60<0,IF(M60=0,0,IF(OR(L60=0,K60=0),"N.M.",IF(ABS(M60/L60)>=10,"N.M.",M60/(-L60)))),IF(M60=0,0,IF(OR(L60=0,K60=0),"N.M.",IF(ABS(M60/L60)>=10,"N.M.",M60/L60)))) -> 0.1059885093 | Q60: 369553.43 | R60: 334138.58 | S60: =+Q60-R60 -> 35414.85 | T60: =IF(R60<0,IF(S60=0,0,IF(OR(R60=0,Q60=0),"N.M.",IF(ABS(S60/R60)>=10,"N.M.",S60/(-R60)))),IF(S60=0,0,IF(OR(R60=0,Q60=0),"N.M.",IF(ABS(S60/R60)>=10,"N.M.",S60/R60)))) -> 0.1059885093 | V60: 1490306.5 | W60: 961860.55 | X60: =+V60-W60 -> 528445.95 | Y60: =IF(W60<0,IF(X60=0,0,IF(OR(W60=0,V60=0),"N.M.",IF(ABS(X60/W60)>=10,"N.M.",X60/(-W60)))),IF(X60=0,0,IF(OR(W60=0,V60=0),"N.M.",IF(ABS(X60/W60)>=10,"N.M.",X60/W60)))) -> 0.5493997545 | AA60: 77402.33 | AC60: 118690.44 | AD60: 105048.23 | AE60: 110399.91 | AF60: 102579.11 | AG60: 119621.94 | AH60: 124423.59 | AI60: 131497.47 | AJ60: 149009.76 | AK60: 99721.87 | AL60: 143924.36 | AM60: 68553.24 | AN60: 181421.73 | AP60: 137774.02 | AQ60: 126414.54 | AR60: 105364.87
A61: %,V4510001 | B61: 4510001 | C61: Misc Service Rev - Nonaffil | F61: 18702.82 | G61: 13707.79 | H61: 4995.03 | I61: 0.364393531 | K61: 33810.46 | L61: 22383.85 | M61: 11426.61 | N61: 0.5104845681 | Q61: 33810.46 | R61: 22383.85 | S61: 11426.61 | T61: 0.5104845681 | V61: 86476.9 | W61: 113111.83 | X61: -26634.93 | Y61: -0.2354743089 | AA61: 9229.44 | AC61: 6667.37 | AD61: 2008.69 | AE61: 13707.79 | AF61: 4911.74 | AG61: 11573.02 | AH61: 9475.14 | AI61: 12751.5 | AJ61: 10697.33 | AK61: -1673.42 | AL61: 7727.85 | AM61: -4947.64 | AN61: 2150.92 | AP61: 8015.08 | AQ61: 7092.56 | AR61: 18702.82
A62: %,V4540001 | B62: 4540001 | C62: Rent From Elect Property - Af | F62: 93186.932 | G62: 148812.865 | H62: -55625.933 | I62: -0.373797877 | K62: 396045.953 | L62: 484449.185 | M62: -88403.232 | N62: -0.1824819501 | Q62: 396045.953 | R62: 484449.185 | S62: -88403.232 | T62: -0.1824819501 | V62: 1745768.598 | W62: 1433892.36 | X62: 311876.238 | Y62: 0.2175032427 | AA62: 129786.675 | AC62: 186737.245 | AD62: 148899.075 | AE62: 148812.865 | AF62: 148739.795 | AG62: 148748.575 | AH62: 121231.235 | AI62: 117095.985 | AJ62: 226451.425 | AK62: 148076.755 | AL62: 149022.995 | AM62: 145198.985 | AN62: 145156.895 | AP62: 132135.779 | AQ62: 170723.242 | AR62: 93186.932
A63: %,V4540002 | B63: 4540002 | C63: Rent From Elect Property-NAC | F63: 195736.17 | G63: 493669.1 | H63: -297932.93 | I63: -0.6035073494 | K63: 538068.65 | L63: 705172.49 | M63: -167103.84 | N63: -0.2369687451 | Q63: 538068.65 | R63: 705172.49 | S63: -167103.84 | T63: -0.2369687451 | V63: 2106441.51 | W63: 2878561.03 | X63: -772119.52 | Y63: -0.2682310752 | AA63: 186246.39 | AC63: 211328.39 | AD63: 175 | AE63: 493669.1 | AF63: 298994.46 | AG63: 175 | AH63: 261124.27 | AI63: 175 | AJ63: 375839.37 | AK63: 161760.34 | AL63: 176972.26 | AM63: 156931.32 | AN63: 136400.84 | AP63: 159439.61 | AQ63: 182892.87 | AR63: 195736.17
A64: %,V4540004 | B64: 4540004 | C64: Rent From Elect Prop-ABD-Nonaf | F64: 0 | G64: 0 | H64: 0 | I64: 0 | K64: 0 | L64: 0 | M64: 0 | N64: 0 | Q64: 0 | R64: 0 | S64: 0 | T64: 0 | V64: -8941.71 | W64: 18000 | X64: -26941.71 | Y64: -1.496761667 | AA64: 0 | AC64: 0 | AD64: 0 | AE64: 0 | AF64: 0 | AG64: 0 | AH64: 0 | AI64: -8941.71 | AJ64: 0 | AK64: 0 | AL64: 0 | AM64: 0 | AN64: 0 | AP64: 0 | AQ64: 0 | AR64: 0
A65: %,V4540005 | B65: 4540005 | C65: Rent from Elec Prop-Pole Attch | F65: 434878.55 | G65: 395095.5 | H65: 39783.05 | I65: 0.1006922377 | K65: 1308104.25 | L65: 1183744.73 | M65: 124359.52 | N65: 0.1050560284 | Q65: 1308104.25 | R65: 1183744.73 | S65: 124359.52 | T65: 0.1050560284 | V65: 5760047.82 | W65: 5105548.84 | X65: 654498.98 | Y65: 0.1281936576 | AA65: 418284.44 | AC65: 395186.98 | AD65: 393462.25 | AE65: 395095.5 | AF65: 395084.32 | AG65: 395084.32 | AH65: 819804.66 | AI65: 473887.79 | AJ65: 473759.75 | AK65: 473043.44 | AL65: 473759.75 | AM65: 473759.75 | AN65: 473759.79 | AP65: 435069.32 | AQ65: 438156.38 | AR65: 434878.55
A66: %,V4560001 | B66: 4560001 | C66: Oth Elect Rev - Affiliated | F66: 24072.88 | G66: 0 | H66: 24072.88 | I66: N.M. | K66: 72218.64 | L66: 0 | M66: 72218.64 | N66: N.M. | Q66: 72218.64 | R66: 0 | S66: 72218.64 | T66: N.M. | V66: 231099.65 | W66: 0 | X66: 231099.65 | Y66: N.M. | AA66: 0 | AC66: 0 | AD66: 0 | AE66: 0 | AF66: 0 | AG66: 0 | AH66: 14443.73 | AI66: 24072.88 | AJ66: 24072.88 | AK66: 24072.88 | AL66: 24072.88 | AM66: 24072.88 | AN66: 24072.88 | AP66: 24072.88 | AQ66: 24072.88 | AR66: 24072.88
A67: %,V4560007 | B67: 4560007 | C67: Oth Elect Rev - DSM Program | F67: 164366.01 | G67: 119647.75 | H67: 44718.26 | I67: 0.3737492765 | K67: 555965.22 | L67: 189359.34 | M67: 366605.88 | N67: 1.93603273 | Q67: 555965.22 | R67: 189359.34 | S67: 366605.88 | T67: 1.93603273 | V67: 1759178.64 | W67: 365280.8 | X67: 1393897.84 | Y67: 3.815962514 | AA67: 26218.95 | AC67: 35556.09 | AD67: 34155.5 | AE67: 119647.75 | AF67: 126267.94 | AG67: 114648.56 | AH67: 120168.05 | AI67: 161639.16 | AJ67: 160297.7 | AK67: 135960.73 | AL67: 115032.11 | AM67: 117476.85 | AN67: 151722.32 | AP67: 180769.57 | AQ67: 210829.64 | AR67: 164366.01
A68: %,V4560012 | B68: 4560012 | C68: Oth Elect Rev - Nonaffiliated | F68: 0 | G68: 0 | H68: 0 | I68: 0 | K68: 0 | L68: 0 | M68: 0 | N68: 0 | Q68: 0 | R68: 0 | S68: 0 | T68: 0 | V68: 100000 | W68: 0 | X68: 100000 | Y68: N.M. | AA68: 0 | AC68: 0 | AD68: 0 | AE68: 0 | AF68: 0 | AG68: 0 | AH68: 0 | AI68: 0 | AJ68: 0 | AK68: 0 | AL68: 100000 | AM68: 0 | AN68: 0 | AP68: 0 | AQ68: 0 | AR68: 0
A69: %,V4560015 | B69: 4560015 | C69: Other Electric Revenues - ABD | F69: 15705.18 | G69: 42933.51 | H69: -27228.33 | I69: -0.6341976233 | K69: 85334.22 | L69: 142648.26 | M69: -57314.04 | N69: -0.4017857631 | Q69: 85334.22 | R69: 142648.26 | S69: -57314.04 | T69: -0.4017857631 | V69: 428217.14 | W69: 505991.02 | X69: -77773.88 | Y69: -0.153706048 | AA69: 58780.02 | AC69: 61700.75 | AD69: 38014 | AE69: 42933.51 | AF69: 10196.64 | AG69: 36018.98 | AH69: 16488.22 | AI69: 24375.43 | AJ69: 88451.69 | AK69: 39920.57 | AL69: 16020.2 | AM69: 23745.53 | AN69: 87665.66 | AP69: 23788.56 | AQ69: 45840.48 | AR69: 15705.18
A70: %,V4560041 | B70: 4560041 | C70: Miscellaneous Revenue-NonAffil | F70: 235.75 | G70: 0 | H70: 235.75 | I70: N.M. | K70: 376.75 | L70: 0 | M70: 376.75 | N70: N.M. | Q70: 376.75 | R70: 0 | S70: 376.75 | T70: N.M. | V70: 2601.14 | W70: 0 | X70: 2601.14 | Y70: N.M. | AA70: 0 | AC70: 0 | AD70: 0 | AE70: 0 | AF70: 0 | AG70: 0 | AH70: 1881.94 | AI70: 242.45 | AJ70: 0 | AK70: 0 | AL70: 100 | AM70: 0 | AN70: 0 | AP70: 141 | AQ70: 0 | AR70: 235.75
A71: %,V4560043 | B71: 4560043 | C71: Oth Elec Rv-Trn-Aff-Trnf Price | F71: 0 | G71: 0 | H71: 0 | I71: 0 | K71: 0 | L71: 0 | M71: 0 | N71: 0 | Q71: 0 | R71: 0 | S71: 0 | T71: 0 | V71: 0 | W71: 0 | X71: 0 | Y71: 0 | AA71: 0 | AC71: 0 | AD71: 0 | AE71: 0 | AF71: 0 | AG71: 0 | AH71: 0 | AI71: 0 | AJ71: 0 | AK71: 0 | AL71: 0 | AM71: 0 | AN71: 0 | AP71: 0 | AQ71: 0 | AR71: 0
A72: %,V4560180 | B72: 4560180 | C72: Amort of Defer Equity Inc | F72: 39503.52 | G72: 0 | H72: 39503.52 | I72: N.M. | K72: 115371.5 | L72: 0 | M72: 115371.5 | N72: N.M. | Q72: 115371.5 | R72: 0 | S72: 115371.5 | T72: N.M. | V72: 342975.44 | W72: 0 | X72: 342975.44 | Y72: N.M. | AA72: 0 | AC72: 0 | AD72: 0 | AE72: 0 | AF72: 0 | AG72: 0 | AH72: 0 | AI72: 37933.99 | AJ72: 37933.99 | AK72: 37933.99 | AL72: 37933.99 | AM72: 37933.99 | AN72: 37933.99 | AP72: 37933.99 | AQ72: 37933.99 | AR72: 39503.52
A73: %,V4561005 | B73: 4561005 | C73: PJM Point to Point Trans Svc | F73: 208134.28 | G73: 125614.5 | H73: 82519.78 | I73: 0.6569287781 | K73: 831125.96 | L73: 655351.85 | M73: 175774.11 | N73: 0.2682133422 | Q73: 831125.96 | R73: 655351.85 | S73: 175774.11 | T73: 0.2682133422 | V73: 2758036.38 | W73: 2060273.64 | X73: 697762.74 | Y73: 0.3386747888 | AA73: 190746.49 | AC73: 338806.06 | AD73: 190931.29 | AE73: 125614.5 | AF73: 225133.31 | AG73: 177108.09 | AH73: -22977.47 | AI73: 488031.28 | AJ73: 234203.96 | AK73: 202344.45 | AL73: 221770.7 | AM73: 179532.01 | AN73: 221764.09 | AP73: 353014.03 | AQ73: 269977.65 | AR73: 208134.28
A74: %,V4561006 | B74: 4561006 | C74: PJM Trans Owner Admin Rev | F74: 10076.41 | G74: 7694.76 | H74: 2381.65 | I74: 0.3095158264 | K74: 34581.42 | L74: 25665.18 | M74: 8916.24 | N74: 0.3474060965 | Q74: 34581.42 | R74: 25665.18 | S74: 8916.24 | T74: 0.3474060965 | V74: 103512.03 | W74: 89530.15 | X74: 13981.88 | Y74: 0.1561695138 | AA74: 7817.02 | AC74: 9761.51 | AD74: 8208.91 | AE74: 7694.76 | AF74: 6471.39 | AG74: 7045.6 | AH74: 8103.53 | AI74: 8408.83 | AJ74: 10925.78 | AK74: 8386.91 | AL74: 5324 | AM74: 5864.08 | AN74: 8400.49 | AP74: 13571.79 | AQ74: 10933.22 | AR74: 10076.41
A75: %,V4561007 | B75: 4561007 | C75: PJM Network Integ Trans Svc | F75: 987803.5 | G75: 1008675.17 | H75: -20871.67 | I75: -0.02069216198 | K75: 2866217.18 | L75: 2941889.53 | M75: -75672.35 | N75: -0.02572236287 | Q75: 2866217.18 | R75: 2941889.53 | S75: -75672.35 | T75: -0.02572236287 | V75: 11929096.9 | W75: 11248826.75 | X75: 680270.15 | Y75: 0.06047476462 | AA75: 922837.26 | AC75: 1016242.7 | AD75: 916971.66 | AE75: 1008675.17 | AF75: 980820.86 | AG75: 1013080.51 | AH75: 990773.91 | AI75: 1024240.15 | AJ75: 1024058.98 | AK75: 990797.71 | AL75: 1024149.55 | AM75: 990785.76 | AN75: 1024172.29 | AP75: 987378.39 | AQ75: 891035.29 | AR75: 987803.5
A76: %,V4561019 | B76: 4561019 | C76: Oth Elec Rev Trans Non Affil | F76: 3952.5 | G76: 4389 | H76: -436.5 | I76: -0.0994531784 | K76: 15843 | L76: 16758 | M76: -915 | N76: -0.05460078768 | Q76: 15843 | R76: 16758 | S76: -915 | T76: -0.05460078768 | V76: 54364.5 | W76: 54528 | X76: -163.5 | Y76: -0.002998459507 | AA76: 5500.5 | AC76: 7192.5 | AD76: 5176.5 | AE76: 4389 | AF76: 3643.5 | AG76: 3448.5 | AH76: 4519.5 | AI76: 5172 | AJ76: 4468.5 | AK76: 3537 | AL76: 3639 | AM76: 4299 | AN76: 5794.5 | AP76: 6615 | AQ76: 5275.5 | AR76: 3952.5
A77: %,V4561027 | B77: 4561027 | C77: PJM Transm Dist/Meter - NonAff | F77: 6492 | G77: 0 | H77: 6492 | I77: N.M. | K77: 19476 | L77: 0 | M77: 19476 | N77: N.M. | Q77: 19476 | R77: 0 | S77: 19476 | T77: N.M. | V77: 64920 | W77: 0 | X77: 64920 | Y77: N.M. | AA77: 0 | AC77: 0 | AD77: 0 | AE77: 0 | AF77: 0 | AG77: 0 | AH77: 0 | AI77: 6492 | AJ77: 12984 | AK77: 6492 | AL77: 6492 | AM77: 6492 | AN77: 6492 | AP77: 6492 | AQ77: 6492 | AR77: 6492
A78: %,V4561028 | B78: 4561028 | C78: PJM Pow Fac Cre Rev Whsl Cu-NA | F78: 0 | G78: -18.3 | H78: 18.3 | I78: N.M. | K78: 0 | L78: 34.89 | M78: -34.89 | N78: N.M. | Q78: 0 | R78: 34.89 | S78: -34.89 | T78: N.M. | V78: 920.8 | W78: 4748.91 | X78: -3828.11 | Y78: -0.8061028741 | AA78: 117.26 | AC78: 21.93 | AD78: 31.26 | AE78: -18.3 | AF78: 409.02 | AG78: 399.95 | AH78: 111.83 | AI78: 0 | AJ78: 0 | AK78: 0 | AL78: 0 | AM78: 0 | AN78: 0 | AP78: 0 | AQ78: 0 | AR78: 0
A79: %,V4561029 | B79: 4561029 | C79: PJM NITS Revenue Whsl Cus-NAff | F79: 220346.49 | G79: 254888 | H79: -34541.51 | I79: -0.1355164229 | K79: 639528.78 | L79: 743119.03 | M79: -103590.25 | N79: -0.1393992696 | Q79: 639528.78 | R79: 743119.03 | S79: -103590.25 | T79: -0.1393992696 | V79: 2836438.89 | W79: 2603713.82 | X79: 232725.07 | Y79: 0.08938196979 | AA79: 209524.06 | AC79: 256640.43 | AD79: 231590.6 | AE79: 254888 | AF79: 247940 | AG79: 256289.95 | AH79: 237243.05 | AI79: 245232.76 | AJ79: 245238.46 | AK79: 237248.76 | AL79: 245235.61 | AM79: 237245.91 | AN79: 245235.61 | AP79: 220346.49 | AQ79: 198835.8 | AR79: 220346.49
A80: %,V4561030 | B80: 4561030 | C80: PJM TO Serv Rev Whls Cus-NAff | F80: 975.83 | G80: 563.34 | H80: 412.49 | I80: 0.7322221039 | K80: 3107.73 | L80: 1768 | M80: 1339.73 | N80: 0.7577658371 | Q80: 3107.73 | R80: 1768 | S80: 1339.73 | T80: 0.7577658371 | V80: 8201.12 | W80: 8695.27 | X80: -494.15 | Y80: -0.05682974767 | AA80: 807.31 | AC80: 647.03 | AD80: 557.63 | AE80: 563.34 | AF80: 533.61 | AG80: 531.68 | AH80: 570.03 | AI80: 654.49 | AJ80: 592.44 | AK80: 533.72 | AL80: 523.76 | AM80: 537.39 | AN80: 616.27 | AP80: 1125.24 | AQ80: 1006.66 | AR80: 975.83
A81: %,V4561033 | B81: 4561033 | C81: PJM NITS Revenue - Affiliated | F81: 7191372.68 | G81: 7501683.07 | H81: -310310.39 | I81: -0.04136543588 | K81: 20872849.59 | L81: 21869834.97 | M81: -996985.38 | N81: -0.04558723838 | Q81: 20872849.59 | R81: 21869834.97 | S81: -996985.38 | T81: -0.04558723838 | V81: 87786324.92 | W81: 77257935.06 | X81: 10528389.86 | Y81: 0.1362758382 | AA81: 6237327.7 | AC81: 7552626.05 | AD81: 6815525.85 | AE81: 7501683.07 | AF81: 7297555.39 | AG81: 7544086.16 | AH81: 7298299.27 | AI81: 7544086.16 | AJ81: 7544261.62 | AK81: 7298474.72 | AL81: 7544173.89 | AM81: 7298386.99 | AN81: 7544151.13 | AP81: 7191797.79 | AQ81: 6489679.12 | AR81: 7191372.68
A82: %,V4561034 | B82: 4561034 | C82: PJM TO Adm. Serv Rev - Aff | F82: 31252.67 | G82: 15576.67 | H82: 15676 | I82: 1.006376844 | K82: 101161.4 | L82: 51041 | M82: 50120.4 | N82: 0.9819635195 | Q82: 101161.4 | R82: 51041 | S82: 50120.4 | T82: 0.9819635195 | V82: 252048.02 | W82: 238446.07 | X82: 13601.95 | Y82: 0.05704413581 | AA82: 22919.84 | AC82: 19433.2 | AD82: 16031.13 | AE82: 15576.67 | AF82: 14333.09 | AG82: 14568.46 | AH82: 17174.5 | AI82: 19212.59 | AJ82: 18120.42 | AK82: 15845.23 | AL82: 15869.93 | AM82: 16456.01 | AN82: 19306.39 | AP82: 36971.14 | AQ82: 32937.59 | AR82: 31252.67
A83: %,V4561035 | B83: 4561035 | C83: PJM Affiliated Trans NITS Cost | F83: -5299008.26 | G83: -4882865.98 | H83: -416142.28 | I83: -0.0852250055 | K83: -15379724.3 | L83: -14235862.65 | M83: -1143861.65 | N83: -0.0803507085 | Q83: -15379724.3 | R83: -14235862.65 | S83: -1143861.65 | T83: -0.0803507085 | V83: -58928396.06 | W83: -59891580.8 | X83: 963184.74 | Y83: 0.01608213921 | AA83: -5141351.21 | AC83: -4916437.05 | AD83: -4436559.62 | AE83: -4882865.98 | AF83: -4749763.69 | AG83: -4909722.83 | AH83: -4749763.69 | AI83: -4909722.83 | AJ83: -4909837.02 | AK83: -4749877.89 | AL83: -4909779.93 | AM83: -4750220.69 | AN83: -4909983.19 | AP83: -5299008.26 | AQ83: -4781707.78 | AR83: -5299008.26
A84: %,V4561036 | B84: 4561036 | C84: PJM Affiliated Trans TO Cost | F84: -10053.29 | G84: -7998.52 | H84: -2054.77 | I84: -0.2568937753 | K84: -36002.7 | L84: -27758 | M84: -8244.7 | N84: -0.2970206787 | Q84: -36002.7 | R84: -27758 | S84: -8244.7 | T84: -0.2970206787 | V84: -105301.37 | W84: -147604.51 | X84: 42303.14 | Y84: 0.2865978824 | AA84: -15781.37 | AC84: -11216.7 | AD84: -8542.78 | AE84: -7998.52 | AF84: -7031.69 | AG84: -6746.27 | AH84: -7968.23 | AI84: -9072.99 | AJ84: -8058.55 | AK84: -6737.24 | AL84: -6626.47 | AM84: -7602.9 | AN84: -9454.33 | AP84: -13943.2 | AQ84: -12006.21 | AR84: -10053.29
A85: %,V4561045 | B85: 4561045 | C85: PJM Non-Aff Gen IPP Rev | F85: 1727.99 | G85: 1994 | H85: -266.01 | I85: -0.1334052156 | K85: 5183.99 | L85: 5982 | M85: -798.01 | N85: -0.1334018723 | Q85: 5183.99 | R85: 5982 | S85: -798.01 | T85: -0.1334018723 | V85: 21533.99 | W85: 17946 | X85: 3587.99 | Y85: 0.1999325755 | AA85: 1994 | AC85: 1994 | AD85: 1994 | AE85: 1994 | AF85: 1994 | AG85: 1994 | AH85: 1994 | AI85: 1728 | AJ85: 1728 | AK85: 1728.01 | AL85: 1728 | AM85: 1727.99 | AN85: 1728 | AP85: 1728 | AQ85: 1728 | AR85: 1727.99
A86: %,V4561058 | B86: 4561058 | C86: NonAffil PJM Trans Enhncmt Rev | F86: 137624.95 | G86: 157693.48 | H86: -20068.53 | I86: -0.1272629027 | K86: 414985.63 | L86: 473101.57 | M86: -58115.94 | N86: -0.1228403026 | Q86: 414985.63 | R86: 473101.57 | S86: -58115.94 | T86: -0.1228403026 | V86: 1835463.1 | W86: 1761717.7 | X86: 73745.4 | Y86: 0.04185994158 | AA86: 143179.57 | AC86: 157704.9 | AD86: 157703.19 | AE86: 157693.48 | AF86: 157686.63 | AG86: 157672.63 | AH86: 157873.97 | AI86: 157873.97 | AJ86: 157873.97 | AK86: 157873.97 | AL86: 157873.97 | AM86: 157873.97 | AN86: 157874.39 | AP86: 138680 | AQ86: 138680.68 | AR86: 137624.95
A87: %,V4561059 | B87: 4561059 | C87: Affil PJM Trans Enhancmnt Rev | F87: 124168.64 | G87: 137350.23 | H87: -13181.59 | I87: -0.09597064381 | K87: 370458.36 | L87: 412029.52 | M87: -41571.16 | N87: -0.1008936447 | Q87: 370458.36 | R87: 412029.52 | S87: -41571.16 | T87: -0.1008936447 | V87: 1606783.66 | W87: 1584248.2 | X87: 22535.46 | Y87: 0.01422470292 | AA87: 130246.52 | AC87: 137338.77 | AD87: 137340.52 | AE87: 137350.23 | AF87: 137357.08 | AG87: 137371.08 | AH87: 137371.08 | AI87: 137371.08 | AJ87: 137371.08 | AK87: 137371.08 | AL87: 137371.08 | AM87: 137371.08 | AN87: 137370.66 | AP87: 123145.24 | AQ87: 123144.48 | AR87: 124168.64
A88: %,V4561060 | B88: 4561060 | C88: Affil PJM Trans Enhancmnt Cost | F88: -91494.44 | G88: -89401.67 | H88: -2092.77 | I88: -0.02340862313 | K88: -272964.4 | L88: -268205.01 | M88: -4759.39 | N88: -0.01774534338 | Q88: -272964.4 | R88: -268205.01 | S88: -4759.39 | T88: -0.01774534338 | V88: -1077590.53 | W88: -1234450.23 | X88: 156859.7 | Y88: 0.1270684684 | AA88: -107360.58 | AC88: -89401.67 | AD88: -89401.67 | AE88: -89401.67 | AF88: -89401.67 | AG88: -89401.67 | AH88: -89401.67 | AI88: -89401.67 | AJ88: -89401.67 | AK88: -89401.67 | AL88: -89401.67 | AM88: -89409.07 | AN88: -89405.37 | AP88: -90734.98 | AQ88: -90734.98 | AR88: -91494.44
A89: %,V4561061 | B89: 4561061 | C89: NAff PJM RTEP Rev for Whsl-FR | F89: 3804.58 | G89: 4666.81 | H89: -862.23 | I89: -0.1847578967 | K89: 11350.58 | L89: 14000.43 | M89: -2649.85 | N89: -0.1892691867 | Q89: 11350.58 | R89: 14000.43 | S89: -2649.85 | T89: -0.1892691867 | V89: 51942.49 | W89: 53377.6 | X89: -1435.11 | Y89: -0.02688599712 | AA89: 4375.24 | AC89: 4666.81 | AD89: 4666.81 | AE89: 4666.81 | AF89: 4666.81 | AG89: 4666.81 | AH89: 4465.47 | AI89: 4465.47 | AJ89: 4465.47 | AK89: 4465.47 | AL89: 4465.47 | AM89: 4465.47 | AN89: 4465.47 | AP89: 3773 | AQ89: 3773 | AR89: 3804.58
A90: %,V4561062 | B90: 4561062 | C90: PROVISION RTO Tran Cost Affi | F90: -458757 | G90: 131320 | H90: -590077 | I90: -4.493428267 | K90: -644316 | L90: 399287 | M90: -1043603 | N90: -2.61366636 | Q90: -644316 | R90: 399287 | S90: -1043603 | T90: -2.61366636 | V90: -1104690 | W90: 2009339 | X90: -3114029 | Y90: -1.549777813 | AA90: 1065652 | AC90: 138615 | AD90: 129352 | AE90: 131320 | AF90: 132925 | AG90: 133368 | AH90: -1469769 | AI90: 32474 | AJ90: 95918 | AK90: 84626 | AL90: 94426 | AM90: 94423 | AN90: 341235 | AP90: -78400 | AQ90: -107159 | AR90: -458757
A91: %,V4561063 | B91: 4561063 | C91: PROVISION RTO Tran Rev Aff | F91: 1156073 | G91: -27389 | H91: 1183462 | I91: N.M. | K91: 2140824 | L91: -82167 | M91: 2222991 | N91: N.M. | Q91: 2140824 | R91: -82167 | S91: 2222991 | T91: N.M. | V91: 2697445 | W91: 2637232 | X91: 60213 | Y91: 0.02283189344 | AA91: 226375 | AC91: -27389 | AD91: -27389 | AE91: -27389 | AF91: -27389 | AG91: -27389 | AH91: 689219 | AI91: -21015 | AJ91: -21015 | AK91: 15188 | AL91: -16993 | AM91: -16992 | AN91: -16993 | AP91: 492376 | AQ91: 492375 | AR91: 1156073
A92: %,V4561064 | B92: 4561064 | C92: PROVISION RTO Tran Rv Frml Rts | F92: 16729 | G92: -920 | H92: 17649 | I92: N.M. | K92: 50188 | L92: -2760 | M92: 52948 | N92: N.M. | Q92: 50188 | R92: -2760 | S92: 52948 | T92: N.M. | V92: 69454 | W92: 88732 | X92: -19278 | Y92: -0.2172609656 | AA92: 7642 | AC92: -920 | AD92: -920 | AE92: -920 | AF92: -920 | AG92: -920 | AH92: 23428 | AI92: -661 | AJ92: -660 | AK92: 569 | AL92: -522 | AM92: -524 | AN92: -524 | AP92: 16729 | AQ92: 16730 | AR92: 16729
A93: %,V4561065 | B93: 4561065 | C93: PROVISION RTO Tran Rev NonAff | F93: 177621 | G93: -4115 | H93: 181736 | I93: N.M. | K93: 309961 | L93: -12345 | M93: 322306 | N93: N.M. | Q93: 309961 | R93: -12345 | S93: 322306 | T93: N.M. | V93: 370119 | W93: 385780 | X93: -15661 | Y93: -0.04059567629 | AA93: 31918 | AC93: -4115 | AD93: -4115 | AE93: -4115 | AF93: -4115 | AG93: -4115 | AH93: 92190 | AI93: -5048 | AJ93: -5049 | AK93: -182 | AL93: -4508 | AM93: -4508 | AN93: -4507 | AP93: 66170 | AQ93: 66170 | AR93: 177621
A94: %,V4561075 | B94: 4561075 | C94: PJM-Nonaff Power Factor Credit | F94: 287.89 | G94: 0 | H94: 287.89 | I94: N.M. | K94: 721.43 | L94: 0 | M94: 721.43 | N94: N.M. | Q94: 721.43 | R94: 0 | S94: 721.43 | T94: N.M. | V94: 4616.42 | W94: 0 | X94: 4616.42 | Y94: N.M. | AA94: 0 | AC94: 0 | AD94: 0 | AE94: 0 | AF94: 0 | AG94: 0 | AH94: 421.26 | AI94: 1393.48 | AJ94: 620.05 | AK94: 802.89 | AL94: 349.98 | AM94: 236.4 | AN94: 70.93 | AP94: 196.13 | AQ94: 237.41 | AR94: 287.89
A95: %,R,FACCOUNT,TGL_FERC_ACCT,XDYYNNY01,NOTHER_OPER_REVENUES | C95: Other Operating Revenues | F95: 5510883.102 | G95: 5663666.985 | H95: -152783.883 | I95: -0.02697614168 | K95: 15829405.72 | L95: 16042661.74 | M95: -213256.022 | N95: -0.01329305731 | Q95: 15829405.72 | R95: 16042661.74 | S95: -213256.022 | T95: -0.01329305731 | V95: 65279414.89 | W95: 52213681.06 | X95: 13065733.83 | Y95: 0.2502358302 | AA95: 4850434.855 | AC95: 5608078.735 | AD95: 4770916.025 | AE95: 5663666.985 | AF95: 5419622.645 | AG95: 5239207.045 | AH95: 4812919.175 | AI95: 5616644.715 | AJ95: 6005323.385 | AK95: 5438903.275 | AL95: 5680128.265 | AM95: 5309165.305 | AN95: 5928095.355 | AP95: 5317162.609 | AQ95: 5001360.012 | AR95: 5510883.102
B96: Line 2 | C96: Operating Revenues (400) | F96: =+F14+F23+F27+F50+F58+F95 -> 64496982.15 | G96: =+G14+G23+G27+G50+G58+G95 -> 66662575.7 | H96: -2165593.553 | I96: -0.03248589677 | K96: =+K14+K23+K27+K50+K58+K95 -> 212457214.5 | L96: =+L14+L23+L27+L50+L58+L95 -> 211833887.9 | M96: 623326.526 | N96: 0.00294252507 | Q96: =+Q14+Q23+Q27+Q50+Q58+Q95 -> 212457214.5 | R96: =+R14+R23+R27+R50+R58+R95 -> 211833887.9 | S96: 623326.526 | T96: 0.00294252507 | V96: =+V14+V23+V27+V50+V58+V95 -> 765374801.5 | W96: =+W14+W23+W27+W50+W58+W95 -> 732541810.8 | X96: 32832990.79 | Y96: 0.04482063727 | AA96: =+AA14+AA23+AA27+AA50+AA58+AA95 -> 67070519.64 | AC96: =+AC14+AC23+AC27+AC50+AC58+AC95 -> 82864908.61 | AD96: 62306403.6 | AE96: 66662575.7 | AF96: 52815642.09 | AG96: 49668783.77 | AH96: 80265747.05 | AI96: 67332566.89 | AJ96: 65046326.7 | AK96: 50446824.92 | AL96: 56923373.62 | AM96: 64582682.18 | AN96: 65835639.85 | AP96: =+AP14+AP23+AP27+AP50+AP58+AP95 -> 80596869.25 | AQ96: 67363363.05 | AR96: 64496982.15
B97: Line 3 | C97: Operating Expenses
A99: %,V5010000 | B99: 5010000 | C99: Fuel | F99: 410094.74 | G99: 1391713.84 | H99: =+F99-G99 -> -981619.1 | I99: =IF(G99<0,IF(H99=0,0,IF(OR(G99=0,F99=0),"N.M.",IF(ABS(H99/G99)>=10,"N.M.",H99/(-G99)))),IF(H99=0,0,IF(OR(G99=0,F99=0),"N.M.",IF(ABS(H99/G99)>=10,"N.M.",H99/G99)))) -> -0.7053311333 | K99: 1442012.56 | L99: 2702271.3 | M99: =+K99-L99 -> -1260258.74 | N99: =IF(L99<0,IF(M99=0,0,IF(OR(L99=0,K99=0),"N.M.",IF(ABS(M99/L99)>=10,"N.M.",M99/(-L99)))),IF(M99=0,0,IF(OR(L99=0,K99=0),"N.M.",IF(ABS(M99/L99)>=10,"N.M.",M99/L99)))) -> -0.4663701753 | Q99: 1442012.56 | R99: 2702271.3 | S99: =+Q99-R99 -> -1260258.74 | T99: =IF(R99<0,IF(S99=0,0,IF(OR(R99=0,Q99=0),"N.M.",IF(ABS(S99/R99)>=10,"N.M.",S99/(-R99)))),IF(S99=0,0,IF(OR(R99=0,Q99=0),"N.M.",IF(ABS(S99/R99)>=10,"N.M.",S99/R99)))) -> -0.4663701753 | V99: 6490206.77 | W99: 7832033.37 | X99: =+V99-W99 -> -1341826.6 | Y99: =IF(W99<0,IF(X99=0,0,IF(OR(W99=0,V99=0),"N.M.",IF(ABS(X99/W99)>=10,"N.M.",X99/(-W99)))),IF(X99=0,0,IF(OR(W99=0,V99=0),"N.M.",IF(ABS(X99/W99)>=10,"N.M.",X99/W99)))) -> -0.1713254447 | AA99: 468044.21 | AC99: 618298.26 | AD99: 692259.2 | AE99: 1391713.84 | AF99: 422235.9 | AG99: 536336.11 | AH99: 438840.56 | AI99: 671120.34 | AJ99: 615530.47 | AK99: 667204.1 | AL99: 534269.35 | AM99: 469001.09 | AN99: 693656.29 | AP99: 355395.69 | AQ99: 676522.13 | AR99: 410094.74
A100: %,V5010001 | B100: 5010001 | C100: Fuel Consumed | F100: 2917030.66 | G100: 1240119.13 | H100: 1676911.53 | I100: 1.352218097 | K100: 19591414.54 | L100: 16994933.92 | M100: 2596480.62 | N100: 0.1527796832 | Q100: 19591414.54 | R100: 16994933.92 | S100: 2596480.62 | T100: 0.1527796832 | V100: 76906220.56 | W100: 75754630.88 | X100: 1151589.68 | Y100: 0.0152015747 | AA100: 10015105.62 | AC100: 12290393.29 | AD100: 3464421.5 | AE100: 1240119.13 | AF100: 5166295.41 | AG100: 1362557.52 | AH100: 5465171.12 | AI100: 9639698.94 | AJ100: 7211243.8 | AK100: 2473641.01 | AL100: 9776000.93 | AM100: 8735699.02 | AN100: 7484498.27 | AP100: 9351907.34 | AQ100: 7322476.54 | AR100: 2917030.66
A101: %,V5010003 | B101: 5010003 | C101: Fuel - Procure Unload & Handle | F101: 163794.85 | G101: 64924.42 | H101: 98870.43 | I101: 1.522854267 | K101: 1017742.66 | L101: 858577.64 | M101: 159165.02 | N101: 0.1853822096 | Q101: 1017742.66 | R101: 858577.64 | S101: 159165.02 | T101: 0.1853822096 | V101: 4230797.15 | W101: 3585544.77 | X101: 645252.38 | Y101: 0.1799593706 | AA101: 482065.47 | AC101: 617385.32 | AD101: 176267.9 | AE101: 64924.42 | AF101: 309300.95 | AG101: 80402.99 | AH101: 500918.55 | AI101: 519917.36 | AJ101: 387404.5 | AK101: 132593.12 | AL101: 464300.85 | AM101: 429668.03 | AN101: 388548.14 | AP101: 475199.31 | AQ101: 378748.5 | AR101: 163794.85
A102: %,V5010005 | B102: 5010005 | C102: Fuel - Deferred | F102: 8418308.386 | G102: 1805156.56 | H102: 6613151.826 | I102: 3.663478267 | K102: -9892679.502 | L102: -566694.609 | M102: -9325984.893 | N102: N.M. | Q102: -9892679.502 | R102: -566694.609 | S102: -9325984.893 | T102: N.M. | V102: -4188838.06 | W102: -1189885.889 | X102: -2998952.171 | Y102: -2.520369557 | AA102: -1673812.24 | AC102: -5123318.9 | AD102: 2751467.731 | AE102: 1805156.56 | AF102: 1044760.324 | AG102: 4417871.505 | AH102: -3340582.92 | AI102: -1315935.06 | AJ102: 6623129 | AK102: 802175.391 | AL102: -4067343.391 | AM102: 2201282 | AN102: -661515.407 | AP102: -18012455.37 | AQ102: -298532.515 | AR102: 8418308.386
A103: %,V5010012 | B103: 5010012 | C103: Ash Sales Proceeds | F103: 447.26 | G103: 259.49 | H103: 187.77 | I103: 0.7236116999 | K103: 1796.49 | L103: 3334.96 | M103: -1538.47 | N103: -0.4613158779 | Q103: 1796.49 | R103: 3334.96 | S103: -1538.47 | T103: -0.4613158779 | V103: 5736.47 | W103: 22189.01 | X103: -16452.54 | Y103: -0.7414724677 | AA103: 1236.31 | AC103: 992.95 | AD103: 2082.52 | AE103: 259.49 | AF103: -1356.98 | AG103: 1777.24 | AH103: -1796.76 | AI103: 1061.09 | AJ103: 489.78 | AK103: 719.77 | AL103: 880.4 | AM103: 916.08 | AN103: 1249.36 | AP103: 951.45 | AQ103: 397.78 | AR103: 447.26
A104: %,V5010013 | B104: 5010013 | C104: Fuel Survey Activity | F104: 0 | G104: 0 | H104: 0 | I104: 0 | K104: 0 | L104: 0 | M104: 0 | N104: 0 | Q104: 0 | R104: 0 | S104: 0 | T104: 0 | V104: 3906533.13 | W104: 49281.13 | X104: 3857252 | Y104: N.M. | AA104: 0 | AC104: 0 | AD104: 0 | AE104: 0 | AF104: 0 | AG104: 0 | AH104: 4136038.43 | AI104: 0 | AJ104: 0 | AK104: 0 | AL104: 0 | AM104: -229505.3 | AN104: 0 | AP104: 0 | AQ104: 0 | AR104: 0
A105: %,V5010019 | B105: 5010019 | C105: Fuel Oil Consumed | F105: 299075.07 | G105: 666930.93 | H105: -367855.86 | I105: -0.5515651523 | K105: 839669.18 | L105: 1105998.02 | M105: -266328.84 | N105: -0.2408040839 | Q105: 839669.18 | R105: 1105998.02 | S105: -266328.84 | T105: -0.2408040839 | V105: 3871999.24 | W105: 3765558.18 | X105: 106441.06 | Y105: 0.02826700715 | AA105: 159819.37 | AC105: 170057.37 | AD105: 269009.72 | AE105: 666930.93 | AF105: 96647.53 | AG105: 160652.59 | AH105: 1026257.44 | AI105: 310596.72 | AJ105: 229206.49 | AK105: 191928.15 | AL105: 299158.57 | AM105: 295059.16 | AN105: 422823.41 | AP105: 340798.73 | AQ105: 199795.38 | AR105: 299075.07
A106: %,V5010020 | B106: 5010020 | C106: Nat Gas Consumed Steam | F106: 4327789.61 | G106: 3092259.22 | H106: 1235530.39 | I106: 0.3995558917 | K106: 20430282.11 | L106: 12913004.46 | M106: 7517277.65 | N106: 0.5821478397 | Q106: 20430282.11 | R106: 12913004.46 | S106: 7517277.65 | T106: 0.5821478397 | V106: 46393473.58 | W106: 31183494.57 | X106: 15209979.01 | Y106: 0.4877573607 | AA106: 3177051.68 | AC106: 4815547.63 | AD106: 5005197.61 | AE106: 3092259.22 | AF106: 1956384.15 | AG106: 2453953.33 | AH106: 3625585.34 | AI106: 4467847.34 | AJ106: 3920242.98 | AK106: 1578750.06 | AL106: 10346.29 | AM106: 3365399.16 | AN106: 4584682.82 | AP106: 7261725.14 | AQ106: 8840767.36 | AR106: 4327789.61
A107: %,V5010021 | B107: 5010021 | C107: Transp Gas Consumed Steam | F107: 58494.25 | G107: 41972.07 | H107: 16522.18 | I107: 0.3936470134 | K107: 177133.61 | L107: 109045.39 | M107: 68088.22 | N107: 0.6244025538 | Q107: 177133.61 | R107: 109045.39 | S107: 68088.22 | T107: 0.6244025538 | V107: 568860.51 | W107: 273765.43 | X107: 295095.08 | Y107: 1.077912138 | AA107: -40356.87 | AC107: 27014.1 | AD107: 40059.22 | AE107: 41972.07 | AF107: 44452.54 | AG107: 40535.42 | AH107: 86157.96 | AI107: 34941.63 | AJ107: 55139.12 | AK107: 69469.33 | AL107: 105032.69 | AM107: -75991.46 | AN107: 31989.67 | AP107: 70462.15 | AQ107: 48177.21 | AR107: 58494.25
A108: %,V5010027 | B108: 5010027 | C108: Gypsum handling/disposal costs | F108: 200094.77 | G108: 152673.25 | H108: 47421.52 | I108: 0.3106079159 | K108: 427686.36 | L108: 367662.97 | M108: 60023.39 | N108: 0.1632565553 | Q108: 427686.36 | R108: 367662.97 | S108: 60023.39 | T108: 0.1632565553 | V108: 1452371.04 | W108: 1530969.7 | X108: -78598.66 | Y108: -0.05133913493 | AA108: 127705.35 | AC108: 65968.69 | AD108: 149021.03 | AE108: 152673.25 | AF108: 106262.46 | AG108: 52426.61 | AH108: 119621.95 | AI108: 123628.91 | AJ108: 175772.97 | AK108: 91408.13 | AL108: 136617.8 | AM108: 102005.9 | AN108: 116939.95 | AP108: 79813.95 | AQ108: 147777.64 | AR108: 200094.77
A109: %,V5010028 | B109: 5010028 | C109: Gypsum Sales Proceeds | F109: -198568.98 | G109: -36655.22 | H109: -161913.76 | I109: -4.41720879 | K109: -358049.66 | L109: -399445.59 | M109: 41395.93 | N109: 0.1036334636 | Q109: -358049.66 | R109: -399445.59 | S109: 41395.93 | T109: 0.1036334636 | V109: -1181046.24 | W109: -1241705.41 | X109: 60659.17 | Y109: 0.04885149852 | AA109: -90075.39 | AC109: -242087.17 | AD109: -120703.2 | AE109: -36655.22 | AF109: -55250.53 | AG109: -96967.84 | AH109: -57542.76 | AI109: -90539.53 | AJ109: -126577.74 | AK109: -116907.68 | AL109: -100916.97 | AM109: 0 | AN109: -178293.53 | AP109: -85142.33 | AQ109: -74338.35 | AR109: -198568.98
A110: %,V5010033 | B110: 5010033 | C110: Coal Procurement Sales Net-NA | F110: 131387.16 | G110: 0 | H110: 131387.16 | I110: N.M. | K110: 131387.16 | L110: 0 | M110: 131387.16 | N110: N.M. | Q110: 131387.16 | R110: 0 | S110: 131387.16 | T110: N.M. | V110: 131387.16 | W110: 0 | X110: 131387.16 | Y110: N.M. | AA110: 0 | AC110: 0 | AD110: 0 | AE110: 0 | AF110: 0 | AG110: 0 | AH110: 0 | AI110: 0 | AJ110: 0 | AK110: 0 | AL110: 0 | AM110: 0 | AN110: 0 | AP110: 0 | AQ110: 0 | AR110: 131387.16
A111: %,V5010034 | B111: 5010034 | C111: Gas Transp Res Fees-Steam | F111: 503856 | G111: 552175.2 | H111: -48319.2 | I111: -0.08750700865 | K111: 1469016 | L111: 1615564.08 | M111: -146548.08 | N111: -0.09071016236 | Q111: 1469016 | R111: 1615564.08 | S111: -146548.08 | T111: -0.09071016236 | V111: 5956657.98 | W111: 6333372.2 | X111: -376714.22 | Y111: -0.05948082761 | AA111: 461278.8 | AC111: 554413.68 | AD111: 508975.2 | AE111: 552175.2 | AF111: 537775.2 | AG111: 455968.8 | AH111: 487940.4 | AI111: 503208 | AJ111: 503204.39 | AK111: 488804.4 | AL111: 503208 | AM111: 488804.4 | AN111: 518728.39 | AP111: 504504 | AQ111: 460656 | AR111: 503856
A112: %,V5010040 | B112: 5010040 | C112: Gas Procuremnt Sales Net | F112: 0.29 | G112: 158017.731 | H112: -158017.441 | I112: -0.9999981648 | K112: 0.13 | L112: 453288.19 | M112: -453288.06 | N112: -0.9999997132 | Q112: 0.13 | R112: 453288.19 | S112: -453288.06 | T112: -0.9999997132 | V112: 171003.84 | W112: 2092603.39 | X112: -1921599.55 | Y112: -0.9182817724 | AA112: 0.21 | AC112: 122978.916 | AD112: 172291.543 | AE112: 158017.731 | AF112: -219487.01 | AG112: 4182.54 | AH112: -0.045 | AI112: 0.075 | AJ112: -0.11 | AK112: 109220.12 | AL112: 312992.9 | AM112: -35903.75 | AN112: -1.01 | AP112: 0.02 | AQ112: -0.18 | AR112: 0.29
A113: %,FACCOUNT,TGL_FERC_ACCT,XDYYNNY01,N5010 | C113: Fuel Expense | F113: 17231804.07 | G113: 9129546.621 | H113: 8102257.445 | I113: 0.8874764302 | K113: 35277411.64 | L113: 36157540.73 | M113: -880129.093 | N113: -0.02434150872 | Q113: 35277411.64 | R113: 36157540.73 | S113: -880129.093 | T113: -0.02434150872 | V113: 144715363.1 | W113: 129991851.3 | X113: 14723511.8 | Y113: 0.1132648827 | AA113: 13088062.52 | AC113: 13917644.14 | AD113: 13110349.97 | AE113: 9129546.621 | AF113: 9408019.944 | AG113: 9469696.815 | AH113: 12486609.27 | AI113: 14865545.81 | AJ113: 19594785.65 | AK113: 6489005.901 | AL113: 7974547.419 | AM113: 15746434.33 | AN113: 13403306.35 | AP113: 343160.077 | AQ113: 17702447.5 | AR113: 17231804.07
A115: %,V5000000 | B115: 5000000 | C115: Oper Supervision & Engineering | F115: 418873.13 | G115: 306873.26 | H115: =+F115-G115 -> 111999.87 | I115: =IF(G115<0,IF(H115=0,0,IF(OR(G115=0,F115=0),"N.M.",IF(ABS(H115/G115)>=10,"N.M.",H115/(-G115)))),IF(H115=0,0,IF(OR(G115=0,F115=0),"N.M.",IF(ABS(H115/G115)>=10,"N.M.",H115/G115)))) -> 0.3649710959 | K115: 1191558.33 | L115: 987488.72 | M115: =+K115-L115 -> 204069.61 | N115: =IF(L115<0,IF(M115=0,0,IF(OR(L115=0,K115=0),"N.M.",IF(ABS(M115/L115)>=10,"N.M.",M115/(-L115)))),IF(M115=0,0,IF(OR(L115=0,K115=0),"N.M.",IF(ABS(M115/L115)>=10,"N.M.",M115/L115)))) -> 0.2066551302 | Q115: 1191558.33 | R115: 987488.72 | S115: =+Q115-R115 -> 204069.61 | T115: =IF(R115<0,IF(S115=0,0,IF(OR(R115=0,Q115=0),"N.M.",IF(ABS(S115/R115)>=10,"N.M.",S115/(-R115)))),IF(S115=0,0,IF(OR(R115=0,Q115=0),"N.M.",IF(ABS(S115/R115)>=10,"N.M.",S115/R115)))) -> 0.2066551302 | V115: 4707142.2 | W115: 4224514.05 | X115: =+V115-W115 -> 482628.15 | Y115: =IF(W115<0,IF(X115=0,0,IF(OR(W115=0,V115=0),"N.M.",IF(ABS(X115/W115)>=10,"N.M.",X115/(-W115)))),IF(X115=0,0,IF(OR(W115=0,V115=0),"N.M.",IF(ABS(X115/W115)>=10,"N.M.",X115/W115)))) -> 0.114244655 | AA115: 327253.38 | AC115: 336540.33 | AD115: 344075.13 | AE115: 306873.26 | AF115: 318921.29 | AG115: 304828.88 | AH115: 340471.02 | AI115: 441077.5 | AJ115: 405316.32 | AK115: 374330.16 | AL115: 366881.03 | AM115: 428464.07 | AN115: 535293.6 | AP115: 375740.17 | AQ115: 396945.03 | AR115: 418873.13
A116: %,V5000002 | B116: 5000002 | C116: Dresden Oper Supervision & Eng | F116: 0 | G116: 0 | H116: 0 | I116: 0 | K116: 0 | L116: 0 | M116: 0 | N116: 0 | Q116: 0 | R116: 0 | S116: 0 | T116: 0 | V116: -33.12 | W116: 0 | X116: -33.12 | Y116: N.M. | AA116: 0 | AC116: 0 | AD116: 0 | AE116: 0 | AF116: 0 | AG116: 0 | AH116: 0 | AI116: 0 | AJ116: 0 | AK116: 0 | AL116: 0 | AM116: 41.08 | AN116: -74.2 | AP116: 0 | AQ116: 0 | AR116: 0
A117: %,V5000003 | B117: 5000003 | C117: Cnstr Srchrge Op Sup & Eng Exp | F117: 0 | G117: 0 | H117: 0 | I117: 0 | K117: 0 | L117: 0 | M117: 0 | N117: 0 | Q117: 0 | R117: 0 | S117: 0 | T117: 0 | V117: 64.34 | W117: 0 | X117: 64.34 | Y117: N.M. | AA117: 0 | AC117: 0 | AD117: 0 | AE117: 0 | AF117: 0 | AG117: 0 | AH117: 0 | AI117: 0 | AJ117: 64.34 | AK117: 0 | AL117: 0 | AM117: 0 | AN117: 0 | AP117: 0 | AQ117: 0 | AR117: 0
A118: %,V5020000 | B118: 5020000 | C118: Steam Expenses | F118: 192558.46 | G118: 132712.56 | H118: 59845.9 | I118: 0.4509437539 | K118: 533764.75 | L118: 495575.86 | M118: 38188.89 | N118: 0.07705962514 | Q118: 533764.75 | R118: 495575.86 | S118: 38188.89 | T118: 0.07705962514 | V118: 2054626.22 | W118: 1636473.98 | X118: 418152.24 | Y118: 0.2555202497 | AA118: 102563.19 | AC118: 263752.04 | AD118: 99111.26 | AE118: 132712.56 | AF118: 183480.07 | AG118: 147448.07 | AH118: 161081.79 | AI118: 202681.56 | AJ118: 163552.9 | AK118: 154617.86 | AL118: 168965.39 | AM118: 104244.74 | AN118: 234789.09 | AP118: 150342.07 | AQ118: 190864.22 | AR118: 192558.46
A119: %,V5020002 | B119: 5020002 | C119: Urea Expense | F119: 51668.6 | G119: 13553.71 | H119: 38114.89 | I119: 2.812137046 | K119: 296786.61 | L119: 233235.96 | M119: 63550.65 | N119: 0.2724736357 | Q119: 296786.61 | R119: 233235.96 | S119: 63550.65 | T119: 0.2724736357 | V119: 978040.23 | W119: 1110692.35 | X119: -132652.12 | Y119: -0.1194319201 | AA119: 158103.85 | AC119: 178812.53 | AD119: 40869.72 | AE119: 13553.71 | AF119: 73029.31 | AG119: 1813.2 | AH119: 82902.21 | AI119: 89646.41 | AJ119: 88624.99 | AK119: 22135.35 | AL119: 137585.53 | AM119: 82892.35 | AN119: 102624.27 | AP119: 140342.57 | AQ119: 104775.44 | AR119: 51668.6
A120: %,V5020004 | B120: 5020004 | C120: Lime-Related Expenses | F120: 118623.55 | G120: 28337.16 | H120: 90286.39 | I120: 3.186148153 | K120: 682785.06 | L120: 430054.06 | M120: 252731 | N120: 0.5876726289 | Q120: 682785.06 | R120: 430054.06 | S120: 252731 | T120: 0.5876726289 | V120: 2662764.3 | W120: 2227498.5 | X120: 435265.8 | Y120: 0.1954056535 | AA120: 320071.87 | AC120: 293674.01 | AD120: 108042.89 | AE120: 28337.16 | AF120: 201531.73 | AG120: 56715.14 | AH120: 92368.08 | AI120: 379391.47 | AJ120: 285011.39 | AK120: 73936.82 | AL120: 358832.84 | AM120: 260340.62 | AN120: 271851.15 | AP120: 321910.22 | AQ120: 242251.29 | AR120: 118623.55
A121: %,V5050000 | B121: 5050000 | C121: Electric Expenses | F121: 7427.9 | G121: 1801.63 | H121: 5626.27 | I121: 3.122877616 | K121: 14713.13 | L121: 2812.08 | M121: 11901.05 | N121: 4.23211644 | Q121: 14713.13 | R121: 2812.08 | S121: 11901.05 | T121: 4.23211644 | V121: 86944.44 | W121: 35854.75 | X121: 51089.69 | Y121: 1.42490716 | AA121: -773.37 | AC121: 1444.38 | AD121: -433.93 | AE121: 1801.63 | AF121: 16578.74 | AG121: 6537.93 | AH121: 13658.29 | AI121: 6851.37 | AJ121: 12544.92 | AK121: 4144.83 | AL121: 4963.2 | AM121: 4182.45 | AN121: 2769.58 | AP121: 6141.83 | AQ121: 1143.4 | AR121: 7427.9
A122: %,V5060000 | B122: 5060000 | C122: Misc Steam Power Expenses | F122: 516232.62 | G122: 381726.44 | H122: 134506.18 | I122: 0.3523627549 | K122: 1580780.82 | L122: 1151923.326 | M122: 428857.494 | N122: 0.3722969093 | Q122: 1580780.82 | R122: 1151923.326 | S122: 428857.494 | T122: 0.3722969093 | V122: 5438528.92 | W122: 5924317.646 | X122: -485788.726 | Y122: -0.08199910184 | AA122: 444638.68 | AC122: 417841.51 | AD122: 352355.376 | AE122: 381726.44 | AF122: 374041.75 | AG122: 455065.62 | AH122: 412492.9 | AI122: 448311.9 | AJ122: 264385.36 | AK122: 343775.758 | AL122: 402701.312 | AM122: 443736.08 | AN122: 713237.42 | AP122: 477295.08 | AQ122: 587253.12 | AR122: 516232.62
A123: %,V5060002 | B123: 5060002 | C123: Misc Steam Power Exp-Assoc | F123: 5178.06 | G123: 4254.84 | H123: 923.22 | I123: 0.2169811321 | K123: 14876.54 | L123: 14384.23 | M123: 492.31 | N123: 0.03422567631 | Q123: 14876.54 | R123: 14384.23 | S123: 492.31 | T123: 0.03422567631 | V123: 48491.62 | W123: 53188.44 | X123: -4696.82 | Y123: -0.08830527836 | AA123: 5032.84 | AC123: 4967.41 | AD123: 5161.98 | AE123: 4254.84 | AF123: 4662.2 | AG123: 3472.2 | AH123: 3074.38 | AI123: 4032.86 | AJ123: 3702.6 | AK123: 3908.36 | AL123: 3162.2 | AM123: 3688.78 | AN123: 3911.5 | AP123: 4902.78 | AQ123: 4795.7 | AR123: 5178.06
A124: %,V5060011 | B124: 5060011 | C124: BSRR O/U Recovery-Oper Costs | F124: 0 | G124: 0 | H124: 0 | I124: 0 | K124: 0 | L124: 0 | M124: 0 | N124: 0 | Q124: 0 | R124: 0 | S124: 0 | T124: 0 | V124: 0 | W124: 210.68 | X124: -210.68 | Y124: N.M. | AA124: 0 | AC124: 0 | AD124: 0 | AE124: 0 | AF124: 0 | AG124: 0 | AH124: 0 | AI124: 0 | AJ124: 0 | AK124: 0 | AL124: 0 | AM124: 0 | AN124: 0 | AP124: 0 | AQ124: 0 | AR124: 0
A125: %,V5070006 | B125: 5070006 | C125: Rents - Associated | F125: 128.59 | G125: 193.17 | H125: -64.58 | I125: -0.3343169229 | K125: 382.67 | L125: 579.51 | M125: -196.84 | N125: -0.3396662698 | Q125: 382.67 | R125: 579.51 | S125: -196.84 | T125: -0.3396662698 | V125: 2121.2 | W125: 579.51 | X125: 1541.69 | Y125: 2.66033373 | AA125: 0 | AC125: 193.17 | AD125: 193.17 | AE125: 193.17 | AF125: 193.17 | AG125: 193.17 | AH125: 193.17 | AI125: 193.17 | AJ125: 193.17 | AK125: 193.17 | AL125: 193.17 | AM125: 193.17 | AN125: 193.17 | AP125: 122.25 | AQ125: 131.83 | AR125: 128.59
A126: %,V5090000 | B126: 5090000 | C126: Allow Consum Title IV SO2 | F126: 530.89 | G126: 226.6 | H126: 304.29 | I126: 1.342850838 | K126: 3293.93 | L126: 5255.02 | M126: -1961.09 | N126: -0.3731841173 | Q126: 3293.93 | R126: 5255.02 | S126: -1961.09 | T126: -0.3731841173 | V126: 14737.31 | W126: 37960.01 | X126: -23222.7 | Y126: -0.611767489 | AA126: 3197.64 | AC126: 2913.47 | AD126: 2114.95 | AE126: 226.6 | AF126: 944.17 | AG126: 339.9 | AH126: 1321.84 | AI126: 2266.02 | AJ126: 1548.45 | AK126: 566.51 | AL126: 1737.28 | AM126: 1586.21 | AN126: 1133 | AP126: 1805.04 | AQ126: 958 | AR126: 530.89
A127: %,V5090001 | B127: 5090001 | C127: Allowance Consumption - NOx | F127: 0 | G127: 0 | H127: 0 | I127: 0 | K127: 0 | L127: 0 | M127: 0 | N127: 0 | Q127: 0 | R127: 0 | S127: 0 | T127: 0 | V127: -157142.86 | W127: 42857.15 | X127: -200000.01 | Y127: -4.666666122 | AA127: 0 | AC127: 0 | AD127: 0 | AE127: 0 | AF127: 0 | AG127: 0 | AH127: 0 | AI127: 0 | AJ127: 0 | AK127: -157142.86 | AL127: 0 | AM127: 0 | AN127: 0 | AP127: 0 | AQ127: 0 | AR127: 0
A128: %,V5090009 | B128: 5090009 | C128: Allow Consumpt CSAPR SO2 | F128: 2.6 | G128: 1.11 | H128: 1.49 | I128: 1.342342342 | K128: 16.15 | L128: 25.66 | M128: -9.51 | N128: -0.3706157443 | Q128: 16.15 | R128: 25.66 | S128: -9.51 | T128: -0.3706157443 | V128: 71.51 | W128: 182.4 | X128: -110.89 | Y128: -0.6079495614 | AA128: 15.32 | AC128: 14.22 | AD128: 10.33 | AE128: 1.11 | AF128: 4.62 | AG128: 1.66 | AH128: 6.46 | AI128: 10.93 | AJ128: 7.46 | AK128: 2.73 | AL128: 8.38 | AM128: 7.65 | AN128: 5.47 | AP128: 8.86 | AQ128: 4.69 | AR128: 2.6
A129: %,FACCOUNT,TGL_FERC_ACCT,XDYYNNY01,N500-509_EXC_501 | C129: Steam Power Operations | F129: 1311224.4 | G129: 869680.48 | H129: 441543.92 | I129: 0.5077082103 | K129: 4318957.99 | L129: 3321334.426 | M129: 997623.564 | N129: 0.3003682966 | Q129: 4318957.99 | R129: 3321334.426 | S129: 997623.564 | T129: 0.3003682966 | V129: 15836356.31 | W129: 15294329.47 | X129: 542026.844 | Y129: 0.03543972589 | AA129: 1360103.4 | AC129: 1500153.07 | AD129: 951500.876 | AE129: 869680.48 | AF129: 1173387.05 | AG129: 976415.77 | AH129: 1107570.14 | AI129: 1574463.19 | AJ129: 1224951.9 | AK129: 820468.688 | AL129: 1445030.332 | AM129: 1329377.2 | AN129: 1865734.05 | AP129: 1478610.87 | AQ129: 1529122.72 | AR129: 1311224.4
A131: %,FACCOUNT,TGL_FERC_ACCT,XDYYNNY01,N517-525 | C131: Nuclear Power Operations | F131: 0 | G131: 0 | H131: =+F131-G131 -> 0 | I131: =IF(G131<0,IF(H131=0,0,IF(OR(G131=0,F131=0),"N.M.",IF(ABS(H131/G131)>=10,"N.M.",H131/(-G131)))),IF(H131=0,0,IF(OR(G131=0,F131=0),"N.M.",IF(ABS(H131/G131)>=10,"N.M.",H131/G131)))) -> 0 | K131: 0 | L131: 0 | M131: =+K131-L131 -> 0 | N131: =IF(L131<0,IF(M131=0,0,IF(OR(L131=0,K131=0),"N.M.",IF(ABS(M131/L131)>=10,"N.M.",M131/(-L131)))),IF(M131=0,0,IF(OR(L131=0,K131=0),"N.M.",IF(ABS(M131/L131)>=10,"N.M.",M131/L131)))) -> 0 | Q131: 0 | R131: 0 | S131: =+Q131-R131 -> 0 | T131: =IF(R131<0,IF(S131=0,0,IF(OR(R131=0,Q131=0),"N.M.",IF(ABS(S131/R131)>=10,"N.M.",S131/(-R131)))),IF(S131=0,0,IF(OR(R131=0,Q131=0),"N.M.",IF(ABS(S131/R131)>=10,"N.M.",S131/R131)))) -> 0 | V131: 0 | W131: 0 | X131: =+V131-W131 -> 0 | Y131: =IF(W131<0,IF(X131=0,0,IF(OR(W131=0,V131=0),"N.M.",IF(ABS(X131/W131)>=10,"N.M.",X131/(-W131)))),IF(X131=0,0,IF(OR(W131=0,V131=0),"N.M.",IF(ABS(X131/W131)>=10,"N.M.",X131/W131)))) -> 0 | AA131: 0 | AC131: 0 | AD131: 0 | AE131: 0 | AF131: 0 | AG131: 0 | AH131: 0 | AI131: 0 | AJ131: 0 | AK131: 0 | AL131: 0 | AM131: 0 | AN131: 0 | AP131: 0 | AQ131: 0 | AR131: 0
A133: %,FACCOUNT,TGL_FERC_ACCT,XDYYNNY01,N535-540 | C133: Hydraulic Power Operations | F133: 0 | G133: 0 | H133: =+F133-G133 -> 0 | I133: =IF(G133<0,IF(H133=0,0,IF(OR(G133=0,F133=0),"N.M.",IF(ABS(H133/G133)>=10,"N.M.",H133/(-G133)))),IF(H133=0,0,IF(OR(G133=0,F133=0),"N.M.",IF(ABS(H133/G133)>=10,"N.M.",H133/G133)))) -> 0 | K133: 0 | L133: 0 | M133: =+K133-L133 -> 0 | N133: =IF(L133<0,IF(M133=0,0,IF(OR(L133=0,K133=0),"N.M.",IF(ABS(M133/L133)>=10,"N.M.",M133/(-L133)))),IF(M133=0,0,IF(OR(L133=0,K133=0),"N.M.",IF(ABS(M133/L133)>=10,"N.M.",M133/L133)))) -> 0 | Q133: 0 | R133: 0 | S133: =+Q133-R133 -> 0 | T133: =IF(R133<0,IF(S133=0,0,IF(OR(R133=0,Q133=0),"N.M.",IF(ABS(S133/R133)>=10,"N.M.",S133/(-R133)))),IF(S133=0,0,IF(OR(R133=0,Q133=0),"N.M.",IF(ABS(S133/R133)>=10,"N.M.",S133/R133)))) -> 0 | V133: 0 | W133: 0 | X133: =+V133-W133 -> 0 | Y133: =IF(W133<0,IF(X133=0,0,IF(OR(W133=0,V133=0),"N.M.",IF(ABS(X133/W133)>=10,"N.M.",X133/(-W133)))),IF(X133=0,0,IF(OR(W133=0,V133=0),"N.M.",IF(ABS(X133/W133)>=10,"N.M.",X133/W133)))) -> 0 | AA133: 0 | AC133: 0 | AD133: 0 | AE133: 0 | AF133: 0 | AG133: 0 | AH133: 0 | AI133: 0 | AJ133: 0 | AK133: 0 | AL133: 0 | AM133: 0 | AN133: 0 | AP133: 0 | AQ133: 0 | AR133: 0
A135: %,V5490000 | B135: 5490000 | C135: Misc Other Pwer Generation Exp | F135: 0 | G135: 0 | H135: =+F135-G135 -> 0 | I135: =IF(G135<0,IF(H135=0,0,IF(OR(G135=0,F135=0),"N.M.",IF(ABS(H135/G135)>=10,"N.M.",H135/(-G135)))),IF(H135=0,0,IF(OR(G135=0,F135=0),"N.M.",IF(ABS(H135/G135)>=10,"N.M.",H135/G135)))) -> 0 | K135: 0 | L135: 0 | M135: =+K135-L135 -> 0 | N135: =IF(L135<0,IF(M135=0,0,IF(OR(L135=0,K135=0),"N.M.",IF(ABS(M135/L135)>=10,"N.M.",M135/(-L135)))),IF(M135=0,0,IF(OR(L135=0,K135=0),"N.M.",IF(ABS(M135/L135)>=10,"N.M.",M135/L135)))) -> 0 | Q135: 0 | R135: 0 | S135: =+Q135-R135 -> 0 | T135: =IF(R135<0,IF(S135=0,0,IF(OR(R135=0,Q135=0),"N.M.",IF(ABS(S135/R135)>=10,"N.M.",S135/(-R135)))),IF(S135=0,0,IF(OR(R135=0,Q135=0),"N.M.",IF(ABS(S135/R135)>=10,"N.M.",S135/R135)))) -> 0 | V135: 0.01 | W135: 0 | X135: =+V135-W135 -> 0.01 | Y135: =IF(W135<0,IF(X135=0,0,IF(OR(W135=0,V135=0),"N.M.",IF(ABS(X135/W135)>=10,"N.M.",X135/(-W135)))),IF(X135=0,0,IF(OR(W135=0,V135=0),"N.M.",IF(ABS(X135/W135)>=10,"N.M.",X135/W135)))) -> N.M. | AA135: 0 | AC135: 0 | AD135: 0 | AE135: 0 | AF135: 0 | AG135: 0 | AH135: 0 | AI135: 0 | AJ135: 0 | AK135: 0.01 | AL135: 0 | AM135: 0 | AN135: 0 | AP135: 0 | AQ135: 0 | AR135: 0
A136: %,V8140000 | B136: 8140000 | C136: Underground Storage Expenses | F136: 0 | G136: 0 | H136: =+F136-G136 -> 0 | I136: =IF(G136<0,IF(H136=0,0,IF(OR(G136=0,F136=0),"N.M.",IF(ABS(H136/G136)>=10,"N.M.",H136/(-G136)))),IF(H136=0,0,IF(OR(G136=0,F136=0),"N.M.",IF(ABS(H136/G136)>=10,"N.M.",H136/G136)))) -> 0 | K136: 0 | L136: 0 | M136: =+K136-L136 -> 0 | N136: =IF(L136<0,IF(M136=0,0,IF(OR(L136=0,K136=0),"N.M.",IF(ABS(M136/L136)>=10,"N.M.",M136/(-L136)))),IF(M136=0,0,IF(OR(L136=0,K136=0),"N.M.",IF(ABS(M136/L136)>=10,"N.M.",M136/L136)))) -> 0 | Q136: 0 | R136: 0 | S136: =+Q136-R136 -> 0 | T136: =IF(R136<0,IF(S136=0,0,IF(OR(R136=0,Q136=0),"N.M.",IF(ABS(S136/R136)>=10,"N.M.",S136/(-R136)))),IF(S136=0,0,IF(OR(R136=0,Q136=0),"N.M.",IF(ABS(S136/R136)>=10,"N.M.",S136/R136)))) -> 0 | V136: 0 | W136: 0 | X136: =+V136-W136 -> 0 | Y136: =IF(W136<0,IF(X136=0,0,IF(OR(W136=0,V136=0),"N.M.",IF(ABS(X136/W136)>=10,"N.M.",X136/(-W136)))),IF(X136=0,0,IF(OR(W136=0,V136=0),"N.M.",IF(ABS(X136/W136)>=10,"N.M.",X136/W136)))) -> 0 | AA136: -1637.46 | AC136: 0 | AD136: 0 | AE136: 0 | AF136: 0 | AG136: 0 | AH136: 0 | AI136: 0 | AJ136: 0 | AK136: 0 | AL136: 0 | AM136: 0 | AN136: 0 | AP136: 0 | AQ136: 0 | AR136: 0
A137: %,FACCOUNT,TGL_FERC_ACCT,XDYYNNY01,N546-550 | C137: Other Power Operations | F137: 0 | G137: 0 | H137: =+F137-G137 -> 0 | I137: =IF(G137<0,IF(H137=0,0,IF(OR(G137=0,F137=0),"N.M.",IF(ABS(H137/G137)>=10,"N.M.",H137/(-G137)))),IF(H137=0,0,IF(OR(G137=0,F137=0),"N.M.",IF(ABS(H137/G137)>=10,"N.M.",H137/G137)))) -> 0 | K137: 0 | L137: 0 | M137: =+K137-L137 -> 0 | N137: =IF(L137<0,IF(M137=0,0,IF(OR(L137=0,K137=0),"N.M.",IF(ABS(M137/L137)>=10,"N.M.",M137/(-L137)))),IF(M137=0,0,IF(OR(L137=0,K137=0),"N.M.",IF(ABS(M137/L137)>=10,"N.M.",M137/L137)))) -> 0 | Q137: 0 | R137: 0 | S137: =+Q137-R137 -> 0 | T137: =IF(R137<0,IF(S137=0,0,IF(OR(R137=0,Q137=0),"N.M.",IF(ABS(S137/R137)>=10,"N.M.",S137/(-R137)))),IF(S137=0,0,IF(OR(R137=0,Q137=0),"N.M.",IF(ABS(S137/R137)>=10,"N.M.",S137/R137)))) -> 0 | V137: 0.01 | W137: 0 | X137: =+V137-W137 -> 0.01 | Y137: =IF(W137<0,IF(X137=0,0,IF(OR(W137=0,V137=0),"N.M.",IF(ABS(X137/W137)>=10,"N.M.",X137/(-W137)))),IF(X137=0,0,IF(OR(W137=0,V137=0),"N.M.",IF(ABS(X137/W137)>=10,"N.M.",X137/W137)))) -> N.M. | AA137: -1637.46 | AC137: 0 | AD137: 0 | AE137: 0 | AF137: 0 | AG137: 0 | AH137: 0 | AI137: 0 | AJ137: 0 | AK137: 0.01 | AL137: 0 | AM137: 0 | AN137: 0 | AP137: 0 | AQ137: 0 | AR137: 0
A139: %,V5550001 | B139: 5550001 | C139: Purch Pwr-NonTrading-Nonassoc | F139: 9179467.44 | G139: 14301194.83 | H139: =+F139-G139 -> -5121727.39 | I139: =IF(G139<0,IF(H139=0,0,IF(OR(G139=0,F139=0),"N.M.",IF(ABS(H139/G139)>=10,"N.M.",H139/(-G139)))),IF(H139=0,0,IF(OR(G139=0,F139=0),"N.M.",IF(ABS(H139/G139)>=10,"N.M.",H139/G139)))) -> -0.3581328309 | K139: 37623620.64 | L139: 44015430.77 | M139: =+K139-L139 -> -6391810.13 | N139: =IF(L139<0,IF(M139=0,0,IF(OR(L139=0,K139=0),"N.M.",IF(ABS(M139/L139)>=10,"N.M.",M139/(-L139)))),IF(M139=0,0,IF(OR(L139=0,K139=0),"N.M.",IF(ABS(M139/L139)>=10,"N.M.",M139/L139)))) -> -0.1452174844 | Q139: 37623620.64 | R139: 44015430.77 | S139: =+Q139-R139 -> -6391810.13 | T139: =IF(R139<0,IF(S139=0,0,IF(OR(R139=0,Q139=0),"N.M.",IF(ABS(S139/R139)>=10,"N.M.",S139/(-R139)))),IF(S139=0,0,IF(OR(R139=0,Q139=0),"N.M.",IF(ABS(S139/R139)>=10,"N.M.",S139/R139)))) -> -0.1452174844 | V139: 106644495.1 | W139: 106265431.5 | X139: =+V139-W139 -> 379063.63 | Y139: =IF(W139<0,IF(X139=0,0,IF(OR(W139=0,V139=0),"N.M.",IF(ABS(X139/W139)>=10,"N.M.",X139/(-W139)))),IF(X139=0,0,IF(OR(W139=0,V139=0),"N.M.",IF(ABS(X139/W139)>=10,"N.M.",X139/W139)))) -> 0.003567139611 | AA139: 6910226.45 | AC139: 15205502.66 | AD139: 14508733.28 | AE139: 14301194.83 | AF139: 7405117.81 | AG139: 10541889.76 | AH139: 6715935.28 | AI139: 7717470.3 | AJ139: 3967199.65 | AK139: 10258070.89 | AL139: 8213710.37 | AM139: 5071677.35 | AN139: 9129803.07 | AP139: 20913772.49 | AQ139: 7530380.71 | AR139: 9179467.44
A140: %,V5550004 | B140: 5550004 | C140: Purchased Power-Pool Capacity | F140: 32587.75 | G140: 0 | H140: 32587.75 | I140: N.M. | K140: 94609.6 | L140: 0 | M140: 94609.6 | N140: N.M. | Q140: 94609.6 | R140: 0 | S140: 94609.6 | T140: N.M. | V140: 319570.22 | W140: 149722.2 | X140: 169848.02 | Y140: 1.134421081 | AA140: 0 | AC140: 0 | AD140: 0 | AE140: 0 | AF140: 0 | AG140: 0 | AH140: 0 | AI140: 64124.29 | AJ140: 32587.75 | AK140: 31536.54 | AL140: 32587.75 | AM140: 31536.54 | AN140: 32587.75 | AP140: 32587.75 | AQ140: 29434.1 | AR140: 32587.75
A141: %,V5550023 | B141: 5550023 | C141: Purch Power Capacity -NA | F141: 0 | G141: 201548.44 | H141: -201548.44 | I141: N.M. | K141: 0 | L141: 604645.32 | M141: -604645.32 | N141: N.M. | Q141: 0 | R141: 604645.32 | S141: -604645.32 | T141: N.M. | V141: 1247507.37 | W141: 2023902.21 | X141: -776394.84 | Y141: -0.3836128229 | AA141: 201548.44 | AC141: 201548.44 | AD141: 201548.44 | AE141: 201548.44 | AF141: 201548.44 | AG141: 1043329.69 | AH141: 483018.55 | AI141: 0 | AJ141: -448262.49 | AK141: 0 | AL141: -32126.82 | AM141: 0 | AN141: 0 | AP141: 0 | AQ141: 0 | AR141: 0
A142: %,V5550029 | B142: 5550029 | C142: Purch Power-Assoc-Trnsfr Price | F142: 0 | G142: 0 | H142: 0 | I142: 0 | K142: 0 | L142: 0 | M142: 0 | N142: 0 | Q142: 0 | R142: 0 | S142: 0 | T142: 0 | V142: 0 | W142: 0 | X142: 0 | Y142: 0 | AA142: 0 | AC142: 0 | AD142: 0 | AE142: 0 | AF142: 0 | AG142: 0 | AH142: 0 | AI142: 0 | AJ142: 0 | AK142: 0 | AL142: 0 | AM142: 0 | AN142: 0 | AP142: 0 | AQ142: 0 | AR142: 0
A143: %,V5550039 | B143: 5550039 | C143: PJM Inadvertent Mtr Res-OSS | F143: -643.59 | G143: -448.96 | H143: -194.63 | I143: -0.4335130078 | K143: 3490.45 | L143: -1139.47 | M143: 4629.92 | N143: 4.063222375 | Q143: 3490.45 | R143: -1139.47 | S143: 4629.92 | T143: 4.063222375 | V143: 965.19 | W143: 3929.05 | X143: -2963.86 | Y143: -0.7543451979 | AA143: -640.23 | AC143: -507.21 | AD143: -183.3 | AE143: -448.96 | AF143: -477.24 | AG143: -806.03 | AH143: 891.5 | AI143: -75.47 | AJ143: 666.12 | AK143: -278.4 | AL143: -993.12 | AM143: -55.37 | AN143: -1397.25 | AP143: 2698.59 | AQ143: 1435.45 | AR143: -643.59
A144: %,V5550040 | B144: 5550040 | C144: PJM Inadvertent Mtr Res-LSE | F144: 15560.65 | G144: -7222.49 | H144: 22783.14 | I144: 3.154471657 | K144: 63888.02 | L144: -16541.91 | M144: 80429.93 | N144: 4.862191246 | Q144: 63888.02 | R144: -16541.91 | S144: 80429.93 | T144: 4.862191246 | V144: 17720.9 | W144: 34353.69 | X144: -16632.79 | Y144: -0.4841631277 | AA144: -4170.81 | AC144: -3524.71 | AD144: -5794.71 | AE144: -7222.49 | AF144: -8456.78 | AG144: -9252.3 | AH144: -4019.14 | AI144: -2432.77 | AJ144: 3370.29 | AK144: -4706.82 | AL144: -8561.5 | AM144: -5256.76 | AN144: -6851.34 | AP144: 23822.37 | AQ144: 24505 | AR144: 15560.65
A145: %,V5550074 | B145: 5550074 | C145: PJM Reactive-Charge | F145: 240002.75 | G145: 271025.49 | H145: -31022.74 | I145: -0.1144642889 | K145: 748658.64 | L145: 830812.29 | M145: -82153.65 | N145: -0.09888352759 | Q145: 748658.64 | R145: 830812.29 | S145: -82153.65 | T145: -0.09888352759 | V145: 3135648.23 | W145: 3481565.6 | X145: -345917.37 | Y145: -0.09935684394 | AA145: 290161.54 | AC145: 286667.43 | AD145: 273119.37 | AE145: 271025.49 | AF145: 273005.67 | AG145: 274383.7 | AH145: 271549.29 | AI145: 266154.98 | AJ145: 268149.33 | AK145: 266645.7 | AL145: 262768.6 | AM145: 244671.13 | AN145: 259661.19 | AP145: 253599.31 | AQ145: 255056.58 | AR145: 240002.75
A146: %,V5550075 | B146: 5550075 | C146: PJM Reactive-Credit | F146: -119573 | G146: -119573 | H146: 0 | I146: 0 | K146: -358719 | L146: -358719 | M146: 0 | N146: 0 | Q146: -358719 | R146: -358719 | S146: 0 | T146: 0 | V146: -1434876 | W146: -1434876 | X146: 0 | Y146: 0 | AA146: -119573 | AC146: -119573 | AD146: -119573 | AE146: -119573 | AF146: -119573 | AG146: -119573 | AH146: -119573 | AI146: -119573 | AJ146: -119573 | AK146: -119573 | AL146: -119573 | AM146: -119573 | AN146: -119573 | AP146: -119573 | AQ146: -119573 | AR146: -119573
A147: %,V5550076 | B147: 5550076 | C147: PJM Black Start-Charge | F147: 73314.72 | G147: 47260.05 | H147: 26054.67 | I147: 0.5513043257 | K147: 74625.92 | L147: 97438.83 | M147: -22812.91 | N147: -0.2341254508 | Q147: 74625.92 | R147: 97438.83 | S147: -22812.91 | T147: -0.2341254508 | V147: 440419.71 | W147: 940481.78 | X147: -500062.07 | Y147: -0.531708408 | AA147: 94990.6 | AC147: 3383.75 | AD147: 46795.03 | AE147: 47260.05 | AF147: 46811.54 | AG147: 37522.05 | AH147: 26888.6 | AI147: 26837.71 | AJ147: 58868.57 | AK147: 37065.79 | AL147: 46995.64 | AM147: 42721.44 | AN147: 42082.45 | AP147: -32622.09 | AQ147: 33933.29 | AR147: 73314.72
A148: %,V5550078 | B148: 5550078 | C148: PJM Regulation-Charge | F148: -360040.67 | G148: 76947.6 | H148: -436988.27 | I148: -5.679037033 | K148: 812172.71 | L148: 277133.64 | M148: 535039.07 | N148: 1.930617553 | Q148: 812172.71 | R148: 277133.64 | S148: 535039.07 | T148: 1.930617553 | V148: 1814274.77 | W148: 720558 | X148: 1093716.77 | Y148: 1.517874717 | AA148: 43038.27 | AC148: 127637.02 | AD148: 72549.02 | AE148: 76947.6 | AF148: 72784.06 | AG148: 47347.26 | AH148: 108302.07 | AI148: 74426.03 | AJ148: 49743.75 | AK148: 59902.75 | AL148: 395562.56 | AM148: -100532.22 | AN148: 294565.8 | AP148: 388317.6 | AQ148: 783895.78 | AR148: -360040.67
A149: %,V5550079 | B149: 5550079 | C149: PJM Regulation-Credit | F149: 953519.41 | G149: -1023.06 | H149: 954542.47 | I149: N.M. | K149: -162508.26 | L149: 212917.96 | M149: -375426.22 | N149: -1.763243552 | Q149: -162508.26 | R149: 212917.96 | S149: -375426.22 | T149: -1.763243552 | V149: 117856.06 | W149: -20095.86 | X149: 137951.92 | Y149: 6.864693524 | AA149: -226210.47 | AC149: 215934.81 | AD149: -1993.79 | AE149: -1023.06 | AF149: -274.49 | AG149: -585.84 | AH149: -961.09 | AI149: -3196.69 | AJ149: -2761.37 | AK149: -1224.51 | AL149: -384669.63 | AM149: 842964.84 | AN149: -168926.9 | AP149: 28512.12 | AQ149: -1144539.79 | AR149: 953519.41
A150: %,V5550080 | B150: 5550080 | C150: PJM Hourly Net Purch.-FERC | F150: 329304.39 | G150: 407887.99 | H150: -78583.6 | I150: -0.1926597545 | K150: 6700029.75 | L150: 1339281.43 | M150: 5360748.32 | N150: 4.002704883 | Q150: 6700029.75 | R150: 1339281.43 | S150: 5360748.32 | T150: 4.002704883 | V150: 24810714.67 | W150: 9579401.32 | X150: 15231313.35 | Y150: 1.590006812 | AA150: 715522.54 | AC150: 783482.6 | AD150: 147910.84 | AE150: 407887.99 | AF150: 784752.9 | AG150: 754909.63 | AH150: 3619595.03 | AI150: 1838939.89 | AJ150: 1322426.52 | AK150: 914313.81 | AL150: 2318897.42 | AM150: 4789574.69 | AN150: 1767275.03 | AP150: 4335957.95 | AQ150: 2034767.41 | AR150: 329304.39
A151: %,V5550083 | B151: 5550083 | C151: PJM Sync & Non Sync-Charge | F151: 107860.49 | G151: 133141.66 | H151: -25281.17 | I151: -0.1898817395 | K151: 390694.63 | L151: 274304.56 | M151: 116390.07 | N151: 0.4243096433 | Q151: 390694.63 | R151: 274304.56 | S151: 116390.07 | T151: 0.4243096433 | V151: 1186528.77 | W151: 685580.88 | X151: 500947.89 | Y151: 0.7306911622 | AA151: 22069.79 | AC151: 102438.71 | AD151: 38724.19 | AE151: 133141.66 | AF151: 111429.76 | AG151: 63425.69 | AH151: 95618.73 | AI151: 140539.29 | AJ151: 107907.97 | AK151: 54373.06 | AL151: 77606.97 | AM151: 43229.24 | AN151: 101703.43 | AP151: 113293.07 | AQ151: 169541.07 | AR151: 107860.49
A152: %,V5550084 | B152: 5550084 | C152: PJM Sync & Non Sync-Credit | F152: -20218.63 | G152: -34856.53 | H152: 14637.9 | I152: 0.4199471376 | K152: -36110.21 | L152: -42939.13 | M152: 6828.92 | N152: 0.1590372232 | Q152: -36110.21 | R152: -42939.13 | S152: 6828.92 | T152: 0.1590372232 | V152: -161796.23 | W152: -86860.33 | X152: -74935.9 | Y152: -0.8627171921 | AA152: 3460 | AC152: -8869.23 | AD152: 786.63 | AE152: -34856.53 | AF152: -28724.06 | AG152: -21726.2 | AH152: -5237.44 | AI152: -13288.33 | AJ152: -9614.59 | AK152: -2078.36 | AL152: -27942.9 | AM152: 9214.05 | AN152: -26288.19 | AP152: 7668.69 | AQ152: -23560.27 | AR152: -20218.63
A153: %,V5550094 | B153: 5550094 | C153: Purchased Power - Fuel | F153: 0 | G153: 0 | H153: 0 | I153: 0 | K153: 0 | L153: 0 | M153: 0 | N153: 0 | Q153: 0 | R153: 0 | S153: 0 | T153: 0 | V153: 0 | W153: 0 | X153: 0 | Y153: 0 | AA153: 0 | AC153: 0 | AD153: 0 | AE153: 0 | AF153: 0 | AG153: 0 | AH153: 0 | AI153: 0 | AJ153: 0 | AK153: 0 | AL153: 0 | AM153: 0 | AN153: 0 | AP153: 0 | AQ153: 0 | AR153: 0
A154: %,V5550123 | B154: 5550123 | C154: PJM OpRes-LSE-Charge | F154: 406333.58 | G154: 171586 | H154: 234747.58 | I154: 1.368104507 | K154: 6265401.02 | L154: 3313080.42 | M154: 2952320.6 | N154: 0.8911104548 | Q154: 6265401.02 | R154: 3313080.42 | S154: 2952320.6 | T154: 0.8911104548 | V154: 7540535.61 | W154: 4184830.94 | X154: 3355704.67 | Y154: 0.8018734133 | AA154: 122718.14 | AC154: 2956748.73 | AD154: 184745.69 | AE154: 171586 | AF154: 195018.63 | AG154: 131393.69 | AH154: 115041.68 | AI154: 165760.06 | AJ154: 79512.82 | AK154: 41149.68 | AL154: 229398.45 | AM154: 116805.13 | AN154: 201054.45 | AP154: 3625154.36 | AQ154: 2233913.08 | AR154: 406333.58
A155: %,V5550124 | B155: 5550124 | C155: PJM Implicit Congestion-LSE | F155: 1259188.35 | G155: 671542.15 | H155: 587646.2 | I155: 0.8750697183 | K155: 12038234.31 | L155: 2465234.43 | M155: 9572999.88 | N155: 3.883200625 | Q155: 12038234.31 | R155: 2465234.43 | S155: 9572999.88 | T155: 3.883200625 | V155: 14855534.79 | W155: 8551326.64 | X155: 6304208.15 | Y155: 0.7372198976 | AA155: 837583.09 | AC155: 1254434.87 | AD155: 539257.41 | AE155: 671542.15 | AF155: 638168.13 | AG155: -356477.75 | AH155: 652934.32 | AI155: -639690.3 | AJ155: 176273.08 | AK155: 507553.42 | AL155: 352130.73 | AM155: 477418.13 | AN155: 1008990.72 | AP155: 5230836.28 | AQ155: 5548209.68 | AR155: 1259188.35
A156: %,V5550132 | B156: 5550132 | C156: PJM FTR Revenue-LSE | F156: -1178950.01 | G156: -236460.55 | H156: -942489.46 | I156: -3.985821144 | K156: -15107534.9 | L156: -4778154.89 | M156: -10329380.01 | N156: -2.161792627 | Q156: -15107534.9 | R156: -4778154.89 | S156: -10329380.01 | T156: -2.161792627 | V156: -20476605.92 | W156: -10489129.9 | X156: -9987476.02 | Y156: -0.9521739282 | AA156: -564350.74 | AC156: -4080094.46 | AD156: -461599.88 | AE156: -236460.55 | AF156: -617167.97 | AG156: -647292.26 | AH156: -77097.56 | AI156: -229459.49 | AJ156: 96096.39 | AK156: -640803.33 | AL156: -933982.99 | AM156: -792207.81 | AN156: -1527156 | AP156: -6706507.94 | AQ156: -7222076.95 | AR156: -1178950.01
A157: %,V5550137 | B157: 5550137 | C157: PJM OpRes-LSE-Credit | F157: -25924.19 | G157: -2365.08 | H157: -23559.11 | I157: -9.961231755 | K157: -22494.41 | L157: -16087.27 | M157: -6407.14 | N157: -0.3982739147 | Q157: -22494.41 | R157: -16087.27 | S157: -6407.14 | T157: -0.3982739147 | V157: -141610.17 | W157: -68073.77 | X157: -73536.4 | Y157: -1.080245739 | AA157: -4175.88 | AC157: -11216.43 | AD157: -2505.76 | AE157: -2365.08 | AF157: -2498.53 | AG157: -18184.94 | AH157: -356.27 | AI157: -12729.52 | AJ157: -9779.79 | AK157: -18699.27 | AL157: -53378.42 | AM157: 1335 | AN157: -4824.02 | AP157: 31446.44 | AQ157: -28016.66 | AR157: -25924.19
A158: %,V5550139 | B158: 5550139 | C158: Generation Deactivation expens | F158: -56491.66 | G158: 0 | H158: -56491.66 | I158: N.M. | K158: -126181.47 | L158: 0 | M158: -126181.47 | N158: N.M. | Q158: -126181.47 | R158: 0 | S158: -126181.47 | T158: N.M. | V158: -1179.4 | W158: 0 | X158: -1179.4 | Y158: N.M. | AA158: 0 | AC158: 0 | AD158: 0 | AE158: 0 | AF158: 0 | AG158: 0 | AH158: 0 | AI158: -285.27 | AJ158: 0 | AK158: 15770.18 | AL158: 48466.54 | AM158: 28569.17 | AN158: 32481.45 | AP158: 27919.09 | AQ158: -97608.9 | AR158: -56491.66
A159: %,V5550326 | B159: 5550326 | C159: PJM Transm Loss Charges - LSE | F159: 243446.26 | G159: 166161.61 | H159: 77284.65 | I159: 0.4651173638 | K159: 4824278.36 | L159: 2344460.74 | M159: 2479817.62 | N159: 1.057734761 | Q159: 4824278.36 | R159: 2344460.74 | S159: 2479817.62 | T159: 1.057734761 | V159: 9392201.62 | W159: 6260527.43 | X159: 3131674.19 | Y159: 0.5002252965 | AA159: 589842.22 | AC159: 1575293.84 | AD159: 603005.29 | AE159: 166161.61 | AF159: 428411.6 | AG159: 203143.94 | AH159: 547423.21 | AI159: 1107461.48 | AJ159: 794704.73 | AK159: 314638.01 | AL159: 169132.19 | AM159: 360837.89 | AN159: 642170.21 | AP159: 2954850.24 | AQ159: 1625981.86 | AR159: 243446.26
A160: %,V5550327 | B160: 5550327 | C160: PJM Transm Loss Credits-LSE | F160: -211308.29 | G160: -230131.31 | H160: 18823.02 | I160: 0.08179252097 | K160: -2452506.83 | L160: -1218348.91 | M160: -1234157.92 | N160: -1.012975766 | Q160: -2452506.83 | R160: -1218348.91 | S160: -1234157.92 | T160: -1.012975766 | V160: -4977279.57 | W160: -2985518.61 | X160: -1991760.96 | Y160: -0.6671406949 | AA160: -294026.04 | AC160: -720312.77 | AD160: -267904.83 | AE160: -230131.31 | AF160: -212977.36 | AG160: -178636.44 | AH160: -279161.09 | AI160: -425874.15 | AJ160: -239304.5 | AK160: -198265.14 | AL160: -249617.73 | AM160: -245826.45 | AN160: -495109.88 | AP160: -1278350.7 | AQ160: -962847.84 | AR160: -211308.29
A161: %,V5550328 | B161: 5550328 | C161: PJM FC Penalty Credit | F161: -35.87 | G161: -242.85 | H161: 206.98 | I161: 0.8522956558 | K161: -96.53 | L161: -1597.15 | M161: 1500.62 | N161: 0.9395610932 | Q161: -96.53 | R161: -1597.15 | S161: 1500.62 | T161: 0.9395610932 | V161: -1220.15 | W161: -2992.05 | X161: 1771.9 | Y161: 0.5922026704 | AA161: -12.81 | AC161: -934.65 | AD161: -419.65 | AE161: -242.85 | AF161: -371.77 | AG161: 0 | AH161: -288.03 | AI161: 0 | AJ161: 0 | AK161: -327.29 | AL161: 0 | AM161: -69.54 | AN161: -66.99 | AP161: 0 | AQ161: -60.66 | AR161: -35.87
A162: %,V5560000 | B162: 5560000 | C162: Sys Control & Load Dispatching | F162: 3680.21 | G162: 3576.8 | H162: 103.41 | I162: 0.02891131738 | K162: 13552.7 | L162: 13229.2 | M162: 323.5 | N162: 0.02445348169 | Q162: 13552.7 | R162: 13229.2 | S162: 323.5 | T162: 0.02445348169 | V162: 54406.28 | W162: 66579.09 | X162: -12172.81 | Y162: -0.1828323277 | AA162: 6355.16 | AC162: 5359.34 | AD162: 4293.06 | AE162: 3576.8 | AF162: 3967.26 | AG162: 2782.06 | AH162: 3584.03 | AI162: 5757.33 | AJ162: 3313.8 | AK162: 4948.2 | AL162: 4293.59 | AM162: 4707.01 | AN162: 7500.3 | AP162: 5966.64 | AQ162: 3905.85 | AR162: 3680.21
A163: %,V5570000 | B163: 5570000 | C163: Other Expenses | F163: 56058.17 | G163: 62054.19 | H163: -5996.02 | I163: -0.09662554616 | K163: 186895.97 | L163: 192452.13 | M163: -5556.16 | N163: -0.02887034817 | Q163: 186895.97 | R163: 192452.13 | S163: -5556.16 | T163: -0.02887034817 | V163: 805629.95 | W163: 799285.09 | X163: 6344.86 | Y163: 0.007938168845 | AA163: 51339.46 | AC163: 65627.83 | AD163: 64770.11 | AE163: 62054.19 | AF163: 59972.58 | AG163: 62901.43 | AH163: 61090.1 | AI163: 82871.34 | AJ163: 64405.17 | AK163: 63767.86 | AL163: 68234.29 | AM163: 64761.3 | AN163: 90729.91 | AP163: 74162.02 | AQ163: 56675.78 | AR163: 56058.17
A164: %,V5570007 | B164: 5570007 | C164: Other Pwr Exp - Wholesale RECs | F164: 0 | G164: 0 | H164: 0 | I164: 0 | K164: 231.75 | L164: 243.15 | M164: -11.4 | N164: -0.04688463911 | Q164: 231.75 | R164: 243.15 | S164: -11.4 | T164: -0.04688463911 | V164: 231.75 | W164: 243.15 | X164: -11.4 | Y164: -0.04688463911 | AA164: 0 | AC164: 243.15 | AD164: 0 | AE164: 0 | AF164: 0 | AG164: 0 | AH164: 0 | AI164: 0 | AJ164: 0 | AK164: 0 | AL164: 0 | AM164: 0 | AN164: 0 | AP164: 231.75 | AQ164: 0 | AR164: 0
A165: %,V5570009 | B165: 5570009 | C165: Other Pwr Exp- REC's - RETAIL | F165: 0 | G165: 0 | H165: 0 | I165: 0 | K165: 0 | L165: 0 | M165: 0 | N165: 0 | Q165: 0 | R165: 0 | S165: 0 | T165: 0 | V165: 0 | W165: 446.4 | X165: -446.4 | Y165: N.M. | AA165: 0 | AC165: 0 | AD165: 0 | AE165: 0 | AF165: 0 | AG165: 0 | AH165: 0 | AI165: 0 | AJ165: 0 | AK165: 0 | AL165: 0 | AM165: 0 | AN165: 0 | AP165: 0 | AQ165: 0 | AR165: 0
A166: %,V5570010 | B166: 5570010 | C166: OH Auction Exp - Incremental | F166: 0 | G166: 0 | H166: 0 | I166: 0 | K166: 0 | L166: 0 | M166: 0 | N166: 0 | Q166: 0 | R166: 0 | S166: 0 | T166: 0 | V166: 0 | W166: 5.79 | X166: -5.79 | Y166: N.M. | AA166: 0 | AC166: 0 | AD166: 0 | AE166: 0 | AF166: 0 | AG166: 0 | AH166: 0 | AI166: 0 | AJ166: 0 | AK166: 0 | AL166: 0 | AM166: 0 | AN166: 0 | AP166: 0 | AQ166: 0 | AR166: 0
A167: %,V5570025 | B167: 5570025 | C167: MATL-SAFETY | F167: 0 | G167: 0 | H167: 0 | I167: 0 | K167: 0 | L167: 0 | M167: 0 | N167: 0 | Q167: 0 | R167: 0 | S167: 0 | T167: 0 | V167: 0.93 | W167: 0 | X167: 0.93 | Y167: N.M. | AA167: 0 | AC167: 0 | AD167: 0 | AE167: 0 | AF167: 0.93 | AG167: 0 | AH167: 0 | AI167: 0 | AJ167: 0 | AK167: 0 | AL167: 0 | AM167: 0 | AN167: 0 | AP167: 0 | AQ167: 0 | AR167: 0
A168: %,FACCOUNT,TGL_FERC_ACCT,XDYYNNY01,N555-557 | C168: Purchased Power | F168: 10927138.26 | G168: 15881602.98 | H168: -4954464.72 | I168: -0.3119625095 | K168: 51574232.86 | L168: 49547137.14 | M168: 2027095.72 | N168: 0.04091246916 | Q168: 51574232.86 | R168: 49547137.14 | S168: 2027095.72 | T168: 0.04091246916 | V168: 145189674.5 | W168: 128660624.2 | X168: 16529050.27 | Y168: 0.1284701545 | AA168: 8675695.72 | AC168: 17839270.72 | AD168: 15826263.44 | AE168: 15881602.98 | AF168: 9230468.11 | AG168: 11810494.14 | AH168: 12215178.77 | AI168: 10043737.71 | AJ168: 6195930.2 | AK168: 11583779.77 | AL168: 10408938.99 | AM168: 10866501.76 | AN168: 11260412.19 | AP168: 29913743.03 | AQ168: 10733351.57 | AR168: 10927138.26
A170: %,V5581000 | B170: 5581000 | C170: Oper Supervision & Engineering | F170: 61.42 | G170: 0 | H170: =+F170-G170 -> 61.42 | I170: =IF(G170<0,IF(H170=0,0,IF(OR(G170=0,F170=0),"N.M.",IF(ABS(H170/G170)>=10,"N.M.",H170/(-G170)))),IF(H170=0,0,IF(OR(G170=0,F170=0),"N.M.",IF(ABS(H170/G170)>=10,"N.M.",H170/G170)))) -> N.M. | K170: 301.25 | L170: 0 | M170: =+K170-L170 -> 301.25 | N170: =IF(L170<0,IF(M170=0,0,IF(OR(L170=0,K170=0),"N.M.",IF(ABS(M170/L170)>=10,"N.M.",M170/(-L170)))),IF(M170=0,0,IF(OR(L170=0,K170=0),"N.M.",IF(ABS(M170/L170)>=10,"N.M.",M170/L170)))) -> N.M. | Q170: 301.25 | R170: 0 | S170: =+Q170-R170 -> 301.25 | V170: 1706.02 | W170: 0 | X170: =+V170-W170 -> 1706.02 | Y170: =IF(W170<0,IF(X170=0,0,IF(OR(W170=0,V170=0),"N.M.",IF(ABS(X170/W170)>=10,"N.M.",X170/(-W170)))),IF(X170=0,0,IF(OR(W170=0,V170=0),"N.M.",IF(ABS(X170/W170)>=10,"N.M.",X170/W170)))) -> N.M. | AA170: 0 | AC170: 0 | AD170: 0 | AE170: 0 | AF170: 25.32 | AG170: 120.97 | AH170: 78.59 | AI170: 243.12 | AJ170: 249.48 | AK170: 153.79 | AL170: 122.28 | AM170: 149.61 | AN170: 261.61 | AP170: 217.61 | AQ170: 22.22 | AR170: 61.42
A171: %,V5581300 | B171: 5581300 | C171: Oper Supervision & Engineering | F171: 403.83 | G171: 217.33 | H171: 186.5 | I171: 0.858141996 | K171: 2412.1 | L171: 371.74 | M171: 2040.36 | N171: 5.48867488 | Q171: 2412.1 | R171: 371.74 | S171: 2040.36 | V171: 11553.59 | W171: 371.74 | X171: 11181.85 | Y171: N.M. | AA171: 0 | AC171: 0 | AD171: 154.41 | AE171: 217.33 | AF171: -136.13 | AG171: 2099.44 | AH171: 1636.25 | AI171: 775.81 | AJ171: 616.48 | AK171: 631.95 | AL171: 751.76 | AM171: 1007.55 | AN171: 1758.38 | AP171: 1360.79 | AQ171: 647.48 | AR171: 403.83
A172: %,V5581400 | B172: 5581400 | C172: Wind Turb Gen&Oth Plnt Op-Mjr | F172: -187.2 | G172: 633.47 | H172: -820.67 | I172: -1.295515178 | K172: 342.41 | L172: 1032.08 | M172: -689.67 | N172: -0.6682330827 | Q172: 342.41 | R172: 1032.08 | S172: -689.67 | V172: -175.82 | W172: 1032.08 | X172: -1207.9 | Y172: -1.170355011 | AA172: 0 | AC172: 412.87 | AD172: -14.26 | AE172: 633.47 | AF172: 167.23 | AG172: -788.53 | AH172: 103.28 | AI172: 81.96 | AJ172: 171.49 | AK172: 306.93 | AL172: -645.16 | AM172: -46.48 | AN172: 131.05 | AP172: 701.72 | AQ172: -172.11 | AR172: -187.2
A173: %,V5581601 | B173: 5581601 | C173: Wind - Variable Production Exp | F173: 62.7 | G173: 0 | H173: 62.7 | I173: N.M. | K173: 60.77 | L173: 0 | M173: 60.77 | N173: N.M. | Q173: 60.77 | R173: 0 | S173: 60.77 | V173: 84.83 | W173: 0 | X173: 84.83 | Y173: N.M. | AA173: 0 | AC173: 0 | AD173: 0 | AE173: 0 | AF173: 0 | AG173: 0 | AH173: 53.61 | AI173: 53.07 | AJ173: -9.42 | AK173: 11.93 | AL173: -62.92 | AM173: -27.79 | AN173: 5.58 | AP173: 66.61 | AQ173: -68.54 | AR173: 62.7
A174: %,V5582000 | B174: 5582000 | C174: Solar Panel Gen&Oth Plt Op-Mjr | F174: -3.08 | G174: 8.32 | H174: -11.4 | I174: -1.370192308 | K174: 0 | L174: 10.39 | M174: -10.39 | N174: N.M. | Q174: 0 | R174: 10.39 | S174: -10.39 | V174: -8.32 | W174: 10.39 | X174: -18.71 | Y174: -1.800769971 | AA174: 0 | AC174: 0 | AD174: 2.07 | AE174: 8.32 | AF174: -8.32 | AG174: 0 | AH174: 0 | AI174: 0 | AJ174: 0 | AK174: 0 | AL174: 0 | AM174: 2.26 | AN174: -2.26 | AP174: 11.32 | AQ174: -8.24 | AR174: -3.08
A175: %,FACCOUNT,TGL_FERC_ACCT,XDYYNNY01,N5580 | C175: Solar and Wind Operations Expenses | F175: 337.67 | G175: 859.12 | H175: -521.45 | I175: -0.6069582829 | K175: 3116.53 | L175: 1414.21 | M175: 1702.32 | N175: 1.203725048 | Q175: 3116.53 | R175: 1414.21 | S175: 1702.32 | V175: 13160.3 | W175: 1414.21 | X175: 11746.09 | Y175: 8.305760813 | AA175: 0 | AC175: 412.87 | AD175: 142.22 | AE175: 859.12 | AF175: 48.1 | AG175: 1431.88 | AH175: 1871.73 | AI175: 1153.96 | AJ175: 1028.03 | AK175: 1104.6 | AL175: 165.96 | AM175: 1085.15 | AN175: 2154.36 | AP175: 2358.05 | AQ175: 420.81 | AR175: 337.67
A177: %,FACCOUNT,TGL_FERC_ACCT,XDYYNNY01,N5590 | C177: Other Renewables Operations Expense | F177: 0 | G177: 0 | H177: =+F177-G177 -> 0 | I177: =IF(G177<0,IF(H177=0,0,IF(OR(G177=0,F177=0),"N.M.",IF(ABS(H177/G177)>=10,"N.M.",H177/(-G177)))),IF(H177=0,0,IF(OR(G177=0,F177=0),"N.M.",IF(ABS(H177/G177)>=10,"N.M.",H177/G177)))) -> 0 | K177: 0 | L177: 0 | M177: =+K177-L177 -> 0 | N177: =IF(L177<0,IF(M177=0,0,IF(OR(L177=0,K177=0),"N.M.",IF(ABS(M177/L177)>=10,"N.M.",M177/(-L177)))),IF(M177=0,0,IF(OR(L177=0,K177=0),"N.M.",IF(ABS(M177/L177)>=10,"N.M.",M177/L177)))) -> 0 | Q177: 0 | R177: 0 | S177: =+Q177-R177 -> 0 | V177: 0 | W177: 0 | X177: =+V177-W177 -> 0 | Y177: =IF(W177<0,IF(X177=0,0,IF(OR(W177=0,V177=0),"N.M.",IF(ABS(X177/W177)>=10,"N.M.",X177/(-W177)))),IF(X177=0,0,IF(OR(W177=0,V177=0),"N.M.",IF(ABS(X177/W177)>=10,"N.M.",X177/W177)))) -> 0 | AA177: 0 | AC177: 0 | AD177: 0 | AE177: 0 | AF177: 0 | AG177: 0 | AH177: 0 | AI177: 0 | AJ177: 0 | AK177: 0 | AL177: 0 | AM177: 0 | AN177: 0 | AP177: 0 | AQ177: 0 | AR177: 0
A179: %,FACCOUNT,TGL_FERC_ACCT,XDYYNNY01,N401_OPERATION | C179: 401 Operation Expense | F179: 0 | G179: 0 | H179: =+F179-G179 -> 0 | I179: =IF(G179<0,IF(H179=0,0,IF(OR(G179=0,F179=0),"N.M.",IF(ABS(H179/G179)>=10,"N.M.",H179/(-G179)))),IF(H179=0,0,IF(OR(G179=0,F179=0),"N.M.",IF(ABS(H179/G179)>=10,"N.M.",H179/G179)))) -> 0 | K179: 0 | L179: 0 | M179: =+K179-L179 -> 0 | N179: =IF(L179<0,IF(M179=0,0,IF(OR(L179=0,K179=0),"N.M.",IF(ABS(M179/L179)>=10,"N.M.",M179/(-L179)))),IF(M179=0,0,IF(OR(L179=0,K179=0),"N.M.",IF(ABS(M179/L179)>=10,"N.M.",M179/L179)))) -> 0 | Q179: 0 | R179: 0 | S179: =+Q179-R179 -> 0 | T179: =IF(R179<0,IF(S179=0,0,IF(OR(R179=0,Q179=0),"N.M.",IF(ABS(S179/R179)>=10,"N.M.",S179/(-R179)))),IF(S179=0,0,IF(OR(R179=0,Q179=0),"N.M.",IF(ABS(S179/R179)>=10,"N.M.",S179/R179)))) -> 0 | V179: 0 | W179: 0 | X179: =+V179-W179 -> 0 | Y179: =IF(W179<0,IF(X179=0,0,IF(OR(W179=0,V179=0),"N.M.",IF(ABS(X179/W179)>=10,"N.M.",X179/(-W179)))),IF(X179=0,0,IF(OR(W179=0,V179=0),"N.M.",IF(ABS(X179/W179)>=10,"N.M.",X179/W179)))) -> 0 | AA179: 0 | AC179: 0 | AD179: 0 | AE179: 0 | AF179: 0 | AG179: 0 | AH179: 0 | AI179: 0 | AJ179: 0 | AK179: 0 | AL179: 0 | AM179: 0 | AN179: 0 | AP179: 0 | AQ179: 0 | AR179: 0
A181: %,V5600000 | B181: 5600000 | C181: Oper Supervision & Engineering | F181: 234692.27 | G181: 174554.21 | H181: =+F181-G181 -> 60138.06 | I181: =IF(G181<0,IF(H181=0,0,IF(OR(G181=0,F181=0),"N.M.",IF(ABS(H181/G181)>=10,"N.M.",H181/(-G181)))),IF(H181=0,0,IF(OR(G181=0,F181=0),"N.M.",IF(ABS(H181/G181)>=10,"N.M.",H181/G181)))) -> 0.3445236869 | K181: 876441.15 | L181: 593592.04 | M181: =+K181-L181 -> 282849.11 | N181: =IF(L181<0,IF(M181=0,0,IF(OR(L181=0,K181=0),"N.M.",IF(ABS(M181/L181)>=10,"N.M.",M181/(-L181)))),IF(M181=0,0,IF(OR(L181=0,K181=0),"N.M.",IF(ABS(M181/L181)>=10,"N.M.",M181/L181)))) -> 0.4765042166 | Q181: 876441.15 | R181: 593592.04 | S181: =+Q181-R181 -> 282849.11 | T181: =IF(R181<0,IF(S181=0,0,IF(OR(R181=0,Q181=0),"N.M.",IF(ABS(S181/R181)>=10,"N.M.",S181/(-R181)))),IF(S181=0,0,IF(OR(R181=0,Q181=0),"N.M.",IF(ABS(S181/R181)>=10,"N.M.",S181/R181)))) -> 0.4765042166 | V181: 2827573.47 | W181: 2061929.1 | X181: =+V181-W181 -> 765644.37 | Y181: =IF(W181<0,IF(X181=0,0,IF(OR(W181=0,V181=0),"N.M.",IF(ABS(X181/W181)>=10,"N.M.",X181/(-W181)))),IF(X181=0,0,IF(OR(W181=0,V181=0),"N.M.",IF(ABS(X181/W181)>=10,"N.M.",X181/W181)))) -> 0.3713242953 | AA181: 96098.04 | AC181: 228555.82 | AD181: 190482.01 | AE181: 174554.21 | AF181: 185380.88 | AG181: 127650.46 | AH181: 212175.87 | AI181: 258645.99 | AJ181: 189783.07 | AK181: 226452.98 | AL181: 201931.02 | AM181: 225901.82 | AN181: 323210.23 | AP181: 415603.13 | AQ181: 226145.75 | AR181: 234692.27
A182: %,V5612000 | B182: 5612000 | C182: Load Dispatch-Mntr&Op TransSys | F182: 70306.34 | G182: 33249.93 | H182: 37056.41 | I182: 1.114480843 | K182: 236002.78 | L182: 108185.99 | M182: 127816.79 | N182: 1.181454179 | Q182: 236002.78 | R182: 108185.99 | S182: 127816.79 | T182: 1.181454179 | V182: 822887.71 | W182: 396859.68 | X182: 426028.03 | Y182: 1.073497892 | AA182: 32795.81 | AC182: 39358.12 | AD182: 35577.94 | AE182: 33249.93 | AF182: 103888.42 | AG182: 48131.09 | AH182: 54208.05 | AI182: 64520.68 | AJ182: 55995.37 | AK182: 60235.59 | AL182: 63095.82 | AM182: 59808.9 | AN182: 77001.01 | AP182: 92709.75 | AQ182: 72986.69 | AR182: 70306.34
A183: %,V5613000 | B183: 5613000 | C183: Load Dispatch-Trans Srvc&Sched | F183: 12.19 | G183: -70.1 | H183: 82.29 | I183: 1.173894437 | K183: 69.51 | L183: 174.34 | M183: -104.83 | N183: -0.6012963175 | Q183: 69.51 | R183: 174.34 | S183: -104.83 | T183: -0.6012963175 | V183: -214.02 | W183: 304.39 | X183: -518.41 | Y183: -1.70311114 | AA183: 130.05 | AC183: 192.28 | AD183: 52.16 | AE183: -70.1 | AF183: -66.9 | AG183: -162.4 | AH183: 80.16 | AI183: 79.49 | AJ183: 60.99 | AK183: 81.3 | AL183: -105.54 | AM183: -209.83 | AN183: -40.8 | AP183: 56.21 | AQ183: 1.11 | AR183: 12.19
A184: %,V5614000 | B184: 5614000 | C184: PJM Admin-SSC&DS-OSS | F184: 5633.44 | G184: 3995.46 | H184: 1637.98 | I184: 0.4099603049 | K184: 28882.16 | L184: 17761.69 | M184: 11120.47 | N184: 0.6260930125 | Q184: 28882.16 | R184: 17761.69 | S184: 11120.47 | T184: 0.6260930125 | V184: 124035.74 | W184: 81893.31 | X184: 42142.43 | Y184: 0.5146016201 | AA184: 9339.5 | AC184: 6581.16 | AD184: 7185.07 | AE184: 3995.46 | AF184: 7351.26 | AG184: 7077.3 | AH184: 12356.26 | AI184: 8280.97 | AJ184: 12482.78 | AK184: 5608.58 | AL184: 9864.81 | AM184: 7907.19 | AN184: 24224.43 | AP184: 10456.3 | AQ184: 12792.42 | AR184: 5633.44
A185: %,V5614001 | B185: 5614001 | C185: PJM Admin-SSC&DS-Internal | F185: 114815.3 | G185: 101289.53 | H185: 13525.77 | I185: 0.1335357169 | K185: 394965.55 | L185: 379807.21 | M185: 15158.34 | N185: 0.03991061676 | Q185: 394965.55 | R185: 379807.21 | S185: 15158.34 | T185: 0.03991061676 | V185: 1313514.69 | W185: 1324808.46 | X185: -11293.77 | Y185: -0.008524832337 | AA185: 110241.52 | AC185: 144999.86 | AD185: 133517.82 | AE185: 101289.53 | AF185: 146971.6 | AG185: 103893.98 | AH185: 101015.23 | AI185: 74683.55 | AJ185: 101237.23 | AK185: 86644.62 | AL185: 86514.87 | AM185: 104475.85 | AN185: 113112.21 | AP185: 139339.09 | AQ185: 140811.16 | AR185: 114815.3
A186: %,V5615000 | B186: 5615000 | C186: Reliability,Plng&Stds Develop | F186: 6143.57 | G186: 3852.76 | H186: 2290.81 | I186: 0.5945893334 | K186: 14398.35 | L186: 14346.94 | M186: 51.41 | N186: 0.003583342511 | Q186: 14398.35 | R186: 14346.94 | S186: 51.41 | T186: 0.003583342511 | V186: 107724.72 | W186: 72437.46 | X186: 35287.26 | Y186: 0.4871410455 | AA186: 4572.76 | AC186: 5237.07 | AD186: 5257.11 | AE186: 3852.76 | AF186: 17798.1 | AG186: 16125.02 | AH186: 2751.74 | AI186: 3325.84 | AJ186: 2540.7 | AK186: 3553.13 | AL186: 20632.64 | AM186: 10177.36 | AN186: 16421.84 | AP186: 5291.67 | AQ186: 2963.11 | AR186: 6143.57
A187: %,V5616000 | B187: 5616000 | C187: Transmission Service Studies | F187: 0 | G187: 0 | H187: 0 | I187: 0 | K187: 0 | L187: 0 | M187: 0 | N187: 0 | Q187: 0 | R187: 0 | S187: 0 | T187: 0 | V187: 5.36 | W187: 0 | X187: 5.36 | Y187: N.M. | AA187: 0 | AC187: 0 | AD187: 0 | AE187: 0 | AF187: 0 | AG187: 0 | AH187: 0 | AI187: 0 | AJ187: 0 | AK187: 0 | AL187: 0 | AM187: 5.36 | AN187: 0 | AP187: 0 | AQ187: 0 | AR187: 0
A188: %,V5618000 | B188: 5618000 | C188: PJM Admin-RP&SDS-OSS | F188: 1154.43 | G188: 887.63 | H188: 266.8 | I188: 0.3005756903 | K188: 8777.75 | L188: 6607.46 | M188: 2170.29 | N188: 0.3284605582 | Q188: 8777.75 | R188: 6607.46 | S188: 2170.29 | T188: 0.3284605582 | V188: 35063.69 | W188: 26047.96 | X188: 9015.73 | Y188: 0.3461203872 | AA188: 2638.2 | AC188: 3336.66 | AD188: 2383.17 | AE188: 887.63 | AF188: 1730.27 | AG188: 1108.19 | AH188: 3382.46 | AI188: 953.49 | AJ188: 6494.27 | AK188: 1510.57 | AL188: 2987.97 | AM188: 2038.39 | AN188: 6080.33 | AP188: 3361.41 | AQ188: 4261.91 | AR188: 1154.43
A189: %,V5618001 | B189: 5618001 | C189: PJM Admin-RP&SDS- Internal | F189: 27725.57 | G189: 24292.17 | H189: 3433.4 | I189: 0.1413377232 | K189: 140640.8 | L189: 128414.35 | M189: 12226.45 | N189: 0.09521093242 | Q189: 140640.8 | R189: 128414.35 | S189: 12226.45 | T189: 0.09521093242 | V189: 388209.71 | W189: 408880.28 | X189: -20670.57 | Y189: -0.05055408884 | AA189: 30769.11 | AC189: 59349.11 | AD189: 44773.07 | AE189: 24292.17 | AF189: 34095.87 | AG189: 14289.28 | AH189: 31652.36 | AI189: 7187.72 | AJ189: 55073.63 | AK189: 24232.84 | AL189: 26155.4 | AM189: 28725 | AN189: 26156.81 | AP189: 65575.24 | AQ189: 47339.99 | AR189: 27725.57
A190: %,V5620001 | B190: 5620001 | C190: Station Expenses - Nonassoc | F190: 32482.37 | G190: 28419.13 | H190: 4063.24 | I190: 0.1429755239 | K190: 77177.87 | L190: 70966.04 | M190: 6211.83 | N190: 0.08753243101 | Q190: 77177.87 | R190: 70966.04 | S190: 6211.83 | T190: 0.08753243101 | V190: 365503.54 | W190: 228198.53 | X190: 137305.01 | Y190: 0.6016910363 | AA190: 141.55 | AC190: 25544.2 | AD190: 17002.71 | AE190: 28419.13 | AF190: 31279.02 | AG190: 28896.07 | AH190: 28263.51 | AI190: 30018.81 | AJ190: 25540.66 | AK190: 18115.65 | AL190: 29046.67 | AM190: 59458.43 | AN190: 37706.85 | AP190: 9289.94 | AQ190: 35405.56 | AR190: 32482.37
A191: %,V5630000 | B191: 5630000 | C191: Overhead Line Expenses | F191: 286.05 | G191: 1692.62 | H191: -1406.57 | I191: -0.8310016424 | K191: 3807.64 | L191: 3289.77 | M191: 517.87 | N191: 0.1574182998 | Q191: 3807.64 | R191: 3289.77 | S191: 517.87 | T191: 0.1574182998 | V191: 31935.86 | W191: 25048.95 | X191: 6886.91 | Y191: 0.2749380713 | AA191: 680.9 | AC191: 864.88 | AD191: 732.27 | AE191: 1692.62 | AF191: 904.92 | AG191: 2268.44 | AH191: 3344.88 | AI191: 3243.07 | AJ191: 1857.34 | AK191: 3281.45 | AL191: 881.04 | AM191: 9156.21 | AN191: 3190.87 | AP191: 1323.13 | AQ191: 2198.46 | AR191: 286.05
A192: %,V5640000 | B192: 5640000 | C192: Underground Line Expenses | F192: 0 | G192: 0 | H192: 0 | I192: 0 | K192: 0 | L192: 0 | M192: 0 | N192: 0 | Q192: 0 | R192: 0 | S192: 0 | T192: 0 | V192: 0 | W192: 15.85 | X192: -15.85 | Y192: N.M. | AA192: 0 | AC192: 0 | AD192: 0 | AE192: 0 | AF192: 0 | AG192: 0 | AH192: 0 | AI192: 0 | AJ192: 0 | AK192: 0 | AL192: 0 | AM192: 0 | AN192: 0 | AP192: 0 | AQ192: 0 | AR192: 0
A193: %,V5650002 | B193: 5650002 | C193: Transmssn Elec by Others-NAC | F193: 6781.5 | G193: 7228.5 | H193: -447 | I193: -0.06183855572 | K193: 31314 | L193: 32079 | M193: -765 | N193: -0.02384737679 | Q193: 31314 | R193: 32079 | S193: -765 | T193: -0.02384737679 | V193: 102141 | W193: 98820 | X193: 3321 | Y193: 0.03360655738 | AA193: 8956.5 | AC193: 15075 | AD193: 9775.5 | AE193: 7228.5 | AF193: 6552 | AG193: 6016.5 | AH193: 7993.5 | AI193: 9369 | AJ193: 8422.5 | AK193: 7107 | AL193: 6253.5 | AM193: 6985.5 | AN193: 12127.5 | AP193: 12823.5 | AQ193: 11709 | AR193: 6781.5
A194: %,V5650007 | B194: 5650007 | C194: Tran Elec by Oth-Aff-Trn Price | F194: 0 | G194: 0 | H194: 0 | I194: 0 | K194: 0 | L194: 0 | M194: 0 | N194: 0 | Q194: 0 | R194: 0 | S194: 0 | T194: 0 | V194: 0 | W194: 0 | X194: 0 | Y194: 0 | AA194: 0 | AC194: 0 | AD194: 0 | AE194: 0 | AF194: 0 | AG194: 0 | AH194: 0 | AI194: 0 | AJ194: 0 | AK194: 0 | AL194: 0 | AM194: 0 | AN194: 0 | AP194: 0 | AQ194: 0 | AR194: 0
A195: %,V5650012 | B195: 5650012 | C195: PJM Trans Enhancement Charge | F195: 232712.6 | G195: 169087.17 | H195: 63625.43 | I195: 0.3762877455 | K195: 697703.75 | L195: 515645.92 | M195: 182057.83 | N195: 0.3530675274 | Q195: 697703.75 | R195: 515645.92 | S195: 182057.83 | T195: 0.3530675274 | V195: 2202007.37 | W195: 2056864.33 | X195: 145143.04 | Y195: 0.07056519863 | AA195: 170438.3 | AC195: 167900.46 | AD195: 178658.29 | AE195: 169087.17 | AF195: 173806.15 | AG195: 173770.52 | AH195: 173337.14 | AI195: 172514.6 | AJ195: 168427.8 | AK195: 172514.58 | AL195: 172514.55 | AM195: 117768.74 | AN195: 179649.54 | AP195: 232394.04 | AQ195: 232597.11 | AR195: 232712.6
A196: %,V5650015 | B196: 5650015 | C196: PJM TO Serv Exp - Aff | F196: 13082.96 | G196: 13698.22 | H196: -615.26 | I196: -0.04491532476 | K196: 46821.81 | L196: 47502.15 | M196: -680.34 | N196: -0.0143222991 | Q196: 46821.81 | R196: 47502.15 | S196: -680.34 | T196: -0.0143222991 | V196: 165405.3 | W196: 168097.91 | X196: -2692.61 | Y196: -0.01601810516 | AA196: 15917.14 | AC196: 19216.27 | AD196: 14587.66 | AE196: 13698.22 | AF196: 12070.45 | AG196: 11519.97 | AH196: 13654.09 | AI196: 15493.06 | AJ196: 13760.82 | AK196: 11522.91 | AL196: 11322.4 | AM196: 13050.18 | AN196: 16189.61 | AP196: 18125.51 | AQ196: 15613.34 | AR196: 13082.96
A197: %,V5650016 | B197: 5650016 | C197: PJM NITS Expense - Affiliated | F197: 6971809.39 | G197: 6501533.21 | H197: 470276.18 | I197: 0.07233311971 | K197: 20237987.96 | L197: 18872488.01 | M197: 1365499.95 | N197: 0.07235399748 | Q197: 20237987.96 | R197: 18872488.01 | S197: 1365499.95 | T197: 0.07235399748 | V197: 77909770.12 | W197: 74962153.2 | X197: 2947616.92 | Y197: 0.03932140146 | AA197: 6323263.11 | AC197: 6501533.21 | AD197: 5869421.59 | AE197: 6501533.21 | AF197: 6290829.34 | AG197: 6501533.21 | AH197: 6290829.34 | AI197: 6501533.21 | AJ197: 6501533.21 | AK197: 6290829.34 | AL197: 6501533.21 | AM197: 6291358.93 | AN197: 6501802.37 | AP197: 6971809.39 | AQ197: 6294369.18 | AR197: 6971809.39
A198: %,V5650019 | B198: 5650019 | C198: Affil PJM Trans Enhncement Exp | F198: 366366.23 | G198: 398850.66 | H198: -32484.43 | I198: -0.08144509526 | K198: 1099098.7 | L198: 1196551.95 | M198: -97453.25 | N198: -0.08144506388 | Q198: 1099098.7 | R198: 1196551.95 | S198: -97453.25 | T198: -0.08144506388 | V198: 4689180.28 | W198: 5320793.99 | X198: -631613.71 | Y198: -0.1187066651 | AA198: 458249.12 | AC198: 398850.65 | AD198: 398850.64 | AE198: 398850.66 | AF198: 398850.65 | AG198: 398850.65 | AH198: 398850.65 | AI198: 398850.65 | AJ198: 398850.65 | AK198: 398850.65 | AL198: 398850.65 | AM198: 398883.66 | AN198: 399243.37 | AP198: 366366.24 | AQ198: 366366.23 | AR198: 366366.23
A199: %,V5650020 | B199: 5650020 | C199: PROVISION RTO Affl Tran Expnse | F199: -44384 | G199: -119381 | H199: 74997 | I199: 0.6282155452 | K199: -156386 | L199: -353885 | M199: 197499 | N199: 0.5580880795 | Q199: -156386 | R199: -353885 | S199: 197499 | T199: 0.5580880795 | V199: 7636778 | W199: -4875145 | X199: 12511923 | Y199: 2.566471972 | AA199: -1164502 | AC199: -147629 | AD199: -86875 | AE199: -119381 | AF199: -117156 | AG199: -117469 | AH199: 8170676 | AI199: 171641 | AJ199: 235247 | AK199: 306708 | AL199: 240243 | AM199: 243540 | AN199: -1340266 | AP199: -130194 | AQ199: 18192 | AR199: -44384
A200: %,V5650021 | B200: 5650021 | C200: PJM NITS Expense - Non-Affilia | F200: 88797.56 | G200: 127048.53 | H200: -38250.97 | I200: -0.3010736921 | K200: 265041.32 | L200: 286043.25 | M200: -21001.93 | N200: -0.07342221849 | Q200: 265041.32 | R200: 286043.25 | S200: -21001.93 | T200: -0.07342221849 | V200: 1084426.66 | W200: 943226.95 | X200: 141199.71 | Y200: 0.1496985535 | AA200: 78947.76 | AC200: 84543.12 | AD200: 74451.6 | AE200: 127048.53 | AF200: 90871.65 | AG200: 91257.49 | AH200: 90871.66 | AI200: 91257.45 | AJ200: 91143.26 | AK200: 90757.44 | AL200: 91200.32 | AM200: 90822.04 | AN200: 91204.03 | AP200: 88797.23 | AQ200: 87446.53 | AR200: 88797.56
A201: %,V5650023 | B201: 5650023 | C201: Amort of PROVISION RTO Expense | F201: 109942.26 | G201: 793952 | H201: -684009.74 | I201: -0.8615253063 | K201: 329826.78 | L201: 2381856 | M201: -2052029.22 | N201: -0.8615253063 | Q201: 329826.78 | R201: 2381856 | S201: -2052029.22 | T201: -0.8615253063 | V201: 6230772.78 | W201: 2422961.59 | X201: 3807811.19 | Y201: 1.571552436 | AA201: 4565.51 | AC201: 793952 | AD201: 793952 | AE201: 793952 | AF201: 793952 | AG201: 793952 | AH201: 793952 | AI201: 586515 | AJ201: 586515 | AK201: 586515 | AL201: 586515 | AM201: 586515 | AN201: 586515 | AP201: 109942.26 | AQ201: 109942.26 | AR201: 109942.26
A202: %,V5650062 | B202: 5650062 | C202: Deferral of Provision RTO Exp | F202: 307967.8 | G202: 0 | H202: 307967.8 | I202: N.M. | K202: 2516943.18 | L202: 0 | M202: 2516943.18 | N202: N.M. | Q202: 2516943.18 | R202: 0 | S202: 2516943.18 | T202: N.M. | V202: -11334862.73 | W202: 0 | X202: -11334862.73 | Y202: N.M. | AA202: 0 | AC202: 0 | AD202: 0 | AE202: 0 | AF202: 0 | AG202: 0 | AH202: 0 | AI202: 0 | AJ202: 0 | AK202: -15726307 | AL202: 0 | AM202: 875308.06 | AN202: 999193.03 | AP202: 657992.89 | AQ202: 1550982.49 | AR202: 307967.8
A203: %,V5660000 | B203: 5660000 | C203: Misc Transmission Expenses | F203: 158048.71 | G203: 58513.68 | H203: 99535.03 | I203: 1.701055719 | K203: 238118.78 | L203: 170054.46 | M203: 68064.32 | N203: 0.4002501316 | Q203: 238118.78 | R203: 170054.46 | S203: 68064.32 | T203: 0.4002501316 | V203: 1184259.11 | W203: 1082504.95 | X203: 101754.16 | Y203: 0.09399879419 | AA203: 113415.74 | AC203: 43287.71 | AD203: 68253.07 | AE203: 58513.68 | AF203: 76585.19 | AG203: 44850.23 | AH203: 250785.13 | AI203: -52578.14 | AJ203: 104293.39 | AK203: 87683.25 | AL203: 93127.41 | AM203: 63225.14 | AN203: 278168.73 | AP203: -20804.61 | AQ203: 100874.68 | AR203: 158048.71
A204: %,V5660011 | B204: 5660011 | C204: Misc Transm Exp - Affiliate | F204: 359.35 | G204: 278.08 | H204: 81.27 | I204: 0.2922540276 | K204: 938.29 | L204: 909.94 | M204: 28.35 | N204: 0.03115590039 | Q204: 938.29 | R204: 909.94 | S204: 28.35 | T204: 0.03115590039 | V204: 3398.11 | W204: 3476.1 | X204: -77.99 | Y204: -0.0224360634 | AA204: 405.62 | AC204: 268.33 | AD204: 363.53 | AE204: 278.08 | AF204: 277.29 | AG204: 277.29 | AH204: 355.43 | AI204: 252.07 | AJ204: 257.31 | AK204: 251.06 | AL204: 264.04 | AM204: 276.21 | AN204: 249.12 | AP204: 259.5 | AQ204: 319.44 | AR204: 359.35
A205: %,V5670001 | B205: 5670001 | C205: Rents - Nonassociated | F205: 272.93 | G205: 250 | H205: 22.93 | I205: 0.09172 | K205: 272.93 | L205: 250 | M205: 22.93 | N205: 0.09172 | Q205: 272.93 | R205: 250 | S205: 22.93 | T205: 0.09172 | V205: 2058.05 | W205: 250 | X205: 1808.05 | Y205: 7.2322 | AA205: 0 | AC205: 0 | AD205: 0 | AE205: 250 | AF205: 0 | AG205: 0 | AH205: 0 | AI205: 0 | AJ205: 0 | AK205: 1630.19 | AL205: 0 | AM205: 100 | AN205: 54.93 | AP205: 0 | AQ205: 0 | AR205: 272.93
A206: %,V5670002 | B206: 5670002 | C206: Rents - Associated | F206: 0 | G206: 0 | H206: 0 | I206: 0 | K206: 0 | L206: 0 | M206: 0 | N206: 0 | Q206: 0 | R206: 0 | S206: 0 | T206: 0 | V206: 0 | W206: 0 | X206: 0 | Y206: 0 | AA206: 0 | AC206: 0 | AD206: 0 | AE206: 0 | AF206: 0 | AG206: 0 | AH206: 0 | AI206: 0 | AJ206: 0 | AK206: 0 | AL206: 0 | AM206: 0 | AN206: 0 | AP206: 0 | AQ206: 0 | AR206: 0
A207: %,FACCOUNT,TGL_FERC_ACCT,XDYYNNY01,N560-567 | C207: Transmission Operations | F207: 8705008.82 | G207: 8323222.39 | H207: 381786.43 | I207: 0.04587002631 | K207: 27088845.06 | L207: 24472641.51 | M207: 2616203.55 | N207: 0.1069031943 | Q207: 27088845.06 | R207: 24472641.51 | S207: 2616203.55 | T207: 0.1069031943 | V207: 95891574.52 | W207: 86810427.99 | X207: 9081146.53 | Y207: 0.1046089363 | AA207: 6297064.24 | AC207: 8391016.91 | AD207: 7758402.21 | AE207: 8323222.39 | AF207: 8255972.16 | AG207: 8253836.29 | AH207: 16640535.46 | AI207: 8345787.51 | AJ207: 8559516.98 | AK207: -7342220.87 | AL207: 8542828.78 | AM207: 9195278.14 | AN207: 8351195.01 | AP207: 9050517.82 | AQ207: 9333318.42 | AR207: 8705008.82
A209: %,V5757000 | B209: 5757000 | C209: PJM Admin-MAM&SC- OSS | F209: 4006.76 | G209: 2192.08 | H209: =+F209-G209 -> 1814.68 | I209: =IF(G209<0,IF(H209=0,0,IF(OR(G209=0,F209=0),"N.M.",IF(ABS(H209/G209)>=10,"N.M.",H209/(-G209)))),IF(H209=0,0,IF(OR(G209=0,F209=0),"N.M.",IF(ABS(H209/G209)>=10,"N.M.",H209/G209)))) -> 0.8278347506 | K209: 21868.97 | L209: 16027.7 | M209: =+K209-L209 -> 5841.27 | N209: =IF(L209<0,IF(M209=0,0,IF(OR(L209=0,K209=0),"N.M.",IF(ABS(M209/L209)>=10,"N.M.",M209/(-L209)))),IF(M209=0,0,IF(OR(L209=0,K209=0),"N.M.",IF(ABS(M209/L209)>=10,"N.M.",M209/L209)))) -> 0.3644484237 | Q209: 21868.97 | R209: 16027.7 | S209: =+Q209-R209 -> 5841.27 | T209: =IF(R209<0,IF(S209=0,0,IF(OR(R209=0,Q209=0),"N.M.",IF(ABS(S209/R209)>=10,"N.M.",S209/(-R209)))),IF(S209=0,0,IF(OR(R209=0,Q209=0),"N.M.",IF(ABS(S209/R209)>=10,"N.M.",S209/R209)))) -> 0.3644484237 | V209: 102630.91 | W209: 74858.68 | X209: =+V209-W209 -> 27772.23 | Y209: =IF(W209<0,IF(X209=0,0,IF(OR(W209=0,V209=0),"N.M.",IF(ABS(X209/W209)>=10,"N.M.",X209/(-W209)))),IF(X209=0,0,IF(OR(W209=0,V209=0),"N.M.",IF(ABS(X209/W209)>=10,"N.M.",X209/W209)))) -> 0.3709954544 | AA209: 7812.63 | AC209: 6761.19 | AD209: 7074.43 | AE209: 2192.08 | AF209: 4530.45 | AG209: 5431 | AH209: 7744.23 | AI209: 4983.45 | AJ209: 18902.24 | AK209: 5308.89 | AL209: 7096.63 | AM209: 6734.4 | AN209: 20030.65 | AP209: 9068.52 | AQ209: 8793.69 | AR209: 4006.76
A210: %,V5757001 | B210: 5757001 | C210: PJM Admin-MAM&SC- Internal | F210: 99364.88 | G210: 80954.13 | H210: =+F210-G210 -> 18410.75 | I210: =IF(G210<0,IF(H210=0,0,IF(OR(G210=0,F210=0),"N.M.",IF(ABS(H210/G210)>=10,"N.M.",H210/(-G210)))),IF(H210=0,0,IF(OR(G210=0,F210=0),"N.M.",IF(ABS(H210/G210)>=10,"N.M.",H210/G210)))) -> 0.2274219981 | K210: 369359.26 | L210: 388783.36 | M210: =+K210-L210 -> -19424.1 | N210: =IF(L210<0,IF(M210=0,0,IF(OR(L210=0,K210=0),"N.M.",IF(ABS(M210/L210)>=10,"N.M.",M210/(-L210)))),IF(M210=0,0,IF(OR(L210=0,K210=0),"N.M.",IF(ABS(M210/L210)>=10,"N.M.",M210/L210)))) -> -0.0499612432 | Q210: 369359.26 | R210: 388783.36 | S210: =+Q210-R210 -> -19424.1 | T210: =IF(R210<0,IF(S210=0,0,IF(OR(R210=0,Q210=0),"N.M.",IF(ABS(S210/R210)>=10,"N.M.",S210/(-R210)))),IF(S210=0,0,IF(OR(R210=0,Q210=0),"N.M.",IF(ABS(S210/R210)>=10,"N.M.",S210/R210)))) -> -0.0499612432 | V210: 1276205.47 | W210: 1337273.4 | X210: =+V210-W210 -> -61067.93 | Y210: =IF(W210<0,IF(X210=0,0,IF(OR(W210=0,V210=0),"N.M.",IF(ABS(X210/W210)>=10,"N.M.",X210/(-W210)))),IF(X210=0,0,IF(OR(W210=0,V210=0),"N.M.",IF(ABS(X210/W210)>=10,"N.M.",X210/W210)))) -> -0.04566600218 | AA210: 109004.36 | AC210: 158273.45 | AD210: 149555.78 | AE210: 80954.13 | AF210: 101728.7 | AG210: 94620.05 | AH210: 81406.89 | AI210: 53996.14 | AJ210: 162453.75 | AK210: 104306.15 | AL210: 77560.36 | AM210: 120547.96 | AN210: 110226.21 | AP210: 147592.13 | AQ210: 122402.25 | AR210: 99364.88
A211: %,FACCOUNT,TGL_FERC_ACCT,XDYYNNY01,N575-576 | C211: Regional Market Expense | F211: 103371.64 | G211: 83146.21 | H211: =+F211-G211 -> 20225.43 | I211: =IF(G211<0,IF(H211=0,0,IF(OR(G211=0,F211=0),"N.M.",IF(ABS(H211/G211)>=10,"N.M.",H211/(-G211)))),IF(H211=0,0,IF(OR(G211=0,F211=0),"N.M.",IF(ABS(H211/G211)>=10,"N.M.",H211/G211)))) -> 0.2432513761 | K211: 391228.23 | L211: 404811.06 | M211: =+K211-L211 -> -13582.83 | N211: =IF(L211<0,IF(M211=0,0,IF(OR(L211=0,K211=0),"N.M.",IF(ABS(M211/L211)>=10,"N.M.",M211/(-L211)))),IF(M211=0,0,IF(OR(L211=0,K211=0),"N.M.",IF(ABS(M211/L211)>=10,"N.M.",M211/L211)))) -> -0.03355350518 | Q211: 391228.23 | R211: 404811.06 | S211: =+Q211-R211 -> -13582.83 | T211: =IF(R211<0,IF(S211=0,0,IF(OR(R211=0,Q211=0),"N.M.",IF(ABS(S211/R211)>=10,"N.M.",S211/(-R211)))),IF(S211=0,0,IF(OR(R211=0,Q211=0),"N.M.",IF(ABS(S211/R211)>=10,"N.M.",S211/R211)))) -> -0.03355350518 | V211: 1378836.38 | W211: 1412132.08 | X211: =+V211-W211 -> -33295.7 | Y211: =IF(W211<0,IF(X211=0,0,IF(OR(W211=0,V211=0),"N.M.",IF(ABS(X211/W211)>=10,"N.M.",X211/(-W211)))),IF(X211=0,0,IF(OR(W211=0,V211=0),"N.M.",IF(ABS(X211/W211)>=10,"N.M.",X211/W211)))) -> -0.02357831854 | AA211: 116816.99 | AC211: 165034.64 | AD211: 156630.21 | AE211: 83146.21 | AF211: 106259.15 | AG211: 100051.05 | AH211: 89151.12 | AI211: 58979.59 | AJ211: 181355.99 | AK211: 109615.04 | AL211: 84656.99 | AM211: 127282.36 | AN211: 130256.86 | AP211: 156660.65 | AQ211: 131195.94 | AR211: 103371.64
A213: %,V5772000 | B213: 5772000 | C213: Oper-Energy Storage Eqp-Majr | F213: 0 | G213: 0 | H213: =+F213-G213 -> 0 | I213: =IF(G213<0,IF(H213=0,0,IF(OR(G213=0,F213=0),"N.M.",IF(ABS(H213/G213)>=10,"N.M.",H213/(-G213)))),IF(H213=0,0,IF(OR(G213=0,F213=0),"N.M.",IF(ABS(H213/G213)>=10,"N.M.",H213/G213)))) -> 0 | K213: 0 | L213: 0 | M213: =+K213-L213 -> 0 | N213: =IF(L213<0,IF(M213=0,0,IF(OR(L213=0,K213=0),"N.M.",IF(ABS(M213/L213)>=10,"N.M.",M213/(-L213)))),IF(M213=0,0,IF(OR(L213=0,K213=0),"N.M.",IF(ABS(M213/L213)>=10,"N.M.",M213/L213)))) -> 0 | Q213: 0 | R213: 0 | S213: =+Q213-R213 -> 0 | V213: 0 | W213: 0 | X213: =+V213-W213 -> 0 | Y213: =IF(W213<0,IF(X213=0,0,IF(OR(W213=0,V213=0),"N.M.",IF(ABS(X213/W213)>=10,"N.M.",X213/(-W213)))),IF(X213=0,0,IF(OR(W213=0,V213=0),"N.M.",IF(ABS(X213/W213)>=10,"N.M.",X213/W213)))) -> 0 | AA213: 0 | AC213: 0 | AD213: 0 | AE213: 0 | AF213: 0 | AG213: 0 | AH213: 0 | AI213: 0 | AJ213: 0 | AK213: 0 | AL213: 1.83 | AM213: -1.83 | AN213: 0 | AP213: 0 | AQ213: 0 | AR213: 0
A214: %,V5775000 | B214: 5775000 | C214: Oper Supplies and Expense NMjr | F214: 0 | G214: 0 | H214: =+F214-G214 -> 0 | I214: =IF(G214<0,IF(H214=0,0,IF(OR(G214=0,F214=0),"N.M.",IF(ABS(H214/G214)>=10,"N.M.",H214/(-G214)))),IF(H214=0,0,IF(OR(G214=0,F214=0),"N.M.",IF(ABS(H214/G214)>=10,"N.M.",H214/G214)))) -> 0 | K214: 0 | L214: 0 | M214: =+K214-L214 -> 0 | N214: =IF(L214<0,IF(M214=0,0,IF(OR(L214=0,K214=0),"N.M.",IF(ABS(M214/L214)>=10,"N.M.",M214/(-L214)))),IF(M214=0,0,IF(OR(L214=0,K214=0),"N.M.",IF(ABS(M214/L214)>=10,"N.M.",M214/L214)))) -> 0 | Q214: 0 | R214: 0 | S214: =+Q214-R214 -> 0 | V214: 0 | W214: 0 | X214: =+V214-W214 -> 0 | Y214: =IF(W214<0,IF(X214=0,0,IF(OR(W214=0,V214=0),"N.M.",IF(ABS(X214/W214)>=10,"N.M.",X214/(-W214)))),IF(X214=0,0,IF(OR(W214=0,V214=0),"N.M.",IF(ABS(X214/W214)>=10,"N.M.",X214/W214)))) -> 0 | AA214: 0 | AC214: 0 | AD214: 0 | AE214: 0 | AF214: 12.84 | AG214: -12.84 | AH214: 3.77 | AI214: 0.33 | AJ214: -4.1 | AK214: 0 | AL214: 0 | AM214: 0 | AN214: 0 | AP214: 0 | AQ214: 0 | AR214: 0
A215: %,FACCOUNT,TGL_FERC_ACCT,XDYYNNY01,N5771-5775 | C215: Energy Storage Operation Expense | F215: 0 | G215: 0 | H215: =+F215-G215 -> 0 | I215: =IF(G215<0,IF(H215=0,0,IF(OR(G215=0,F215=0),"N.M.",IF(ABS(H215/G215)>=10,"N.M.",H215/(-G215)))),IF(H215=0,0,IF(OR(G215=0,F215=0),"N.M.",IF(ABS(H215/G215)>=10,"N.M.",H215/G215)))) -> 0 | K215: 0 | L215: 0 | M215: =+K215-L215 -> 0 | N215: =IF(L215<0,IF(M215=0,0,IF(OR(L215=0,K215=0),"N.M.",IF(ABS(M215/L215)>=10,"N.M.",M215/(-L215)))),IF(M215=0,0,IF(OR(L215=0,K215=0),"N.M.",IF(ABS(M215/L215)>=10,"N.M.",M215/L215)))) -> 0 | Q215: 0 | R215: 0 | S215: =+Q215-R215 -> 0 | V215: 0 | W215: 0 | X215: =+V215-W215 -> 0 | Y215: =IF(W215<0,IF(X215=0,0,IF(OR(W215=0,V215=0),"N.M.",IF(ABS(X215/W215)>=10,"N.M.",X215/(-W215)))),IF(X215=0,0,IF(OR(W215=0,V215=0),"N.M.",IF(ABS(X215/W215)>=10,"N.M.",X215/W215)))) -> 0 | AA215: 0 | AC215: 0 | AD215: 0 | AE215: 0 | AF215: 12.84 | AG215: -12.84 | AH215: 3.77 | AI215: 0.33 | AJ215: -4.1 | AK215: 0 | AL215: 1.83 | AM215: -1.83 | AN215: 0 | AP215: 0 | AQ215: 0 | AR215: 0
A217: %,V5800000 | B217: 5800000 | C217: Oper Supervision & Engineering | F217: 143349.85 | G217: 250455.52 | H217: =+F217-G217 -> -107105.67 | I217: =IF(G217<0,IF(H217=0,0,IF(OR(G217=0,F217=0),"N.M.",IF(ABS(H217/G217)>=10,"N.M.",H217/(-G217)))),IF(H217=0,0,IF(OR(G217=0,F217=0),"N.M.",IF(ABS(H217/G217)>=10,"N.M.",H217/G217)))) -> -0.4276434794 | K217: 166082.92 | L217: 482513.07 | M217: =+K217-L217 -> -316430.15 | N217: =IF(L217<0,IF(M217=0,0,IF(OR(L217=0,K217=0),"N.M.",IF(ABS(M217/L217)>=10,"N.M.",M217/(-L217)))),IF(M217=0,0,IF(OR(L217=0,K217=0),"N.M.",IF(ABS(M217/L217)>=10,"N.M.",M217/L217)))) -> -0.6557960181 | Q217: 166082.92 | R217: 482513.07 | S217: =+Q217-R217 -> -316430.15 | T217: =IF(R217<0,IF(S217=0,0,IF(OR(R217=0,Q217=0),"N.M.",IF(ABS(S217/R217)>=10,"N.M.",S217/(-R217)))),IF(S217=0,0,IF(OR(R217=0,Q217=0),"N.M.",IF(ABS(S217/R217)>=10,"N.M.",S217/R217)))) -> -0.6557960181 | V217: 118055.08 | W217: 1685685.97 | X217: =+V217-W217 -> -1567630.89 | Y217: =IF(W217<0,IF(X217=0,0,IF(OR(W217=0,V217=0),"N.M.",IF(ABS(X217/W217)>=10,"N.M.",X217/(-W217)))),IF(X217=0,0,IF(OR(W217=0,V217=0),"N.M.",IF(ABS(X217/W217)>=10,"N.M.",X217/W217)))) -> -0.929966149 | AA217: 228073.75 | AC217: -27859.28 | AD217: 259916.83 | AE217: 250455.52 | AF217: 85589.78 | AG217: 204283.14 | AH217: 188720.03 | AI217: -153811.89 | AJ217: -4457.35 | AK217: -673.2 | AL217: -56595.32 | AM217: -389632.91 | AN217: 78549.88 | AP217: -21590.03 | AQ217: 44323.1 | AR217: 143349.85
A218: %,V5810000 | B218: 5810000 | C218: Load Dispatching | F218: 0 | G218: 117.53 | H218: -117.53 | I218: N.M. | K218: 393.47 | L218: 306.31 | M218: 87.16 | N218: 0.2845483334 | Q218: 393.47 | R218: 306.31 | S218: 87.16 | T218: 0.2845483334 | V218: 2840.55 | W218: 1339.93 | X218: 1500.62 | Y218: 1.119924175 | AA218: 51.59 | AC218: 78.67 | AD218: 110.11 | AE218: 117.53 | AF218: 419.97 | AG218: 1100.74 | AH218: 587.23 | AI218: 0 | AJ218: 0 | AK218: 120.89 | AL218: 108.7 | AM218: 43.98 | AN218: 65.57 | AP218: 0 | AQ218: 393.47 | AR218: 0
A219: %,V5820000 | B219: 5820000 | C219: Station Expenses | F219: 15374.92 | G219: 17424.9 | H219: -2049.98 | I219: -0.1176465862 | K219: 64503.96 | L219: 80796.65 | M219: -16292.69 | N219: -0.2016505635 | Q219: 64503.96 | R219: 80796.65 | S219: -16292.69 | T219: -0.2016505635 | V219: 389477.63 | W219: 389294.86 | X219: 182.77 | Y219: 0.0004694898874 | AA219: 30332.27 | AC219: 19031.36 | AD219: 44340.39 | AE219: 17424.9 | AF219: 32495.32 | AG219: 18002.68 | AH219: 35364.84 | AI219: 27294.53 | AJ219: 40688.97 | AK219: 38868.21 | AL219: 44668.78 | AM219: 57941.77 | AN219: 29648.57 | AP219: 24667.69 | AQ219: 24461.35 | AR219: 15374.92
... 412 more rows

Sheet Modification History (hidden)
A2: BU_Name | C2: Scope-based
A3: Contact Person | C3: Neal Hartley
A4: Department Owner | C4: Financial Reporting
A5: Account Tree | C5: GL_FERC_ACCT
A6: Business Unit Tree | C6: Scope-based
A7: Sunset Date
A8: Report Statement Type | C8: Reporting Package
A9: Report Description | C9: IS, BS, O&M, and Trial Bal
A10: Title (Builtin) | C10: FERC Comparative Statements
A11: Author (Builtin) | C11: Financial Reporting / Neal Hartley
A12: Comments (Builtin) | C12: Acct: GL_FERC_ACCT BU: Scope-based
A13: Subject (Builtin)
A14: Category (Builtin)
A15: Keywords (Builtin)
A18: 2016-08-01 | C18: Neal Hartley | E18: Created this new report from GLR3000V
A19: 2018-09-05 | C19: Neal Hartley | E19: Change Effective tax rate on lines 93 & 166 from 35% to 21%

Sheet O&M
A1: %,LACTUALS,SBAL | B1: %,ATF,FACCOUNT | C1: %,ATT,FDESCR,UDESCR | F1: %,LACTUALS,SPER | G1: %,LACTUALS,SPER-1YR | H1: %,C | I1: %,C | K1: %,LACTUALS,SYTD | L1: %,LACTUALS,SYTD-1YR | M1: %,C | N1: %,C | Q1: %,LACTUALS,SQTR | R1: %,LACTUALS,SQTR-1YR | S1: %,C | T1: %,C | V1: %,LACTUALS,SROLLING12 | W1: %,LACTUALS,SROLNG12-1Y | X1: %,C | Y1: %,C
C2: Kentucky Power Corp Consol | G2: Kentucky Power Corp Consol | L2: Kentucky Power Corp Consol | R2: Kentucky Power Corp Consol | W2: Kentucky Power Corp Consol
C3: March 2026 | G3: As of: Mar 2026 | L3: As of: Mar 2026 | R3: As of: Mar 2026 | W3: As of: Mar 2026
B4: Run Date: 04/09/2026 01:15 PM
B5: GLR6283P | C5: Rpt ID: FERC_IS1 Layout: FERC_IS1 | F5: ONE MONTH ENDED | H5: Variance | K5: YEAR TO DATE | M5: Variance | Q5: THREE MONTHS ENDED | S5: Variance | V5: TWELVE MONTHS ENDED | X5: Variance
B6: KYP_CORP_CONSOL | C6: V2099-01-01 Acct: GL_FERC_ACCT BU: GL_PRPT_CONS | F6: 2026 | G6: 2025 | H6: $ | I6: % | K6: 2026 | L6: 2025 | M6: $ | N6: % | O6: Explanation | Q6: 2026 | R6: 2025 | S6: $ | T6: % | V6: 2026 | W6: 2025 | X6: $ | Y6: %
C8: OPERATING AND MAINTENANCE DETAIL
C9: FERC Page 320
B10: Line 1 | C10: 1. POWER PRODUCTION EXPENSES
B11: Line 2 | C11: A. STEAM POWER GENERATION
B12: Line 3 | C12: Operation
A13: %,V5000000 | B13: 5000000 | C13: Oper Supervision & Engineering | F13: 418873.13 | G13: 306873.26 | H13: =+F13-G13 -> 111999.87 | I13: =IF(G13<0,IF(H13=0,0,IF(OR(G13=0,F13=0),"N.M.",IF(ABS(H13/G13)>=10,"N.M.",H13/(-G13)))),IF(H13=0,0,IF(OR(G13=0,F13=0),"N.M.",IF(ABS(H13/G13)>=10,"N.M.",H13/G13)))) -> 0.3649710959 | K13: 1191558.33 | L13: 987488.72 | M13: =+K13-L13 -> 204069.61 | N13: =IF(L13<0,IF(M13=0,0,IF(OR(L13=0,K13=0),"N.M.",IF(ABS(M13/L13)>=10,"N.M.",M13/(-L13)))),IF(M13=0,0,IF(OR(L13=0,K13=0),"N.M.",IF(ABS(M13/L13)>=10,"N.M.",M13/L13)))) -> 0.2066551302 | Q13: 1191558.33 | R13: 987488.72 | S13: =+Q13-R13 -> 204069.61 | T13: =IF(R13<0,IF(S13=0,0,IF(OR(R13=0,Q13=0),"N.M.",IF(ABS(S13/R13)>=10,"N.M.",S13/(-R13)))),IF(S13=0,0,IF(OR(R13=0,Q13=0),"N.M.",IF(ABS(S13/R13)>=10,"N.M.",S13/R13)))) -> 0.2066551302 | V13: 4707142.2 | W13: 4224514.05 | X13: =+V13-W13 -> 482628.15 | Y13: =IF(W13<0,IF(X13=0,0,IF(OR(W13=0,V13=0),"N.M.",IF(ABS(X13/W13)>=10,"N.M.",X13/(-W13)))),IF(X13=0,0,IF(OR(W13=0,V13=0),"N.M.",IF(ABS(X13/W13)>=10,"N.M.",X13/W13)))) -> 0.114244655
A14: %,V5000002 | B14: 5000002 | C14: Dresden Oper Supervision & Eng | F14: 0 | G14: 0 | H14: 0 | I14: 0 | K14: 0 | L14: 0 | M14: 0 | N14: 0 | Q14: 0 | R14: 0 | S14: 0 | T14: 0 | V14: -33.12 | W14: 0 | X14: -33.12 | Y14: N.M.
A15: %,V5000003 | B15: 5000003 | C15: Cnstr Srchrge Op Sup & Eng Exp | F15: 0 | G15: 0 | H15: 0 | I15: 0 | K15: 0 | L15: 0 | M15: 0 | N15: 0 | Q15: 0 | R15: 0 | S15: 0 | T15: 0 | V15: 64.34 | W15: 0 | X15: 64.34 | Y15: N.M.
A16: %,FACCOUNT,X,TGL_FERC_ACCT,N5000 | B16: Line 4 | C16: (500) Operation Supervision and Engineering | F16: 418873.13 | G16: 306873.26 | H16: 111999.87 | I16: 0.3649710959 | K16: 1191558.33 | L16: 987488.72 | M16: 204069.61 | N16: 0.2066551302 | Q16: 1191558.33 | R16: 987488.72 | S16: 204069.61 | T16: 0.2066551302 | V16: 4707173.42 | W16: 4224514.05 | X16: 482659.37 | Y16: 0.1142520452
A17: %,V5010000 | B17: 5010000 | C17: Fuel | F17: 410094.74 | G17: 1391713.84 | H17: -981619.1 | I17: -0.7053311333 | K17: 1442012.56 | L17: 2702271.3 | M17: -1260258.74 | N17: -0.4663701753 | Q17: 1442012.56 | R17: 2702271.3 | S17: -1260258.74 | T17: -0.4663701753 | V17: 6490206.77 | W17: 7832033.37 | X17: -1341826.6 | Y17: -0.1713254447
A18: %,V5010001 | B18: 5010001 | C18: Fuel Consumed | F18: 2917030.66 | G18: 1240119.13 | H18: 1676911.53 | I18: 1.352218097 | K18: 19591414.54 | L18: 16994933.92 | M18: 2596480.62 | N18: 0.1527796832 | Q18: 19591414.54 | R18: 16994933.92 | S18: 2596480.62 | T18: 0.1527796832 | V18: 76906220.56 | W18: 75754630.88 | X18: 1151589.68 | Y18: 0.0152015747
A19: %,V5010003 | B19: 5010003 | C19: Fuel - Procure Unload & Handle | F19: 163794.85 | G19: 64924.42 | H19: 98870.43 | I19: 1.522854267 | K19: 1017742.66 | L19: 858577.64 | M19: 159165.02 | N19: 0.1853822096 | Q19: 1017742.66 | R19: 858577.64 | S19: 159165.02 | T19: 0.1853822096 | V19: 4230797.15 | W19: 3585544.77 | X19: 645252.38 | Y19: 0.1799593706
A20: %,V5010005 | B20: 5010005 | C20: Fuel - Deferred | F20: 8418308.386 | G20: 1805156.56 | H20: 6613151.826 | I20: 3.663478267 | K20: -9892679.502 | L20: -566694.609 | M20: -9325984.893 | N20: N.M. | Q20: -9892679.502 | R20: -566694.609 | S20: -9325984.893 | T20: N.M. | V20: -4188838.06 | W20: -1189885.889 | X20: -2998952.171 | Y20: -2.520369557
A21: %,V5010012 | B21: 5010012 | C21: Ash Sales Proceeds | F21: 447.26 | G21: 259.49 | H21: 187.77 | I21: 0.7236116999 | K21: 1796.49 | L21: 3334.96 | M21: -1538.47 | N21: -0.4613158779 | Q21: 1796.49 | R21: 3334.96 | S21: -1538.47 | T21: -0.4613158779 | V21: 5736.47 | W21: 22189.01 | X21: -16452.54 | Y21: -0.7414724677
A22: %,V5010013 | B22: 5010013 | C22: Fuel Survey Activity | F22: 0 | G22: 0 | H22: 0 | I22: 0 | K22: 0 | L22: 0 | M22: 0 | N22: 0 | Q22: 0 | R22: 0 | S22: 0 | T22: 0 | V22: 3906533.13 | W22: 49281.13 | X22: 3857252 | Y22: N.M.
A23: %,V5010019 | B23: 5010019 | C23: Fuel Oil Consumed | F23: 299075.07 | G23: 666930.93 | H23: -367855.86 | I23: -0.5515651523 | K23: 839669.18 | L23: 1105998.02 | M23: -266328.84 | N23: -0.2408040839 | Q23: 839669.18 | R23: 1105998.02 | S23: -266328.84 | T23: -0.2408040839 | V23: 3871999.24 | W23: 3765558.18 | X23: 106441.06 | Y23: 0.02826700715
A24: %,V5010020 | B24: 5010020 | C24: Nat Gas Consumed Steam | F24: 4327789.61 | G24: 3092259.22 | H24: 1235530.39 | I24: 0.3995558917 | K24: 20430282.11 | L24: 12913004.46 | M24: 7517277.65 | N24: 0.5821478397 | Q24: 20430282.11 | R24: 12913004.46 | S24: 7517277.65 | T24: 0.5821478397 | V24: 46393473.58 | W24: 31183494.57 | X24: 15209979.01 | Y24: 0.4877573607
A25: %,V5010021 | B25: 5010021 | C25: Transp Gas Consumed Steam | F25: 58494.25 | G25: 41972.07 | H25: 16522.18 | I25: 0.3936470134 | K25: 177133.61 | L25: 109045.39 | M25: 68088.22 | N25: 0.6244025538 | Q25: 177133.61 | R25: 109045.39 | S25: 68088.22 | T25: 0.6244025538 | V25: 568860.51 | W25: 273765.43 | X25: 295095.08 | Y25: 1.077912138
A26: %,V5010027 | B26: 5010027 | C26: Gypsum handling/disposal costs | F26: 200094.77 | G26: 152673.25 | H26: 47421.52 | I26: 0.3106079159 | K26: 427686.36 | L26: 367662.97 | M26: 60023.39 | N26: 0.1632565553 | Q26: 427686.36 | R26: 367662.97 | S26: 60023.39 | T26: 0.1632565553 | V26: 1452371.04 | W26: 1530969.7 | X26: -78598.66 | Y26: -0.05133913493
A27: %,V5010028 | B27: 5010028 | C27: Gypsum Sales Proceeds | F27: -198568.98 | G27: -36655.22 | H27: -161913.76 | I27: -4.41720879 | K27: -358049.66 | L27: -399445.59 | M27: 41395.93 | N27: 0.1036334636 | Q27: -358049.66 | R27: -399445.59 | S27: 41395.93 | T27: 0.1036334636 | V27: -1181046.24 | W27: -1241705.41 | X27: 60659.17 | Y27: 0.04885149852
A28: %,V5010033 | B28: 5010033 | C28: Coal Procurement Sales Net-NA | F28: 131387.16 | G28: 0 | H28: 131387.16 | I28: N.M. | K28: 131387.16 | L28: 0 | M28: 131387.16 | N28: N.M. | Q28: 131387.16 | R28: 0 | S28: 131387.16 | T28: N.M. | V28: 131387.16 | W28: 0 | X28: 131387.16 | Y28: N.M.
A29: %,V5010034 | B29: 5010034 | C29: Gas Transp Res Fees-Steam | F29: 503856 | G29: 552175.2 | H29: -48319.2 | I29: -0.08750700865 | K29: 1469016 | L29: 1615564.08 | M29: -146548.08 | N29: -0.09071016236 | Q29: 1469016 | R29: 1615564.08 | S29: -146548.08 | T29: -0.09071016236 | V29: 5956657.98 | W29: 6333372.2 | X29: -376714.22 | Y29: -0.05948082761
A30: %,V5010040 | B30: 5010040 | C30: Gas Procuremnt Sales Net | F30: 0.29 | G30: 158017.731 | H30: -158017.441 | I30: -0.9999981648 | K30: 0.13 | L30: 453288.19 | M30: -453288.06 | N30: -0.9999997132 | Q30: 0.13 | R30: 453288.19 | S30: -453288.06 | T30: -0.9999997132 | V30: 171003.84 | W30: 2092603.39 | X30: -1921599.55 | Y30: -0.9182817724
A31: %,FACCOUNT,X,TGL_FERC_ACCT,N5010 | B31: Line 5 | C31: (501) Fuel | F31: 17231804.07 | G31: 9129546.621 | H31: 8102257.445 | I31: 0.8874764302 | K31: 35277411.64 | L31: 36157540.73 | M31: -880129.093 | N31: -0.02434150872 | Q31: 35277411.64 | R31: 36157540.73 | S31: -880129.093 | T31: -0.02434150872 | V31: 144715363.1 | W31: 129991851.3 | X31: 14723511.8 | Y31: 0.1132648827
A32: %,V5020000 | B32: 5020000 | C32: Steam Expenses | F32: 192558.46 | G32: 132712.56 | H32: 59845.9 | I32: 0.4509437539 | K32: 533764.75 | L32: 495575.86 | M32: 38188.89 | N32: 0.07705962514 | Q32: 533764.75 | R32: 495575.86 | S32: 38188.89 | T32: 0.07705962514 | V32: 2054626.22 | W32: 1636473.98 | X32: 418152.24 | Y32: 0.2555202497
A33: %,V5020002 | B33: 5020002 | C33: Urea Expense | F33: 51668.6 | G33: 13553.71 | H33: 38114.89 | I33: 2.812137046 | K33: 296786.61 | L33: 233235.96 | M33: 63550.65 | N33: 0.2724736357 | Q33: 296786.61 | R33: 233235.96 | S33: 63550.65 | T33: 0.2724736357 | V33: 978040.23 | W33: 1110692.35 | X33: -132652.12 | Y33: -0.1194319201
A34: %,V5020004 | B34: 5020004 | C34: Lime-Related Expenses | F34: 118623.55 | G34: 28337.16 | H34: 90286.39 | I34: 3.186148153 | K34: 682785.06 | L34: 430054.06 | M34: 252731 | N34: 0.5876726289 | Q34: 682785.06 | R34: 430054.06 | S34: 252731 | T34: 0.5876726289 | V34: 2662764.3 | W34: 2227498.5 | X34: 435265.8 | Y34: 0.1954056535
A35: %,FACCOUNT,X,TGL_FERC_ACCT,N5020 | B35: Line 6 | C35: (502) Steam Expenses | F35: 362850.61 | G35: 174603.43 | H35: 188247.18 | I35: 1.078141363 | K35: 1513336.42 | L35: 1158865.88 | M35: 354470.54 | N35: 0.3058771046 | Q35: 1513336.42 | R35: 1158865.88 | S35: 354470.54 | T35: 0.3058771046 | V35: 5695430.75 | W35: 4974664.83 | X35: 720765.92 | Y35: 0.144887333
A36: %,FACCOUNT,X,TGL_FERC_ACCT,N5030 | B36: Line 7 | C36: (503) Steam from Other Sources | F36: 0 | G36: 0 | H36: 0 | I36: 0 | K36: 0 | L36: 0 | M36: 0 | N36: 0 | Q36: 0 | R36: 0 | S36: 0 | T36: 0 | V36: 0 | W36: 0 | X36: 0 | Y36: 0
A37: %,R,FACCOUNT,X,TGL_FERC_ACCT,N5040 | B37: Line 8 | C37: (Less) (504) Steam Transferred-Cr. | F37: 0 | G37: 0 | H37: 0 | I37: 0 | K37: 0 | L37: 0 | M37: 0 | N37: 0 | Q37: 0 | R37: 0 | S37: 0 | T37: 0 | V37: 0 | W37: 0 | X37: 0 | Y37: 0
A38: %,V5050000 | B38: 5050000 | C38: Electric Expenses | F38: 7427.9 | G38: 1801.63 | H38: 5626.27 | I38: 3.122877616 | K38: 14713.13 | L38: 2812.08 | M38: 11901.05 | N38: 4.23211644 | Q38: 14713.13 | R38: 2812.08 | S38: 11901.05 | T38: 4.23211644 | V38: 86944.44 | W38: 35854.75 | X38: 51089.69 | Y38: 1.42490716
A39: %,FACCOUNT,X,TGL_FERC_ACCT,N5050 | B39: Line 9 | C39: (505) Electric Expenses | F39: 7427.9 | G39: 1801.63 | H39: 5626.27 | I39: 3.122877616 | K39: 14713.13 | L39: 2812.08 | M39: 11901.05 | N39: 4.23211644 | Q39: 14713.13 | R39: 2812.08 | S39: 11901.05 | T39: 4.23211644 | V39: 86944.44 | W39: 35854.75 | X39: 51089.69 | Y39: 1.42490716
A40: %,V5060000 | B40: 5060000 | C40: Misc Steam Power Expenses | F40: 516232.62 | G40: 381726.44 | H40: 134506.18 | I40: 0.3523627549 | K40: 1580780.82 | L40: 1151923.326 | M40: 428857.494 | N40: 0.3722969093 | Q40: 1580780.82 | R40: 1151923.326 | S40: 428857.494 | T40: 0.3722969093 | V40: 5438528.92 | W40: 5924317.646 | X40: -485788.726 | Y40: -0.08199910184
A41: %,V5060002 | B41: 5060002 | C41: Misc Steam Power Exp-Assoc | F41: 5178.06 | G41: 4254.84 | H41: 923.22 | I41: 0.2169811321 | K41: 14876.54 | L41: 14384.23 | M41: 492.31 | N41: 0.03422567631 | Q41: 14876.54 | R41: 14384.23 | S41: 492.31 | T41: 0.03422567631 | V41: 48491.62 | W41: 53188.44 | X41: -4696.82 | Y41: -0.08830527836
A42: %,V5060011 | B42: 5060011 | C42: BSRR O/U Recovery-Oper Costs | F42: 0 | G42: 0 | H42: 0 | I42: 0 | K42: 0 | L42: 0 | M42: 0 | N42: 0 | Q42: 0 | R42: 0 | S42: 0 | T42: 0 | V42: 0 | W42: 210.68 | X42: -210.68 | Y42: N.M.
A43: %,FACCOUNT,X,TGL_FERC_ACCT,N5060,N5080 | B43: Line 10 | C43: (506) Miscellaneous Steam Power Expenses | F43: 521410.68 | G43: 385981.28 | H43: 135429.4 | I43: 0.3508703842 | K43: 1595657.36 | L43: 1166307.556 | M43: 429349.804 | N43: 0.3681274307 | Q43: 1595657.36 | R43: 1166307.556 | S43: 429349.804 | T43: 0.3681274307 | V43: 5487020.54 | W43: 5977716.766 | X43: -490696.226 | Y43: -0.08208756708
A44: %,V5070006 | B44: 5070006 | C44: Rents - Associated | F44: 128.59 | G44: 193.17 | H44: -64.58 | I44: -0.3343169229 | K44: 382.67 | L44: 579.51 | M44: -196.84 | N44: -0.3396662698 | Q44: 382.67 | R44: 579.51 | S44: -196.84 | T44: -0.3396662698 | V44: 2121.2 | W44: 579.51 | X44: 1541.69 | Y44: 2.66033373
A45: %,FACCOUNT,X,TGL_FERC_ACCT,N5070 | B45: Line 11 | C45: (507) Rents | F45: 128.59 | G45: 193.17 | H45: =+F45-G45 -> -64.58 | I45: =IF(G45<0,IF(H45=0,0,IF(OR(G45=0,F45=0),"N.M.",IF(ABS(H45/G45)>=10,"N.M.",H45/(-G45)))),IF(H45=0,0,IF(OR(G45=0,F45=0),"N.M.",IF(ABS(H45/G45)>=10,"N.M.",H45/G45)))) -> -0.3343169229 | K45: 382.67 | L45: 579.51 | M45: =+K45-L45 -> -196.84 | N45: =IF(L45<0,IF(M45=0,0,IF(OR(L45=0,K45=0),"N.M.",IF(ABS(M45/L45)>=10,"N.M.",M45/(-L45)))),IF(M45=0,0,IF(OR(L45=0,K45=0),"N.M.",IF(ABS(M45/L45)>=10,"N.M.",M45/L45)))) -> -0.3396662698 | Q45: 382.67 | R45: 579.51 | S45: =+Q45-R45 -> -196.84 | T45: =IF(R45<0,IF(S45=0,0,IF(OR(R45=0,Q45=0),"N.M.",IF(ABS(S45/R45)>=10,"N.M.",S45/(-R45)))),IF(S45=0,0,IF(OR(R45=0,Q45=0),"N.M.",IF(ABS(S45/R45)>=10,"N.M.",S45/R45)))) -> -0.3396662698 | V45: 2121.2 | W45: 579.51 | X45: =+V45-W45 -> 1541.69 | Y45: =IF(W45<0,IF(X45=0,0,IF(OR(W45=0,V45=0),"N.M.",IF(ABS(X45/W45)>=10,"N.M.",X45/(-W45)))),IF(X45=0,0,IF(OR(W45=0,V45=0),"N.M.",IF(ABS(X45/W45)>=10,"N.M.",X45/W45)))) -> 2.66033373
A46: %,V5090000 | B46: 5090000 | C46: Allow Consum Title IV SO2 | F46: 530.89 | G46: 226.6 | H46: 304.29 | I46: 1.342850838 | K46: 3293.93 | L46: 5255.02 | M46: -1961.09 | N46: -0.3731841173 | Q46: 3293.93 | R46: 5255.02 | S46: -1961.09 | T46: -0.3731841173 | V46: 14737.31 | W46: 37960.01 | X46: -23222.7 | Y46: -0.611767489
A47: %,V5090001 | B47: 5090001 | C47: Allowance Consumption - NOx | F47: 0 | G47: 0 | H47: 0 | I47: 0 | K47: 0 | L47: 0 | M47: 0 | N47: 0 | Q47: 0 | R47: 0 | S47: 0 | T47: 0 | V47: -157142.86 | W47: 42857.15 | X47: -200000.01 | Y47: -4.666666122
A48: %,V5090009 | B48: 5090009 | C48: Allow Consumpt CSAPR SO2 | F48: 2.6 | G48: 1.11 | H48: 1.49 | I48: 1.342342342 | K48: 16.15 | L48: 25.66 | M48: -9.51 | N48: -0.3706157443 | Q48: 16.15 | R48: 25.66 | S48: -9.51 | T48: -0.3706157443 | V48: 71.51 | W48: 182.4 | X48: -110.89 | Y48: -0.6079495614
A49: %,FACCOUNT,X,TGL_FERC_ACCT,N5090 | B49: Line 12 | C49: (509) Allowances | F49: 533.49 | G49: 227.71 | H49: 305.78 | I49: 1.34284836 | K49: 3310.08 | L49: 5280.68 | M49: -1970.6 | N49: -0.373171637 | Q49: 3310.08 | R49: 5280.68 | S49: -1970.6 | T49: -0.373171637 | V49: -142334.04 | W49: 80999.56 | X49: -223333.6 | Y49: -2.757219916
A50: %,V5000000 | B50: 5000000 | C50: Oper Supervision & Engineering | F50: 418873.13 | G50: 306873.26 | H50: 111999.87 | I50: 0.3649710959 | K50: 1191558.33 | L50: 987488.72 | M50: 204069.61 | N50: 0.2066551302 | Q50: 1191558.33 | R50: 987488.72 | S50: 204069.61 | T50: 0.2066551302 | V50: 4707142.2 | W50: 4224514.05 | X50: 482628.15 | Y50: 0.114244655
A51: %,V5000002 | B51: 5000002 | C51: Dresden Oper Supervision & Eng | F51: 0 | G51: 0 | H51: 0 | I51: 0 | K51: 0 | L51: 0 | M51: 0 | N51: 0 | Q51: 0 | R51: 0 | S51: 0 | T51: 0 | V51: -33.12 | W51: 0 | X51: -33.12 | Y51: N.M.
A52: %,V5000003 | B52: 5000003 | C52: Cnstr Srchrge Op Sup & Eng Exp | F52: 0 | G52: 0 | H52: 0 | I52: 0 | K52: 0 | L52: 0 | M52: 0 | N52: 0 | Q52: 0 | R52: 0 | S52: 0 | T52: 0 | V52: 64.34 | W52: 0 | X52: 64.34 | Y52: N.M.
A53: %,V5010000 | B53: 5010000 | C53: Fuel | F53: 410094.74 | G53: 1391713.84 | H53: -981619.1 | I53: -0.7053311333 | K53: 1442012.56 | L53: 2702271.3 | M53: -1260258.74 | N53: -0.4663701753 | Q53: 1442012.56 | R53: 2702271.3 | S53: -1260258.74 | T53: -0.4663701753 | V53: 6490206.77 | W53: 7832033.37 | X53: -1341826.6 | Y53: -0.1713254447
A54: %,V5010001 | B54: 5010001 | C54: Fuel Consumed | F54: 2917030.66 | G54: 1240119.13 | H54: 1676911.53 | I54: 1.352218097 | K54: 19591414.54 | L54: 16994933.92 | M54: 2596480.62 | N54: 0.1527796832 | Q54: 19591414.54 | R54: 16994933.92 | S54: 2596480.62 | T54: 0.1527796832 | V54: 76906220.56 | W54: 75754630.88 | X54: 1151589.68 | Y54: 0.0152015747
A55: %,V5010003 | B55: 5010003 | C55: Fuel - Procure Unload & Handle | F55: 163794.85 | G55: 64924.42 | H55: 98870.43 | I55: 1.522854267 | K55: 1017742.66 | L55: 858577.64 | M55: 159165.02 | N55: 0.1853822096 | Q55: 1017742.66 | R55: 858577.64 | S55: 159165.02 | T55: 0.1853822096 | V55: 4230797.15 | W55: 3585544.77 | X55: 645252.38 | Y55: 0.1799593706
A56: %,V5010005 | B56: 5010005 | C56: Fuel - Deferred | F56: 8418308.386 | G56: 1805156.56 | H56: 6613151.826 | I56: 3.663478267 | K56: -9892679.502 | L56: -566694.609 | M56: -9325984.893 | N56: N.M. | Q56: -9892679.502 | R56: -566694.609 | S56: -9325984.893 | T56: N.M. | V56: -4188838.06 | W56: -1189885.889 | X56: -2998952.171 | Y56: -2.520369557
A57: %,V5010012 | B57: 5010012 | C57: Ash Sales Proceeds | F57: 447.26 | G57: 259.49 | H57: 187.77 | I57: 0.7236116999 | K57: 1796.49 | L57: 3334.96 | M57: -1538.47 | N57: -0.4613158779 | Q57: 1796.49 | R57: 3334.96 | S57: -1538.47 | T57: -0.4613158779 | V57: 5736.47 | W57: 22189.01 | X57: -16452.54 | Y57: -0.7414724677
A58: %,V5010013 | B58: 5010013 | C58: Fuel Survey Activity | F58: 0 | G58: 0 | H58: 0 | I58: 0 | K58: 0 | L58: 0 | M58: 0 | N58: 0 | Q58: 0 | R58: 0 | S58: 0 | T58: 0 | V58: 3906533.13 | W58: 49281.13 | X58: 3857252 | Y58: N.M.
A59: %,V5010019 | B59: 5010019 | C59: Fuel Oil Consumed | F59: 299075.07 | G59: 666930.93 | H59: -367855.86 | I59: -0.5515651523 | K59: 839669.18 | L59: 1105998.02 | M59: -266328.84 | N59: -0.2408040839 | Q59: 839669.18 | R59: 1105998.02 | S59: -266328.84 | T59: -0.2408040839 | V59: 3871999.24 | W59: 3765558.18 | X59: 106441.06 | Y59: 0.02826700715
A60: %,V5010020 | B60: 5010020 | C60: Nat Gas Consumed Steam | F60: 4327789.61 | G60: 3092259.22 | H60: 1235530.39 | I60: 0.3995558917 | K60: 20430282.11 | L60: 12913004.46 | M60: 7517277.65 | N60: 0.5821478397 | Q60: 20430282.11 | R60: 12913004.46 | S60: 7517277.65 | T60: 0.5821478397 | V60: 46393473.58 | W60: 31183494.57 | X60: 15209979.01 | Y60: 0.4877573607
A61: %,V5010021 | B61: 5010021 | C61: Transp Gas Consumed Steam | F61: 58494.25 | G61: 41972.07 | H61: 16522.18 | I61: 0.3936470134 | K61: 177133.61 | L61: 109045.39 | M61: 68088.22 | N61: 0.6244025538 | Q61: 177133.61 | R61: 109045.39 | S61: 68088.22 | T61: 0.6244025538 | V61: 568860.51 | W61: 273765.43 | X61: 295095.08 | Y61: 1.077912138
A62: %,V5010027 | B62: 5010027 | C62: Gypsum handling/disposal costs | F62: 200094.77 | G62: 152673.25 | H62: 47421.52 | I62: 0.3106079159 | K62: 427686.36 | L62: 367662.97 | M62: 60023.39 | N62: 0.1632565553 | Q62: 427686.36 | R62: 367662.97 | S62: 60023.39 | T62: 0.1632565553 | V62: 1452371.04 | W62: 1530969.7 | X62: -78598.66 | Y62: -0.05133913493
A63: %,V5010028 | B63: 5010028 | C63: Gypsum Sales Proceeds | F63: -198568.98 | G63: -36655.22 | H63: -161913.76 | I63: -4.41720879 | K63: -358049.66 | L63: -399445.59 | M63: 41395.93 | N63: 0.1036334636 | Q63: -358049.66 | R63: -399445.59 | S63: 41395.93 | T63: 0.1036334636 | V63: -1181046.24 | W63: -1241705.41 | X63: 60659.17 | Y63: 0.04885149852
A64: %,V5010033 | B64: 5010033 | C64: Coal Procurement Sales Net-NA | F64: 131387.16 | G64: 0 | H64: 131387.16 | I64: N.M. | K64: 131387.16 | L64: 0 | M64: 131387.16 | N64: N.M. | Q64: 131387.16 | R64: 0 | S64: 131387.16 | T64: N.M. | V64: 131387.16 | W64: 0 | X64: 131387.16 | Y64: N.M.
A65: %,V5010034 | B65: 5010034 | C65: Gas Transp Res Fees-Steam | F65: 503856 | G65: 552175.2 | H65: -48319.2 | I65: -0.08750700865 | K65: 1469016 | L65: 1615564.08 | M65: -146548.08 | N65: -0.09071016236 | Q65: 1469016 | R65: 1615564.08 | S65: -146548.08 | T65: -0.09071016236 | V65: 5956657.98 | W65: 6333372.2 | X65: -376714.22 | Y65: -0.05948082761
A66: %,V5010040 | B66: 5010040 | C66: Gas Procuremnt Sales Net | F66: 0.29 | G66: 158017.731 | H66: -158017.441 | I66: -0.9999981648 | K66: 0.13 | L66: 453288.19 | M66: -453288.06 | N66: -0.9999997132 | Q66: 0.13 | R66: 453288.19 | S66: -453288.06 | T66: -0.9999997132 | V66: 171003.84 | W66: 2092603.39 | X66: -1921599.55 | Y66: -0.9182817724
A67: %,V5020000 | B67: 5020000 | C67: Steam Expenses | F67: 192558.46 | G67: 132712.56 | H67: 59845.9 | I67: 0.4509437539 | K67: 533764.75 | L67: 495575.86 | M67: 38188.89 | N67: 0.07705962514 | Q67: 533764.75 | R67: 495575.86 | S67: 38188.89 | T67: 0.07705962514 | V67: 2054626.22 | W67: 1636473.98 | X67: 418152.24 | Y67: 0.2555202497
A68: %,V5020002 | B68: 5020002 | C68: Urea Expense | F68: 51668.6 | G68: 13553.71 | H68: 38114.89 | I68: 2.812137046 | K68: 296786.61 | L68: 233235.96 | M68: 63550.65 | N68: 0.2724736357 | Q68: 296786.61 | R68: 233235.96 | S68: 63550.65 | T68: 0.2724736357 | V68: 978040.23 | W68: 1110692.35 | X68: -132652.12 | Y68: -0.1194319201
A69: %,V5020004 | B69: 5020004 | C69: Lime-Related Expenses | F69: 118623.55 | G69: 28337.16 | H69: 90286.39 | I69: 3.186148153 | K69: 682785.06 | L69: 430054.06 | M69: 252731 | N69: 0.5876726289 | Q69: 682785.06 | R69: 430054.06 | S69: 252731 | T69: 0.5876726289 | V69: 2662764.3 | W69: 2227498.5 | X69: 435265.8 | Y69: 0.1954056535
A70: %,V5050000 | B70: 5050000 | C70: Electric Expenses | F70: 7427.9 | G70: 1801.63 | H70: 5626.27 | I70: 3.122877616 | K70: 14713.13 | L70: 2812.08 | M70: 11901.05 | N70: 4.23211644 | Q70: 14713.13 | R70: 2812.08 | S70: 11901.05 | T70: 4.23211644 | V70: 86944.44 | W70: 35854.75 | X70: 51089.69 | Y70: 1.42490716
A71: %,V5060000 | B71: 5060000 | C71: Misc Steam Power Expenses | F71: 516232.62 | G71: 381726.44 | H71: 134506.18 | I71: 0.3523627549 | K71: 1580780.82 | L71: 1151923.326 | M71: 428857.494 | N71: 0.3722969093 | Q71: 1580780.82 | R71: 1151923.326 | S71: 428857.494 | T71: 0.3722969093 | V71: 5438528.92 | W71: 5924317.646 | X71: -485788.726 | Y71: -0.08199910184
A72: %,V5060002 | B72: 5060002 | C72: Misc Steam Power Exp-Assoc | F72: 5178.06 | G72: 4254.84 | H72: 923.22 | I72: 0.2169811321 | K72: 14876.54 | L72: 14384.23 | M72: 492.31 | N72: 0.03422567631 | Q72: 14876.54 | R72: 14384.23 | S72: 492.31 | T72: 0.03422567631 | V72: 48491.62 | W72: 53188.44 | X72: -4696.82 | Y72: -0.08830527836
A73: %,V5060011 | B73: 5060011 | C73: BSRR O/U Recovery-Oper Costs | F73: 0 | G73: 0 | H73: 0 | I73: 0 | K73: 0 | L73: 0 | M73: 0 | N73: 0 | Q73: 0 | R73: 0 | S73: 0 | T73: 0 | V73: 0 | W73: 210.68 | X73: -210.68 | Y73: N.M.
A74: %,V5070006 | B74: 5070006 | C74: Rents - Associated | F74: 128.59 | G74: 193.17 | H74: -64.58 | I74: -0.3343169229 | K74: 382.67 | L74: 579.51 | M74: -196.84 | N74: -0.3396662698 | Q74: 382.67 | R74: 579.51 | S74: -196.84 | T74: -0.3396662698 | V74: 2121.2 | W74: 579.51 | X74: 1541.69 | Y74: 2.66033373
A75: %,V5090000 | B75: 5090000 | C75: Allow Consum Title IV SO2 | F75: 530.89 | G75: 226.6 | H75: 304.29 | I75: 1.342850838 | K75: 3293.93 | L75: 5255.02 | M75: -1961.09 | N75: -0.3731841173 | Q75: 3293.93 | R75: 5255.02 | S75: -1961.09 | T75: -0.3731841173 | V75: 14737.31 | W75: 37960.01 | X75: -23222.7 | Y75: -0.611767489
A76: %,V5090001 | B76: 5090001 | C76: Allowance Consumption - NOx | F76: 0 | G76: 0 | H76: 0 | I76: 0 | K76: 0 | L76: 0 | M76: 0 | N76: 0 | Q76: 0 | R76: 0 | S76: 0 | T76: 0 | V76: -157142.86 | W76: 42857.15 | X76: -200000.01 | Y76: -4.666666122
A77: %,V5090009 | B77: 5090009 | C77: Allow Consumpt CSAPR SO2 | F77: 2.6 | G77: 1.11 | H77: =+F77-G77 -> 1.49 | I77: =IF(G77<0,IF(H77=0,0,IF(OR(G77=0,F77=0),"N.M.",IF(ABS(H77/G77)>=10,"N.M.",H77/(-G77)))),IF(H77=0,0,IF(OR(G77=0,F77=0),"N.M.",IF(ABS(H77/G77)>=10,"N.M.",H77/G77)))) -> 1.342342342 | K77: 16.15 | L77: 25.66 | M77: =+K77-L77 -> -9.51 | N77: =IF(L77<0,IF(M77=0,0,IF(OR(L77=0,K77=0),"N.M.",IF(ABS(M77/L77)>=10,"N.M.",M77/(-L77)))),IF(M77=0,0,IF(OR(L77=0,K77=0),"N.M.",IF(ABS(M77/L77)>=10,"N.M.",M77/L77)))) -> -0.3706157443 | Q77: 16.15 | R77: 25.66 | S77: =+Q77-R77 -> -9.51 | T77: =IF(R77<0,IF(S77=0,0,IF(OR(R77=0,Q77=0),"N.M.",IF(ABS(S77/R77)>=10,"N.M.",S77/(-R77)))),IF(S77=0,0,IF(OR(R77=0,Q77=0),"N.M.",IF(ABS(S77/R77)>=10,"N.M.",S77/R77)))) -> -0.3706157443 | V77: 71.51 | W77: 182.4 | X77: =+V77-W77 -> -110.89 | Y77: =IF(W77<0,IF(X77=0,0,IF(OR(W77=0,V77=0),"N.M.",IF(ABS(X77/W77)>=10,"N.M.",X77/(-W77)))),IF(X77=0,0,IF(OR(W77=0,V77=0),"N.M.",IF(ABS(X77/W77)>=10,"N.M.",X77/W77)))) -> -0.6079495614
A78: %,FACCOUNT,X,TGL_FERC_ACCT,N500-509 | B78: Line 13 | C78: TOTAL Operation (Enter Total of Lines 4 thru 12) | D78: o | F78: 18543028.47 | G78: 9999227.101 | H78: 8543801.365 | I78: 0.8544461766 | K78: 39596369.63 | L78: 39478875.16 | M78: 117494.471 | N78: 0.002976135225 | Q78: 39596369.63 | R78: 39478875.16 | S78: 117494.471 | T78: 0.002976135225 | V78: 160551719.4 | W78: 145286180.8 | X78: 15265538.64 | Y78: 0.1050722
B79: Line 14 | C79: Maintenance
A80: %,V5100000 | B80: 5100000 | C80: Maint Supv & Engineering | F80: 105829.58 | G80: 83007.7 | H80: =+F80-G80 -> 22821.88 | I80: =IF(G80<0,IF(H80=0,0,IF(OR(G80=0,F80=0),"N.M.",IF(ABS(H80/G80)>=10,"N.M.",H80/(-G80)))),IF(H80=0,0,IF(OR(G80=0,F80=0),"N.M.",IF(ABS(H80/G80)>=10,"N.M.",H80/G80)))) -> 0.2749369034 | K80: 293512.67 | L80: 260841.52 | M80: =+K80-L80 -> 32671.15 | N80: =IF(L80<0,IF(M80=0,0,IF(OR(L80=0,K80=0),"N.M.",IF(ABS(M80/L80)>=10,"N.M.",M80/(-L80)))),IF(M80=0,0,IF(OR(L80=0,K80=0),"N.M.",IF(ABS(M80/L80)>=10,"N.M.",M80/L80)))) -> 0.1252528739 | Q80: 293512.67 | R80: 260841.52 | S80: =+Q80-R80 -> 32671.15 | T80: =IF(R80<0,IF(S80=0,0,IF(OR(R80=0,Q80=0),"N.M.",IF(ABS(S80/R80)>=10,"N.M.",S80/(-R80)))),IF(S80=0,0,IF(OR(R80=0,Q80=0),"N.M.",IF(ABS(S80/R80)>=10,"N.M.",S80/R80)))) -> 0.1252528739 | V80: 1024353.24 | W80: 1484788.18 | X80: =+V80-W80 -> -460434.94 | Y80: =IF(W80<0,IF(X80=0,0,IF(OR(W80=0,V80=0),"N.M.",IF(ABS(X80/W80)>=10,"N.M.",X80/(-W80)))),IF(X80=0,0,IF(OR(W80=0,V80=0),"N.M.",IF(ABS(X80/W80)>=10,"N.M.",X80/W80)))) -> -0.3101014314
A81: %,V5100001 | B81: 5100001 | C81: Dresden Maint Sup& Engineer | F81: 0 | G81: 0 | H81: 0 | I81: 0 | K81: -9.94 | L81: 0 | M81: -9.94 | N81: N.M. | Q81: -9.94 | R81: 0 | S81: -9.94 | T81: N.M. | V81: 359.63 | W81: 0 | X81: 359.63 | Y81: N.M.
A82: %,FACCOUNT,X,TGL_FERC_ACCT,N5100 | B82: Line 15 | C82: (510) Maintenance Supervision and Engineering | F82: 105829.58 | G82: 83007.7 | H82: 22821.88 | I82: 0.2749369034 | K82: 293502.73 | L82: 260841.52 | M82: 32661.21 | N82: 0.1252147664 | Q82: 293502.73 | R82: 260841.52 | S82: 32661.21 | T82: 0.1252147664 | V82: 1024712.87 | W82: 1484788.18 | X82: -460075.31 | Y82: -0.3098592218
A83: %,V5110000 | B83: 5110000 | C83: Maintenance of Structures | F83: 153559.3 | G83: 174774.73 | H83: -21215.43 | I83: -0.1213872852 | K83: 590264.1 | L83: 453456.42 | M83: 136807.68 | N83: 0.3016997311 | Q83: 590264.1 | R83: 453456.42 | S83: 136807.68 | T83: 0.3016997311 | V83: 1829687.32 | W83: 1875709.33 | X83: -46022.01 | Y83: -0.02453578988
A84: %,FACCOUNT,X,TGL_FERC_ACCT,N5110 | B84: Line 16 | C84: (511) Maintenance of Structures | F84: 153559.3 | G84: 174774.73 | H84: -21215.43 | I84: -0.1213872852 | K84: 590264.1 | L84: 453456.42 | M84: 136807.68 | N84: 0.3016997311 | Q84: 590264.1 | R84: 453456.42 | S84: 136807.68 | T84: 0.3016997311 | V84: 1829687.32 | W84: 1875709.33 | X84: -46022.01 | Y84: -0.02453578988
A85: %,V5120000 | B85: 5120000 | C85: Maintenance of Boiler Plant | F85: 1265004.87 | G85: 1591331.56 | H85: -326326.69 | I85: -0.2050651782 | K85: 3026450.32 | L85: 3869657.61 | M85: -843207.29 | N85: -0.2179022991 | Q85: 3026450.32 | R85: 3869657.61 | S85: -843207.29 | T85: -0.2179022991 | V85: 11704014.65 | W85: 15620064.33 | X85: -3916049.68 | Y85: -0.2507063734
A86: %,V5120034 | B86: 5120034 | C86: BSDR O/U Recovery - Maint Cost | F86: -947.09 | G86: -129.56 | H86: -817.53 | I86: -6.310049398 | K86: -2849.52 | L86: -587.07 | M86: -2262.45 | N86: -3.853799377 | Q86: -2849.52 | R86: -587.07 | S86: -2262.45 | T86: -3.853799377 | V86: -10784.87 | W86: -9481.45 | X86: -1303.42 | Y86: -0.1374705346
A87: %,V5120037 | B87: 5120037 | C87: KY Steam Maint O/U | F87: -58271.11 | G87: -58271.11 | H87: 0 | I87: 0 | K87: -174813.33 | L87: -174813.33 | M87: 0 | N87: 0 | Q87: -174813.33 | R87: -174813.33 | S87: 0 | T87: 0 | V87: -699253.32 | W87: -699253.32 | X87: 0 | Y87: 0
A88: %,FACCOUNT,X,TGL_FERC_ACCT,N5120 | B88: Line 17 | C88: (512) Maintenance of Boiler Plant | F88: 1205786.67 | G88: 1532930.89 | H88: -327144.22 | I88: -0.2134109386 | K88: 2848787.47 | L88: 3694257.21 | M88: -845469.74 | N88: -0.2288605508 | Q88: 2848787.47 | R88: 3694257.21 | S88: -845469.74 | T88: -0.2288605508 | V88: 10993976.46 | W88: 14911329.56 | X88: -3917353.1 | Y88: -0.2627098465
A89: %,V5130000 | B89: 5130000 | C89: Maintenance of Electric Plant | F89: 631049.53 | G89: 634962.46 | H89: -3912.93 | I89: -0.006162458801 | K89: 1163744.34 | L89: 1493258.78 | M89: -329514.44 | N89: -0.2206680077 | Q89: 1163744.34 | R89: 1493258.78 | S89: -329514.44 | T89: -0.2206680077 | V89: 5576599.06 | W89: 4312744.22 | X89: 1263854.84 | Y89: 0.2930511933
A90: %,FACCOUNT,X,TGL_FERC_ACCT,N5130 | B90: Line 18 | C90: (513) Maintenance of Electric Plant | F90: 631049.53 | G90: 634962.46 | H90: -3912.93 | I90: -0.006162458801 | K90: 1163744.34 | L90: 1493258.78 | M90: -329514.44 | N90: -0.2206680077 | Q90: 1163744.34 | R90: 1493258.78 | S90: -329514.44 | T90: -0.2206680077 | V90: 5576599.06 | W90: 4312744.22 | X90: 1263854.84 | Y90: 0.2930511933
A91: %,FACCOUNT,X,TGL_FERC_ACCT,N5131 | B91: Line 18.1 | C91: (513.1) Maintenance of Computer Hardware | D91: m | F91: 0 | G91: 0 | H91: 0 | I91: 0 | K91: 0 | L91: 0 | M91: 0 | Q91: 0 | R91: 0 | S91: 0 | V91: 0 | W91: 0 | X91: 0 | Y91: 0
A92: %,V5132000 | B92: 5132000 | C92: Maint of Computer Software-Mjr | F92: 12038.55 | G92: 15142.5 | H92: -3103.95 | I92: -0.2049826647 | K92: 13074.2 | L92: 17167.5 | M92: -4093.3 | Q92: 13074.2 | R92: 17167.5 | S92: -4093.3 | V92: 51171.7 | W92: 17167.5 | X92: 34004.2 | Y92: 1.980731032
A93: %,FACCOUNT,X,TGL_FERC_ACCT,N5132 | B93: Line 18.2 | C93: (513.2) Maintenance of Computer Software | D93: m | F93: 12038.55 | G93: 15142.5 | H93: -3103.95 | I93: -0.2049826647 | K93: 13074.2 | L93: 17167.5 | M93: -4093.3 | Q93: 13074.2 | R93: 17167.5 | S93: -4093.3 | V93: 51171.7 | W93: 17167.5 | X93: 34004.2 | Y93: 1.980731032
A94: %,V5133000 | B94: 5133000 | C94: Maint of Comm Equipmt-Mjr | F94: 448.32 | G94: 101.59 | H94: 346.73 | I94: 3.413032779 | K94: 2955.74 | L94: 411.86 | M94: 2543.88 | Q94: 2955.74 | R94: 411.86 | S94: 2543.88 | V94: 8227.61 | W94: 411.86 | X94: 7815.75 | Y94: N.M.
A95: %,FACCOUNT,X,TGL_FERC_ACCT,N5133 | B95: Line 18.3 | C95: (513.3) Maintenance of Communication Equipment | D95: m | F95: 448.32 | G95: 101.59 | H95: 346.73 | I95: 3.413032779 | K95: 2955.74 | L95: 411.86 | M95: 2543.88 | Q95: 2955.74 | R95: 411.86 | S95: 2543.88 | V95: 8227.61 | W95: 411.86 | X95: 7815.75 | Y95: N.M.
A96: %,V5140000 | B96: 5140000 | C96: Maintenance of Misc Steam Plt | F96: 120725.13 | G96: 217748.98 | H96: -97023.85 | I96: -0.4455765993 | K96: 486970.9 | L96: 405345.66 | M96: 81625.24 | N96: =IF(L96<0,IF(M96=0,0,IF(OR(L96=0,K96=0),"N.M.",IF(ABS(M96/L96)>=10,"N.M.",M96/(-L96)))),IF(M96=0,0,IF(OR(L96=0,K96=0),"N.M.",IF(ABS(M96/L96)>=10,"N.M.",M96/L96)))) -> 0.2013719353 | Q96: 486970.9 | R96: 405345.66 | S96: 81625.24 | T96: =IF(R96<0,IF(S96=0,0,IF(OR(R96=0,Q96=0),"N.M.",IF(ABS(S96/R96)>=10,"N.M.",S96/(-R96)))),IF(S96=0,0,IF(OR(R96=0,Q96=0),"N.M.",IF(ABS(S96/R96)>=10,"N.M.",S96/R96)))) -> 0.2013719353 | V96: 1564167.87 | W96: 1553422.78 | X96: 10745.09 | Y96: 0.006917041605
A97: %,FACCOUNT,X,TGL_FERC_ACCT,N5140 | B97: Line 19 | C97: (514) Maintenance of Miscellaneous Steam Plant | F97: 120725.13 | G97: 217748.98 | H97: -97023.85 | I97: -0.4455765993 | K97: 486970.9 | L97: 405345.66 | M97: 81625.24 | N97: 0.2013719353 | Q97: 486970.9 | R97: 405345.66 | S97: 81625.24 | T97: 0.2013719353 | V97: 1564167.87 | W97: 1553422.78 | X97: 10745.09 | Y97: 0.006917041605
A98: %,V5100000 | B98: 5100000 | C98: Maint Supv & Engineering | F98: 105829.58 | G98: 83007.7 | H98: 22821.88 | I98: 0.2749369034 | K98: 293512.67 | L98: 260841.52 | M98: 32671.15 | N98: 0.1252528739 | Q98: 293512.67 | R98: 260841.52 | S98: 32671.15 | T98: 0.1252528739 | V98: 1024353.24 | W98: 1484788.18 | X98: -460434.94 | Y98: -0.3101014314
A99: %,V5100001 | B99: 5100001 | C99: Dresden Maint Sup& Engineer | F99: 0 | G99: 0 | H99: 0 | I99: 0 | K99: -9.94 | L99: 0 | M99: -9.94 | N99: N.M. | Q99: -9.94 | R99: 0 | S99: -9.94 | T99: N.M. | V99: 359.63 | W99: 0 | X99: 359.63 | Y99: N.M.
A100: %,V5110000 | B100: 5110000 | C100: Maintenance of Structures | F100: 153559.3 | G100: 174774.73 | H100: -21215.43 | I100: -0.1213872852 | K100: 590264.1 | L100: 453456.42 | M100: 136807.68 | N100: 0.3016997311 | Q100: 590264.1 | R100: 453456.42 | S100: 136807.68 | T100: 0.3016997311 | V100: 1829687.32 | W100: 1875709.33 | X100: -46022.01 | Y100: -0.02453578988
A101: %,V5120000 | B101: 5120000 | C101: Maintenance of Boiler Plant | F101: 1265004.87 | G101: 1591331.56 | H101: -326326.69 | I101: -0.2050651782 | K101: 3026450.32 | L101: 3869657.61 | M101: -843207.29 | N101: -0.2179022991 | Q101: 3026450.32 | R101: 3869657.61 | S101: -843207.29 | T101: -0.2179022991 | V101: 11704014.65 | W101: 15620064.33 | X101: -3916049.68 | Y101: -0.2507063734
A102: %,V5120034 | B102: 5120034 | C102: BSDR O/U Recovery - Maint Cost | F102: -947.09 | G102: -129.56 | H102: -817.53 | I102: -6.310049398 | K102: -2849.52 | L102: -587.07 | M102: -2262.45 | N102: -3.853799377 | Q102: -2849.52 | R102: -587.07 | S102: -2262.45 | T102: -3.853799377 | V102: -10784.87 | W102: -9481.45 | X102: -1303.42 | Y102: -0.1374705346
A103: %,V5120037 | B103: 5120037 | C103: KY Steam Maint O/U | F103: -58271.11 | G103: -58271.11 | H103: 0 | I103: 0 | K103: -174813.33 | L103: -174813.33 | M103: 0 | N103: 0 | Q103: -174813.33 | R103: -174813.33 | S103: 0 | T103: 0 | V103: -699253.32 | W103: -699253.32 | X103: 0 | Y103: 0
A104: %,V5130000 | B104: 5130000 | C104: Maintenance of Electric Plant | F104: 631049.53 | G104: 634962.46 | H104: -3912.93 | I104: -0.006162458801 | K104: 1163744.34 | L104: 1493258.78 | M104: -329514.44 | N104: -0.2206680077 | Q104: 1163744.34 | R104: 1493258.78 | S104: -329514.44 | T104: -0.2206680077 | V104: 5576599.06 | W104: 4312744.22 | X104: 1263854.84 | Y104: 0.2930511933
A105: %,V5132000 | B105: 5132000 | C105: Maint of Computer Software-Mjr | F105: 12038.55 | G105: 15142.5 | H105: -3103.95 | I105: -0.2049826647 | K105: 13074.2 | L105: 17167.5 | M105: -4093.3 | N105: -0.2384330858 | Q105: 13074.2 | R105: 17167.5 | S105: -4093.3 | T105: -0.2384330858 | V105: 51171.7 | W105: 17167.5 | X105: 34004.2 | Y105: 1.980731032
A106: %,V5133000 | B106: 5133000 | C106: Maint of Comm Equipmt-Mjr | F106: 448.32 | G106: 101.59 | H106: 346.73 | I106: 3.413032779 | K106: 2955.74 | L106: 411.86 | M106: 2543.88 | N106: 6.176564852 | Q106: 2955.74 | R106: 411.86 | S106: 2543.88 | T106: 6.176564852 | V106: 8227.61 | W106: 411.86 | X106: 7815.75 | Y106: N.M.
A107: %,V5140000 | B107: 5140000 | C107: Maintenance of Misc Steam Plt | F107: 120725.13 | G107: 217748.98 | H107: -97023.85 | I107: -0.4455765993 | K107: 486970.9 | L107: 405345.66 | M107: 81625.24 | N107: 0.2013719353 | Q107: 486970.9 | R107: 405345.66 | S107: 81625.24 | T107: 0.2013719353 | V107: 1564167.87 | W107: 1553422.78 | X107: 10745.09 | Y107: 0.006917041605
A108: %,FACCOUNT,X,TGL_FERC_ACCT,N510-515 | B108: Line 20 | C108: TOTAL Maintenance (Enter Total of lines 15 thru 19) | D108: m | F108: 2229437.08 | G108: 2658668.85 | H108: -429231.77 | I108: -0.1614461199 | K108: 5399299.48 | L108: 6324738.95 | M108: -925439.47 | N108: -0.1463205798 | Q108: 5399299.48 | R108: 6324738.95 | S108: -925439.47 | T108: -0.1463205798 | V108: 21048542.89 | W108: 24155573.43 | X108: -3107030.54 | Y108: -0.1286258241
A109: %,V5000000 | B109: 5000000 | C109: Oper Supervision & Engineering | F109: 418873.13 | G109: 306873.26 | H109: 111999.87 | I109: 0.3649710959 | K109: 1191558.33 | L109: 987488.72 | M109: 204069.61 | N109: 0.2066551302 | Q109: 1191558.33 | R109: 987488.72 | S109: 204069.61 | T109: 0.2066551302 | V109: 4707142.2 | W109: 4224514.05 | X109: 482628.15 | Y109: 0.114244655
A110: %,V5000002 | B110: 5000002 | C110: Dresden Oper Supervision & Eng | F110: 0 | G110: 0 | H110: 0 | I110: 0 | K110: 0 | L110: 0 | M110: 0 | N110: 0 | Q110: 0 | R110: 0 | S110: 0 | T110: 0 | V110: -33.12 | W110: 0 | X110: -33.12 | Y110: N.M.
A111: %,V5000003 | B111: 5000003 | C111: Cnstr Srchrge Op Sup & Eng Exp | F111: 0 | G111: 0 | H111: 0 | I111: 0 | K111: 0 | L111: 0 | M111: 0 | N111: 0 | Q111: 0 | R111: 0 | S111: 0 | T111: 0 | V111: 64.34 | W111: 0 | X111: 64.34 | Y111: N.M.
A112: %,V5010000 | B112: 5010000 | C112: Fuel | F112: 410094.74 | G112: 1391713.84 | H112: -981619.1 | I112: -0.7053311333 | K112: 1442012.56 | L112: 2702271.3 | M112: =+K112-L112 -> -1260258.74 | N112: -0.4663701753 | Q112: 1442012.56 | R112: 2702271.3 | S112: =+Q112-R112 -> -1260258.74 | T112: -0.4663701753 | V112: 6490206.77 | W112: 7832033.37 | X112: =+V112-W112 -> -1341826.6 | Y112: =IF(W112<0,IF(X112=0,0,IF(OR(W112=0,V112=0),"N.M.",IF(ABS(X112/W112)>=10,"N.M.",X112/(-W112)))),IF(X112=0,0,IF(OR(W112=0,V112=0),"N.M.",IF(ABS(X112/W112)>=10,"N.M.",X112/W112)))) -> -0.1713254447
A113: %,V5010001 | B113: 5010001 | C113: Fuel Consumed | F113: 2917030.66 | G113: 1240119.13 | H113: 1676911.53 | I113: 1.352218097 | K113: 19591414.54 | L113: 16994933.92 | M113: 2596480.62 | N113: 0.1527796832 | Q113: 19591414.54 | R113: 16994933.92 | S113: 2596480.62 | T113: 0.1527796832 | V113: 76906220.56 | W113: 75754630.88 | X113: 1151589.68 | Y113: 0.0152015747
A114: %,V5010003 | B114: 5010003 | C114: Fuel - Procure Unload & Handle | F114: 163794.85 | G114: 64924.42 | H114: 98870.43 | I114: 1.522854267 | K114: 1017742.66 | L114: 858577.64 | M114: 159165.02 | N114: 0.1853822096 | Q114: 1017742.66 | R114: 858577.64 | S114: 159165.02 | T114: 0.1853822096 | V114: 4230797.15 | W114: 3585544.77 | X114: 645252.38 | Y114: 0.1799593706
A115: %,V5010005 | B115: 5010005 | C115: Fuel - Deferred | F115: 8418308.386 | G115: 1805156.56 | H115: 6613151.826 | I115: 3.663478267 | K115: -9892679.502 | L115: -566694.609 | M115: -9325984.893 | N115: N.M. | Q115: -9892679.502 | R115: -566694.609 | S115: -9325984.893 | T115: N.M. | V115: -4188838.06 | W115: -1189885.889 | X115: -2998952.171 | Y115: -2.520369557
A116: %,V5010012 | B116: 5010012 | C116: Ash Sales Proceeds | F116: 447.26 | G116: 259.49 | H116: 187.77 | I116: 0.7236116999 | K116: 1796.49 | L116: 3334.96 | M116: -1538.47 | N116: -0.4613158779 | Q116: 1796.49 | R116: 3334.96 | S116: -1538.47 | T116: -0.4613158779 | V116: 5736.47 | W116: 22189.01 | X116: -16452.54 | Y116: -0.7414724677
A117: %,V5010013 | B117: 5010013 | C117: Fuel Survey Activity | F117: 0 | G117: 0 | H117: 0 | I117: 0 | K117: 0 | L117: 0 | M117: 0 | N117: 0 | Q117: 0 | R117: 0 | S117: 0 | T117: 0 | V117: 3906533.13 | W117: 49281.13 | X117: 3857252 | Y117: N.M.
A118: %,V5010019 | B118: 5010019 | C118: Fuel Oil Consumed | F118: 299075.07 | G118: 666930.93 | H118: -367855.86 | I118: -0.5515651523 | K118: 839669.18 | L118: 1105998.02 | M118: -266328.84 | N118: -0.2408040839 | Q118: 839669.18 | R118: 1105998.02 | S118: -266328.84 | T118: -0.2408040839 | V118: 3871999.24 | W118: 3765558.18 | X118: 106441.06 | Y118: 0.02826700715
A119: %,V5010020 | B119: 5010020 | C119: Nat Gas Consumed Steam | F119: 4327789.61 | G119: 3092259.22 | H119: 1235530.39 | I119: 0.3995558917 | K119: 20430282.11 | L119: 12913004.46 | M119: 7517277.65 | N119: 0.5821478397 | Q119: 20430282.11 | R119: 12913004.46 | S119: 7517277.65 | T119: 0.5821478397 | V119: 46393473.58 | W119: 31183494.57 | X119: 15209979.01 | Y119: 0.4877573607
A120: %,V5010021 | B120: 5010021 | C120: Transp Gas Consumed Steam | F120: 58494.25 | G120: 41972.07 | H120: 16522.18 | I120: 0.3936470134 | K120: 177133.61 | L120: 109045.39 | M120: 68088.22 | N120: 0.6244025538 | Q120: 177133.61 | R120: 109045.39 | S120: 68088.22 | T120: 0.6244025538 | V120: 568860.51 | W120: 273765.43 | X120: 295095.08 | Y120: 1.077912138
A121: %,V5010027 | B121: 5010027 | C121: Gypsum handling/disposal costs | F121: 200094.77 | G121: 152673.25 | H121: 47421.52 | I121: 0.3106079159 | K121: 427686.36 | L121: 367662.97 | M121: 60023.39 | N121: 0.1632565553 | Q121: 427686.36 | R121: 367662.97 | S121: 60023.39 | T121: 0.1632565553 | V121: 1452371.04 | W121: 1530969.7 | X121: -78598.66 | Y121: -0.05133913493
A122: %,V5010028 | B122: 5010028 | C122: Gypsum Sales Proceeds | F122: -198568.98 | G122: -36655.22 | H122: -161913.76 | I122: -4.41720879 | K122: -358049.66 | L122: -399445.59 | M122: 41395.93 | N122: 0.1036334636 | Q122: -358049.66 | R122: -399445.59 | S122: 41395.93 | T122: 0.1036334636 | V122: -1181046.24 | W122: -1241705.41 | X122: 60659.17 | Y122: 0.04885149852
A123: %,V5010033 | B123: 5010033 | C123: Coal Procurement Sales Net-NA | F123: 131387.16 | G123: 0 | H123: 131387.16 | I123: N.M. | K123: 131387.16 | L123: 0 | M123: 131387.16 | N123: N.M. | Q123: 131387.16 | R123: 0 | S123: 131387.16 | T123: N.M. | V123: 131387.16 | W123: 0 | X123: 131387.16 | Y123: N.M.
A124: %,V5010034 | B124: 5010034 | C124: Gas Transp Res Fees-Steam | F124: 503856 | G124: 552175.2 | H124: -48319.2 | I124: -0.08750700865 | K124: 1469016 | L124: 1615564.08 | M124: -146548.08 | N124: -0.09071016236 | Q124: 1469016 | R124: 1615564.08 | S124: -146548.08 | T124: -0.09071016236 | V124: 5956657.98 | W124: 6333372.2 | X124: -376714.22 | Y124: -0.05948082761
A125: %,V5010040 | B125: 5010040 | C125: Gas Procuremnt Sales Net | F125: 0.29 | G125: 158017.731 | H125: -158017.441 | I125: -0.9999981648 | K125: 0.13 | L125: 453288.19 | M125: -453288.06 | N125: -0.9999997132 | Q125: 0.13 | R125: 453288.19 | S125: -453288.06 | T125: -0.9999997132 | V125: 171003.84 | W125: 2092603.39 | X125: -1921599.55 | Y125: -0.9182817724
A126: %,V5020000 | B126: 5020000 | C126: Steam Expenses | F126: 192558.46 | G126: 132712.56 | H126: 59845.9 | I126: 0.4509437539 | K126: 533764.75 | L126: 495575.86 | M126: 38188.89 | N126: 0.07705962514 | Q126: 533764.75 | R126: 495575.86 | S126: 38188.89 | T126: 0.07705962514 | V126: 2054626.22 | W126: 1636473.98 | X126: 418152.24 | Y126: 0.2555202497
A127: %,V5020002 | B127: 5020002 | C127: Urea Expense | F127: 51668.6 | G127: 13553.71 | H127: 38114.89 | I127: 2.812137046 | K127: 296786.61 | L127: 233235.96 | M127: 63550.65 | N127: 0.2724736357 | Q127: 296786.61 | R127: 233235.96 | S127: 63550.65 | T127: 0.2724736357 | V127: 978040.23 | W127: 1110692.35 | X127: -132652.12 | Y127: -0.1194319201
A128: %,V5020004 | B128: 5020004 | C128: Lime-Related Expenses | F128: 118623.55 | G128: 28337.16 | H128: 90286.39 | I128: 3.186148153 | K128: 682785.06 | L128: 430054.06 | M128: 252731 | N128: =IF(L128<0,IF(M128=0,0,IF(OR(L128=0,K128=0),"N.M.",IF(ABS(M128/L128)>=10,"N.M.",M128/(-L128)))),IF(M128=0,0,IF(OR(L128=0,K128=0),"N.M.",IF(ABS(M128/L128)>=10,"N.M.",M128/L128)))) -> 0.5876726289 | Q128: 682785.06 | R128: 430054.06 | S128: 252731 | T128: =IF(R128<0,IF(S128=0,0,IF(OR(R128=0,Q128=0),"N.M.",IF(ABS(S128/R128)>=10,"N.M.",S128/(-R128)))),IF(S128=0,0,IF(OR(R128=0,Q128=0),"N.M.",IF(ABS(S128/R128)>=10,"N.M.",S128/R128)))) -> 0.5876726289 | V128: 2662764.3 | W128: 2227498.5 | X128: 435265.8 | Y128: 0.1954056535
A129: %,V5050000 | B129: 5050000 | C129: Electric Expenses | F129: 7427.9 | G129: 1801.63 | H129: 5626.27 | I129: 3.122877616 | K129: 14713.13 | L129: 2812.08 | M129: 11901.05 | N129: 4.23211644 | Q129: 14713.13 | R129: 2812.08 | S129: 11901.05 | T129: 4.23211644 | V129: 86944.44 | W129: 35854.75 | X129: 51089.69 | Y129: 1.42490716
A130: %,V5060000 | B130: 5060000 | C130: Misc Steam Power Expenses | F130: 516232.62 | G130: 381726.44 | H130: 134506.18 | I130: 0.3523627549 | K130: 1580780.82 | L130: 1151923.326 | M130: 428857.494 | N130: 0.3722969093 | Q130: 1580780.82 | R130: 1151923.326 | S130: 428857.494 | T130: 0.3722969093 | V130: 5438528.92 | W130: 5924317.646 | X130: -485788.726 | Y130: -0.08199910184
A131: %,V5060002 | B131: 5060002 | C131: Misc Steam Power Exp-Assoc | F131: 5178.06 | G131: 4254.84 | H131: 923.22 | I131: 0.2169811321 | K131: 14876.54 | L131: 14384.23 | M131: 492.31 | N131: 0.03422567631 | Q131: 14876.54 | R131: 14384.23 | S131: 492.31 | T131: 0.03422567631 | V131: 48491.62 | W131: 53188.44 | X131: -4696.82 | Y131: -0.08830527836
A132: %,V5060011 | B132: 5060011 | C132: BSRR O/U Recovery-Oper Costs | F132: 0 | G132: 0 | H132: 0 | I132: 0 | K132: 0 | L132: 0 | M132: 0 | N132: 0 | Q132: 0 | R132: 0 | S132: 0 | T132: 0 | V132: 0 | W132: 210.68 | X132: -210.68 | Y132: N.M.
A133: %,V5070006 | B133: 5070006 | C133: Rents - Associated | F133: 128.59 | G133: 193.17 | H133: -64.58 | I133: -0.3343169229 | K133: 382.67 | L133: 579.51 | M133: -196.84 | N133: -0.3396662698 | Q133: 382.67 | R133: 579.51 | S133: -196.84 | T133: -0.3396662698 | V133: 2121.2 | W133: 579.51 | X133: 1541.69 | Y133: 2.66033373
A134: %,V5090000 | B134: 5090000 | C134: Allow Consum Title IV SO2 | F134: 530.89 | G134: 226.6 | H134: 304.29 | I134: 1.342850838 | K134: 3293.93 | L134: 5255.02 | M134: -1961.09 | N134: -0.3731841173 | Q134: 3293.93 | R134: 5255.02 | S134: -1961.09 | T134: -0.3731841173 | V134: 14737.31 | W134: 37960.01 | X134: -23222.7 | Y134: -0.611767489
A135: %,V5090001 | B135: 5090001 | C135: Allowance Consumption - NOx | F135: 0 | G135: 0 | H135: 0 | I135: 0 | K135: 0 | L135: 0 | M135: 0 | N135: 0 | Q135: 0 | R135: 0 | S135: 0 | T135: 0 | V135: -157142.86 | W135: 42857.15 | X135: -200000.01 | Y135: -4.666666122
A136: %,V5090009 | B136: 5090009 | C136: Allow Consumpt CSAPR SO2 | F136: 2.6 | G136: 1.11 | H136: 1.49 | I136: 1.342342342 | K136: 16.15 | L136: 25.66 | M136: -9.51 | N136: -0.3706157443 | Q136: 16.15 | R136: 25.66 | S136: -9.51 | T136: -0.3706157443 | V136: 71.51 | W136: 182.4 | X136: -110.89 | Y136: -0.6079495614
A137: %,V5100000 | B137: 5100000 | C137: Maint Supv & Engineering | F137: 105829.58 | G137: 83007.7 | H137: 22821.88 | I137: 0.2749369034 | K137: 293512.67 | L137: 260841.52 | M137: 32671.15 | N137: 0.1252528739 | Q137: 293512.67 | R137: 260841.52 | S137: 32671.15 | T137: 0.1252528739 | V137: 1024353.24 | W137: 1484788.18 | X137: -460434.94 | Y137: -0.3101014314
A138: %,V5100001 | B138: 5100001 | C138: Dresden Maint Sup& Engineer | F138: 0 | G138: 0 | H138: 0 | I138: 0 | K138: -9.94 | L138: 0 | M138: -9.94 | N138: N.M. | Q138: -9.94 | R138: 0 | S138: -9.94 | T138: N.M. | V138: 359.63 | W138: 0 | X138: 359.63 | Y138: N.M.
A139: %,V5110000 | B139: 5110000 | C139: Maintenance of Structures | F139: 153559.3 | G139: 174774.73 | H139: -21215.43 | I139: -0.1213872852 | K139: 590264.1 | L139: 453456.42 | M139: 136807.68 | N139: 0.3016997311 | Q139: 590264.1 | R139: 453456.42 | S139: 136807.68 | T139: 0.3016997311 | V139: 1829687.32 | W139: 1875709.33 | X139: -46022.01 | Y139: -0.02453578988
A140: %,V5120000 | B140: 5120000 | C140: Maintenance of Boiler Plant | F140: 1265004.87 | G140: 1591331.56 | H140: -326326.69 | I140: -0.2050651782 | K140: 3026450.32 | L140: 3869657.61 | M140: -843207.29 | N140: -0.2179022991 | Q140: 3026450.32 | R140: 3869657.61 | S140: -843207.29 | T140: -0.2179022991 | V140: 11704014.65 | W140: 15620064.33 | X140: -3916049.68 | Y140: -0.2507063734
A141: %,V5120034 | B141: 5120034 | C141: BSDR O/U Recovery - Maint Cost | F141: -947.09 | G141: -129.56 | H141: -817.53 | I141: -6.310049398 | K141: -2849.52 | L141: -587.07 | M141: -2262.45 | N141: -3.853799377 | Q141: -2849.52 | R141: -587.07 | S141: -2262.45 | T141: -3.853799377 | V141: -10784.87 | W141: -9481.45 | X141: -1303.42 | Y141: -0.1374705346
A142: %,V5120037 | B142: 5120037 | C142: KY Steam Maint O/U | F142: -58271.11 | G142: -58271.11 | H142: 0 | I142: 0 | K142: -174813.33 | L142: -174813.33 | M142: 0 | N142: 0 | Q142: -174813.33 | R142: -174813.33 | S142: 0 | T142: 0 | V142: -699253.32 | W142: -699253.32 | X142: 0 | Y142: 0
A143: %,V5130000 | B143: 5130000 | C143: Maintenance of Electric Plant | F143: 631049.53 | G143: 634962.46 | H143: -3912.93 | I143: -0.006162458801 | K143: 1163744.34 | L143: 1493258.78 | M143: -329514.44 | N143: -0.2206680077 | Q143: 1163744.34 | R143: 1493258.78 | S143: -329514.44 | T143: -0.2206680077 | V143: 5576599.06 | W143: 4312744.22 | X143: 1263854.84 | Y143: 0.2930511933
A144: %,V5132000 | B144: 5132000 | C144: Maint of Computer Software-Mjr | F144: 12038.55 | G144: 15142.5 | H144: =+F144-G144 -> -3103.95 | I144: =IF(G144<0,IF(H144=0,0,IF(OR(G144=0,F144=0),"N.M.",IF(ABS(H144/G144)>=10,"N.M.",H144/(-G144)))),IF(H144=0,0,IF(OR(G144=0,F144=0),"N.M.",IF(ABS(H144/G144)>=10,"N.M.",H144/G144)))) -> -0.2049826647 | K144: 13074.2 | L144: 17167.5 | M144: =+K144-L144 -> -4093.3 | N144: -0.2384330858 | Q144: 13074.2 | R144: 17167.5 | S144: =+Q144-R144 -> -4093.3 | T144: -0.2384330858 | V144: 51171.7 | W144: 17167.5 | X144: =+V144-W144 -> 34004.2 | Y144: =IF(W144<0,IF(X144=0,0,IF(OR(W144=0,V144=0),"N.M.",IF(ABS(X144/W144)>=10,"N.M.",X144/(-W144)))),IF(X144=0,0,IF(OR(W144=0,V144=0),"N.M.",IF(ABS(X144/W144)>=10,"N.M.",X144/W144)))) -> 1.980731032
A145: %,V5133000 | B145: 5133000 | C145: Maint of Comm Equipmt-Mjr | F145: 448.32 | G145: 101.59 | H145: 346.73 | I145: 3.413032779 | K145: 2955.74 | L145: 411.86 | M145: 2543.88 | N145: 6.176564852 | Q145: 2955.74 | R145: 411.86 | S145: 2543.88 | T145: 6.176564852 | V145: 8227.61 | W145: 411.86 | X145: 7815.75 | Y145: N.M.
A146: %,V5140000 | B146: 5140000 | C146: Maintenance of Misc Steam Plt | F146: 120725.13 | G146: 217748.98 | H146: -97023.85 | I146: -0.4455765993 | K146: 486970.9 | L146: 405345.66 | M146: 81625.24 | N146: 0.2013719353 | Q146: 486970.9 | R146: 405345.66 | S146: 81625.24 | T146: 0.2013719353 | V146: 1564167.87 | W146: 1553422.78 | X146: 10745.09 | Y146: 0.006917041605
A147: %,FACCOUNT,X,TGL_FERC_ACCT,N510-515,N500-509 | B147: Line 21 | C147: TOTAL Power Production Expenses-Steam Power (Entr Tot lines 13 & 20) | F147: 20772465.55 | G147: 12657895.95 | H147: 8114569.595 | I147: 0.6410678067 | K147: 44995669.11 | L147: 45803614.11 | M147: -807944.999 | N147: -0.01763932857 | Q147: 44995669.11 | R147: 45803614.11 | S147: -807944.999 | T147: -0.01763932857 | V147: 181600262.3 | W147: 169441754.2 | X147: 12158508.1 | Y147: 0.07175626904
B148: Line 22 | C148: B. Nuclear Power Generation | H148: 0 | I148: 0 | M148: 0 | N148: 0 | S148: 0 | T148: 0 | X148: 0 | Y148: 0
B149: Line 23 | C149: Operation | H149: 0 | I149: 0 | M149: 0 | N149: 0 | S149: 0 | T149: 0 | X149: 0 | Y149: 0
A150: %,FACCOUNT,X,TGL_FERC_ACCT,N5170 | B150: Line 24 | C150: (517) Operation Supervision and Engineering | F150: 0 | G150: 0 | H150: 0 | I150: 0 | K150: 0 | L150: 0 | M150: 0 | N150: 0 | Q150: 0 | R150: 0 | S150: 0 | T150: 0 | V150: 0 | W150: 0 | X150: 0 | Y150: 0
A151: %,FACCOUNT,X,TGL_FERC_ACCT,N5180 | B151: Line 25 | C151: (518) Fuel | F151: 0 | G151: 0 | H151: 0 | I151: 0 | K151: 0 | L151: 0 | M151: 0 | N151: 0 | Q151: 0 | R151: 0 | S151: 0 | T151: 0 | V151: 0 | W151: 0 | X151: 0 | Y151: 0
A152: %,FACCOUNT,X,TGL_FERC_ACCT,N5190 | B152: Line 26 | C152: (519) Coolants and Water | F152: 0 | G152: 0 | H152: 0 | I152: 0 | K152: 0 | L152: 0 | M152: 0 | N152: 0 | Q152: 0 | R152: 0 | S152: 0 | T152: 0 | V152: 0 | W152: 0 | X152: 0 | Y152: 0
A153: %,FACCOUNT,X,TGL_FERC_ACCT,N5200 | B153: Line 27 | C153: (520) Steam Expenses | F153: 0 | G153: 0 | H153: 0 | I153: 0 | K153: 0 | L153: 0 | M153: 0 | N153: 0 | Q153: 0 | R153: 0 | S153: 0 | T153: 0 | V153: 0 | W153: 0 | X153: 0 | Y153: 0
A154: %,FACCOUNT,X,TGL_FERC_ACCT,N5210 | B154: Line 28 | C154: (521) Steam from Other Sources | F154: 0 | G154: 0 | H154: 0 | I154: 0 | K154: 0 | L154: 0 | M154: 0 | N154: 0 | Q154: 0 | R154: 0 | S154: 0 | T154: 0 | V154: 0 | W154: 0 | X154: 0 | Y154: 0
B155: Line 29 | C155: (Less) (522) Steam Transferred-Cr. | H155: 0 | I155: 0 | M155: 0 | N155: 0 | S155: 0 | T155: 0 | X155: 0 | Y155: 0
A156: %,FACCOUNT,X,TGL_FERC_ACCT,N5230 | B156: Line 30 | C156: (523) Electric Expenses | F156: 0 | G156: 0 | H156: 0 | I156: 0 | K156: 0 | L156: 0 | M156: 0 | N156: 0 | Q156: 0 | R156: 0 | S156: 0 | T156: 0 | V156: 0 | W156: 0 | X156: 0 | Y156: 0
A157: %,FACCOUNT,X,TGL_FERC_ACCT,N5240 | B157: Line 31 | C157: (524) Miscellaneous Nuclear Power Expenses | F157: 0 | G157: 0 | H157: 0 | I157: 0 | K157: 0 | L157: 0 | M157: 0 | N157: 0 | Q157: 0 | R157: 0 | S157: 0 | T157: 0 | V157: 0 | W157: 0 | X157: 0 | Y157: 0
A158: %,FACCOUNT,X,TGL_FERC_ACCT,N5250 | B158: Line 32 | C158: (525) Rents | F158: 0 | G158: 0 | H158: 0 | I158: 0 | K158: 0 | L158: 0 | M158: 0 | N158: 0 | Q158: 0 | R158: 0 | S158: 0 | T158: 0 | V158: 0 | W158: 0 | X158: 0 | Y158: 0
A159: %,FACCOUNT,X,TGL_FERC_ACCT,N517-525 | B159: Line 33 | C159: TOTAL Operation (Enter Total of Lines 24 thru 32) | D159: o | F159: 0 | G159: 0 | H159: 0 | I159: 0 | K159: 0 | L159: 0 | M159: 0 | N159: 0 | Q159: 0 | R159: 0 | S159: 0 | T159: 0 | V159: 0 | W159: 0 | X159: 0 | Y159: 0
B160: Line 34 | C160: Maintenance | H160: 0 | I160: 0 | M160: 0 | N160: =IF(L160<0,IF(M160=0,0,IF(OR(L160=0,K160=0),"N.M.",IF(ABS(M160/L160)>=10,"N.M.",M160/(-L160)))),IF(M160=0,0,IF(OR(L160=0,K160=0),"N.M.",IF(ABS(M160/L160)>=10,"N.M.",M160/L160)))) -> 0 | S160: 0 | T160: =IF(R160<0,IF(S160=0,0,IF(OR(R160=0,Q160=0),"N.M.",IF(ABS(S160/R160)>=10,"N.M.",S160/(-R160)))),IF(S160=0,0,IF(OR(R160=0,Q160=0),"N.M.",IF(ABS(S160/R160)>=10,"N.M.",S160/R160)))) -> 0 | X160: 0 | Y160: 0
A161: %,FACCOUNT,X,TGL_FERC_ACCT,N5280 | B161: Line 35 | C161: (528) Maintenance Supervision and Engineering | F161: 0 | G161: 0 | H161: 0 | I161: 0 | K161: 0 | L161: 0 | M161: 0 | N161: 0 | Q161: 0 | R161: 0 | S161: 0 | T161: 0 | V161: 0 | W161: 0 | X161: 0 | Y161: 0
A162: %,FACCOUNT,X,TGL_FERC_ACCT,N5290 | B162: Line 36 | C162: (529) Maintenance of Structures | F162: 0 | G162: 0 | H162: 0 | I162: 0 | K162: 0 | L162: 0 | M162: 0 | N162: 0 | Q162: 0 | R162: 0 | S162: 0 | T162: 0 | V162: 0 | W162: 0 | X162: 0 | Y162: 0
A163: %,FACCOUNT,X,TGL_FERC_ACCT,N5300 | B163: Line 37 | C163: (530) Maintenance of Reactor Plant Equipment | F163: 0 | G163: 0 | H163: 0 | I163: 0 | K163: 0 | L163: 0 | M163: 0 | N163: 0 | Q163: 0 | R163: 0 | S163: 0 | T163: 0 | V163: 0 | W163: 0 | X163: 0 | Y163: 0
A164: %,FACCOUNT,X,TGL_FERC_ACCT,N5310 | B164: Line 38 | C164: (531) Maintenance of Electric Plant | F164: 0 | G164: 0 | H164: 0 | I164: 0 | K164: 0 | L164: 0 | M164: 0 | N164: 0 | Q164: 0 | R164: 0 | S164: 0 | T164: 0 | V164: 0 | W164: 0 | X164: 0 | Y164: 0
A165: %,V5311000 | B165: 5311000 | C165: Maint of Computer Hardware | F165: -70.33 | G165: 0 | H165: -70.33 | I165: N.M. | K165: -93.06 | L165: 0 | Q165: -93.06 | R165: 0 | V165: -16.37 | W165: 0
A166: %,FACCOUNT,X,TGL_FERC_ACCT,N5311 | B166: Line 38.1 | C166: (531.1) Maintenance of Computer Hardware | D166: m | F166: -70.33 | G166: 0 | H166: -70.33 | I166: N.M. | K166: -93.06 | L166: 0 | Q166: -93.06 | R166: 0 | V166: -16.37 | W166: 0
A167: %,V5312000 | B167: 5312000 | C167: Maint of Computer Software | F167: 0 | G167: 0 | H167: 0 | I167: 0 | K167: 0 | L167: 0 | Q167: 0 | R167: 0 | V167: 0.19 | W167: 0
A168: %,FACCOUNT,X,TGL_FERC_ACCT,N5312 | B168: Line 38.2 | C168: (531.2) Maintenance of Computer Software | D168: m | F168: 0 | G168: 0 | H168: 0 | I168: 0 | K168: 0 | L168: 0 | Q168: 0 | R168: 0 | V168: 0.19 | W168: 0
A169: %,FACCOUNT,X,TGL_FERC_ACCT,N5313 | B169: Line 38.3 | C169: (531.3) Maintenance of Communication Equipment | D169: m | F169: 0 | G169: 0 | H169: 0 | I169: 0 | K169: 0 | L169: 0 | Q169: 0 | R169: 0 | V169: 0 | W169: 0
A170: %,FACCOUNT,X,TGL_FERC_ACCT,N5320 | B170: Line 39 | C170: (532) Maintenance of Miscellaneous Nuclear Plant | F170: 0 | G170: 0 | H170: 0 | I170: 0 | K170: 0 | L170: 0 | M170: =+K170-L170 -> 0 | N170: =IF(L170<0,IF(M170=0,0,IF(OR(L170=0,K170=0),"N.M.",IF(ABS(M170/L170)>=10,"N.M.",M170/(-L170)))),IF(M170=0,0,IF(OR(L170=0,K170=0),"N.M.",IF(ABS(M170/L170)>=10,"N.M.",M170/L170)))) -> 0 | Q170: 0 | R170: 0 | S170: =+Q170-R170 -> 0 | T170: =IF(R170<0,IF(S170=0,0,IF(OR(R170=0,Q170=0),"N.M.",IF(ABS(S170/R170)>=10,"N.M.",S170/(-R170)))),IF(S170=0,0,IF(OR(R170=0,Q170=0),"N.M.",IF(ABS(S170/R170)>=10,"N.M.",S170/R170)))) -> 0 | V170: 0 | W170: 0 | X170: =+V170-W170 -> 0 | Y170: =IF(W170<0,IF(X170=0,0,IF(OR(W170=0,V170=0),"N.M.",IF(ABS(X170/W170)>=10,"N.M.",X170/(-W170)))),IF(X170=0,0,IF(OR(W170=0,V170=0),"N.M.",IF(ABS(X170/W170)>=10,"N.M.",X170/W170)))) -> 0
A171: %,V5311000 | B171: 5311000 | C171: Maint of Computer Hardware | F171: -70.33 | G171: 0 | H171: -70.33 | I171: N.M. | K171: -93.06 | L171: 0 | M171: -93.06 | N171: N.M. | Q171: -93.06 | R171: 0 | S171: -93.06 | T171: N.M. | V171: -16.37 | W171: 0 | X171: -16.37 | Y171: N.M.
A172: %,V5312000 | B172: 5312000 | C172: Maint of Computer Software | F172: 0 | G172: 0 | H172: 0 | I172: 0 | K172: 0 | L172: 0 | M172: 0 | N172: 0 | Q172: 0 | R172: 0 | S172: 0 | T172: 0 | V172: 0.19 | W172: 0 | X172: 0.19 | Y172: N.M.
A173: %,FACCOUNT,X,TGL_FERC_ACCT,N528-533 | B173: Line 40 | C173: TOTAL Maintenance (Enter Total of lines 35 thru 39) | D173: m | F173: -70.33 | G173: 0 | H173: -70.33 | I173: N.M. | K173: -93.06 | L173: 0 | M173: -93.06 | N173: N.M. | Q173: -93.06 | R173: 0 | S173: -93.06 | T173: N.M. | V173: -16.18 | W173: 0 | X173: -16.18 | Y173: N.M.
A174: %,V5311000 | B174: 5311000 | C174: Maint of Computer Hardware | F174: -70.33 | G174: 0 | H174: -70.33 | I174: N.M. | K174: -93.06 | L174: 0 | M174: -93.06 | N174: N.M. | Q174: -93.06 | R174: 0 | S174: -93.06 | T174: N.M. | V174: -16.37 | W174: 0 | X174: -16.37 | Y174: N.M.
A175: %,V5312000 | B175: 5312000 | C175: Maint of Computer Software | F175: 0 | G175: 0 | H175: 0 | I175: 0 | K175: 0 | L175: 0 | M175: 0 | N175: 0 | Q175: 0 | R175: 0 | S175: 0 | T175: 0 | V175: 0.19 | W175: 0 | X175: 0.19 | Y175: N.M.
A176: %,FACCOUNT,X,TGL_FERC_ACCT,N517-533 | B176: Line 41 | C176: TOTAL Power Production Expenses-Nuc Power (Entr Tot lines 33 & 40) | F176: -70.33 | G176: 0 | H176: -70.33 | I176: N.M. | K176: -93.06 | L176: 0 | M176: -93.06 | N176: N.M. | Q176: -93.06 | R176: 0 | S176: -93.06 | T176: N.M. | V176: -16.18 | W176: 0 | X176: -16.18 | Y176: N.M.
B177: Line 42 | C177: C. Hydraulic Power Generation | H177: 0 | I177: 0 | M177: 0 | N177: 0 | S177: 0 | T177: 0 | X177: 0 | Y177: 0
B178: Line 43 | C178: Operation | H178: 0 | I178: 0 | M178: 0 | N178: 0 | S178: 0 | T178: 0 | X178: 0 | Y178: 0
A179: %,FACCOUNT,X,TGL_FERC_ACCT,N5350 | B179: Line 44 | C179: (535) Operation Supervision and Engineering | F179: 0 | G179: 0 | H179: 0 | I179: 0 | K179: 0 | L179: 0 | M179: 0 | N179: 0 | Q179: 0 | R179: 0 | S179: 0 | T179: 0 | V179: 0 | W179: 0 | X179: 0 | Y179: 0
A180: %,FACCOUNT,X,TGL_FERC_ACCT,N5360 | B180: Line 45 | C180: (536) Water for Power | F180: 0 | G180: 0 | H180: 0 | I180: 0 | K180: 0 | L180: 0 | M180: 0 | N180: 0 | Q180: 0 | R180: 0 | S180: 0 | T180: 0 | V180: 0 | W180: 0 | X180: 0 | Y180: 0
A181: %,FACCOUNT,X,TGL_FERC_ACCT,N5370 | B181: Line 46 | C181: (537) Hydraulic Expenses | F181: 0 | G181: 0 | H181: 0 | I181: 0 | K181: 0 | L181: 0 | M181: 0 | N181: 0 | Q181: 0 | R181: 0 | S181: 0 | T181: 0 | V181: 0 | W181: 0 | X181: 0 | Y181: 0
A182: %,FACCOUNT,X,TGL_FERC_ACCT,N5380 | B182: Line 47 | C182: (538) Electric Expenses | F182: 0 | G182: 0 | H182: 0 | I182: 0 | K182: 0 | L182: 0 | M182: 0 | N182: 0 | Q182: 0 | R182: 0 | S182: 0 | T182: 0 | V182: 0 | W182: 0 | X182: 0 | Y182: 0
A183: %,FACCOUNT,X,TGL_FERC_ACCT,N5390 | B183: Line 48 | C183: (539) Miscellaneous Hydraulic Power Generation Expenses | F183: 0 | G183: 0 | H183: 0 | I183: 0 | K183: 0 | L183: 0 | M183: 0 | N183: 0 | Q183: 0 | R183: 0 | S183: 0 | T183: 0 | V183: 0 | W183: 0 | X183: 0 | Y183: 0
A184: %,FACCOUNT,X,TGL_FERC_ACCT,N5400 | B184: Line 49 | C184: (540) Rents | F184: 0 | G184: 0 | H184: 0 | I184: 0 | K184: 0 | L184: 0 | M184: 0 | N184: 0 | Q184: 0 | R184: 0 | S184: 0 | T184: 0 | V184: 0 | W184: 0 | X184: 0 | Y184: 0
A185: %,FACCOUNT,X,TGL_FERC_ACCT,N535-540 | B185: Line 50 | C185: TOTAL Operation (Enter Total of Lines 44 thru 49) | D185: o | F185: 0 | G185: 0 | H185: 0 | I185: 0 | K185: 0 | L185: 0 | M185: 0 | N185: 0 | Q185: 0 | R185: 0 | S185: 0 | T185: 0 | V185: 0 | W185: 0 | X185: 0 | Y185: 0
B186: Line 51 | C186: C. Hydraulic Power Generation (Continued) | H186: 0 | I186: 0 | M186: 0 | N186: 0 | S186: 0 | T186: 0 | X186: 0 | Y186: 0
B187: Line 52 | C187: Maintenance | H187: 0 | I187: 0 | M187: 0 | N187: 0 | S187: 0 | T187: 0 | X187: 0 | Y187: 0
A188: %,FACCOUNT,X,TGL_FERC_ACCT,N5410 | B188: Line 53 | C188: (541) Maintenance Supervision and Engineering | F188: 0 | G188: 0 | H188: 0 | I188: 0 | K188: 0 | L188: 0 | M188: 0 | N188: 0 | Q188: 0 | R188: 0 | S188: 0 | T188: 0 | V188: 0 | W188: 0 | X188: 0 | Y188: 0
A189: %,FACCOUNT,X,TGL_FERC_ACCT,N5420 | B189: Line 54 | C189: (542) Maintenance of Structures | F189: 0 | G189: 0 | H189: 0 | I189: 0 | K189: 0 | L189: 0 | M189: 0 | N189: 0 | Q189: 0 | R189: 0 | S189: 0 | T189: 0 | V189: 0 | W189: 0 | X189: 0 | Y189: 0
A190: %,FACCOUNT,X,TGL_FERC_ACCT,N5430 | B190: Line 55 | C190: (543) Maintenance of Reservoirs, Dams, and Waterways | F190: 0 | G190: 0 | H190: 0 | I190: 0 | K190: 0 | L190: 0 | M190: 0 | N190: 0 | Q190: 0 | R190: 0 | S190: 0 | T190: 0 | V190: 0 | W190: 0 | X190: 0 | Y190: 0
A191: %,FACCOUNT,X,TGL_FERC_ACCT,N5440 | B191: Line 56 | C191: (544) Maintenance of Electric Plant | F191: 0 | G191: 0 | H191: 0 | I191: 0 | K191: 0 | L191: 0 | M191: 0 | N191: 0 | Q191: 0 | R191: 0 | S191: 0 | T191: 0 | V191: 0 | W191: 0 | X191: 0 | Y191: 0
A192: %,FACCOUNT,X,TGL_FERC_ACCT,N5441 | B192: Line 56.1 | C192: (544.1) Maintenance of Computer Hardware | D192: m | F192: 0 | G192: 0 | H192: 0 | I192: 0 | K192: 0 | L192: 0 | Q192: 0 | R192: 0 | V192: 0 | W192: 0
A193: %,FACCOUNT,X,TGL_FERC_ACCT,N5442 | B193: Line 56.2 | C193: (544.2) Maintenance of Computer Software | D193: m | F193: 0 | G193: 0 | H193: 0 | I193: 0 | K193: 0 | L193: 0 | Q193: 0 | R193: 0 | V193: 0 | W193: 0
A194: %,FACCOUNT,X,TGL_FERC_ACCT,N5443 | B194: Line 56.3 | C194: (544.3) Maintenance of Communication Equipment | D194: m | F194: 0 | G194: 0 | H194: 0 | I194: 0 | K194: 0 | L194: 0 | Q194: 0 | R194: 0 | V194: 0 | W194: 0
A195: %,FACCOUNT,X,TGL_FERC_ACCT,N5450 | B195: Line 57 | C195: (545) Maintenance of Miscellaneous Hydraulic Plant | F195: 0 | G195: 0 | H195: 0 | I195: 0 | K195: 0 | L195: 0 | M195: =+K195-L195 -> 0 | N195: =IF(L195<0,IF(M195=0,0,IF(OR(L195=0,K195=0),"N.M.",IF(ABS(M195/L195)>=10,"N.M.",M195/(-L195)))),IF(M195=0,0,IF(OR(L195=0,K195=0),"N.M.",IF(ABS(M195/L195)>=10,"N.M.",M195/L195)))) -> 0 | Q195: 0 | R195: 0 | S195: =+Q195-R195 -> 0 | T195: =IF(R195<0,IF(S195=0,0,IF(OR(R195=0,Q195=0),"N.M.",IF(ABS(S195/R195)>=10,"N.M.",S195/(-R195)))),IF(S195=0,0,IF(OR(R195=0,Q195=0),"N.M.",IF(ABS(S195/R195)>=10,"N.M.",S195/R195)))) -> 0 | V195: 0 | W195: 0 | X195: =+V195-W195 -> 0 | Y195: =IF(W195<0,IF(X195=0,0,IF(OR(W195=0,V195=0),"N.M.",IF(ABS(X195/W195)>=10,"N.M.",X195/(-W195)))),IF(X195=0,0,IF(OR(W195=0,V195=0),"N.M.",IF(ABS(X195/W195)>=10,"N.M.",X195/W195)))) -> 0
A196: %,FACCOUNT,X,TGL_FERC_ACCT,N541-545 | B196: Line 58 | C196: TOTAL Maintenance (Total of lines 53 thru 57) | D196: m | F196: 0 | G196: 0 | H196: 0 | I196: 0 | K196: 0 | L196: 0 | M196: 0 | N196: 0 | Q196: 0 | R196: 0 | S196: 0 | T196: 0 | V196: 0 | W196: 0 | X196: 0 | Y196: 0
A197: %,FACCOUNT,X,TGL_FERC_ACCT,N535-545 | B197: Line 59 | C197: TOTAL Power Production Expenses-Hydraulic Power (Tot lines 50 & 58) | F197: 0 | G197: 0 | H197: 0 | I197: 0 | K197: 0 | L197: 0 | M197: 0 | N197: 0 | Q197: 0 | R197: 0 | S197: 0 | T197: 0 | V197: 0 | W197: 0 | X197: 0 | Y197: 0
B198: Line 60 | C198: D. Other Power Generation | H198: 0 | I198: 0 | M198: 0 | N198: 0 | S198: 0 | T198: 0 | X198: 0 | Y198: 0
B199: Line 61 | C199: Operation | H199: 0 | I199: 0 | M199: 0 | N199: 0 | S199: 0 | T199: 0 | X199: 0 | Y199: 0
A200: %,FACCOUNT,X,TGL_FERC_ACCT,N5460 | B200: Line 62 | C200: (546) Operation Supervision and Engineering | F200: 0 | G200: 0 | H200: 0 | I200: 0 | K200: 0 | L200: 0 | M200: 0 | N200: 0 | Q200: 0 | R200: 0 | S200: 0 | T200: 0 | V200: 0 | W200: 0 | X200: 0 | Y200: 0
A201: %,FACCOUNT,X,TGL_FERC_ACCT,N5470 | B201: Line 63 | C201: (547) Fuel | F201: 0 | G201: 0 | H201: 0 | I201: 0 | K201: 0 | L201: 0 | M201: 0 | N201: 0 | Q201: 0 | R201: 0 | S201: 0 | T201: 0 | V201: 0 | W201: 0 | X201: 0 | Y201: 0
... 1475 more rows

Sheet O&M QRT
A1: %,LACTUALS,SBAL | B1: %,ATF,FACCOUNT | C1: %,ATT,FDESCR,UDESCR | F1: %,LACTUALS,SPER | G1: %,LACTUALS,SPER-1YR | H1: %,C | I1: %,C | K1: %,LACTUALS,SYTD | L1: %,LACTUALS,SYTD-1YR | M1: %,C | N1: %,C | Q1: %,LACTUALS,SQTR | R1: %,LACTUALS,SQTR-1YR | S1: %,C | T1: %,C | V1: %,LACTUALS,SROLLING12 | W1: %,LACTUALS,SROLNG12-1Y | X1: %,C | Y1: %,C
C2: Kentucky Power Corp Consol | G2: Kentucky Power Corp Consol | L2: Kentucky Power Corp Consol | R2: Kentucky Power Corp Consol | W2: Kentucky Power Corp Consol
C3: March 2026 | G3: As of: Mar 2026 | L3: As of: Mar 2026 | R3: As of: Mar 2026 | W3: As of: Mar 2026
B4: Run Date: 04/09/2026 01:15 PM
B5: GLR6283P | C5: Rpt ID: FERC_IS1 Layout: FERC_IS1 | F5: ONE MONTH ENDED | H5: Variance | K5: YEAR TO DATE | M5: Variance | Q5: THREE MONTHS ENDED | S5: Variance | V5: TWELVE MONTHS ENDED | X5: Variance
B6: KYP_CORP_CONSOL | C6: V2099-01-01 Acct: GL_FERC_ACCT BU: GL_PRPT_CONS | F6: 2026 | G6: 2025 | H6: $ | I6: % | K6: 2026 | L6: 2025 | M6: $ | N6: % | O6: Explanation | Q6: 2026 | R6: 2025 | S6: $ | T6: % | V6: 2026 | W6: 2025 | X6: $ | Y6: %
C8: OPERATING AND MAINTENANCE DETAIL
C9: FERC Page 320 QUARTERLY
B10: 1 | C10: 1. POWER PRODUCTION AND OTHER POWER SUPPLYEXPENSES
A11: %,V5000000 | B11: 5000000 | C11: Oper Supervision & Engineering | F11: 418873.13 | G11: 306873.26 | H11: =+F11-G11 -> 111999.87 | I11: =IF(AND(F11=0,G11=0),"",IF(OR(F11=0,G11=0),100%,(+H11/G11))) -> 0.3649710959 | K11: 1191558.33 | L11: 987488.72 | M11: =+K11-L11 -> 204069.61 | N11: =IF(AND(K11=0,L11=0),"",IF(OR(K11=0,L11=0),100%,(+M11/L11))) -> 0.2066551302 | Q11: 1191558.33 | R11: 987488.72 | S11: =+Q11-R11 -> 204069.61 | T11: =IF(AND(Q11=0,R11=0),"",IF(OR(Q11=0,R11=0),100%,(+S11/R11))) -> 0.2066551302 | V11: 4707142.2 | W11: 4224514.05 | X11: =+V11-W11 -> 482628.15 | Y11: =IF(AND(V11=0,W11=0),"",IF(OR(V11=0,W11=0),100%,(+X11/W11))) -> 0.114244655
A12: %,V5000002 | B12: 5000002 | C12: Dresden Oper Supervision & Eng | F12: 0 | G12: 0 | H12: 0 | K12: 0 | L12: 0 | M12: 0 | Q12: 0 | R12: 0 | S12: 0 | V12: -33.12 | W12: 0 | X12: -33.12 | Y12: 1
A13: %,V5000003 | B13: 5000003 | C13: Cnstr Srchrge Op Sup & Eng Exp | F13: 0 | G13: 0 | H13: 0 | K13: 0 | L13: 0 | M13: 0 | Q13: 0 | R13: 0 | S13: 0 | V13: 64.34 | W13: 0 | X13: 64.34 | Y13: 1
A14: %,V5010000 | B14: 5010000 | C14: Fuel | F14: 410094.74 | G14: 1391713.84 | H14: -981619.1 | I14: -0.7053311333 | K14: 1442012.56 | L14: 2702271.3 | M14: -1260258.74 | N14: -0.4663701753 | Q14: 1442012.56 | R14: 2702271.3 | S14: -1260258.74 | T14: -0.4663701753 | V14: 6490206.77 | W14: 7832033.37 | X14: -1341826.6 | Y14: -0.1713254447
A15: %,V5010001 | B15: 5010001 | C15: Fuel Consumed | F15: 2917030.66 | G15: 1240119.13 | H15: 1676911.53 | I15: 1.352218097 | K15: 19591414.54 | L15: 16994933.92 | M15: 2596480.62 | N15: 0.1527796832 | Q15: 19591414.54 | R15: 16994933.92 | S15: 2596480.62 | T15: 0.1527796832 | V15: 76906220.56 | W15: 75754630.88 | X15: 1151589.68 | Y15: 0.0152015747
A16: %,V5010003 | B16: 5010003 | C16: Fuel - Procure Unload & Handle | F16: 163794.85 | G16: 64924.42 | H16: 98870.43 | I16: 1.522854267 | K16: 1017742.66 | L16: 858577.64 | M16: 159165.02 | N16: 0.1853822096 | Q16: 1017742.66 | R16: 858577.64 | S16: 159165.02 | T16: 0.1853822096 | V16: 4230797.15 | W16: 3585544.77 | X16: 645252.38 | Y16: 0.1799593706
A17: %,V5010005 | B17: 5010005 | C17: Fuel - Deferred | F17: 8418308.386 | G17: 1805156.56 | H17: 6613151.826 | I17: 3.663478267 | K17: -9892679.502 | L17: -566694.609 | M17: -9325984.893 | N17: 16.45680891 | Q17: -9892679.502 | R17: -566694.609 | S17: -9325984.893 | T17: 16.45680891 | V17: -4188838.06 | W17: -1189885.889 | X17: -2998952.171 | Y17: 2.520369557
A18: %,V5010012 | B18: 5010012 | C18: Ash Sales Proceeds | F18: 447.26 | G18: 259.49 | H18: 187.77 | I18: 0.7236116999 | K18: 1796.49 | L18: 3334.96 | M18: -1538.47 | N18: -0.4613158779 | Q18: 1796.49 | R18: 3334.96 | S18: -1538.47 | T18: -0.4613158779 | V18: 5736.47 | W18: 22189.01 | X18: -16452.54 | Y18: -0.7414724677
A19: %,V5010013 | B19: 5010013 | C19: Fuel Survey Activity | F19: 0 | G19: 0 | H19: 0 | K19: 0 | L19: 0 | M19: 0 | Q19: 0 | R19: 0 | S19: 0 | V19: 3906533.13 | W19: 49281.13 | X19: 3857252 | Y19: 78.27036434
A20: %,V5010019 | B20: 5010019 | C20: Fuel Oil Consumed | F20: 299075.07 | G20: 666930.93 | H20: -367855.86 | I20: -0.5515651523 | K20: 839669.18 | L20: 1105998.02 | M20: -266328.84 | N20: -0.2408040839 | Q20: 839669.18 | R20: 1105998.02 | S20: -266328.84 | T20: -0.2408040839 | V20: 3871999.24 | W20: 3765558.18 | X20: 106441.06 | Y20: 0.02826700715
A21: %,V5010020 | B21: 5010020 | C21: Nat Gas Consumed Steam | F21: 4327789.61 | G21: 3092259.22 | H21: 1235530.39 | I21: 0.3995558917 | K21: 20430282.11 | L21: 12913004.46 | M21: 7517277.65 | N21: 0.5821478397 | Q21: 20430282.11 | R21: 12913004.46 | S21: 7517277.65 | T21: 0.5821478397 | V21: 46393473.58 | W21: 31183494.57 | X21: 15209979.01 | Y21: 0.4877573607
A22: %,V5010021 | B22: 5010021 | C22: Transp Gas Consumed Steam | F22: 58494.25 | G22: 41972.07 | H22: 16522.18 | I22: 0.3936470134 | K22: 177133.61 | L22: 109045.39 | M22: 68088.22 | N22: 0.6244025538 | Q22: 177133.61 | R22: 109045.39 | S22: 68088.22 | T22: 0.6244025538 | V22: 568860.51 | W22: 273765.43 | X22: 295095.08 | Y22: 1.077912138
A23: %,V5010027 | B23: 5010027 | C23: Gypsum handling/disposal costs | F23: 200094.77 | G23: 152673.25 | H23: 47421.52 | I23: 0.3106079159 | K23: 427686.36 | L23: 367662.97 | M23: 60023.39 | N23: 0.1632565553 | Q23: 427686.36 | R23: 367662.97 | S23: 60023.39 | T23: 0.1632565553 | V23: 1452371.04 | W23: 1530969.7 | X23: -78598.66 | Y23: -0.05133913493
A24: %,V5010028 | B24: 5010028 | C24: Gypsum Sales Proceeds | F24: -198568.98 | G24: -36655.22 | H24: -161913.76 | I24: 4.41720879 | K24: -358049.66 | L24: -399445.59 | M24: 41395.93 | N24: -0.1036334636 | Q24: -358049.66 | R24: -399445.59 | S24: 41395.93 | T24: -0.1036334636 | V24: -1181046.24 | W24: -1241705.41 | X24: 60659.17 | Y24: -0.04885149852
A25: %,V5010033 | B25: 5010033 | C25: Coal Procurement Sales Net-NA | F25: 131387.16 | G25: 0 | H25: 131387.16 | I25: 1 | K25: 131387.16 | L25: 0 | M25: 131387.16 | N25: 1 | Q25: 131387.16 | R25: 0 | S25: 131387.16 | T25: 1 | V25: 131387.16 | W25: 0 | X25: 131387.16 | Y25: 1
A26: %,V5010034 | B26: 5010034 | C26: Gas Transp Res Fees-Steam | F26: 503856 | G26: 552175.2 | H26: -48319.2 | I26: -0.08750700865 | K26: 1469016 | L26: 1615564.08 | M26: -146548.08 | N26: -0.09071016236 | Q26: 1469016 | R26: 1615564.08 | S26: -146548.08 | T26: -0.09071016236 | V26: 5956657.98 | W26: 6333372.2 | X26: -376714.22 | Y26: -0.05948082761
A27: %,V5010040 | B27: 5010040 | C27: Gas Procuremnt Sales Net | F27: 0.29 | G27: 158017.731 | H27: -158017.441 | I27: -0.9999981648 | K27: 0.13 | L27: 453288.19 | M27: -453288.06 | N27: -0.9999997132 | Q27: 0.13 | R27: 453288.19 | S27: -453288.06 | T27: -0.9999997132 | V27: 171003.84 | W27: 2092603.39 | X27: -1921599.55 | Y27: -0.9182817724
A28: %,V5020000 | B28: 5020000 | C28: Steam Expenses | F28: 192558.46 | G28: 132712.56 | H28: 59845.9 | I28: 0.4509437539 | K28: 533764.75 | L28: 495575.86 | M28: 38188.89 | N28: 0.07705962514 | Q28: 533764.75 | R28: 495575.86 | S28: 38188.89 | T28: 0.07705962514 | V28: 2054626.22 | W28: 1636473.98 | X28: 418152.24 | Y28: 0.2555202497
A29: %,V5020002 | B29: 5020002 | C29: Urea Expense | F29: 51668.6 | G29: 13553.71 | H29: 38114.89 | I29: 2.812137046 | K29: 296786.61 | L29: 233235.96 | M29: 63550.65 | N29: 0.2724736357 | Q29: 296786.61 | R29: 233235.96 | S29: 63550.65 | T29: 0.2724736357 | V29: 978040.23 | W29: 1110692.35 | X29: -132652.12 | Y29: -0.1194319201
A30: %,V5020004 | B30: 5020004 | C30: Lime-Related Expenses | F30: 118623.55 | G30: 28337.16 | H30: 90286.39 | I30: 3.186148153 | K30: 682785.06 | L30: 430054.06 | M30: 252731 | N30: 0.5876726289 | Q30: 682785.06 | R30: 430054.06 | S30: 252731 | T30: 0.5876726289 | V30: 2662764.3 | W30: 2227498.5 | X30: 435265.8 | Y30: 0.1954056535
A31: %,V5050000 | B31: 5050000 | C31: Electric Expenses | F31: 7427.9 | G31: 1801.63 | H31: 5626.27 | I31: 3.122877616 | K31: 14713.13 | L31: 2812.08 | M31: 11901.05 | N31: 4.23211644 | Q31: 14713.13 | R31: 2812.08 | S31: 11901.05 | T31: 4.23211644 | V31: 86944.44 | W31: 35854.75 | X31: 51089.69 | Y31: 1.42490716
A32: %,V5060000 | B32: 5060000 | C32: Misc Steam Power Expenses | F32: 516232.62 | G32: 381726.44 | H32: 134506.18 | I32: 0.3523627549 | K32: 1580780.82 | L32: 1151923.326 | M32: 428857.494 | N32: 0.3722969093 | Q32: 1580780.82 | R32: 1151923.326 | S32: 428857.494 | T32: 0.3722969093 | V32: 5438528.92 | W32: 5924317.646 | X32: -485788.726 | Y32: -0.08199910184
A33: %,V5060002 | B33: 5060002 | C33: Misc Steam Power Exp-Assoc | F33: 5178.06 | G33: 4254.84 | H33: 923.22 | I33: 0.2169811321 | K33: 14876.54 | L33: 14384.23 | M33: 492.31 | N33: 0.03422567631 | Q33: 14876.54 | R33: 14384.23 | S33: 492.31 | T33: 0.03422567631 | V33: 48491.62 | W33: 53188.44 | X33: -4696.82 | Y33: -0.08830527836
A34: %,V5060011 | B34: 5060011 | C34: BSRR O/U Recovery-Oper Costs | F34: 0 | G34: 0 | H34: 0 | K34: 0 | L34: 0 | M34: 0 | Q34: 0 | R34: 0 | S34: 0 | V34: 0 | W34: 210.68 | X34: -210.68 | Y34: 1
A35: %,V5070006 | B35: 5070006 | C35: Rents - Associated | F35: 128.59 | G35: 193.17 | H35: -64.58 | I35: -0.3343169229 | K35: 382.67 | L35: 579.51 | M35: -196.84 | N35: -0.3396662698 | Q35: 382.67 | R35: 579.51 | S35: -196.84 | T35: -0.3396662698 | V35: 2121.2 | W35: 579.51 | X35: 1541.69 | Y35: 2.66033373
A36: %,V5090000 | B36: 5090000 | C36: Allow Consum Title IV SO2 | F36: 530.89 | G36: 226.6 | H36: 304.29 | I36: 1.342850838 | K36: 3293.93 | L36: 5255.02 | M36: -1961.09 | N36: -0.3731841173 | Q36: 3293.93 | R36: 5255.02 | S36: -1961.09 | T36: -0.3731841173 | V36: 14737.31 | W36: 37960.01 | X36: -23222.7 | Y36: -0.611767489
A37: %,V5090001 | B37: 5090001 | C37: Allowance Consumption - NOx | F37: 0 | G37: 0 | H37: 0 | K37: 0 | L37: 0 | M37: 0 | Q37: 0 | R37: 0 | S37: 0 | V37: -157142.86 | W37: 42857.15 | X37: -200000.01 | Y37: -4.666666122
A38: %,V5090009 | B38: 5090009 | C38: Allow Consumpt CSAPR SO2 | F38: 2.6 | G38: 1.11 | H38: 1.49 | I38: 1.342342342 | K38: 16.15 | L38: 25.66 | M38: -9.51 | N38: -0.3706157443 | Q38: 16.15 | R38: 25.66 | S38: -9.51 | T38: -0.3706157443 | V38: 71.51 | W38: 182.4 | X38: -110.89 | Y38: -0.6079495614
A39: %,FACCOUNT,X,TGL_FERC_ACCT,N500-509 | B39: 2 | C39: Steam Power Generation - Operation (500-509) | D39: o | F39: 18543028.47 | G39: 9999227.101 | H39: 8543801.365 | I39: 0.8544461766 | K39: 39596369.63 | L39: 39478875.16 | M39: 117494.471 | N39: 0.002976135225 | Q39: 39596369.63 | R39: 39478875.16 | S39: 117494.471 | T39: 0.002976135225 | V39: 160551719.4 | W39: 145286180.8 | X39: 15265538.64 | Y39: 0.1050722
A40: %,V5100000 | B40: 5100000 | C40: Maint Supv & Engineering | F40: 105829.58 | G40: 83007.7 | H40: 22821.88 | I40: 0.2749369034 | K40: 293512.67 | L40: 260841.52 | M40: 32671.15 | N40: 0.1252528739 | Q40: 293512.67 | R40: 260841.52 | S40: 32671.15 | T40: 0.1252528739 | V40: 1024353.24 | W40: 1484788.18 | X40: -460434.94 | Y40: -0.3101014314
A41: %,V5100001 | B41: 5100001 | C41: Dresden Maint Sup& Engineer | F41: 0 | G41: 0 | H41: 0 | K41: -9.94 | L41: 0 | M41: -9.94 | N41: 1 | Q41: -9.94 | R41: 0 | S41: -9.94 | T41: 1 | V41: 359.63 | W41: 0 | X41: 359.63 | Y41: 1
A42: %,V5110000 | B42: 5110000 | C42: Maintenance of Structures | F42: 153559.3 | G42: 174774.73 | H42: -21215.43 | I42: -0.1213872852 | K42: 590264.1 | L42: 453456.42 | M42: 136807.68 | N42: 0.3016997311 | Q42: 590264.1 | R42: 453456.42 | S42: 136807.68 | T42: 0.3016997311 | V42: 1829687.32 | W42: 1875709.33 | X42: -46022.01 | Y42: -0.02453578988
A43: %,V5120000 | B43: 5120000 | C43: Maintenance of Boiler Plant | F43: 1265004.87 | G43: 1591331.56 | H43: =+F43-G43 -> -326326.69 | I43: =IF(AND(F43=0,G43=0),"",IF(OR(F43=0,G43=0),100%,(+H43/G43))) -> -0.2050651782 | K43: 3026450.32 | L43: 3869657.61 | M43: =+K43-L43 -> -843207.29 | N43: =IF(AND(K43=0,L43=0),"",IF(OR(K43=0,L43=0),100%,(+M43/L43))) -> -0.2179022991 | Q43: 3026450.32 | R43: 3869657.61 | S43: =+Q43-R43 -> -843207.29 | T43: =IF(AND(Q43=0,R43=0),"",IF(OR(Q43=0,R43=0),100%,(+S43/R43))) -> -0.2179022991 | V43: 11704014.65 | W43: 15620064.33 | X43: =+V43-W43 -> -3916049.68 | Y43: =IF(AND(V43=0,W43=0),"",IF(OR(V43=0,W43=0),100%,(+X43/W43))) -> -0.2507063734
A44: %,V5120034 | B44: 5120034 | C44: BSDR O/U Recovery - Maint Cost | F44: -947.09 | G44: -129.56 | H44: -817.53 | I44: 6.310049398 | K44: -2849.52 | L44: -587.07 | M44: -2262.45 | N44: 3.853799377 | Q44: -2849.52 | R44: -587.07 | S44: -2262.45 | T44: 3.853799377 | V44: -10784.87 | W44: -9481.45 | X44: -1303.42 | Y44: 0.1374705346
A45: %,V5120037 | B45: 5120037 | C45: KY Steam Maint O/U | F45: -58271.11 | G45: -58271.11 | H45: 0 | I45: 0 | K45: -174813.33 | L45: -174813.33 | M45: 0 | N45: 0 | Q45: -174813.33 | R45: -174813.33 | S45: 0 | T45: 0 | V45: -699253.32 | W45: -699253.32 | X45: 0 | Y45: 0
A46: %,V5130000 | B46: 5130000 | C46: Maintenance of Electric Plant | F46: 631049.53 | G46: 634962.46 | H46: -3912.93 | I46: -0.006162458801 | K46: 1163744.34 | L46: 1493258.78 | M46: -329514.44 | N46: -0.2206680077 | Q46: 1163744.34 | R46: 1493258.78 | S46: -329514.44 | T46: -0.2206680077 | V46: 5576599.06 | W46: 4312744.22 | X46: 1263854.84 | Y46: 0.2930511933
A47: %,V5132000 | B47: 5132000 | C47: Maint of Computer Software-Mjr | F47: 12038.55 | G47: 15142.5 | H47: -3103.95 | I47: -0.2049826647 | K47: 13074.2 | L47: 17167.5 | M47: -4093.3 | N47: -0.2384330858 | Q47: 13074.2 | R47: 17167.5 | S47: -4093.3 | T47: -0.2384330858 | V47: 51171.7 | W47: 17167.5 | X47: 34004.2 | Y47: 1.980731032
A48: %,V5133000 | B48: 5133000 | C48: Maint of Comm Equipmt-Mjr | F48: 448.32 | G48: 101.59 | H48: 346.73 | I48: 3.413032779 | K48: 2955.74 | L48: 411.86 | M48: 2543.88 | N48: 6.176564852 | Q48: 2955.74 | R48: 411.86 | S48: 2543.88 | T48: 6.176564852 | V48: 8227.61 | W48: 411.86 | X48: 7815.75 | Y48: 18.97671539
A49: %,V5140000 | B49: 5140000 | C49: Maintenance of Misc Steam Plt | F49: 120725.13 | G49: 217748.98 | H49: -97023.85 | I49: -0.4455765993 | K49: 486970.9 | L49: 405345.66 | M49: 81625.24 | N49: 0.2013719353 | Q49: 486970.9 | R49: 405345.66 | S49: 81625.24 | T49: 0.2013719353 | V49: 1564167.87 | W49: 1553422.78 | X49: 10745.09 | Y49: 0.006917041605
A50: %,FACCOUNT,X,TGL_FERC_ACCT,N510-515 | B50: 3 | C50: Steam Power Generation - Maintenance (510-515) | D50: m | F50: 2229437.08 | G50: 2658668.85 | H50: -429231.77 | I50: -0.1614461199 | K50: 5399299.48 | L50: 6324738.95 | M50: -925439.47 | N50: -0.1463205798 | Q50: 5399299.48 | R50: 6324738.95 | S50: -925439.47 | T50: -0.1463205798 | V50: 21048542.89 | W50: 24155573.43 | X50: -3107030.54 | Y50: -0.1286258241
A51: %,V5000000 | B51: 5000000 | C51: Oper Supervision & Engineering | F51: 418873.13 | G51: 306873.26 | H51: 111999.87 | I51: 0.3649710959 | K51: 1191558.33 | L51: 987488.72 | M51: 204069.61 | N51: 0.2066551302 | Q51: 1191558.33 | R51: 987488.72 | S51: 204069.61 | T51: 0.2066551302 | V51: 4707142.2 | W51: 4224514.05 | X51: 482628.15 | Y51: 0.114244655
A52: %,V5000002 | B52: 5000002 | C52: Dresden Oper Supervision & Eng | F52: 0 | G52: 0 | H52: 0 | K52: 0 | L52: 0 | M52: 0 | Q52: 0 | R52: 0 | S52: 0 | V52: -33.12 | W52: 0 | X52: -33.12 | Y52: 1
A53: %,V5000003 | B53: 5000003 | C53: Cnstr Srchrge Op Sup & Eng Exp | F53: 0 | G53: 0 | H53: 0 | K53: 0 | L53: 0 | M53: 0 | Q53: 0 | R53: 0 | S53: 0 | V53: 64.34 | W53: 0 | X53: 64.34 | Y53: 1
A54: %,V5010000 | B54: 5010000 | C54: Fuel | F54: 410094.74 | G54: 1391713.84 | H54: -981619.1 | I54: -0.7053311333 | K54: 1442012.56 | L54: 2702271.3 | M54: -1260258.74 | N54: -0.4663701753 | Q54: 1442012.56 | R54: 2702271.3 | S54: -1260258.74 | T54: -0.4663701753 | V54: 6490206.77 | W54: 7832033.37 | X54: -1341826.6 | Y54: -0.1713254447
A55: %,V5010001 | B55: 5010001 | C55: Fuel Consumed | F55: 2917030.66 | G55: 1240119.13 | H55: 1676911.53 | I55: 1.352218097 | K55: 19591414.54 | L55: 16994933.92 | M55: 2596480.62 | N55: 0.1527796832 | Q55: 19591414.54 | R55: 16994933.92 | S55: 2596480.62 | T55: 0.1527796832 | V55: 76906220.56 | W55: 75754630.88 | X55: 1151589.68 | Y55: 0.0152015747
A56: %,V5010003 | B56: 5010003 | C56: Fuel - Procure Unload & Handle | F56: 163794.85 | G56: 64924.42 | H56: 98870.43 | I56: 1.522854267 | K56: 1017742.66 | L56: 858577.64 | M56: 159165.02 | N56: 0.1853822096 | Q56: 1017742.66 | R56: 858577.64 | S56: 159165.02 | T56: 0.1853822096 | V56: 4230797.15 | W56: 3585544.77 | X56: 645252.38 | Y56: 0.1799593706
A57: %,V5010005 | B57: 5010005 | C57: Fuel - Deferred | F57: 8418308.386 | G57: 1805156.56 | H57: 6613151.826 | I57: 3.663478267 | K57: -9892679.502 | L57: -566694.609 | M57: -9325984.893 | N57: 16.45680891 | Q57: -9892679.502 | R57: -566694.609 | S57: -9325984.893 | T57: 16.45680891 | V57: -4188838.06 | W57: -1189885.889 | X57: -2998952.171 | Y57: 2.520369557
A58: %,V5010012 | B58: 5010012 | C58: Ash Sales Proceeds | F58: 447.26 | G58: 259.49 | H58: 187.77 | I58: 0.7236116999 | K58: 1796.49 | L58: 3334.96 | M58: -1538.47 | N58: -0.4613158779 | Q58: 1796.49 | R58: 3334.96 | S58: -1538.47 | T58: -0.4613158779 | V58: 5736.47 | W58: 22189.01 | X58: -16452.54 | Y58: -0.7414724677
A59: %,V5010013 | B59: 5010013 | C59: Fuel Survey Activity | F59: 0 | G59: 0 | H59: 0 | K59: 0 | L59: 0 | M59: 0 | Q59: 0 | R59: 0 | S59: 0 | V59: 3906533.13 | W59: 49281.13 | X59: 3857252 | Y59: 78.27036434
A60: %,V5010019 | B60: 5010019 | C60: Fuel Oil Consumed | F60: 299075.07 | G60: 666930.93 | H60: -367855.86 | I60: -0.5515651523 | K60: 839669.18 | L60: 1105998.02 | M60: -266328.84 | N60: -0.2408040839 | Q60: 839669.18 | R60: 1105998.02 | S60: -266328.84 | T60: -0.2408040839 | V60: 3871999.24 | W60: 3765558.18 | X60: 106441.06 | Y60: 0.02826700715
A61: %,V5010020 | B61: 5010020 | C61: Nat Gas Consumed Steam | F61: 4327789.61 | G61: 3092259.22 | H61: 1235530.39 | I61: 0.3995558917 | K61: 20430282.11 | L61: 12913004.46 | M61: 7517277.65 | N61: 0.5821478397 | Q61: 20430282.11 | R61: 12913004.46 | S61: 7517277.65 | T61: 0.5821478397 | V61: 46393473.58 | W61: 31183494.57 | X61: 15209979.01 | Y61: 0.4877573607
A62: %,V5010021 | B62: 5010021 | C62: Transp Gas Consumed Steam | F62: 58494.25 | G62: 41972.07 | H62: 16522.18 | I62: 0.3936470134 | K62: 177133.61 | L62: 109045.39 | M62: 68088.22 | N62: 0.6244025538 | Q62: 177133.61 | R62: 109045.39 | S62: 68088.22 | T62: 0.6244025538 | V62: 568860.51 | W62: 273765.43 | X62: 295095.08 | Y62: 1.077912138
A63: %,V5010027 | B63: 5010027 | C63: Gypsum handling/disposal costs | F63: 200094.77 | G63: 152673.25 | H63: 47421.52 | I63: 0.3106079159 | K63: 427686.36 | L63: 367662.97 | M63: 60023.39 | N63: 0.1632565553 | Q63: 427686.36 | R63: 367662.97 | S63: 60023.39 | T63: 0.1632565553 | V63: 1452371.04 | W63: 1530969.7 | X63: -78598.66 | Y63: -0.05133913493
A64: %,V5010028 | B64: 5010028 | C64: Gypsum Sales Proceeds | F64: -198568.98 | G64: -36655.22 | H64: -161913.76 | I64: 4.41720879 | K64: -358049.66 | L64: -399445.59 | M64: 41395.93 | N64: -0.1036334636 | Q64: -358049.66 | R64: -399445.59 | S64: 41395.93 | T64: -0.1036334636 | V64: -1181046.24 | W64: -1241705.41 | X64: 60659.17 | Y64: -0.04885149852
A65: %,V5010033 | B65: 5010033 | C65: Coal Procurement Sales Net-NA | F65: 131387.16 | G65: 0 | H65: 131387.16 | I65: 1 | K65: 131387.16 | L65: 0 | M65: 131387.16 | N65: 1 | Q65: 131387.16 | R65: 0 | S65: 131387.16 | T65: 1 | V65: 131387.16 | W65: 0 | X65: 131387.16 | Y65: 1
A66: %,V5010034 | B66: 5010034 | C66: Gas Transp Res Fees-Steam | F66: 503856 | G66: 552175.2 | H66: -48319.2 | I66: -0.08750700865 | K66: 1469016 | L66: 1615564.08 | M66: -146548.08 | N66: -0.09071016236 | Q66: 1469016 | R66: 1615564.08 | S66: -146548.08 | T66: -0.09071016236 | V66: 5956657.98 | W66: 6333372.2 | X66: -376714.22 | Y66: -0.05948082761
A67: %,V5010040 | B67: 5010040 | C67: Gas Procuremnt Sales Net | F67: 0.29 | G67: 158017.731 | H67: -158017.441 | I67: -0.9999981648 | K67: 0.13 | L67: 453288.19 | M67: -453288.06 | N67: -0.9999997132 | Q67: 0.13 | R67: 453288.19 | S67: -453288.06 | T67: -0.9999997132 | V67: 171003.84 | W67: 2092603.39 | X67: -1921599.55 | Y67: -0.9182817724
A68: %,V5020000 | B68: 5020000 | C68: Steam Expenses | F68: 192558.46 | G68: 132712.56 | H68: 59845.9 | I68: 0.4509437539 | K68: 533764.75 | L68: 495575.86 | M68: 38188.89 | N68: 0.07705962514 | Q68: 533764.75 | R68: 495575.86 | S68: 38188.89 | T68: 0.07705962514 | V68: 2054626.22 | W68: 1636473.98 | X68: 418152.24 | Y68: 0.2555202497
A69: %,V5020002 | B69: 5020002 | C69: Urea Expense | F69: 51668.6 | G69: 13553.71 | H69: 38114.89 | I69: 2.812137046 | K69: 296786.61 | L69: 233235.96 | M69: 63550.65 | N69: 0.2724736357 | Q69: 296786.61 | R69: 233235.96 | S69: 63550.65 | T69: 0.2724736357 | V69: 978040.23 | W69: 1110692.35 | X69: -132652.12 | Y69: -0.1194319201
A70: %,V5020004 | B70: 5020004 | C70: Lime-Related Expenses | F70: 118623.55 | G70: 28337.16 | H70: 90286.39 | I70: 3.186148153 | K70: 682785.06 | L70: 430054.06 | M70: 252731 | N70: 0.5876726289 | Q70: 682785.06 | R70: 430054.06 | S70: 252731 | T70: 0.5876726289 | V70: 2662764.3 | W70: 2227498.5 | X70: 435265.8 | Y70: 0.1954056535
A71: %,V5050000 | B71: 5050000 | C71: Electric Expenses | F71: 7427.9 | G71: 1801.63 | H71: 5626.27 | I71: 3.122877616 | K71: 14713.13 | L71: 2812.08 | M71: 11901.05 | N71: 4.23211644 | Q71: 14713.13 | R71: 2812.08 | S71: 11901.05 | T71: 4.23211644 | V71: 86944.44 | W71: 35854.75 | X71: 51089.69 | Y71: 1.42490716
A72: %,V5060000 | B72: 5060000 | C72: Misc Steam Power Expenses | F72: 516232.62 | G72: 381726.44 | H72: 134506.18 | I72: 0.3523627549 | K72: 1580780.82 | L72: 1151923.326 | M72: 428857.494 | N72: 0.3722969093 | Q72: 1580780.82 | R72: 1151923.326 | S72: 428857.494 | T72: 0.3722969093 | V72: 5438528.92 | W72: 5924317.646 | X72: -485788.726 | Y72: -0.08199910184
A73: %,V5060002 | B73: 5060002 | C73: Misc Steam Power Exp-Assoc | F73: 5178.06 | G73: 4254.84 | H73: 923.22 | I73: 0.2169811321 | K73: 14876.54 | L73: 14384.23 | M73: 492.31 | N73: 0.03422567631 | Q73: 14876.54 | R73: 14384.23 | S73: 492.31 | T73: 0.03422567631 | V73: 48491.62 | W73: 53188.44 | X73: -4696.82 | Y73: -0.08830527836
A74: %,V5060011 | B74: 5060011 | C74: BSRR O/U Recovery-Oper Costs | F74: 0 | G74: 0 | H74: 0 | K74: 0 | L74: 0 | M74: 0 | Q74: 0 | R74: 0 | S74: 0 | V74: 0 | W74: 210.68 | X74: -210.68 | Y74: 1
A75: %,V5070006 | B75: 5070006 | C75: Rents - Associated | F75: 128.59 | G75: 193.17 | H75: =+F75-G75 -> -64.58 | I75: =IF(AND(F75=0,G75=0),"",IF(OR(F75=0,G75=0),100%,(+H75/G75))) -> -0.3343169229 | K75: 382.67 | L75: 579.51 | M75: =+K75-L75 -> -196.84 | N75: =IF(AND(K75=0,L75=0),"",IF(OR(K75=0,L75=0),100%,(+M75/L75))) -> -0.3396662698 | Q75: 382.67 | R75: 579.51 | S75: =+Q75-R75 -> -196.84 | T75: =IF(AND(Q75=0,R75=0),"",IF(OR(Q75=0,R75=0),100%,(+S75/R75))) -> -0.3396662698 | V75: 2121.2 | W75: 579.51 | X75: =+V75-W75 -> 1541.69 | Y75: =IF(AND(V75=0,W75=0),"",IF(OR(V75=0,W75=0),100%,(+X75/W75))) -> 2.66033373
A76: %,V5090000 | B76: 5090000 | C76: Allow Consum Title IV SO2 | F76: 530.89 | G76: 226.6 | H76: 304.29 | I76: 1.342850838 | K76: 3293.93 | L76: 5255.02 | M76: -1961.09 | N76: -0.3731841173 | Q76: 3293.93 | R76: 5255.02 | S76: -1961.09 | T76: -0.3731841173 | V76: 14737.31 | W76: 37960.01 | X76: -23222.7 | Y76: -0.611767489
A77: %,V5090001 | B77: 5090001 | C77: Allowance Consumption - NOx | F77: 0 | G77: 0 | H77: 0 | K77: 0 | L77: 0 | M77: 0 | Q77: 0 | R77: 0 | S77: 0 | V77: -157142.86 | W77: 42857.15 | X77: -200000.01 | Y77: -4.666666122
A78: %,V5090009 | B78: 5090009 | C78: Allow Consumpt CSAPR SO2 | F78: 2.6 | G78: 1.11 | H78: 1.49 | I78: 1.342342342 | K78: 16.15 | L78: 25.66 | M78: -9.51 | N78: -0.3706157443 | Q78: 16.15 | R78: 25.66 | S78: -9.51 | T78: -0.3706157443 | V78: 71.51 | W78: 182.4 | X78: -110.89 | Y78: -0.6079495614
A79: %,V5100000 | B79: 5100000 | C79: Maint Supv & Engineering | F79: 105829.58 | G79: 83007.7 | H79: 22821.88 | I79: 0.2749369034 | K79: 293512.67 | L79: 260841.52 | M79: 32671.15 | N79: 0.1252528739 | Q79: 293512.67 | R79: 260841.52 | S79: 32671.15 | T79: 0.1252528739 | V79: 1024353.24 | W79: 1484788.18 | X79: -460434.94 | Y79: -0.3101014314
A80: %,V5100001 | B80: 5100001 | C80: Dresden Maint Sup& Engineer | F80: 0 | G80: 0 | H80: 0 | K80: -9.94 | L80: 0 | M80: -9.94 | N80: 1 | Q80: -9.94 | R80: 0 | S80: -9.94 | T80: 1 | V80: 359.63 | W80: 0 | X80: 359.63 | Y80: 1
A81: %,V5110000 | B81: 5110000 | C81: Maintenance of Structures | F81: 153559.3 | G81: 174774.73 | H81: -21215.43 | I81: -0.1213872852 | K81: 590264.1 | L81: 453456.42 | M81: 136807.68 | N81: 0.3016997311 | Q81: 590264.1 | R81: 453456.42 | S81: 136807.68 | T81: 0.3016997311 | V81: 1829687.32 | W81: 1875709.33 | X81: -46022.01 | Y81: -0.02453578988
A82: %,V5120000 | B82: 5120000 | C82: Maintenance of Boiler Plant | F82: 1265004.87 | G82: 1591331.56 | H82: -326326.69 | I82: -0.2050651782 | K82: 3026450.32 | L82: 3869657.61 | M82: -843207.29 | N82: -0.2179022991 | Q82: 3026450.32 | R82: 3869657.61 | S82: -843207.29 | T82: -0.2179022991 | V82: 11704014.65 | W82: 15620064.33 | X82: -3916049.68 | Y82: -0.2507063734
A83: %,V5120034 | B83: 5120034 | C83: BSDR O/U Recovery - Maint Cost | F83: -947.09 | G83: -129.56 | H83: -817.53 | I83: 6.310049398 | K83: -2849.52 | L83: -587.07 | M83: -2262.45 | N83: 3.853799377 | Q83: -2849.52 | R83: -587.07 | S83: -2262.45 | T83: 3.853799377 | V83: -10784.87 | W83: -9481.45 | X83: -1303.42 | Y83: 0.1374705346
A84: %,V5120037 | B84: 5120037 | C84: KY Steam Maint O/U | F84: -58271.11 | G84: -58271.11 | H84: 0 | I84: 0 | K84: -174813.33 | L84: -174813.33 | M84: 0 | N84: 0 | Q84: -174813.33 | R84: -174813.33 | S84: 0 | T84: 0 | V84: -699253.32 | W84: -699253.32 | X84: 0 | Y84: 0
A85: %,V5130000 | B85: 5130000 | C85: Maintenance of Electric Plant | F85: 631049.53 | G85: 634962.46 | H85: -3912.93 | I85: -0.006162458801 | K85: 1163744.34 | L85: 1493258.78 | M85: -329514.44 | N85: -0.2206680077 | Q85: 1163744.34 | R85: 1493258.78 | S85: -329514.44 | T85: -0.2206680077 | V85: 5576599.06 | W85: 4312744.22 | X85: 1263854.84 | Y85: 0.2930511933
A86: %,V5132000 | B86: 5132000 | C86: Maint of Computer Software-Mjr | F86: 12038.55 | G86: 15142.5 | H86: -3103.95 | I86: -0.2049826647 | K86: 13074.2 | L86: 17167.5 | M86: -4093.3 | N86: -0.2384330858 | Q86: 13074.2 | R86: 17167.5 | S86: -4093.3 | T86: -0.2384330858 | V86: 51171.7 | W86: 17167.5 | X86: 34004.2 | Y86: 1.980731032
A87: %,V5133000 | B87: 5133000 | C87: Maint of Comm Equipmt-Mjr | F87: 448.32 | G87: 101.59 | H87: 346.73 | I87: 3.413032779 | K87: 2955.74 | L87: 411.86 | M87: 2543.88 | N87: 6.176564852 | Q87: 2955.74 | R87: 411.86 | S87: 2543.88 | T87: 6.176564852 | V87: 8227.61 | W87: 411.86 | X87: 7815.75 | Y87: 18.97671539
A88: %,V5140000 | B88: 5140000 | C88: Maintenance of Misc Steam Plt | F88: 120725.13 | G88: 217748.98 | H88: -97023.85 | I88: -0.4455765993 | K88: 486970.9 | L88: 405345.66 | M88: 81625.24 | N88: 0.2013719353 | Q88: 486970.9 | R88: 405345.66 | S88: 81625.24 | T88: 0.2013719353 | V88: 1564167.87 | W88: 1553422.78 | X88: 10745.09 | Y88: 0.006917041605
A89: %,FACCOUNT,X,TGL_FERC_ACCT,N500-515 | B89: 4 | C89: Total Power Production Expenses - Steam Power | F89: 20772465.55 | G89: 12657895.95 | H89: 8114569.595 | I89: 0.6410678067 | K89: 44995669.11 | L89: 45803614.11 | M89: -807944.999 | N89: -0.01763932857 | Q89: 44995669.11 | R89: 45803614.11 | S89: -807944.999 | T89: -0.01763932857 | V89: 181600262.3 | W89: 169441754.2 | X89: 12158508.1 | Y89: 0.07175626904
A90: %,FACCOUNT,X,TGL_FERC_ACCT,N517-525 | B90: 5 | C90: Nuclear Power Generation - Operation (517-525) | D90: o | F90: 0 | G90: 0 | H90: 0 | K90: 0 | L90: 0 | M90: 0 | Q90: 0 | R90: 0 | S90: 0 | V90: 0 | W90: 0 | X90: 0
A91: %,V5311000 | B91: 5311000 | C91: Maint of Computer Hardware | F91: -70.33 | G91: 0 | H91: -70.33 | I91: 1 | K91: -93.06 | L91: 0 | M91: -93.06 | N91: 1 | Q91: -93.06 | R91: 0 | S91: -93.06 | T91: 1 | V91: -16.37 | W91: 0 | X91: -16.37 | Y91: 1
A92: %,V5312000 | B92: 5312000 | C92: Maint of Computer Software | F92: 0 | G92: 0 | H92: 0 | K92: 0 | L92: 0 | M92: 0 | Q92: 0 | R92: 0 | S92: 0 | V92: 0.19 | W92: 0 | X92: 0.19 | Y92: 1
A93: %,FACCOUNT,X,TGL_FERC_ACCT,N528-533 | B93: 6 | C93: Nuclear Power Generation - Maintenance (528-532) | D93: m | F93: -70.33 | G93: 0 | H93: -70.33 | I93: 1 | K93: -93.06 | L93: 0 | M93: -93.06 | N93: 1 | Q93: -93.06 | R93: 0 | S93: -93.06 | T93: 1 | V93: -16.18 | W93: 0 | X93: -16.18 | Y93: 1
A94: %,V5311000 | B94: 5311000 | C94: Maint of Computer Hardware | F94: -70.33 | G94: 0 | H94: -70.33 | I94: 1 | K94: -93.06 | L94: 0 | M94: -93.06 | N94: 1 | Q94: -93.06 | R94: 0 | S94: -93.06 | T94: 1 | V94: -16.37 | W94: 0 | X94: -16.37 | Y94: 1
A95: %,V5312000 | B95: 5312000 | C95: Maint of Computer Software | F95: 0 | G95: 0 | H95: 0 | K95: 0 | L95: 0 | M95: 0 | Q95: 0 | R95: 0 | S95: 0 | V95: 0.19 | W95: 0 | X95: 0.19 | Y95: 1
A96: %,FACCOUNT,X,TGL_FERC_ACCT,N517-533 | B96: 7 | C96: Total Power Production Expenses - Nuclear Power | F96: -70.33 | G96: 0 | H96: -70.33 | I96: 1 | K96: -93.06 | L96: 0 | M96: -93.06 | N96: 1 | Q96: -93.06 | R96: 0 | S96: -93.06 | T96: 1 | V96: -16.18 | W96: 0 | X96: -16.18 | Y96: 1
A97: %,FACCOUNT,X,TGL_FERC_ACCT,N535-540 | B97: 8 | C97: Hydraulic Power Generation - Operation (535-540.1) | D97: o | F97: 0 | G97: 0 | H97: 0 | K97: 0 | L97: 0 | M97: 0 | Q97: 0 | R97: 0 | S97: 0 | V97: 0 | W97: 0 | X97: 0
A98: %,FACCOUNT,X,TGL_FERC_ACCT,N541-545 | B98: 9 | C98: Hydraulic Power Generation - Maintenance (541-545.1) | D98: m | F98: 0 | G98: 0 | H98: 0 | K98: 0 | L98: 0 | M98: 0 | Q98: 0 | R98: 0 | S98: 0 | V98: 0 | W98: 0 | X98: 0
A99: %,FACCOUNT,X,TGL_FERC_ACCT,N535-545 | B99: 10 | C99: Total Power Production Expenses - Hydraulic Power | F99: 0 | G99: 0 | H99: 0 | K99: 0 | L99: 0 | M99: 0 | Q99: 0 | R99: 0 | S99: 0 | V99: 0 | W99: 0 | X99: 0
A100: %,V5581000 | B100: 5581000 | C100: Oper Supervision & Engineering | F100: 61.42 | G100: 0 | K100: 301.25 | L100: 0 | Q100: 301.25 | R100: 0 | V100: 1706.02 | W100: 0
A101: %,V5582000 | B101: 5582000 | C101: Solar Panel Gen&Oth Plt Op-Mjr | F101: -3.08 | G101: 8.32 | K101: 0 | L101: 10.39 | Q101: 0 | R101: 10.39 | V101: -8.32 | W101: 10.39
A102: %,FACCOUNT,X,TGL_FERC_ACCT,N5581,N5582,N5584,N5585 | B102: 10.1 | C102: Solar Generation – Operation (558.1-558.5) | D102: o | F102: 58.34 | G102: 8.32 | K102: 301.25 | L102: 10.39 | Q102: 301.25 | R102: 10.39 | V102: 1697.7 | W102: 10.39
A103: %,V5587000 | B103: 5587000 | C103: Maint Solar Pnl Strct & Eq-Mjr | F103: 9.88 | G103: 41.21 | K103: 6.81 | L103: 41.21 | Q103: 6.81 | R103: 41.21 | V103: -31.33 | W103: 41.21
A104: %,FACCOUNT,X,TGL_FERC_ACCT,N5586,N5587,N5588,N5589,N55810,N55811,N55812 | B104: 10.2 | C104: Solar Generation – Maintenance (558.6-558.12) | D104: m | F104: 9.88 | G104: 41.21 | K104: 6.81 | L104: 41.21 | Q104: 6.81 | R104: 41.21 | V104: -31.33 | W104: 41.21
B105: 10.3 | C105: Total Power Production Expenses – Solar | F105: =F102+F104 -> 68.22
A106: %,V5581300 | B106: 5581300 | C106: Oper Supervision & Engineering | F106: 403.83 | G106: 217.33 | K106: 2412.1 | L106: 371.74 | Q106: 2412.1 | R106: 371.74 | V106: 11553.59 | W106: 371.74
A107: %,V5581400 | B107: 5581400 | C107: Wind Turb Gen&Oth Plnt Op-Mjr | F107: -187.2 | G107: 633.47 | K107: 342.41 | L107: 1032.08 | Q107: 342.41 | R107: 1032.08 | V107: -175.82 | W107: 1032.08
A108: %,V5581601 | B108: 5581601 | C108: Wind - Variable Production Exp | F108: 62.7 | G108: 0 | K108: 60.77 | L108: 0 | Q108: 60.77 | R108: 0 | V108: 84.83 | W108: 0
A109: %,FACCOUNT,X,TGL_FERC_ACCT,N55813,N55814,N55816,N55817 | B109: 10.4 | C109: Wind Generation – Operation (558.13-558.17) | D109: o | F109: 279.33 | G109: 850.8 | K109: 2815.28 | L109: 1403.82 | Q109: 2815.28 | R109: 1403.82 | V109: 11462.6 | W109: 1403.82
A110: %,V5581900 | B110: 5581900 | C110: Maint Wind Turb Struct&Eq-Mjr | F110: 0 | G110: -3.59 | K110: 0 | L110: 0 | Q110: 0 | R110: 0 | V110: 0 | W110: 0
A111: %,FACCOUNT,X,TGL_FERC_ACCT,N55818,N55819,N55820,N55821,N55822,N55823,N55824 | B111: 10.5 | C111: Wind Generation – Maintenance (558.18-558.24) | D111: m | F111: 0 | G111: -3.59 | K111: 0 | L111: 0 | Q111: 0 | R111: 0 | V111: 0 | W111: 0
B112: 10.6 | C112: Total Power Production Expenses – Wind | F112: =F109+F111 -> 279.33
A113: %,FACCOUNT,X,TGL_FERC_ACCT,N5590 | B113: 10.7 | C113: Other Renewable Generation – Operation (559.1-559.5) | D113: o | F113: 0 | G113: 0 | K113: 0 | L113: 0 | Q113: 0 | R113: 0 | V113: 0 | W113: 0
A114: %,FACCOUNT,X,TGL_FERC_ACCT,N559 | B114: 10.8 | C114: Other Renewable Generation – Maintenance (559.6-559.16) | D114: m | F114: 0 | G114: 0 | K114: 0 | L114: 0 | Q114: 0 | R114: 0 | V114: 0 | W114: 0
B115: 10.9 | C115: Total Power Production Expenses – Other Renewable | F115: =F113+F114 -> 0
A116: %,V5490000 | B116: 5490000 | C116: Misc Other Pwer Generation Exp | F116: 0 | G116: 0 | H116: =+F116-G116 -> 0 | I116: =IF(AND(F116=0,G116=0),"",IF(OR(F116=0,G116=0),100%,(+H116/G116))) ->  | K116: 0 | L116: 0 | M116: =+K116-L116 -> 0 | N116: =IF(AND(K116=0,L116=0),"",IF(OR(K116=0,L116=0),100%,(+M116/L116))) ->  | Q116: 0 | R116: 0 | S116: =+Q116-R116 -> 0 | T116: =IF(AND(Q116=0,R116=0),"",IF(OR(Q116=0,R116=0),100%,(+S116/R116))) ->  | V116: 0.01 | W116: 0 | X116: =+V116-W116 -> 0.01 | Y116: =IF(AND(V116=0,W116=0),"",IF(OR(V116=0,W116=0),100%,(+X116/W116))) -> 1
A117: %,V8140000 | B117: 8140000 | C117: Underground Storage Expenses | F117: 0 | G117: 0 | H117: 0 | K117: 0 | L117: 0 | M117: 0 | Q117: 0 | R117: 0 | S117: 0 | V117: 0 | W117: 0 | X117: 0
A118: %,FACCOUNT,X,TGL_FERC_ACCT,N546-550 | B118: 11 | C118: Other Power Generation - Operation (546-550.1) | D118: o | F118: 0 | G118: 0 | H118: 0 | K118: 0 | L118: 0 | M118: 0 | Q118: 0 | R118: 0 | S118: 0 | V118: 0.01 | W118: 0 | X118: 0.01 | Y118: 1
A119: %,FACCOUNT,X,TGL_FERC_ACCT,N551-554 | B119: 12 | C119: Other Power Generation - Maintenance (551-554.1) | D119: m | F119: 0 | G119: 0 | H119: 0 | K119: 0 | L119: 0 | M119: 0 | Q119: 0 | R119: 0 | S119: 0 | V119: 0 | W119: 0 | X119: 0
A120: %,V5490000 | B120: 5490000 | C120: Misc Other Pwer Generation Exp | F120: 0 | G120: 0 | H120: 0 | K120: 0 | L120: 0 | M120: 0 | Q120: 0 | R120: 0 | S120: 0 | V120: 0.01 | W120: 0 | X120: 0.01 | Y120: 1
A121: %,V8140000 | B121: 8140000 | C121: Underground Storage Expenses | F121: 0 | G121: 0 | H121: 0 | K121: 0 | L121: 0 | M121: 0 | Q121: 0 | R121: 0 | S121: 0 | V121: 0 | W121: 0 | X121: 0
A122: %,FACCOUNT,X,TGL_FERC_ACCT,N546-554 | B122: 13 | C122: Total Power Production Expenses - Other Power | F122: 0 | G122: 0 | H122: 0 | K122: 0 | L122: 0 | M122: 0 | Q122: 0 | R122: 0 | S122: 0 | V122: 0.01 | W122: 0 | X122: 0.01 | Y122: 1
B123: 14 | C123: Other Power Supply Expenses | H123: 0 | M123: 0 | S123: 0 | X123: 0
A124: %,V5550001 | B124: 5550001 | C124: Purch Pwr-NonTrading-Nonassoc | F124: 9179467.44 | G124: 14301194.83 | H124: -5121727.39 | I124: -0.3581328309 | K124: 37623620.64 | L124: 44015430.77 | M124: -6391810.13 | N124: -0.1452174844 | Q124: 37623620.64 | R124: 44015430.77 | S124: -6391810.13 | T124: -0.1452174844 | V124: 106644495.1 | W124: 106265431.5 | X124: 379063.63 | Y124: 0.003567139611
A125: %,V5550004 | B125: 5550004 | C125: Purchased Power-Pool Capacity | F125: 32587.75 | G125: 0 | H125: 32587.75 | I125: 1 | K125: 94609.6 | L125: 0 | M125: 94609.6 | N125: 1 | Q125: 94609.6 | R125: 0 | S125: 94609.6 | T125: 1 | V125: 319570.22 | W125: 149722.2 | X125: 169848.02 | Y125: 1.134421081
A126: %,V5550023 | B126: 5550023 | C126: Purch Power Capacity -NA | F126: 0 | G126: 201548.44 | H126: -201548.44 | I126: 1 | K126: 0 | L126: 604645.32 | M126: -604645.32 | N126: 1 | Q126: 0 | R126: 604645.32 | S126: -604645.32 | T126: 1 | V126: 1247507.37 | W126: 2023902.21 | X126: -776394.84 | Y126: -0.3836128229
A127: %,V5550029 | B127: 5550029 | C127: Purch Power-Assoc-Trnsfr Price | F127: 0 | G127: 0 | H127: 0 | K127: 0 | L127: 0 | M127: 0 | Q127: 0 | R127: 0 | S127: 0 | V127: 0 | W127: 0 | X127: 0
A128: %,V5550039 | B128: 5550039 | C128: PJM Inadvertent Mtr Res-OSS | F128: -643.59 | G128: -448.96 | H128: -194.63 | I128: 0.4335130078 | K128: 3490.45 | L128: -1139.47 | M128: 4629.92 | N128: -4.063222375 | Q128: 3490.45 | R128: -1139.47 | S128: 4629.92 | T128: -4.063222375 | V128: 965.19 | W128: 3929.05 | X128: -2963.86 | Y128: -0.7543451979
A129: %,V5550040 | B129: 5550040 | C129: PJM Inadvertent Mtr Res-LSE | F129: 15560.65 | G129: -7222.49 | H129: 22783.14 | I129: -3.154471657 | K129: 63888.02 | L129: -16541.91 | M129: 80429.93 | N129: -4.862191246 | Q129: 63888.02 | R129: -16541.91 | S129: 80429.93 | T129: -4.862191246 | V129: 17720.9 | W129: 34353.69 | X129: -16632.79 | Y129: -0.4841631277
A130: %,V5550074 | B130: 5550074 | C130: PJM Reactive-Charge | F130: 240002.75 | G130: 271025.49 | H130: -31022.74 | I130: -0.1144642889 | K130: 748658.64 | L130: 830812.29 | M130: -82153.65 | N130: -0.09888352759 | Q130: 748658.64 | R130: 830812.29 | S130: -82153.65 | T130: -0.09888352759 | V130: 3135648.23 | W130: 3481565.6 | X130: -345917.37 | Y130: -0.09935684394
A131: %,V5550075 | B131: 5550075 | C131: PJM Reactive-Credit | F131: -119573 | G131: -119573 | H131: 0 | I131: 0 | K131: -358719 | L131: -358719 | M131: 0 | N131: 0 | Q131: -358719 | R131: -358719 | S131: 0 | T131: 0 | V131: -1434876 | W131: -1434876 | X131: 0 | Y131: 0
A132: %,V5550076 | B132: 5550076 | C132: PJM Black Start-Charge | F132: 73314.72 | G132: 47260.05 | H132: 26054.67 | I132: 0.5513043257 | K132: 74625.92 | L132: 97438.83 | M132: -22812.91 | N132: -0.2341254508 | Q132: 74625.92 | R132: 97438.83 | S132: -22812.91 | T132: -0.2341254508 | V132: 440419.71 | W132: 940481.78 | X132: -500062.07 | Y132: -0.531708408
A133: %,V5550078 | B133: 5550078 | C133: PJM Regulation-Charge | F133: -360040.67 | G133: 76947.6 | H133: -436988.27 | I133: -5.679037033 | K133: 812172.71 | L133: 277133.64 | M133: 535039.07 | N133: 1.930617553 | Q133: 812172.71 | R133: 277133.64 | S133: 535039.07 | T133: 1.930617553 | V133: 1814274.77 | W133: 720558 | X133: 1093716.77 | Y133: 1.517874717
A134: %,V5550079 | B134: 5550079 | C134: PJM Regulation-Credit | F134: 953519.41 | G134: -1023.06 | H134: 954542.47 | I134: -933.0268704 | K134: -162508.26 | L134: 212917.96 | M134: -375426.22 | N134: -1.763243552 | Q134: -162508.26 | R134: 212917.96 | S134: -375426.22 | T134: -1.763243552 | V134: 117856.06 | W134: -20095.86 | X134: 137951.92 | Y134: -6.864693524
A135: %,V5550080 | B135: 5550080 | C135: PJM Hourly Net Purch.-FERC | F135: 329304.39 | G135: 407887.99 | H135: -78583.6 | I135: -0.1926597545 | K135: 6700029.75 | L135: 1339281.43 | M135: 5360748.32 | N135: 4.002704883 | Q135: 6700029.75 | R135: 1339281.43 | S135: 5360748.32 | T135: 4.002704883 | V135: 24810714.67 | W135: 9579401.32 | X135: 15231313.35 | Y135: 1.590006812
A136: %,V5550083 | B136: 5550083 | C136: PJM Sync & Non Sync-Charge | F136: 107860.49 | G136: 133141.66 | H136: -25281.17 | I136: -0.1898817395 | K136: 390694.63 | L136: 274304.56 | M136: 116390.07 | N136: 0.4243096433 | Q136: 390694.63 | R136: 274304.56 | S136: 116390.07 | T136: 0.4243096433 | V136: 1186528.77 | W136: 685580.88 | X136: 500947.89 | Y136: 0.7306911622
A137: %,V5550084 | B137: 5550084 | C137: PJM Sync & Non Sync-Credit | F137: -20218.63 | G137: -34856.53 | H137: 14637.9 | I137: -0.4199471376 | K137: -36110.21 | L137: -42939.13 | M137: 6828.92 | N137: -0.1590372232 | Q137: -36110.21 | R137: -42939.13 | S137: 6828.92 | T137: -0.1590372232 | V137: -161796.23 | W137: -86860.33 | X137: -74935.9 | Y137: 0.8627171921
A138: %,V5550094 | B138: 5550094 | C138: Purchased Power - Fuel | F138: 0 | G138: 0 | H138: 0 | K138: 0 | L138: 0 | M138: 0 | Q138: 0 | R138: 0 | S138: 0 | V138: 0 | W138: 0 | X138: 0
A139: %,V5550123 | B139: 5550123 | C139: PJM OpRes-LSE-Charge | F139: 406333.58 | G139: 171586 | H139: 234747.58 | I139: 1.368104507 | K139: 6265401.02 | L139: 3313080.42 | M139: 2952320.6 | N139: 0.8911104548 | Q139: 6265401.02 | R139: 3313080.42 | S139: 2952320.6 | T139: 0.8911104548 | V139: 7540535.61 | W139: 4184830.94 | X139: 3355704.67 | Y139: 0.8018734133
A140: %,V5550124 | B140: 5550124 | C140: PJM Implicit Congestion-LSE | F140: 1259188.35 | G140: 671542.15 | H140: 587646.2 | I140: 0.8750697183 | K140: 12038234.31 | L140: 2465234.43 | M140: 9572999.88 | N140: 3.883200625 | Q140: 12038234.31 | R140: 2465234.43 | S140: 9572999.88 | T140: 3.883200625 | V140: 14855534.79 | W140: 8551326.64 | X140: 6304208.15 | Y140: 0.7372198976
A141: %,V5550132 | B141: 5550132 | C141: PJM FTR Revenue-LSE | F141: -1178950.01 | G141: -236460.55 | H141: -942489.46 | I141: 3.985821144 | K141: -15107534.9 | L141: -4778154.89 | M141: -10329380.01 | N141: 2.161792627 | Q141: -15107534.9 | R141: -4778154.89 | S141: -10329380.01 | T141: 2.161792627 | V141: -20476605.92 | W141: -10489129.9 | X141: -9987476.02 | Y141: 0.9521739282
A142: %,V5550137 | B142: 5550137 | C142: PJM OpRes-LSE-Credit | F142: -25924.19 | G142: -2365.08 | H142: -23559.11 | I142: 9.961231755 | K142: -22494.41 | L142: -16087.27 | M142: -6407.14 | N142: 0.3982739147 | Q142: -22494.41 | R142: -16087.27 | S142: -6407.14 | T142: 0.3982739147 | V142: -141610.17 | W142: -68073.77 | X142: -73536.4 | Y142: 1.080245739
A143: %,V5550139 | B143: 5550139 | C143: Generation Deactivation expens | F143: -56491.66 | G143: 0 | H143: -56491.66 | I143: 1 | K143: -126181.47 | L143: 0 | M143: -126181.47 | N143: 1 | Q143: -126181.47 | R143: 0 | S143: -126181.47 | T143: 1 | V143: -1179.4 | W143: 0 | X143: -1179.4 | Y143: 1
A144: %,V5550326 | B144: 5550326 | C144: PJM Transm Loss Charges - LSE | F144: 243446.26 | G144: 166161.61 | H144: 77284.65 | I144: 0.4651173638 | K144: 4824278.36 | L144: 2344460.74 | M144: 2479817.62 | N144: 1.057734761 | Q144: 4824278.36 | R144: 2344460.74 | S144: 2479817.62 | T144: 1.057734761 | V144: 9392201.62 | W144: 6260527.43 | X144: 3131674.19 | Y144: 0.5002252965
A145: %,V5550327 | B145: 5550327 | C145: PJM Transm Loss Credits-LSE | F145: -211308.29 | G145: -230131.31 | H145: 18823.02 | I145: -0.08179252097 | K145: -2452506.83 | L145: -1218348.91 | M145: -1234157.92 | N145: 1.012975766 | Q145: -2452506.83 | R145: -1218348.91 | S145: -1234157.92 | T145: 1.012975766 | V145: -4977279.57 | W145: -2985518.61 | X145: -1991760.96 | Y145: 0.6671406949
A146: %,V5550328 | B146: 5550328 | C146: PJM FC Penalty Credit | F146: -35.87 | G146: -242.85 | H146: 206.98 | I146: -0.8522956558 | K146: -96.53 | L146: -1597.15 | M146: 1500.62 | N146: -0.9395610932 | Q146: -96.53 | R146: -1597.15 | S146: 1500.62 | T146: -0.9395610932 | V146: -1220.15 | W146: -2992.05 | X146: 1771.9 | Y146: -0.5922026704
A147: %,FACCOUNT,X,TGL_FERC_ACCT,N5550 | B147: 15 | C147: Purchased Power (555) | F147: 10867399.88 | G147: 15815971.99 | H147: -4948572.11 | I147: -0.3128844761 | K147: 51373552.44 | L147: 49341212.66 | M147: 2032339.78 | N147: 0.041189498 | Q147: 51373552.44 | R147: 49341212.66 | S147: 2032339.78 | T147: 0.041189498 | V147: 144329405.6 | W147: 127794064.7 | X147: 16535340.88 | Y147: 0.1293905231
B148: 15.1 | C148: Power Purchased for Storage Operations (555.1)
A149: %,FACCOUNT,X,TGL_FERC_ACCT,N5552 | B149: 15.2 | C149: Bundled Environmental Credits (555.2) | F149: 0 | G149: 0 | K149: 0 | L149: 0 | Q149: 0 | R149: 0 | V149: 0 | W149: 0
A150: %,FACCOUNT,X,TGL_FERC_ACCT,N5553 | B150: 15.3 | C150: Unbundled Environmental Credits (555.3) | F150: 0 | G150: 0 | K150: 0 | L150: 0 | Q150: 0 | R150: 0 | V150: 0 | W150: 0
A151: %,V5560000 | B151: 5560000 | C151: Sys Control & Load Dispatching | F151: 3680.21 | G151: 3576.8 | H151: =+F151-G151 -> 103.41 | I151: =IF(AND(F151=0,G151=0),"",IF(OR(F151=0,G151=0),100%,(+H151/G151))) -> 0.02891131738 | K151: 13552.7 | L151: 13229.2 | M151: =+K151-L151 -> 323.5 | N151: =IF(AND(K151=0,L151=0),"",IF(OR(K151=0,L151=0),100%,(+M151/L151))) -> 0.02445348169 | Q151: 13552.7 | R151: 13229.2 | S151: =+Q151-R151 -> 323.5 | T151: =IF(AND(Q151=0,R151=0),"",IF(OR(Q151=0,R151=0),100%,(+S151/R151))) -> 0.02445348169 | V151: 54406.28 | W151: 66579.09 | X151: =+V151-W151 -> -12172.81 | Y151: =IF(AND(V151=0,W151=0),"",IF(OR(V151=0,W151=0),100%,(+X151/W151))) -> -0.1828323277
A152: %,FACCOUNT,X,TGL_FERC_ACCT,N5560 | B152: 16 | C152: System Control and Load Dispatching (556) | F152: 3680.21 | G152: 3576.8 | H152: 103.41 | I152: 0.02891131738 | K152: 13552.7 | L152: 13229.2 | M152: 323.5 | N152: 0.02445348169 | Q152: 13552.7 | R152: 13229.2 | S152: 323.5 | T152: 0.02445348169 | V152: 54406.28 | W152: 66579.09 | X152: -12172.81 | Y152: -0.1828323277
A153: %,V5570000 | B153: 5570000 | C153: Other Expenses | F153: 56058.17 | G153: 62054.19 | H153: -5996.02 | I153: -0.09662554616 | K153: 186895.97 | L153: 192452.13 | M153: -5556.16 | N153: -0.02887034817 | Q153: 186895.97 | R153: 192452.13 | S153: -5556.16 | T153: -0.02887034817 | V153: 805629.95 | W153: 799285.09 | X153: 6344.86 | Y153: 0.007938168845
A154: %,V5570007 | B154: 5570007 | C154: Other Pwr Exp - Wholesale RECs | F154: 0 | G154: 0 | H154: 0 | K154: 231.75 | L154: 243.15 | M154: -11.4 | N154: -0.04688463911 | Q154: 231.75 | R154: 243.15 | S154: -11.4 | T154: -0.04688463911 | V154: 231.75 | W154: 243.15 | X154: -11.4 | Y154: -0.04688463911
A155: %,V5570009 | B155: 5570009 | C155: Other Pwr Exp- REC's - RETAIL | F155: 0 | G155: 0 | H155: 0 | K155: 0 | L155: 0 | M155: 0 | Q155: 0 | R155: 0 | S155: 0 | V155: 0 | W155: 446.4 | X155: -446.4 | Y155: 1
A156: %,V5570010 | B156: 5570010 | C156: OH Auction Exp - Incremental | F156: 0 | G156: 0 | H156: 0 | K156: 0 | L156: 0 | M156: 0 | Q156: 0 | R156: 0 | S156: 0 | V156: 0 | W156: 5.79 | X156: -5.79 | Y156: 1
A157: %,V5570025 | B157: 5570025 | C157: MATL-SAFETY | F157: 0 | G157: 0 | H157: 0 | K157: 0 | L157: 0 | M157: 0 | Q157: 0 | R157: 0 | S157: 0 | V157: 0.93 | W157: 0 | X157: 0.93 | Y157: 1
A158: %,FACCOUNT,X,TGL_FERC_ACCT,N5570 | B158: 17 | C158: Other Expenses (557) | F158: 56058.17 | G158: 62054.19 | H158: -5996.02 | I158: -0.09662554616 | K158: 187127.72 | L158: 192695.28 | M158: -5567.56 | N158: -0.02889307927 | Q158: 187127.72 | R158: 192695.28 | S158: -5567.56 | T158: -0.02889307927 | V158: 805862.63 | W158: 799980.43 | X158: 5882.2 | Y158: 0.007352929871
A159: %,V5550001 | B159: 5550001 | C159: Purch Pwr-NonTrading-Nonassoc | F159: 9179467.44 | G159: 14301194.83 | H159: -5121727.39 | I159: -0.3581328309 | K159: 37623620.64 | L159: 44015430.77 | M159: -6391810.13 | N159: -0.1452174844 | Q159: 37623620.64 | R159: 44015430.77 | S159: -6391810.13 | T159: -0.1452174844 | V159: 106644495.1 | W159: 106265431.5 | X159: 379063.63 | Y159: 0.003567139611
A160: %,V5550004 | B160: 5550004 | C160: Purchased Power-Pool Capacity | F160: 32587.75 | G160: 0 | H160: 32587.75 | I160: 1 | K160: 94609.6 | L160: 0 | M160: 94609.6 | N160: 1 | Q160: 94609.6 | R160: 0 | S160: 94609.6 | T160: 1 | V160: 319570.22 | W160: 149722.2 | X160: 169848.02 | Y160: 1.134421081
A161: %,V5550023 | B161: 5550023 | C161: Purch Power Capacity -NA | F161: 0 | G161: 201548.44 | H161: -201548.44 | I161: 1 | K161: 0 | L161: 604645.32 | M161: -604645.32 | N161: 1 | Q161: 0 | R161: 604645.32 | S161: -604645.32 | T161: 1 | V161: 1247507.37 | W161: 2023902.21 | X161: -776394.84 | Y161: -0.3836128229
A162: %,V5550029 | B162: 5550029 | C162: Purch Power-Assoc-Trnsfr Price | F162: 0 | G162: 0 | H162: 0 | K162: 0 | L162: 0 | M162: 0 | Q162: 0 | R162: 0 | S162: 0 | V162: 0 | W162: 0 | X162: 0
A163: %,V5550039 | B163: 5550039 | C163: PJM Inadvertent Mtr Res-OSS | F163: -643.59 | G163: -448.96 | H163: -194.63 | I163: 0.4335130078 | K163: 3490.45 | L163: -1139.47 | M163: 4629.92 | N163: -4.063222375 | Q163: 3490.45 | R163: -1139.47 | S163: 4629.92 | T163: -4.063222375 | V163: 965.19 | W163: 3929.05 | X163: -2963.86 | Y163: -0.7543451979
A164: %,V5550040 | B164: 5550040 | C164: PJM Inadvertent Mtr Res-LSE | F164: 15560.65 | G164: -7222.49 | H164: 22783.14 | I164: -3.154471657 | K164: 63888.02 | L164: -16541.91 | M164: 80429.93 | N164: -4.862191246 | Q164: 63888.02 | R164: -16541.91 | S164: 80429.93 | T164: -4.862191246 | V164: 17720.9 | W164: 34353.69 | X164: -16632.79 | Y164: -0.4841631277
A165: %,V5550074 | B165: 5550074 | C165: PJM Reactive-Charge | F165: 240002.75 | G165: 271025.49 | H165: -31022.74 | I165: -0.1144642889 | K165: 748658.64 | L165: 830812.29 | M165: -82153.65 | N165: -0.09888352759 | Q165: 748658.64 | R165: 830812.29 | S165: -82153.65 | T165: -0.09888352759 | V165: 3135648.23 | W165: 3481565.6 | X165: -345917.37 | Y165: -0.09935684394
A166: %,V5550075 | B166: 5550075 | C166: PJM Reactive-Credit | F166: -119573 | G166: -119573 | H166: 0 | I166: 0 | K166: -358719 | L166: -358719 | M166: 0 | N166: 0 | Q166: -358719 | R166: -358719 | S166: 0 | T166: 0 | V166: -1434876 | W166: -1434876 | X166: 0 | Y166: 0
A167: %,V5550076 | B167: 5550076 | C167: PJM Black Start-Charge | F167: 73314.72 | G167: 47260.05 | H167: 26054.67 | I167: 0.5513043257 | K167: 74625.92 | L167: 97438.83 | M167: -22812.91 | N167: -0.2341254508 | Q167: 74625.92 | R167: 97438.83 | S167: -22812.91 | T167: -0.2341254508 | V167: 440419.71 | W167: 940481.78 | X167: -500062.07 | Y167: -0.531708408
A168: %,V5550078 | B168: 5550078 | C168: PJM Regulation-Charge | F168: -360040.67 | G168: 76947.6 | H168: -436988.27 | I168: -5.679037033 | K168: 812172.71 | L168: 277133.64 | M168: 535039.07 | N168: 1.930617553 | Q168: 812172.71 | R168: 277133.64 | S168: 535039.07 | T168: 1.930617553 | V168: 1814274.77 | W168: 720558 | X168: 1093716.77 | Y168: 1.517874717
A169: %,V5550079 | B169: 5550079 | C169: PJM Regulation-Credit | F169: 953519.41 | G169: -1023.06 | H169: 954542.47 | I169: -933.0268704 | K169: -162508.26 | L169: 212917.96 | M169: -375426.22 | N169: -1.763243552 | Q169: -162508.26 | R169: 212917.96 | S169: -375426.22 | T169: -1.763243552 | V169: 117856.06 | W169: -20095.86 | X169: 137951.92 | Y169: -6.864693524
A170: %,V5550080 | B170: 5550080 | C170: PJM Hourly Net Purch.-FERC | F170: 329304.39 | G170: 407887.99 | H170: -78583.6 | I170: -0.1926597545 | K170: 6700029.75 | L170: 1339281.43 | M170: 5360748.32 | N170: 4.002704883 | Q170: 6700029.75 | R170: 1339281.43 | S170: 5360748.32 | T170: 4.002704883 | V170: 24810714.67 | W170: 9579401.32 | X170: 15231313.35 | Y170: 1.590006812
A171: %,V5550083 | B171: 5550083 | C171: PJM Sync & Non Sync-Charge | F171: 107860.49 | G171: 133141.66 | H171: -25281.17 | I171: -0.1898817395 | K171: 390694.63 | L171: 274304.56 | M171: 116390.07 | N171: 0.4243096433 | Q171: 390694.63 | R171: 274304.56 | S171: 116390.07 | T171: 0.4243096433 | V171: 1186528.77 | W171: 685580.88 | X171: 500947.89 | Y171: 0.7306911622
A172: %,V5550084 | B172: 5550084 | C172: PJM Sync & Non Sync-Credit | F172: -20218.63 | G172: -34856.53 | H172: 14637.9 | I172: -0.4199471376 | K172: -36110.21 | L172: -42939.13 | M172: 6828.92 | N172: -0.1590372232 | Q172: -36110.21 | R172: -42939.13 | S172: 6828.92 | T172: -0.1590372232 | V172: -161796.23 | W172: -86860.33 | X172: -74935.9 | Y172: 0.8627171921
A173: %,V5550094 | B173: 5550094 | C173: Purchased Power - Fuel | F173: 0 | G173: 0 | H173: 0 | K173: 0 | L173: 0 | M173: 0 | Q173: 0 | R173: 0 | S173: 0 | V173: 0 | W173: 0 | X173: 0
A174: %,V5550123 | B174: 5550123 | C174: PJM OpRes-LSE-Charge | F174: 406333.58 | G174: 171586 | H174: 234747.58 | I174: 1.368104507 | K174: 6265401.02 | L174: 3313080.42 | M174: 2952320.6 | N174: 0.8911104548 | Q174: 6265401.02 | R174: 3313080.42 | S174: 2952320.6 | T174: 0.8911104548 | V174: 7540535.61 | W174: 4184830.94 | X174: 3355704.67 | Y174: 0.8018734133
A175: %,V5550124 | B175: 5550124 | C175: PJM Implicit Congestion-LSE | F175: 1259188.35 | G175: 671542.15 | H175: 587646.2 | I175: 0.8750697183 | K175: 12038234.31 | L175: 2465234.43 | M175: 9572999.88 | N175: 3.883200625 | Q175: 12038234.31 | R175: 2465234.43 | S175: 9572999.88 | T175: 3.883200625 | V175: 14855534.79 | W175: 8551326.64 | X175: 6304208.15 | Y175: 0.7372198976
A176: %,V5550132 | B176: 5550132 | C176: PJM FTR Revenue-LSE | F176: -1178950.01 | G176: -236460.55 | H176: -942489.46 | I176: 3.985821144 | K176: -15107534.9 | L176: -4778154.89 | M176: -10329380.01 | N176: 2.161792627 | Q176: -15107534.9 | R176: -4778154.89 | S176: -10329380.01 | T176: 2.161792627 | V176: -20476605.92 | W176: -10489129.9 | X176: -9987476.02 | Y176: 0.9521739282
A177: %,V5550137 | B177: 5550137 | C177: PJM OpRes-LSE-Credit | F177: -25924.19 | G177: -2365.08 | H177: -23559.11 | I177: 9.961231755 | K177: -22494.41 | L177: -16087.27 | M177: -6407.14 | N177: 0.3982739147 | Q177: -22494.41 | R177: -16087.27 | S177: -6407.14 | T177: 0.3982739147 | V177: -141610.17 | W177: -68073.77 | X177: -73536.4 | Y177: 1.080245739
A178: %,V5550139 | B178: 5550139 | C178: Generation Deactivation expens | F178: -56491.66 | G178: 0 | H178: -56491.66 | I178: 1 | K178: -126181.47 | L178: 0 | M178: -126181.47 | N178: 1 | Q178: -126181.47 | R178: 0 | S178: -126181.47 | T178: 1 | V178: -1179.4 | W178: 0 | X178: -1179.4 | Y178: 1
A179: %,V5550326 | B179: 5550326 | C179: PJM Transm Loss Charges - LSE | F179: 243446.26 | G179: 166161.61 | H179: 77284.65 | I179: 0.4651173638 | K179: 4824278.36 | L179: 2344460.74 | M179: 2479817.62 | N179: 1.057734761 | Q179: 4824278.36 | R179: 2344460.74 | S179: 2479817.62 | T179: 1.057734761 | V179: 9392201.62 | W179: 6260527.43 | X179: 3131674.19 | Y179: 0.5002252965
A180: %,V5550327 | B180: 5550327 | C180: PJM Transm Loss Credits-LSE | F180: -211308.29 | G180: -230131.31 | H180: 18823.02 | I180: -0.08179252097 | K180: -2452506.83 | L180: -1218348.91 | M180: -1234157.92 | N180: 1.012975766 | Q180: -2452506.83 | R180: -1218348.91 | S180: -1234157.92 | T180: 1.012975766 | V180: -4977279.57 | W180: -2985518.61 | X180: -1991760.96 | Y180: 0.6671406949
A181: %,V5550328 | B181: 5550328 | C181: PJM FC Penalty Credit | F181: -35.87 | G181: -242.85 | H181: 206.98 | I181: -0.8522956558 | K181: -96.53 | L181: -1597.15 | M181: 1500.62 | N181: -0.9395610932 | Q181: -96.53 | R181: -1597.15 | S181: 1500.62 | T181: -0.9395610932 | V181: -1220.15 | W181: -2992.05 | X181: 1771.9 | Y181: -0.5922026704
A182: %,V5560000 | B182: 5560000 | C182: Sys Control & Load Dispatching | F182: 3680.21 | G182: 3576.8 | H182: 103.41 | I182: 0.02891131738 | K182: 13552.7 | L182: 13229.2 | M182: 323.5 | N182: 0.02445348169 | Q182: 13552.7 | R182: 13229.2 | S182: 323.5 | T182: 0.02445348169 | V182: 54406.28 | W182: 66579.09 | X182: -12172.81 | Y182: -0.1828323277
A183: %,V5570000 | B183: 5570000 | C183: Other Expenses | F183: 56058.17 | G183: 62054.19 | H183: =+F183-G183 -> -5996.02 | I183: =IF(AND(F183=0,G183=0),"",IF(OR(F183=0,G183=0),100%,(+H183/G183))) -> -0.09662554616 | K183: 186895.97 | L183: 192452.13 | M183: =+K183-L183 -> -5556.16 | N183: =IF(AND(K183=0,L183=0),"",IF(OR(K183=0,L183=0),100%,(+M183/L183))) -> -0.02887034817 | Q183: 186895.97 | R183: 192452.13 | S183: =+Q183-R183 -> -5556.16 | T183: =IF(AND(Q183=0,R183=0),"",IF(OR(Q183=0,R183=0),100%,(+S183/R183))) -> -0.02887034817 | V183: 805629.95 | W183: 799285.09 | X183: =+V183-W183 -> 6344.86 | Y183: =IF(AND(V183=0,W183=0),"",IF(OR(V183=0,W183=0),100%,(+X183/W183))) -> 0.007938168845
A184: %,V5570007 | B184: 5570007 | C184: Other Pwr Exp - Wholesale RECs | F184: 0 | G184: 0 | H184: 0 | K184: 231.75 | L184: 243.15 | M184: -11.4 | N184: -0.04688463911 | Q184: 231.75 | R184: 243.15 | S184: -11.4 | T184: -0.04688463911 | V184: 231.75 | W184: 243.15 | X184: -11.4 | Y184: -0.04688463911
A185: %,V5570009 | B185: 5570009 | C185: Other Pwr Exp- REC's - RETAIL | F185: 0 | G185: 0 | H185: 0 | K185: 0 | L185: 0 | M185: 0 | Q185: 0 | R185: 0 | S185: 0 | V185: 0 | W185: 446.4 | X185: -446.4 | Y185: 1
A186: %,V5570010 | B186: 5570010 | C186: OH Auction Exp - Incremental | F186: 0 | G186: 0 | H186: 0 | K186: 0 | L186: 0 | M186: 0 | Q186: 0 | R186: 0 | S186: 0 | V186: 0 | W186: 5.79 | X186: -5.79 | Y186: 1
A187: %,V5570025 | B187: 5570025 | C187: MATL-SAFETY | F187: 0 | G187: 0 | H187: 0 | K187: 0 | L187: 0 | M187: 0 | Q187: 0 | R187: 0 | S187: 0 | V187: 0.93 | W187: 0 | X187: 0.93 | Y187: 1
A188: %,FACCOUNT,X,TGL_FERC_ACCT,N555-557 | B188: 18 | C188: Total Other Power Supply Expenses (line 15-17) | D188: o | F188: 10927138.26 | G188: 15881602.98 | H188: -4954464.72 | I188: -0.3119625095 | K188: 51574232.86 | L188: 49547137.14 | M188: 2027095.72 | N188: 0.04091246916 | Q188: 51574232.86 | R188: 49547137.14 | S188: 2027095.72 | T188: 0.04091246916 | V188: 145189674.5 | W188: 128660624.2 | X188: 16529050.27 | Y188: 0.1284701545
A189: %,V5000000 | B189: 5000000 | C189: Oper Supervision & Engineering | F189: 418873.13 | G189: 306873.26 | H189: 111999.87 | I189: 0.3649710959 | K189: 1191558.33 | L189: 987488.72 | M189: 204069.61 | N189: 0.2066551302 | Q189: 1191558.33 | R189: 987488.72 | S189: 204069.61 | T189: 0.2066551302 | V189: 4707142.2 | W189: 4224514.05 | X189: 482628.15 | Y189: 0.114244655
A190: %,V5000002 | B190: 5000002 | C190: Dresden Oper Supervision & Eng | F190: 0 | G190: 0 | H190: 0 | K190: 0 | L190: 0 | M190: 0 | Q190: 0 | R190: 0 | S190: 0 | V190: -33.12 | W190: 0 | X190: -33.12 | Y190: 1
A191: %,V5000003 | B191: 5000003 | C191: Cnstr Srchrge Op Sup & Eng Exp | F191: 0 | G191: 0 | H191: 0 | K191: 0 | L191: 0 | M191: 0 | Q191: 0 | R191: 0 | S191: 0 | V191: 64.34 | W191: 0 | X191: 64.34 | Y191: 1
A192: %,V5010000 | B192: 5010000 | C192: Fuel | F192: 410094.74 | G192: 1391713.84 | H192: -981619.1 | I192: -0.7053311333 | K192: 1442012.56 | L192: 2702271.3 | M192: -1260258.74 | N192: -0.4663701753 | Q192: 1442012.56 | R192: 2702271.3 | S192: -1260258.74 | T192: -0.4663701753 | V192: 6490206.77 | W192: 7832033.37 | X192: -1341826.6 | Y192: -0.1713254447
A193: %,V5010001 | B193: 5010001 | C193: Fuel Consumed | F193: 2917030.66 | G193: 1240119.13 | H193: 1676911.53 | I193: 1.352218097 | K193: 19591414.54 | L193: 16994933.92 | M193: 2596480.62 | N193: 0.1527796832 | Q193: 19591414.54 | R193: 16994933.92 | S193: 2596480.62 | T193: 0.1527796832 | V193: 76906220.56 | W193: 75754630.88 | X193: 1151589.68 | Y193: 0.0152015747
A194: %,V5010003 | B194: 5010003 | C194: Fuel - Procure Unload & Handle | F194: 163794.85 | G194: 64924.42 | H194: 98870.43 | I194: 1.522854267 | K194: 1017742.66 | L194: 858577.64 | M194: 159165.02 | N194: 0.1853822096 | Q194: 1017742.66 | R194: 858577.64 | S194: 159165.02 | T194: 0.1853822096 | V194: 4230797.15 | W194: 3585544.77 | X194: 645252.38 | Y194: 0.1799593706
A195: %,V5010005 | B195: 5010005 | C195: Fuel - Deferred | F195: 8418308.386 | G195: 1805156.56 | H195: 6613151.826 | I195: 3.663478267 | K195: -9892679.502 | L195: -566694.609 | M195: -9325984.893 | N195: 16.45680891 | Q195: -9892679.502 | R195: -566694.609 | S195: -9325984.893 | T195: 16.45680891 | V195: -4188838.06 | W195: -1189885.889 | X195: -2998952.171 | Y195: 2.520369557
A196: %,V5010012 | B196: 5010012 | C196: Ash Sales Proceeds | F196: 447.26 | G196: 259.49 | H196: 187.77 | I196: 0.7236116999 | K196: 1796.49 | L196: 3334.96 | M196: -1538.47 | N196: -0.4613158779 | Q196: 1796.49 | R196: 3334.96 | S196: -1538.47 | T196: -0.4613158779 | V196: 5736.47 | W196: 22189.01 | X196: -16452.54 | Y196: -0.7414724677
A197: %,V5010013 | B197: 5010013 | C197: Fuel Survey Activity | F197: 0 | G197: 0 | H197: 0 | K197: 0 | L197: 0 | M197: 0 | Q197: 0 | R197: 0 | S197: 0 | V197: 3906533.13 | W197: 49281.13 | X197: 3857252 | Y197: 78.27036434
A198: %,V5010019 | B198: 5010019 | C198: Fuel Oil Consumed | F198: 299075.07 | G198: 666930.93 | H198: -367855.86 | I198: -0.5515651523 | K198: 839669.18 | L198: 1105998.02 | M198: -266328.84 | N198: -0.2408040839 | Q198: 839669.18 | R198: 1105998.02 | S198: -266328.84 | T198: -0.2408040839 | V198: 3871999.24 | W198: 3765558.18 | X198: 106441.06 | Y198: 0.02826700715
A199: %,V5010020 | B199: 5010020 | C199: Nat Gas Consumed Steam | F199: 4327789.61 | G199: 3092259.22 | H199: 1235530.39 | I199: 0.3995558917 | K199: 20430282.11 | L199: 12913004.46 | M199: 7517277.65 | N199: 0.5821478397 | Q199: 20430282.11 | R199: 12913004.46 | S199: 7517277.65 | T199: 0.5821478397 | V199: 46393473.58 | W199: 31183494.57 | X199: 15209979.01 | Y199: 0.4877573607
A200: %,V5010021 | B200: 5010021 | C200: Transp Gas Consumed Steam | F200: 58494.25 | G200: 41972.07 | H200: 16522.18 | I200: 0.3936470134 | K200: 177133.61 | L200: 109045.39 | M200: 68088.22 | N200: 0.6244025538 | Q200: 177133.61 | R200: 109045.39 | S200: 68088.22 | T200: 0.6244025538 | V200: 568860.51 | W200: 273765.43 | X200: 295095.08 | Y200: 1.077912138
A201: %,V5010027 | B201: 5010027 | C201: Gypsum handling/disposal costs | F201: 200094.77 | G201: 152673.25 | H201: 47421.52 | I201: 0.3106079159 | K201: 427686.36 | L201: 367662.97 | M201: 60023.39 | N201: 0.1632565553 | Q201: 427686.36 | R201: 367662.97 | S201: 60023.39 | T201: 0.1632565553 | V201: 1452371.04 | W201: 1530969.7 | X201: -78598.66 | Y201: -0.05133913493
... 642 more rows

Sheet KWH
A1: %,LACTUALS,SBAL | B1: %,ATF,FACCOUNT | C1: %,ATT,FDESCR,UDESCR | F1: %,LACTUALS,SPER,R | G1: %,LACTUALS,SPER-1YR,R | H1: %,C | I1: %,C | K1: %,LACTUALS,SPER,R,FCURRENCY_CD,V,FSTATISTICS_CODE,VKWH | L1: %,LACTUALS,SPER-1YR,R,FCURRENCY_CD,V,FSTATISTICS_CODE,VKWH | M1: %,C | N1: %,C | P1: %,LACTUALS,SPER,FCURRENCY_CD,V,FSTATISTICS_CODE,VCUS | Q1: %,LACTUALS,SPER-1YR,FCURRENCY_CD,V,FSTATISTICS_CODE,VCUS | R1: %,C | S1: %,C | T1: %,LACTUALS,SYTD,R | U1: %,LACTUALS,SYTD-1YR,R | V1: %,C | W1: %,C | Y1: %,LACTUALS,SYTD,R,FCURRENCY_CD,V,FSTATISTICS_CODE,VKWH | Z1: %,LACTUALS,SYTD-1YR,R,FCURRENCY_CD,V,FSTATISTICS_CODE,VKWH | AA1: %,C | AB1: %,C | AD1: %,C | AE1: %,LACTUALS,SYTD,FCURRENCY_CD,V,FSTATISTICS_CODE,VCUS | AF1: %,C | AG1: %,LACTUALS,SYTD-1YR,FCURRENCY_CD,V,FSTATISTICS_CODE,VCUS | AH1: %,C | AJ1: %,LACTUALS,SQTR,R | AK1: %,LACTUALS,SQTR-1YR,R | AL1: %,C | AM1: %,C | AO1: %,LACTUALS,SQTR,R,FCURRENCY_CD,V,FSTATISTICS_CODE,VKWH | AP1: %,LACTUALS,SQTR-1YR,R,FCURRENCY_CD,V,FSTATISTICS_CODE,VKWH | AQ1: %,C | AR1: %,C | AT1: %,C | AU1: %,LACTUALS,SQTR,FCURRENCY_CD,V,FSTATISTICS_CODE,VCUS | AV1: %,C | AW1: %,LACTUALS,SQTR-1YR,FCURRENCY_CD,V,FSTATISTICS_CODE,VCUS | AX1: %,C | AZ1: %,LACTUALS,SROLLING12,R | BA1: %,LACTUALS,SROLNG12-1Y,R | BB1: %,C | BC1: %,C | BE1: %,LACTUALS,SROLLING12,R,FCURRENCY_CD,V,FSTATISTICS_CODE,VKWH | BF1: %,LACTUALS,SROLNG12-1Y,R,FCURRENCY_CD,V,FSTATISTICS_CODE,VKWH | BG1: %,C | BH1: %,C | BJ1: %,C | BK1: %,LACTUALS,SROLLING12,FCURRENCY_CD,V,FSTATISTICS_CODE,VCUS | BL1: %,C | BM1: %,LACTUALS,SROLNG12-1Y,FCURRENCY_CD,V,FSTATISTICS_CODE,VCUS | BN1: %,C
C2: Kentucky Power Corp Consol
C3: March 2026 | F3: OPERATING REVENUES | K3: KILOWATT-HOUR SALES | P3: CUSTOMERS | T3: OPERATING REVENUES | Y3: KILOWATT-HOUR SALES | AD3: CUSTOMERS | AJ3: OPERATING REVENUES | AO3: KILOWATT-HOUR SALES | AT3: CUSTOMERS | AZ3: OPERATING REVENUES | BE3: KILOWATT-HOUR SALES | BJ3: CUSTOMERS
B4: Run Date: 04/09/2026 01:15 PM | F4: ONE MONTH ENDED | K4: ONE MONTH ENDED | P4: ONE MONTH ENDED | T4: YEAR TO DATE | Y4: YEAR TO DATE | AD4: YEAR TO DATE | AJ4: 3 Month Ending | AO4: 3 Month Ending | AT4: 3 Month Ending | AZ4: 12 Month Rolling | BE4: 12 Month Rolling | BJ4: 12 Month Rolling
B5: GLR6283P | C5: Rpt ID: FERC_IS1 Layout: FERC_IS1
B6: KYP_CORP_CONSOL | C6: V2099-01-01 Acct: GL_FERC_ACCT BU: GL_PRPT_CONS | F6: 2026 | G6: 2025 | H6: Variance | I6: % | K6: 2026 | L6: 2025 | M6: Variance | N6: % | P6: 2026 | Q6: 2025 | R6: Variance | T6: 2026 | U6: 2025 | V6: Variance | W6: % | Y6: 2026 | Z6: 2025 | AA6: Variance | AB6: % | AD6: 2026 | AF6: 2025 | AH6: Variance | AJ6: 2026 | AK6: 2025 | AL6: Variance | AM6: % | AO6: 2026 | AP6: 2025 | AQ6: Variance | AR6: % | AT6: 2026 | AV6: 2025 | AX6: Variance | AZ6: 2026 | BA6: 2025 | BB6: Variance | BC6: % | BE6: 2026 | BF6: 2025 | BG6: Variance | BH6: % | BJ6: 2026 | BL6: 2025 | BN6: Variance
B8: Page 300 | C8: SALES OF ELECTRICITY
A9: %,V4400001 | B9: 4400001 | C9: Residential Sales-W/Space Htg | F9: 13331740.11 | G9: 14995212.24 | H9: =+F9-G9 -> -1663472.132 | I9: =IF(AND(F9=0,G9=0),"",IF(OR(F9=0,G9=0),100%,(+H9/G9))) -> -0.1109335503 | K9: 107091552 | L9: 134986631 | M9: =+K9-L9 -> -27895079 | N9: =IF(AND(K9=0,L9=0),"",IF(OR(K9=0,L9=0),100%,(+M9/L9))) -> -0.2066506794 | P9: 82069 | Q9: 82785 | R9: =+P9-Q9 -> -716 | T9: 51875115.96 | U9: 53578694.54 | V9: =+T9-U9 -> -1703578.576 | W9: =IF(AND(T9=0,U9=0),"",IF(OR(T9=0,U9=0),100%,(+V9/U9))) -> -0.03179582091 | Y9: 456805805 | Z9: 489175520 | AA9: =+Y9-Z9 -> -32369715 | AB9: =IF(AND(Y9=0,Z9=0),"",IF(OR(Y9=0,Z9=0),100%,(+AA9/Z9))) -> -0.06617198465 | AD9: =ROUND(ABS(AE9)/MONTH(FERC_IS1!$C$692),0) -> 82185 | AE9: 246555 | AF9: =ROUND(ABS(AG9)/MONTH(FERC_IS1!$C$692),0) -> 82903 | AG9: 248709 | AH9: =+AD9-AF9 -> -718 | AJ9: 51875115.96 | AK9: 53578694.54 | AL9: =+AJ9-AK9 -> -1703578.576 | AM9: =IF(AND(AJ9=0,AK9=0),"",IF(OR(AJ9=0,AK9=0),100%,(+AL9/AK9))) -> -0.03179582091 | AO9: 456805805 | AP9: 489175520 | AQ9: =+AO9-AP9 -> -32369715 | AR9: =IF(AND(AO9=0,AP9=0),"",IF(OR(AO9=0,AP9=0),100%,(+AQ9/AP9))) -> -0.06617198465 | AT9: =ROUND(ABS(AU9)/3,0) -> 82185 | AU9: 246555 | AV9: =ROUND(ABS(AW9)/3,0) -> 82903 | AW9: 248709 | AX9: =+AT9-AV9 -> -718 | AZ9: 155146280.8 | BA9: 155019888.1 | BB9: =+AZ9-BA9 -> 126392.65 | BC9: =IF(AND(AZ9=0,BA9=0),"",IF(OR(AZ9=0,BA9=0),100%,(+BB9/BA9))) -> 0.0008153318359 | BE9: 1313685446 | BF9: 1343887035 | BG9: =+BE9-BF9 -> -30201589 | BH9: =IF(AND(BE9=0,BF9=0),"",IF(OR(BE9=0,BF9=0),100%,(+BG9/BF9))) -> -0.0224733093 | BJ9: =ROUND(ABS(BK9)/12,0) -> 82233 | BK9: 986795 | BL9: =ROUND(ABS(BM9)/12,0) -> 82875 | BM9: 994505 | BN9: =+BJ9-BL9 -> -642
A10: %,V4400002 | B10: 4400002 | C10: Residential Sales-W/O Space Ht | F10: 5759012.45 | G10: 5866308.67 | H10: -107296.22 | I10: -0.01829024452 | K10: 41912772 | L10: 49679374 | M10: -7766602 | N10: -0.1563345384 | P10: 47927 | Q10: 47947 | R10: -20 | T10: 19660588.03 | U10: 19526490.87 | V10: 134097.162 | W10: 0.006867448068 | Y10: 161747516 | Z10: 170783161 | AA10: -9035645 | AB10: -0.05290711887 | AD10: =ROUND(ABS(AE10)/MONTH(FERC_IS1!$C$692),0) -> 47997 | AE10: 143990 | AF10: =ROUND(ABS(AG10)/MONTH(FERC_IS1!$C$692),0) -> 48023 | AG10: 144069 | AH10: -26 | AJ10: 19660588.03 | AK10: 19526490.87 | AL10: 134097.162 | AM10: 0.006867448068 | AO10: 161747516 | AP10: 170783161 | AQ10: -9035645 | AR10: -0.05290711887 | AT10: 47997 | AU10: 143990 | AV10: 48023 | AW10: 144069 | AX10: -26 | AZ10: 71790501.17 | BA10: 68206749.91 | BB10: 3583751.264 | BC10: 0.05254247224 | BE10: 576162191 | BF10: 582634619 | BG10: -6472428 | BH10: -0.01110889705 | BJ10: 47903 | BK10: 574841 | BL10: 47938 | BM10: 575254 | BN10: -35
A11: %,V4400005 | B11: 4400005 | C11: Residential Fuel Rev | F11: 6770953.61 | G11: 7122520.27 | H11: -351566.66 | I11: -0.04935986795 | K11: 0 | L11: 0 | M11: 0 | P11: 0 | Q11: 0 | R11: 0 | T11: 26063987.41 | U11: 24647834.77 | V11: 1416152.64 | W11: 0.05745545819 | Y11: 0 | Z11: 0 | AA11: 0 | AD11: =ROUND(ABS(AE11)/MONTH(FERC_IS1!$C$692),0) -> 0 | AE11: 0 | AF11: =ROUND(ABS(AG11)/MONTH(FERC_IS1!$C$692),0) -> 0 | AG11: 0 | AH11: 0 | AJ11: 26063987.41 | AK11: 24647834.77 | AL11: 1416152.64 | AM11: 0.05745545819 | AO11: 0 | AP11: 0 | AQ11: 0 | AT11: 0 | AU11: 0 | AV11: 0 | AW11: 0 | AX11: 0 | AZ11: 80978458.95 | BA11: 72021463.23 | BB11: 8956995.72 | BC11: 0.1243656449 | BE11: 0 | BF11: 0 | BG11: 0 | BJ11: 0 | BK11: 0 | BL11: 0 | BM11: 0 | BN11: 0
A12: %,FACCOUNT,X,TGL_FERC_ACCT,N4400 | B12: Line 1 | C12: (440) Residential Sales | F12: 25861706.17 | G12: 27984041.18 | H12: -2122335.012 | I12: -0.07584090512 | K12: 149004324 | L12: 184666005 | M12: -35661681 | N12: -0.193114488 | P12: 129996 | Q12: 130732 | R12: -736 | T12: 97599691.41 | U12: 97753020.18 | V12: -153328.774 | W12: -0.001568532345 | Y12: 618553321 | Z12: 659958681 | AA12: -41405360 | AB12: -0.06273932171 | AD12: =ROUND(ABS(AE12)/MONTH(FERC_IS1!$C$692),0) -> 130182 | AE12: 390545 | AF12: =ROUND(ABS(AG12)/MONTH(FERC_IS1!$C$692),0) -> 130926 | AG12: 392778 | AH12: -744 | AJ12: 97599691.41 | AK12: 97753020.18 | AL12: -153328.774 | AM12: -0.001568532345 | AO12: 618553321 | AP12: 659958681 | AQ12: -41405360 | AR12: -0.06273932171 | AT12: 130182 | AU12: 390545 | AV12: 130926 | AW12: 392778 | AX12: -744 | AZ12: 307915240.9 | BA12: 295248101.3 | BB12: 12667139.63 | BC12: 0.04290337374 | BE12: 1889847637 | BF12: 1926521654 | BG12: -36674017 | BH12: -0.01903638972 | BJ12: 130136 | BK12: 1561636 | BL12: 130813 | BM12: 1569759 | BN12: -677
B13: Line 3 | C13: (442) Commercial and Industrial Sales | H13: 0 | M13: 0 | R13: 0 | V13: 0 | AA13: 0 | AD13: =ROUND(ABS(AE13)/MONTH(FERC_IS1!$C$692),0) -> 0 | AF13: =ROUND(ABS(AG13)/MONTH(FERC_IS1!$C$692),0) -> 0 | AH13: 0 | AL13: 0 | AQ13: 0 | AT13: 0 | AV13: 0 | AX13: 0 | BB13: 0 | BG13: 0 | BJ13: 0 | BL13: 0 | BN13: 0
A14: %,V4420001 | B14: 4420001 | C14: Commercial Sales | F14: 7639085.446 | G14: 8698149.74 | H14: -1059064.294 | I14: -0.1217574226 | K14: 81402370 | L14: 93427160 | M14: -12024790 | N14: -0.1287076478 | P14: 26239 | Q14: 26294 | R14: -55 | T14: 23484328.75 | U14: 26754880.1 | V14: -3270551.346 | W14: -0.1222413008 | Y14: 263618298 | Z14: 285496323 | AA14: -21878025 | AB14: -0.07663154737 | AD14: =ROUND(ABS(AE14)/MONTH(FERC_IS1!$C$692),0) -> 26531 | AE14: 79592 | AF14: =ROUND(ABS(AG14)/MONTH(FERC_IS1!$C$692),0) -> 26347 | AG14: 79040 | AH14: 184 | AJ14: 23484328.75 | AK14: 26754880.1 | AL14: -3270551.346 | AM14: -0.1222413008 | AO14: 263618298 | AP14: 285496323 | AQ14: -21878025 | AR14: -0.07663154737 | AT14: 26531 | AU14: 79592 | AV14: 26347 | AW14: 79040 | AX14: 184 | AZ14: 97508696.75 | BA14: 102764990 | BB14: -5256293.255 | BC14: -0.05114867675 | BE14: 1079836184 | BF14: 1127474648 | BG14: -47638464 | BH14: -0.04225235936 | BJ14: 26331 | BK14: 315968 | BL14: 26386 | BM14: 316634 | BN14: -55
A15: %,V4420006 | B15: 4420006 | C15: Sales to Pub Auth - Schools | F15: 1307994.084 | G15: 1507545.47 | H15: -199551.386 | I15: -0.1323684028 | K15: 10898298 | L15: 12370976 | M15: -1472678 | N15: -0.1190429922 | P15: 698 | Q15: 716 | R15: -18 | T15: 4017791.028 | U15: 4524434.98 | V15: -506643.952 | W15: -0.1119794967 | Y15: 36086380 | Z15: 37533393 | AA15: -1447013 | AB15: -0.03855268294 | AD15: =ROUND(ABS(AE15)/MONTH(FERC_IS1!$C$692),0) -> 708 | AE15: 2123 | AF15: =ROUND(ABS(AG15)/MONTH(FERC_IS1!$C$692),0) -> 699 | AG15: 2097 | AH15: 9 | AJ15: 4017791.028 | AK15: 4524434.98 | AL15: -506643.952 | AM15: -0.1119794967 | AO15: 36086380 | AP15: 37533393 | AQ15: -1447013 | AR15: -0.03855268294 | AT15: 708 | AU15: 2123 | AV15: 699 | AW15: 2097 | AX15: 9 | AZ15: 15847490.31 | BA15: 16378299.98 | BB15: -530809.674 | BC15: -0.03240932665 | BE15: 135265658 | BF15: 135082562 | BG15: 183096 | BH15: 0.001355437721 | BJ15: 694 | BK15: 8327 | BL15: 696 | BM15: 8347 | BN15: -2
A16: %,V4420007 | B16: 4420007 | C16: Sales to Pub Auth - Ex Schools | F16: 1621330.149 | G16: 1738135.35 | H16: -116805.201 | I16: -0.06720144148 | K16: 14488476 | L16: 15861991 | M16: -1373515 | N16: -0.08659158866 | P16: 3356 | Q16: 3334 | R16: 22 | T16: 4791132.814 | U16: 5240260.98 | V16: -449128.166 | W16: -0.08570721338 | Y16: 45298194 | Z16: 46829922 | AA16: -1531728 | AB16: -0.03270831841 | AD16: =ROUND(ABS(AE16)/MONTH(FERC_IS1!$C$692),0) -> 3391 | AE16: 10174 | AF16: =ROUND(ABS(AG16)/MONTH(FERC_IS1!$C$692),0) -> 3335 | AG16: 10004 | AH16: 56 | AJ16: 4791132.814 | AK16: 5240260.98 | AL16: -449128.166 | AM16: -0.08570721338 | AO16: 45298194 | AP16: 46829922 | AQ16: -1531728 | AR16: -0.03270831841 | AT16: 3391 | AU16: 10174 | AV16: 3335 | AW16: 10004 | AX16: 56 | AZ16: 19382277.32 | BA16: 20498443.83 | BB16: -1116166.51 | BC16: -0.05445128027 | BE16: 181677311 | BF16: 181602056 | BG16: 75255 | BH16: 0.0004143950881 | BJ16: 3342 | BK16: 40106 | BL16: 3316 | BM16: 39792 | BN16: 26
A17: %,V4420013 | B17: 4420013 | C17: Commercial Fuel Rev | F17: 5129806.2 | G17: 4842141.86 | H17: 287664.34 | I17: 0.05940849077 | K17: 0 | L17: 0 | M17: 0 | P17: 0 | Q17: 0 | R17: 0 | T17: 15202573.16 | U17: 14003117.69 | V17: 1199455.47 | W17: 0.08565631573 | Y17: 0 | Z17: 0 | AA17: 0 | AD17: =ROUND(ABS(AE17)/MONTH(FERC_IS1!$C$692),0) -> 0 | AE17: 0 | AF17: =ROUND(ABS(AG17)/MONTH(FERC_IS1!$C$692),0) -> 0 | AG17: 0 | AH17: 0 | AJ17: 15202573.16 | AK17: 14003117.69 | AL17: 1199455.47 | AM17: 0.08565631573 | AO17: 0 | AP17: 0 | AQ17: 0 | AT17: 0 | AU17: 0 | AV17: 0 | AW17: 0 | AX17: 0 | AZ17: 59884587.17 | BA17: 54230534.51 | BB17: 5654052.66 | BC17: 0.1042595783 | BE17: 0 | BF17: 0 | BG17: 0 | BJ17: 0 | BK17: 0 | BL17: 0 | BM17: 0 | BN17: 0
A18: %,FACCOUNT,X,TGL_FERC_ACCT,N442_COMMERCIAL | B18: Line 4 | C18: (442) Small (or Commercial) | F18: 15698215.88 | G18: 16785972.42 | H18: -1087756.541 | I18: -0.0648015208 | K18: 106789144 | L18: 121660127 | M18: -14870983 | N18: -0.1222338277 | P18: 30293 | Q18: 30344 | R18: -51 | T18: 47495825.76 | U18: 50522693.75 | V18: -3026867.994 | W18: -0.05991105718 | Y18: 345002872 | Z18: 369859638 | AA18: -24856766 | AB18: -0.06720594368 | AD18: =ROUND(ABS(AE18)/MONTH(FERC_IS1!$C$692),0) -> 30630 | AE18: 91889 | AF18: =ROUND(ABS(AG18)/MONTH(FERC_IS1!$C$692),0) -> 30380 | AG18: 91141 | AH18: 250 | AJ18: 47495825.76 | AK18: 50522693.75 | AL18: -3026867.994 | AM18: -0.05991105718 | AO18: 345002872 | AP18: 369859638 | AQ18: -24856766 | AR18: -0.06720594368 | AT18: 30630 | AU18: 91889 | AV18: 30380 | AW18: 91141 | AX18: 250 | AZ18: 192623051.6 | BA18: 193872268.3 | BB18: -1249216.779 | BC18: -0.006443504219 | BE18: 1396779153 | BF18: 1444159266 | BG18: -47380113 | BH18: -0.03280809403 | BJ18: 30367 | BK18: 364401 | BL18: 30398 | BM18: 364773 | BN18: -31
A19: %,V4420002 | B19: 4420002 | C19: Industrial Sales (Excl Mines) | F19: 7294706.712 | G19: 7316102.71 | H19: -21395.998 | I19: -0.002924507603 | K19: 140801408 | L19: 135638381 | M19: 5163027 | N19: 0.03806464632 | P19: 760 | Q19: 766 | R19: -6 | T19: 21299367.81 | U19: 19328330.23 | V19: 1971037.578 | W19: 0.1019766092 | Y19: 400883612 | Z19: 429188171 | AA19: -28304559 | AB19: -0.06594906596 | AD19: =ROUND(ABS(AE19)/MONTH(FERC_IS1!$C$692),0) -> 775 | AE19: 2324 | AF19: =ROUND(ABS(AG19)/MONTH(FERC_IS1!$C$692),0) -> 767 | AG19: 2301 | AH19: 8 | AJ19: 21299367.81 | AK19: 19328330.23 | AL19: 1971037.578 | AM19: 0.1019766092 | AO19: 400883612 | AP19: 429188171 | AQ19: -28304559 | AR19: -0.06594906596 | AT19: 775 | AU19: 2324 | AV19: 767 | AW19: 2301 | AX19: 8 | AZ19: 67920903.35 | BA19: 78112801.6 | BB19: -10191898.25 | BC19: -0.1304766701 | BE19: 1734329479 | BF19: 1819336989 | BG19: -85007510 | BH19: -0.04672444441 | BJ19: 767 | BK19: 9199 | BL19: 775 | BM19: 9300 | BN19: -8
A20: %,V4420004 | B20: 4420004 | C20: Ind Sales-NonAffil(Incl Mines) | F20: 1147943.66 | G20: 1465250.36 | H20: -317306.7 | I20: -0.2165545962 | K20: 11369224 | L20: 16312102 | M20: -4942878 | N20: -0.3030190714 | P20: 153 | Q20: 168 | R20: -15 | T20: 3313599.12 | U20: 4414816.62 | V20: -1101217.5 | W20: -0.2494367478 | Y20: 35963462 | Z20: 46001071 | AA20: -10037609 | AB20: -0.218203811 | AD20: =ROUND(ABS(AE20)/MONTH(FERC_IS1!$C$692),0) -> 157 | AE20: 472 | AF20: =ROUND(ABS(AG20)/MONTH(FERC_IS1!$C$692),0) -> 170 | AG20: 509 | AH20: -13 | AJ20: 3313599.12 | AK20: 4414816.62 | AL20: -1101217.5 | AM20: -0.2494367478 | AO20: 35963462 | AP20: 46001071 | AQ20: -10037609 | AR20: -0.218203811 | AT20: 157 | AU20: 472 | AV20: 170 | AW20: 509 | AX20: -13 | AZ20: 13821863.95 | BA20: 17391956.6 | BB20: -3570092.646 | BC20: -0.2052726285 | BE20: 144351363 | BF20: 184423704 | BG20: -40072341 | BH20: -0.2172841133 | BJ20: 160 | BK20: 1915 | BL20: 175 | BM20: 2095 | BN20: -15
A21: %,V4420016 | B21: 4420016 | C21: Industrial Fuel Rev | F21: 7110720.74 | G21: 5793588.24 | H21: 1317132.5 | I21: 0.2273431327 | K21: 0 | L21: 0 | M21: 0 | P21: 0 | Q21: 0 | R21: 0 | T21: 15108220.56 | U21: 17657391.84 | V21: -2549171.28 | W21: -0.144368506 | Y21: 0 | Z21: 0 | AA21: 0 | AD21: =ROUND(ABS(AE21)/MONTH(FERC_IS1!$C$692),0) -> 0 | AE21: 0 | AF21: =ROUND(ABS(AG21)/MONTH(FERC_IS1!$C$692),0) -> 0 | AG21: 0 | AH21: 0 | AJ21: 15108220.56 | AK21: 17657391.84 | AL21: -2549171.28 | AM21: -0.144368506 | AO21: 0 | AP21: 0 | AQ21: 0 | AT21: 0 | AU21: 0 | AV21: 0 | AW21: 0 | AX21: 0 | AZ21: 78507272.51 | BA21: 74250744.99 | BB21: 4256527.52 | BC21: 0.05732639478 | BE21: 0 | BF21: 0 | BG21: 0 | BJ21: 0 | BK21: 0 | BL21: 0 | BM21: 0 | BN21: 0
A22: %,FACCOUNT,X,TGL_FERC_ACCT,N442_INDUSTRIAL | B22: Line 5 | C22: (442) Large (or Industrial) | F22: 15553371.11 | G22: 14574941.31 | H22: 978429.802 | I22: 0.06713095999 | K22: 152170632 | L22: 151950483 | M22: 220149 | N22: 0.001448820666 | P22: 913 | Q22: 934 | R22: -21 | T22: 39721187.49 | U22: 41400538.69 | V22: -1679351.202 | W22: -0.04056351089 | Y22: 436847074 | Z22: 475189242 | AA22: -38342168 | AB22: -0.08068820716 | AD22: =ROUND(ABS(AE22)/MONTH(FERC_IS1!$C$692),0) -> 932 | AE22: 2796 | AF22: =ROUND(ABS(AG22)/MONTH(FERC_IS1!$C$692),0) -> 937 | AG22: 2810 | AH22: -5 | AJ22: 39721187.49 | AK22: 41400538.69 | AL22: -1679351.202 | AM22: -0.04056351089 | AO22: 436847074 | AP22: 475189242 | AQ22: -38342168 | AR22: -0.08068820716 | AT22: 932 | AU22: 2796 | AV22: 937 | AW22: 2810 | AX22: -5 | AZ22: 160250039.8 | BA22: 169755503.2 | BB22: -9505463.372 | BC22: -0.05599502339 | BE22: 1878680842 | BF22: 2003760693 | BG22: -125079851 | BH22: -0.06242254948 | BJ22: 926 | BK22: 11114 | BL22: 950 | BM22: 11395 | BN22: -24
A23: %,V4440000 | B23: 4440000 | C23: Public Street/Highway Lighting | F23: 158808.031 | G23: 151538.38 | H23: 7269.651 | I23: 0.04797234206 | K23: 700453 | L23: 763623 | M23: -63170 | N23: -0.08272406672 | P23: 295 | Q23: 299 | R23: -4 | T23: 595691.468 | U23: 471238.29 | V23: 124453.178 | W23: 0.2640981869 | Y23: 3042502 | Z23: 2426741 | AA23: 615761 | AB23: 0.2537398923 | AD23: =ROUND(ABS(AE23)/MONTH(FERC_IS1!$C$692),0) -> 314 | AE23: 941 | AF23: =ROUND(ABS(AG23)/MONTH(FERC_IS1!$C$692),0) -> 299 | AG23: 897 | AH23: 15 | AJ23: 595691.468 | AK23: 471238.29 | AL23: 124453.178 | AM23: 0.2640981869 | AO23: 3042502 | AP23: 2426741 | AQ23: 615761 | AR23: 0.2537398923 | AT23: 314 | AU23: 941 | AV23: 299 | AW23: 897 | AX23: 15 | AZ23: 1836172.694 | BA23: 1829538.48 | BB23: 6634.214 | BC23: 0.00362616806 | BE23: 8308018 | BF23: 8731862 | BG23: -423844 | BH23: -0.04853993341 | BJ23: 297 | BK23: 3568 | BL23: 303 | BM23: 3639 | BN23: -6
A24: %,V4440002 | B24: 4440002 | C24: Public St & Hwy Light Fuel Rev | F24: 35578.01 | G24: 31209.55 | H24: 4368.46 | I24: 0.1399718996 | K24: 0 | L24: 0 | M24: 0 | P24: 0 | Q24: 0 | R24: 0 | T24: 116636.57 | U24: 89161.21 | V24: 27475.36 | W24: 0.3081537364 | Y24: 0 | Z24: 0 | AA24: 0 | AD24: =ROUND(ABS(AE24)/MONTH(FERC_IS1!$C$692),0) -> 0 | AE24: 0 | AF24: =ROUND(ABS(AG24)/MONTH(FERC_IS1!$C$692),0) -> 0 | AG24: 0 | AH24: 0 | AJ24: 116636.57 | AK24: 89161.21 | AL24: 27475.36 | AM24: 0.3081537364 | AO24: 0 | AP24: 0 | AQ24: 0 | AT24: 0 | AU24: 0 | AV24: 0 | AW24: 0 | AX24: 0 | AZ24: 344475.69 | BA24: 326019.41 | BB24: 18456.28 | BC24: 0.05661098522 | BE24: 0 | BF24: 0 | BG24: 0 | BJ24: 0 | BK24: 0 | BL24: 0 | BM24: 0 | BN24: 0
A25: %,FACCOUNT,X,TGL_FERC_ACCT,N4440 | B25: Line 6 | C25: (444) Public Street and Highway Lighting | F25: 194386.041 | G25: 182747.93 | H25: 11638.111 | I25: 0.06368395527 | K25: 700453 | L25: 763623 | M25: -63170 | N25: -0.08272406672 | P25: 295 | Q25: 299 | R25: -4 | T25: 712328.038 | U25: 560399.5 | V25: 151928.538 | W25: 0.2711075545 | Y25: 3042502 | Z25: 2426741 | AA25: 615761 | AB25: 0.2537398923 | AD25: =ROUND(ABS(AE25)/MONTH(FERC_IS1!$C$692),0) -> 314 | AE25: 941 | AF25: =ROUND(ABS(AG25)/MONTH(FERC_IS1!$C$692),0) -> 299 | AG25: 897 | AH25: 15 | AJ25: 712328.038 | AK25: 560399.5 | AL25: 151928.538 | AM25: 0.2711075545 | AO25: 3042502 | AP25: 2426741 | AQ25: 615761 | AR25: 0.2537398923 | AT25: 314 | AU25: 941 | AV25: 299 | AW25: 897 | AX25: 15 | AZ25: 2180648.384 | BA25: 2155557.89 | BB25: 25090.494 | BC25: 0.01163990729 | BE25: 8308018 | BF25: 8731862 | BG25: -423844 | BH25: -0.04853993341 | BJ25: 297 | BK25: 3568 | BL25: 303 | BM25: 3639 | BN25: -6
A26: %,FACCOUNT,X,TGL_FERC_ACCT,N4450 | B26: Line 7 | C26: (445) Other Sales to Public Authorities | F26: 0 | G26: 0 | H26: 0 | K26: 0 | L26: 0 | M26: 0 | P26: 0 | Q26: 0 | R26: 0 | T26: 0 | U26: 0 | V26: 0 | Y26: 0 | Z26: 0 | AA26: 0 | AD26: =ROUND(ABS(AE26)/MONTH(FERC_IS1!$C$692),0) -> 0 | AE26: 0 | AF26: =ROUND(ABS(AG26)/MONTH(FERC_IS1!$C$692),0) -> 0 | AG26: 0 | AH26: 0 | AJ26: 0 | AK26: 0 | AL26: 0 | AO26: 0 | AP26: 0 | AQ26: 0 | AT26: 0 | AU26: 0 | AV26: 0 | AW26: 0 | AX26: 0 | AZ26: 0 | BA26: 0 | BB26: 0 | BE26: 0 | BF26: 0 | BG26: 0 | BJ26: 0 | BK26: 0 | BL26: 0 | BM26: 0 | BN26: 0
A27: %,FACCOUNT,X,TGL_FERC_ACCT,N4460 | B27: Line 8 | C27: (446) Sales to Railroads and Railways | F27: 0 | G27: 0 | H27: 0 | K27: 0 | L27: 0 | M27: 0 | P27: 0 | Q27: 0 | R27: 0 | T27: 0 | U27: 0 | V27: 0 | Y27: 0 | Z27: 0 | AA27: 0 | AD27: =ROUND(ABS(AE27)/MONTH(FERC_IS1!$C$692),0) -> 0 | AE27: 0 | AF27: =ROUND(ABS(AG27)/MONTH(FERC_IS1!$C$692),0) -> 0 | AG27: 0 | AH27: 0 | AJ27: 0 | AK27: 0 | AL27: 0 | AO27: 0 | AP27: 0 | AQ27: 0 | AT27: 0 | AU27: 0 | AV27: 0 | AW27: 0 | AX27: 0 | AZ27: 0 | BA27: 0 | BB27: 0 | BE27: 0 | BF27: 0 | BG27: 0 | BJ27: 0 | BK27: 0 | BL27: 0 | BM27: 0 | BN27: 0
A28: %,FACCOUNT,X,TGL_FERC_ACCT,N4480 | B28: Line 9 | C28: (448) Interdepartmental Sales | F28: 0 | G28: 0 | H28: 0 | K28: 0 | L28: 0 | M28: 0 | P28: 0 | Q28: 0 | R28: 0 | T28: 0 | U28: 0 | V28: 0 | Y28: 0 | Z28: 0 | AA28: 0 | AD28: =ROUND(ABS(AE28)/MONTH(FERC_IS1!$C$692),0) -> 0 | AE28: 0 | AF28: =ROUND(ABS(AG28)/MONTH(FERC_IS1!$C$692),0) -> 0 | AG28: 0 | AH28: 0 | AJ28: 0 | AK28: 0 | AL28: 0 | AO28: 0 | AP28: 0 | AQ28: 0 | AT28: 0 | AU28: 0 | AV28: 0 | AW28: 0 | AX28: 0 | AZ28: 0 | BA28: 0 | BB28: 0 | BE28: 0 | BF28: 0 | BG28: 0 | BJ28: 0 | BK28: 0 | BL28: 0 | BM28: 0 | BN28: 0
A29: %,FACCOUNT,TGL_FERC_ACCT,NELEC_SALES_ULT_CUST | B29: Line 10 | C29: TOTAL Sales to Ultimate Customers | F29: 57307679.2 | G29: 59527702.84 | H29: -2220023.64 | I29: -0.03729395784 | K29: 408664553 | L29: 459040238 | M29: -50375685 | N29: -0.1097413273 | P29: 161497 | Q29: 162309 | R29: -812 | T29: 185529032.7 | U29: 190236652.1 | V29: -4707619.432 | W29: -0.02474612216 | Y29: 1403445769 | Z29: 1507434302 | AA29: -103988533 | AB29: -0.06898379111 | AD29: =ROUND(ABS(AE29)/MONTH(FERC_IS1!$C$692),0) -> 162057 | AE29: 486171 | AF29: =ROUND(ABS(AG29)/MONTH(FERC_IS1!$C$692),0) -> 162542 | AG29: 487626 | AH29: -485 | AJ29: 185529032.7 | AK29: 190236652.1 | AL29: -4707619.432 | AM29: -0.02474612216 | AO29: 1403445769 | AP29: 1507434302 | AQ29: -103988533 | AR29: -0.06898379111 | AT29: 162057 | AU29: 486171 | AV29: 162542 | AW29: 487626 | AX29: -485 | AZ29: 662968980.7 | BA29: 661031430.7 | BB29: 1937549.977 | BC29: 0.002931101135 | BE29: 5173615650 | BF29: 5383173475 | BG29: -209557825 | BH29: -0.03892830613 | BJ29: 161727 | BK29: 1940719 | BL29: 162464 | BM29: 1949566 | BN29: -737
A30: %,V4470006 | B30: 4470006 | C30: Sales for Resale-Bookout Sales | F30: 0 | G30: 0 | H30: 0 | K30: 0 | L30: 0 | M30: 0 | P30: 0 | Q30: 0 | R30: 0 | T30: 0 | U30: 0 | V30: 0 | Y30: 0 | Z30: 0 | AA30: 0 | AD30: =ROUND(ABS(AE30)/MONTH(FERC_IS1!$C$692),0) -> 0 | AE30: 0 | AF30: =ROUND(ABS(AG30)/MONTH(FERC_IS1!$C$692),0) -> 0 | AG30: 0 | AH30: 0 | AJ30: 0 | AK30: 0 | AL30: 0 | AO30: 0 | AP30: 0 | AQ30: 0 | AT30: 0 | AU30: 0 | AV30: 0 | AW30: 0 | AX30: 0 | AZ30: 0.2 | BA30: 0 | BB30: 0.2 | BC30: 1 | BE30: 0 | BF30: 0 | BG30: 0 | BJ30: 0 | BK30: 0 | BL30: 0 | BM30: 0 | BN30: 0
A31: %,V4470010 | B31: 4470010 | C31: Sales for Resale-Bookout Purch | F31: 0 | G31: 0 | H31: 0 | K31: 0 | L31: 0 | M31: 0 | P31: 0 | Q31: 0 | R31: 0 | T31: -12.02 | U31: 0 | V31: -12.02 | W31: 1 | Y31: 0 | Z31: 0 | AA31: 0 | AD31: =ROUND(ABS(AE31)/MONTH(FERC_IS1!$C$692),0) -> 0 | AE31: 0 | AF31: =ROUND(ABS(AG31)/MONTH(FERC_IS1!$C$692),0) -> 0 | AG31: 0 | AH31: 0 | AJ31: -12.02 | AK31: 0 | AL31: -12.02 | AM31: 1 | AO31: 0 | AP31: 0 | AQ31: 0 | AT31: 0 | AU31: 0 | AV31: 0 | AW31: 0 | AX31: 0 | AZ31: 34.63 | BA31: 7.36 | BB31: 27.27 | BC31: 3.705163043 | BE31: 0 | BF31: 0 | BG31: 0 | BJ31: 0 | BK31: 0 | BL31: 0 | BM31: 0 | BN31: 0
A32: %,V4470027 | B32: 4470027 | C32: Whsal/Muni/Pb Ath Fuel Rev | F32: 0 | G32: 281774.76 | H32: -281774.76 | I32: 1 | K32: 0 | L32: 5932001 | M32: -5932001 | N32: 1 | P32: 0 | Q32: 0 | R32: 0 | T32: 0 | U32: 922431.94 | V32: -922431.94 | W32: 1 | Y32: 0 | Z32: 21907926 | AA32: -21907926 | AB32: 1 | AD32: =ROUND(ABS(AE32)/MONTH(FERC_IS1!$C$692),0) -> 0 | AE32: 0 | AF32: =ROUND(ABS(AG32)/MONTH(FERC_IS1!$C$692),0) -> 0 | AG32: 0 | AH32: 0 | AJ32: 0 | AK32: 922431.94 | AL32: -922431.94 | AM32: 1 | AO32: 0 | AP32: 21907926 | AQ32: -21907926 | AR32: 1 | AT32: 0 | AU32: 0 | AV32: 0 | AW32: 0 | AX32: 0 | AZ32: 639136.72 | BA32: 2799554.45 | BB32: -2160417.73 | BC32: -0.7717005576 | BE32: 10233316 | BF32: 75890431 | BG32: -65657115 | BH32: -0.865156702 | BJ32: 0 | BK32: 0 | BL32: 0 | BM32: 0 | BN32: 0
A33: %,V4470033 | B33: 4470033 | C33: Whsal/Muni/Pub Auth Base Rev | F33: 0 | G33: 176363.15 | H33: -176363.15 | I33: 1 | K33: 0 | L33: 0 | M33: 0 | P33: 0 | Q33: 0 | R33: 0 | T33: 0 | U33: 655186.45 | V33: -655186.45 | W33: 1 | Y33: 0 | Z33: 0 | AA33: 0 | AD33: =ROUND(ABS(AE33)/MONTH(FERC_IS1!$C$692),0) -> 0 | AE33: 0 | AF33: =ROUND(ABS(AG33)/MONTH(FERC_IS1!$C$692),0) -> 0 | AG33: 0 | AH33: 0 | AJ33: 0 | AK33: 655186.45 | AL33: -655186.45 | AM33: 1 | AO33: 0 | AP33: 0 | AQ33: 0 | AT33: 0 | AU33: 0 | AV33: 0 | AW33: 0 | AX33: 0 | AZ33: 669868.24 | BA33: 1820903.09 | BB33: -1151034.85 | BC33: -0.6321230692 | BE33: 0 | BF33: 0 | BG33: 0 | BJ33: 0 | BK33: 0 | BL33: 0 | BM33: 0 | BN33: 0
A34: %,V4470074 | B34: 4470074 | C34: Sale for Resale-Aff-Trnf Price | F34: 0 | G34: 0 | H34: 0 | K34: 0 | L34: 0 | M34: 0 | P34: 0 | Q34: 0 | R34: 0 | T34: 0 | U34: 0 | V34: 0 | Y34: 0 | Z34: 0 | AA34: 0 | AD34: =ROUND(ABS(AE34)/MONTH(FERC_IS1!$C$692),0) -> 0 | AE34: 0 | AF34: =ROUND(ABS(AG34)/MONTH(FERC_IS1!$C$692),0) -> 0 | AG34: 0 | AH34: 0 | AJ34: 0 | AK34: 0 | AL34: 0 | AO34: 0 | AP34: 0 | AQ34: 0 | AT34: 0 | AU34: 0 | AV34: 0 | AW34: 0 | AX34: 0 | AZ34: 0 | BA34: 0 | BB34: 0 | BE34: 0 | BF34: 0 | BG34: 0 | BJ34: 0 | BK34: 0 | BL34: 0 | BM34: 0 | BN34: 0
A35: %,V4470082 | B35: 4470082 | C35: Financial Electric Realized | F35: 0 | G35: -211.94 | H35: 211.94 | I35: 1 | K35: 0 | L35: 0 | M35: 0 | P35: 0 | Q35: 0 | R35: 0 | T35: -377.18 | U35: -1368.95 | V35: 991.77 | W35: -0.7244749626 | Y35: 0 | Z35: 0 | AA35: 0 | AD35: =ROUND(ABS(AE35)/MONTH(FERC_IS1!$C$692),0) -> 0 | AE35: 0 | AF35: =ROUND(ABS(AG35)/MONTH(FERC_IS1!$C$692),0) -> 0 | AG35: 0 | AH35: 0 | AJ35: -377.18 | AK35: -1368.95 | AL35: 991.77 | AM35: -0.7244749626 | AO35: 0 | AP35: 0 | AQ35: 0 | AT35: 0 | AU35: 0 | AV35: 0 | AW35: 0 | AX35: 0 | AZ35: -2713.58 | BA35: -7453.79 | BB35: 4740.21 | BC35: -0.635946277 | BE35: 0 | BF35: 0 | BG35: 0 | BJ35: 0 | BK35: 0 | BL35: 0 | BM35: 0 | BN35: 0
A36: %,V4470089 | B36: 4470089 | C36: PJM Energy Sales Margin | F36: -544999.55 | G36: -104566.51 | H36: -440433.04 | I36: 4.211989479 | K36: 0 | L36: 0 | M36: 0 | P36: 0 | Q36: 0 | R36: 0 | T36: 1337625.07 | U36: 287801.23 | V36: 1049823.84 | W36: 3.64773924 | Y36: 0 | Z36: 0 | AA36: 0 | AD36: =ROUND(ABS(AE36)/MONTH(FERC_IS1!$C$692),0) -> 0 | AE36: 0 | AF36: =ROUND(ABS(AG36)/MONTH(FERC_IS1!$C$692),0) -> 0 | AG36: 0 | AH36: 0 | AJ36: 1337625.07 | AK36: 287801.23 | AL36: 1049823.84 | AM36: 3.64773924 | AO36: 0 | AP36: 0 | AQ36: 0 | AT36: 0 | AU36: 0 | AV36: 0 | AW36: 0 | AX36: 0 | AZ36: 3489860.46 | BA36: 274564.9 | BB36: 3215295.56 | BC36: 11.71051201 | BE36: 0 | BF36: 0 | BG36: 0 | BJ36: 0 | BK36: 0 | BL36: 0 | BM36: 0 | BN36: 0
A37: %,V4470098 | B37: 4470098 | C37: PJM Oper.Reserve Rev-OSS | F37: -22611.53 | G37: -3947.07 | H37: -18664.46 | I37: 4.728687355 | K37: 0 | L37: 0 | M37: 0 | P37: 0 | Q37: 0 | R37: 0 | T37: -441223.65 | U37: -19812.32 | V37: -421411.33 | W37: 21.27016574 | Y37: 0 | Z37: 0 | AA37: 0 | AD37: =ROUND(ABS(AE37)/MONTH(FERC_IS1!$C$692),0) -> 0 | AE37: 0 | AF37: =ROUND(ABS(AG37)/MONTH(FERC_IS1!$C$692),0) -> 0 | AG37: 0 | AH37: 0 | AJ37: -441223.65 | AK37: -19812.32 | AL37: -421411.33 | AM37: 21.27016574 | AO37: 0 | AP37: 0 | AQ37: 0 | AT37: 0 | AU37: 0 | AV37: 0 | AW37: 0 | AX37: 0 | AZ37: -520520.01 | BA37: -65524.21 | BB37: -454995.8 | BC37: 6.943934158 | BE37: 0 | BF37: 0 | BG37: 0 | BJ37: 0 | BK37: 0 | BL37: 0 | BM37: 0 | BN37: 0
A38: %,V4470099 | B38: 4470099 | C38: Capacity Cr. Net Sales | F38: 0 | G38: -10445.76 | H38: 10445.76 | I38: 1 | K38: 0 | L38: 0 | M38: 0 | P38: 0 | Q38: 0 | R38: 0 | T38: 0 | U38: -30326.43 | V38: 30326.43 | W38: 1 | Y38: 0 | Z38: 0 | AA38: 0 | AD38: =ROUND(ABS(AE38)/MONTH(FERC_IS1!$C$692),0) -> 0 | AE38: 0 | AF38: =ROUND(ABS(AG38)/MONTH(FERC_IS1!$C$692),0) -> 0 | AG38: 0 | AH38: 0 | AJ38: 0 | AK38: -30326.43 | AL38: 30326.43 | AM38: 1 | AO38: 0 | AP38: 0 | AQ38: 0 | AT38: 0 | AU38: 0 | AV38: 0 | AW38: 0 | AX38: 0 | AZ38: -20554.56 | BA38: -102367.55 | BB38: 81812.99 | BC38: -0.7992082452 | BE38: 0 | BF38: 0 | BG38: 0 | BJ38: 0 | BK38: 0 | BL38: 0 | BM38: 0 | BN38: 0
A39: %,V4470100 | B39: 4470100 | C39: PJM FTR Revenue-OSS | F39: 3523.93 | G39: 202.03 | H39: 3321.9 | I39: 16.44260753 | K39: 0 | L39: 0 | M39: 0 | P39: 0 | Q39: 0 | R39: 0 | T39: 274671.78 | U39: 37013.98 | V39: 237657.8 | W39: 6.420757779 | Y39: 0 | Z39: 0 | AA39: 0 | AD39: =ROUND(ABS(AE39)/MONTH(FERC_IS1!$C$692),0) -> 0 | AE39: 0 | AF39: =ROUND(ABS(AG39)/MONTH(FERC_IS1!$C$692),0) -> 0 | AG39: 0 | AH39: 0 | AJ39: 274671.78 | AK39: 37013.98 | AL39: 237657.8 | AM39: 6.420757779 | AO39: 0 | AP39: 0 | AQ39: 0 | AT39: 0 | AU39: 0 | AV39: 0 | AW39: 0 | AX39: 0 | AZ39: 458606.17 | BA39: 256970.3 | BB39: 201635.87 | BC39: 0.784666049 | BE39: 0 | BF39: 0 | BG39: 0 | BJ39: 0 | BK39: 0 | BL39: 0 | BM39: 0 | BN39: 0
A40: %,V4470103 | B40: 4470103 | C40: PJM Energy Sales Cost | F40: 1388080.63 | G40: 928576.47 | H40: 459504.16 | I40: 0.4948479472 | K40: 23906403 | L40: 22925741 | M40: 980662 | N40: 0.04277558575 | P40: 0 | Q40: 0 | R40: 0 | T40: 9688068.39 | U40: 2980937.39 | V40: 6707131 | W40: 2.250007337 | Y40: 124298952 | Z40: 67941918 | AA40: 56357034 | AB40: 0.8294884169 | AD40: =ROUND(ABS(AE40)/MONTH(FERC_IS1!$C$692),0) -> 0 | AE40: 0 | AF40: =ROUND(ABS(AG40)/MONTH(FERC_IS1!$C$692),0) -> 0 | AG40: 0 | AH40: 0 | AJ40: 9688068.39 | AK40: 2980937.39 | AL40: 6707131 | AM40: 2.250007337 | AO40: 124298952 | AP40: 67941918 | AQ40: 56357034 | AR40: 0.8294884169 | AT40: 0 | AU40: 0 | AV40: 0 | AW40: 0 | AX40: 0 | AZ40: 34399016.44 | BA40: 15743203.34 | BB40: 18655813.1 | BC40: 1.185007441 | BE40: 633681045 | BF40: 403658253 | BG40: 230022792 | BH40: 0.5698453835 | BJ40: 0 | BK40: 0 | BL40: 0 | BM40: 0 | BN40: 0
A41: %,V4470115 | B41: 4470115 | C41: PJM Meter Corrections-OSS | F41: 31.6 | G41: -9292.75 | H41: =+F41-G41 -> 9324.35 | I41: -1.0034005 | K41: 0 | L41: 0 | M41: =+K41-L41 -> 0 | N41: =IF(AND(K41=0,L41=0),"",IF(OR(K41=0,L41=0),100%,(+M41/L41))) ->  | P41: 0 | Q41: 0 | R41: =+P41-Q41 -> 0 | T41: -2341.89 | U41: -9862.18 | V41: =+T41-U41 -> 7520.29 | W41: =IF(AND(T41=0,U41=0),"",IF(OR(T41=0,U41=0),100%,(+V41/U41))) -> -0.7625383029 | Y41: 0 | Z41: 0 | AA41: =+Y41-Z41 -> 0 | AB41: =IF(AND(Y41=0,Z41=0),"",IF(OR(Y41=0,Z41=0),100%,(+AA41/Z41))) ->  | AD41: =ROUND(ABS(AE41)/MONTH(FERC_IS1!$C$692),0) -> 0 | AE41: 0 | AF41: =ROUND(ABS(AG41)/MONTH(FERC_IS1!$C$692),0) -> 0 | AG41: 0 | AH41: =+AD41-AF41 -> 0 | AJ41: -2341.89 | AK41: -9862.18 | AL41: =+AJ41-AK41 -> 7520.29 | AM41: =IF(AND(AJ41=0,AK41=0),"",IF(OR(AJ41=0,AK41=0),100%,(+AL41/AK41))) -> -0.7625383029 | AO41: 0 | AP41: 0 | AQ41: =+AO41-AP41 -> 0 | AR41: =IF(AND(AO41=0,AP41=0),"",IF(OR(AO41=0,AP41=0),100%,(+AQ41/AP41))) ->  | AT41: =ROUND(ABS(AU41)/3,0) -> 0 | AU41: 0 | AV41: =ROUND(ABS(AW41)/3,0) -> 0 | AW41: 0 | AX41: =+AT41-AV41 -> 0 | AZ41: -276682.07 | BA41: 33906.28 | BB41: =+AZ41-BA41 -> -310588.35 | BC41: =IF(AND(AZ41=0,BA41=0),"",IF(OR(AZ41=0,BA41=0),100%,(+BB41/BA41))) -> -9.160201296 | BE41: 0 | BF41: 0 | BG41: =+BE41-BF41 -> 0 | BH41: =IF(AND(BE41=0,BF41=0),"",IF(OR(BE41=0,BF41=0),100%,(+BG41/BF41))) ->  | BJ41: =ROUND(ABS(BK41)/12,0) -> 0 | BK41: 0 | BL41: =ROUND(ABS(BM41)/12,0) -> 0 | BM41: 0 | BN41: =+BJ41-BL41 -> 0
A42: %,V4470116 | B42: 4470116 | C42: PJM Meter Corrections-LSE | F42: -17595.5 | G42: -153176 | H42: 135580.5 | I42: -0.8851288714 | K42: 0 | L42: 0 | M42: 0 | P42: 0 | Q42: 0 | R42: 0 | T42: -22421.22 | U42: -148383.19 | V42: 125961.97 | W42: -0.8488964956 | Y42: 0 | Z42: 0 | AA42: 0 | AD42: =ROUND(ABS(AE42)/MONTH(FERC_IS1!$C$692),0) -> 0 | AE42: 0 | AF42: =ROUND(ABS(AG42)/MONTH(FERC_IS1!$C$692),0) -> 0 | AG42: 0 | AH42: 0 | AJ42: -22421.22 | AK42: -148383.19 | AL42: 125961.97 | AM42: -0.8488964956 | AO42: 0 | AP42: 0 | AQ42: 0 | AT42: 0 | AU42: 0 | AV42: 0 | AW42: 0 | AX42: 0 | AZ42: -1472434.98 | BA42: 198183.44 | BB42: -1670618.42 | BC42: -8.429656988 | BE42: 0 | BF42: 0 | BG42: 0 | BJ42: 0 | BK42: 0 | BL42: 0 | BM42: 0 | BN42: 0
A43: %,V4470126 | B43: 4470126 | C43: PJM Incremental Imp Cong-OSS | F43: 25018.68 | G43: -7024.68 | H43: 32043.36 | I43: -4.56154017 | K43: 0 | L43: 0 | M43: 0 | P43: 0 | Q43: 0 | R43: 0 | T43: -389952.96 | U43: -42276.36 | V43: -347676.6 | W43: 8.223901017 | Y43: 0 | Z43: 0 | AA43: 0 | AD43: =ROUND(ABS(AE43)/MONTH(FERC_IS1!$C$692),0) -> 0 | AE43: 0 | AF43: =ROUND(ABS(AG43)/MONTH(FERC_IS1!$C$692),0) -> 0 | AG43: 0 | AH43: 0 | AJ43: -389952.96 | AK43: -42276.36 | AL43: -347676.6 | AM43: 8.223901017 | AO43: 0 | AP43: 0 | AQ43: 0 | AT43: 0 | AU43: 0 | AV43: 0 | AW43: 0 | AX43: 0 | AZ43: -995689.44 | BA43: -358248.9 | BB43: -637440.54 | BC43: 1.779323091 | BE43: 0 | BF43: 0 | BG43: 0 | BJ43: 0 | BK43: 0 | BL43: 0 | BM43: 0 | BN43: 0
A44: %,V4470150 | B44: 4470150 | C44: Transm. Rev.-Dedic. Whlsl/Muni | F44: -3814 | G44: 110.89 | H44: -3924.89 | I44: -35.39444495 | K44: 0 | L44: 0 | M44: 0 | P44: 0 | Q44: 0 | R44: 0 | T44: -11443 | U44: -5807.24 | V44: -5635.76 | W44: 0.9704713427 | Y44: 0 | Z44: 0 | AA44: 0 | AD44: =ROUND(ABS(AE44)/MONTH(FERC_IS1!$C$692),0) -> 0 | AE44: 0 | AF44: =ROUND(ABS(AG44)/MONTH(FERC_IS1!$C$692),0) -> 0 | AG44: 0 | AH44: 0 | AJ44: -11443 | AK44: -5807.24 | AL44: -5635.76 | AM44: 0.9704713427 | AO44: 0 | AP44: 0 | AQ44: 0 | AT44: 0 | AU44: 0 | AV44: 0 | AW44: 0 | AX44: 0 | AZ44: -62516.75 | BA44: 162517.73 | BB44: -225034.48 | BC44: -1.38467649 | BE44: 0 | BF44: 0 | BG44: 0 | BJ44: 0 | BK44: 0 | BL44: 0 | BM44: 0 | BN44: 0
A45: %,V4470175 | B45: 4470175 | C45: OSS Sharing Reclass - Retail | F45: 313392.31 | G45: 395082.68 | H45: -81690.37 | I45: -0.2067677834 | K45: 0 | L45: 0 | M45: 0 | P45: 0 | Q45: 0 | R45: 0 | T45: 1444072.42 | U45: 1611572.69 | V45: -167500.27 | W45: -0.1039359075 | Y45: 0 | Z45: 0 | AA45: 0 | AD45: =ROUND(ABS(AE45)/MONTH(FERC_IS1!$C$692),0) -> 0 | AE45: 0 | AF45: =ROUND(ABS(AG45)/MONTH(FERC_IS1!$C$692),0) -> 0 | AG45: 0 | AH45: 0 | AJ45: 1444072.42 | AK45: 1611572.69 | AL45: -167500.27 | AM45: -0.1039359075 | AO45: 0 | AP45: 0 | AQ45: 0 | AT45: 0 | AU45: 0 | AV45: 0 | AW45: 0 | AX45: 0 | AZ45: 5280406.74 | BA45: 5141953.75 | BB45: 138452.99 | BC45: 0.02692614456 | BE45: 0 | BF45: 0 | BG45: 0 | BJ45: 0 | BK45: 0 | BL45: 0 | BM45: 0 | BN45: 0
A46: %,V4470176 | B46: 4470176 | C46: OSS Sharing Reclass-Reduction | F46: -313392.31 | G46: -395082.68 | H46: 81690.37 | I46: -0.2067677834 | K46: 0 | L46: 0 | M46: 0 | P46: 0 | Q46: 0 | R46: 0 | T46: -1444072.42 | U46: -1611572.69 | V46: 167500.27 | W46: -0.1039359075 | Y46: 0 | Z46: 0 | AA46: 0 | AD46: =ROUND(ABS(AE46)/MONTH(FERC_IS1!$C$692),0) -> 0 | AE46: 0 | AF46: =ROUND(ABS(AG46)/MONTH(FERC_IS1!$C$692),0) -> 0 | AG46: 0 | AH46: 0 | AJ46: -1444072.42 | AK46: -1611572.69 | AL46: 167500.27 | AM46: -0.1039359075 | AO46: 0 | AP46: 0 | AQ46: 0 | AT46: 0 | AU46: 0 | AV46: 0 | AW46: 0 | AX46: 0 | AZ46: -5280406.74 | BA46: -5141953.75 | BB46: -138452.99 | BC46: 0.02692614456 | BE46: 0 | BF46: 0 | BG46: 0 | BJ46: 0 | BK46: 0 | BL46: 0 | BM46: 0 | BN46: 0
A47: %,V4470206 | B47: 4470206 | C47: PJM Trans loss credits-OSS | F47: 16786.45 | G47: 10767.14 | H47: 6019.31 | I47: 0.5590444631 | K47: 0 | L47: 0 | M47: 0 | P47: 0 | Q47: 0 | R47: 0 | T47: 118686.54 | U47: 43134.96 | V47: 75551.58 | W47: 1.751516172 | Y47: 0 | Z47: 0 | AA47: 0 | AD47: =ROUND(ABS(AE47)/MONTH(FERC_IS1!$C$692),0) -> 0 | AE47: 0 | AF47: =ROUND(ABS(AG47)/MONTH(FERC_IS1!$C$692),0) -> 0 | AG47: 0 | AH47: 0 | AJ47: 118686.54 | AK47: 43134.96 | AL47: 75551.58 | AM47: 1.751516172 | AO47: 0 | AP47: 0 | AQ47: 0 | AT47: 0 | AU47: 0 | AV47: 0 | AW47: 0 | AX47: 0 | AZ47: 286542.64 | BA47: 118842.18 | BB47: 167700.46 | BC47: 1.411119015 | BE47: 0 | BF47: 0 | BG47: 0 | BJ47: 0 | BK47: 0 | BL47: 0 | BM47: 0 | BN47: 0
A48: %,V4470209 | B48: 4470209 | C48: PJM transm loss charges-OSS | F48: -37097.85 | G48: -16648.45 | H48: -20449.4 | I48: 1.228306539 | K48: 0 | L48: 0 | M48: 0 | P48: 0 | Q48: 0 | R48: 0 | T48: -236659.82 | U48: -66751.98 | V48: -169907.84 | W48: 2.545360302 | Y48: 0 | Z48: 0 | AA48: 0 | AD48: =ROUND(ABS(AE48)/MONTH(FERC_IS1!$C$692),0) -> 0 | AE48: 0 | AF48: =ROUND(ABS(AG48)/MONTH(FERC_IS1!$C$692),0) -> 0 | AG48: 0 | AH48: 0 | AJ48: -236659.82 | AK48: -66751.98 | AL48: -169907.84 | AM48: 2.545360302 | AO48: 0 | AP48: 0 | AQ48: 0 | AT48: 0 | AU48: 0 | AV48: 0 | AW48: 0 | AX48: 0 | AZ48: -604171.19 | BA48: -248298.12 | BB48: -355873.07 | BC48: 1.433249152 | BE48: 0 | BF48: 0 | BG48: 0 | BJ48: 0 | BK48: 0 | BL48: 0 | BM48: 0 | BN48: 0
A49: %,V4470220 | B49: 4470220 | C49: PJM Regulation - OSS | F49: 836034.15 | G49: 541674.88 | H49: 294359.27 | I49: 0.5434242585 | K49: 0 | L49: 0 | M49: 0 | P49: 0 | Q49: 0 | R49: 0 | T49: 699214.83 | U49: 1401448.12 | V49: -702233.29 | W49: -0.5010769075 | Y49: 0 | Z49: 0 | AA49: 0 | AD49: =ROUND(ABS(AE49)/MONTH(FERC_IS1!$C$692),0) -> 0 | AE49: 0 | AF49: =ROUND(ABS(AG49)/MONTH(FERC_IS1!$C$692),0) -> 0 | AG49: 0 | AH49: 0 | AJ49: 699214.83 | AK49: 1401448.12 | AL49: -702233.29 | AM49: -0.5010769075 | AO49: 0 | AP49: 0 | AQ49: 0 | AT49: 0 | AU49: 0 | AV49: 0 | AW49: 0 | AX49: 0 | AZ49: 3214766.23 | BA49: 5204084.63 | BB49: -1989318.4 | BC49: -0.3822609626 | BE49: 0 | BF49: 0 | BG49: 0 | BJ49: 0 | BK49: 0 | BL49: 0 | BM49: 0 | BN49: 0
A50: %,V4470221 | B50: 4470221 | C50: PJM Spinning Reserve - OSS | F50: 36062.84 | G50: -1858.28 | H50: 37921.12 | I50: -20.40656952 | K50: 0 | L50: 0 | M50: 0 | P50: 0 | Q50: 0 | R50: 0 | T50: 87932.17 | U50: 28691.64 | V50: 59240.53 | W50: 2.064731399 | Y50: 0 | Z50: 0 | AA50: 0 | AD50: =ROUND(ABS(AE50)/MONTH(FERC_IS1!$C$692),0) -> 0 | AE50: 0 | AF50: =ROUND(ABS(AG50)/MONTH(FERC_IS1!$C$692),0) -> 0 | AG50: 0 | AH50: 0 | AJ50: 87932.17 | AK50: 28691.64 | AL50: 59240.53 | AM50: 2.064731399 | AO50: 0 | AP50: 0 | AQ50: 0 | AT50: 0 | AU50: 0 | AV50: 0 | AW50: 0 | AX50: 0 | AZ50: 262460.83 | BA50: 93434.87 | BB50: 169025.96 | BC50: 1.809024404 | BE50: 0 | BF50: 0 | BG50: 0 | BJ50: 0 | BK50: 0 | BL50: 0 | BM50: 0 | BN50: 0
A51: %,FACCOUNT,X,TGL_FERC_ACCT,N4470 | B51: Line 11 | C51: (447) Sales for Resale | F51: 1679419.85 | G51: 1632297.88 | H51: 47121.97 | I51: 0.02886848692 | K51: 23906403 | L51: 28857742 | M51: -4951339 | N51: -0.1715774921 | P51: 0 | Q51: 0 | R51: 0 | T51: 11101767.04 | U51: 6032057.06 | V51: 5069709.98 | W51: 0.8404612108 | Y51: 124298952 | Z51: 89849844 | AA51: 34449108 | AB51: 0.3834075438 | AD51: =ROUND(ABS(AE51)/MONTH(FERC_IS1!$C$692),0) -> 0 | AE51: 0 | AF51: =ROUND(ABS(AG51)/MONTH(FERC_IS1!$C$692),0) -> 0 | AG51: 0 | AH51: 0 | AJ51: 11101767.04 | AK51: 6032057.06 | AL51: 5069709.98 | AM51: 0.8404612108 | AO51: 124298952 | AP51: 89849844 | AQ51: 34449108 | AR51: 0.3834075438 | AT51: 0 | AU51: 0 | AV51: 0 | AW51: 0 | AX51: 0 | AZ51: 39465009.98 | BA51: 25924280 | BB51: 13540729.98 | BC51: 0.522318459 | BE51: 643914361 | BF51: 479548684 | BG51: 164365677 | BH51: 0.3427507623 | BJ51: 0 | BK51: 0 | BL51: 0 | BM51: 0 | BN51: 0
A52: %,FACCOUNT,TGL_FERC_ACCT,NSALES_OF_ELECTRICITY | B52: Line 12 | C52: TOTAL Sales of Electricity | F52: 58987099.05 | G52: 61160000.72 | H52: -2172901.67 | I52: -0.03552814984 | K52: 432570956 | L52: 487897980 | M52: -55327024 | N52: -0.113398756 | P52: 161497 | Q52: 162309 | R52: -812 | T52: 196630799.7 | U52: 196268709.2 | V52: 362090.548 | W52: 0.0018448715 | Y52: 1527744721 | Z52: 1597284146 | AA52: -69539425 | AB52: -0.04353603908 | AD52: =ROUND(ABS(AE52)/MONTH(FERC_IS1!$C$692),0) -> 162057 | AE52: 486171 | AF52: =ROUND(ABS(AG52)/MONTH(FERC_IS1!$C$692),0) -> 162542 | AG52: 487626 | AH52: -485 | AJ52: 196630799.7 | AK52: 196268709.2 | AL52: 362090.548 | AM52: 0.0018448715 | AO52: 1527744721 | AP52: 1597284146 | AQ52: -69539425 | AR52: -0.04353603908 | AT52: 162057 | AU52: 486171 | AV52: 162542 | AW52: 487626 | AX52: -485 | AZ52: 702433990.6 | BA52: 686955710.7 | BB52: 15478279.96 | BC52: 0.02253169996 | BE52: 5817530011 | BF52: 5862722159 | BG52: -45192148 | BH52: -0.007708389853 | BJ52: 161727 | BK52: 1940719 | BL52: 162464 | BM52: 1949566 | BN52: -737
A53: %,V4491002 | B53: 4491002 | C53: Non-Tran Prov Rate Ref Whlsale | F53: 0 | G53: 39976 | H53: -39976 | K53: 0 | L53: 0 | M53: 0 | P53: 0 | Q53: 0 | R53: 0 | T53: 0 | U53: 0 | V53: 0 | Y53: 0 | Z53: 0 | AA53: 0 | AD53: =ROUND(ABS(AE53)/MONTH(FERC_IS1!$C$692),0) -> 0 | AE53: 0 | AF53: =ROUND(ABS(AG53)/MONTH(FERC_IS1!$C$692),0) -> 0 | AG53: 0 | AH53: 0 | AJ53: 0 | AK53: 0 | AL53: 0 | AO53: 0 | AP53: 0 | AQ53: 0 | AT53: 0 | AU53: 0 | AV53: 0 | AW53: 0 | AX53: 0 | AZ53: 0 | BA53: -783467 | BB53: 783467 | BC53: 1 | BE53: 0 | BF53: 0 | BG53: 0 | BJ53: 0 | BK53: 0 | BL53: 0 | BM53: 0 | BN53: 0
A54: %,V4491003 | B54: 4491003 | C54: Non-Tran Prov Rate Ref Retail | F54: 0 | G54: 9038 | H54: -9038 | K54: 0 | L54: 0 | M54: 0 | P54: 0 | Q54: 0 | R54: 0 | T54: 0 | U54: 0 | V54: 0 | Y54: 0 | Z54: 0 | AA54: 0 | AD54: =ROUND(ABS(AE54)/MONTH(FERC_IS1!$C$692),0) -> 0 | AE54: 0 | AF54: =ROUND(ABS(AG54)/MONTH(FERC_IS1!$C$692),0) -> 0 | AG54: 0 | AH54: 0 | AJ54: 0 | AK54: 0 | AL54: 0 | AO54: 0 | AP54: 0 | AQ54: 0 | AT54: 0 | AU54: 0 | AV54: 0 | AW54: 0 | AX54: 0 | AZ54: 0 | BA54: -172937 | BB54: 172937 | BC54: 1 | BE54: 0 | BF54: 0 | BG54: 0 | BJ54: 0 | BK54: 0 | BL54: 0 | BM54: 0 | BN54: 0
A55: %,V4491004 | B55: 4491004 | C55: Prov Rate Refund - Affiliated | F55: 0 | G55: 267377 | H55: -267377 | K55: 0 | L55: 0 | M55: 0 | P55: 0 | Q55: 0 | R55: 0 | T55: 0 | U55: 0 | V55: 0 | Y55: 0 | Z55: 0 | AA55: 0 | AD55: =ROUND(ABS(AE55)/MONTH(FERC_IS1!$C$692),0) -> 0 | AE55: 0 | AF55: =ROUND(ABS(AG55)/MONTH(FERC_IS1!$C$692),0) -> 0 | AG55: 0 | AH55: 0 | AJ55: 0 | AK55: 0 | AL55: 0 | AO55: 0 | AP55: 0 | AQ55: 0 | AT55: 0 | AU55: 0 | AV55: 0 | AW55: 0 | AX55: 0 | AZ55: 0 | BA55: -5193694 | BB55: 5193694 | BC55: 1 | BE55: 0 | BF55: 0 | BG55: 0 | BJ55: 0 | BK55: 0 | BL55: 0 | BM55: 0 | BN55: 0
A56: %,V4491005 | B56: 4491005 | C56: Tran Prov Trans Ref NonAffil | F56: -114 | G56: -60327 | H56: 60213 | K56: 0 | L56: 0 | M56: 0 | P56: 0 | Q56: 0 | R56: 0 | T56: -344 | U56: -60327 | V56: 59983 | W56: -0.994297744 | Y56: 0 | Z56: 0 | AA56: 0 | AD56: =ROUND(ABS(AE56)/MONTH(FERC_IS1!$C$692),0) -> 0 | AE56: 0 | AF56: =ROUND(ABS(AG56)/MONTH(FERC_IS1!$C$692),0) -> 0 | AG56: 0 | AH56: 0 | AJ56: -344 | AK56: -60327 | AL56: 59983 | AM56: -0.994297744 | AO56: 0 | AP56: 0 | AQ56: 0 | AT56: 0 | AU56: 0 | AV56: 0 | AW56: 0 | AX56: 0 | AZ56: -157737 | BA56: -60327 | BB56: -97410 | BC56: 1.614699886 | BE56: 0 | BF56: 0 | BG56: 0 | BJ56: 0 | BK56: 0 | BL56: 0 | BM56: 0 | BN56: 0
